Workbook

Sheet Title
B4: Экспортный лист финансовой модели
C5: Версия 1.6.1.
C6: 2021-03-01
B10: Легенда
B11: Обозначения ячеек
B12: xx | C12: - вводные данные, изменяемые параметры
B13: xx | C13: - расчеты
B14: xx | C14: - значения из модели Клиента
B15: xx | C15: - изменение формулы в строке
B16: xx | C16: - период строительства/эксплуатации
B17: xx | C17: - исторический период
B18: xx | C18: - прогнозный период содержит часть исторического
C19: - запуск расчета
C20: - раздел требует заполнения

Sheet Export list
A1: Экспортный лист | D1: Целостность - экспортный лист | E1: =E1217 -> 0 | F1: Проверка привязки макроэкономических показателей | G1: Динамический статус внесения данных на экспортный лист (требуемый уровень - 100%): | J1: ver. | K1: 1.6.1. | L1: pass seed | M1: password
D2: Сигналы - экспортный лист | E2: =E1218 -> 0 | F2: =E1219 -> 1 | G2: =ROUND(E1422,2) -> 0.08
A3: Начало периода | T3: =DATE(YEAR(ut_Date_Model_Start),MONTH(ut_Date_Model_Start),DAY(ut_Date_Model_Start)) -> 2019-01-01 | U3: =T4+1 -> 2019-04-01 | V3: 2019-07-01 | W3: =V4+1 -> 2019-10-01 | X3: =W4+1 -> 2020-01-01 | Y3: =X4+1 -> 2020-04-01 | Z3: =Y4+1 -> 2020-07-01 | AA3: =Z4+1 -> 2020-10-01 | AB3: ut_Beginning_of_Period
A4: Окончание периода | T4: =EOMONTH(T3,ut_Months_in_Period-1) -> 2019-03-31 | U4: 2019-06-30 | V4: 2019-09-30 | W4: =EOMONTH(W3,ut_Months_in_Period-1) -> 2019-12-31 | X4: 2020-03-31 | Y4: =EOMONTH(Y3,ut_Months_in_Period-1) -> 2020-06-30 | Z4: 2020-09-30 | AA4: =EOMONTH(AA3,ut_Months_in_Period-1) -> 2020-12-31 | AB4: ut_End_of_Period
A5: Период строительства | T5: =(T3>=$F$35)*(T4<=$F$36)*1 -> 0 | U5: 0 | V5: 0 | W5: =(W3>=$F$35)*(W4<=$F$36)*1 -> 0 | X5: 0 | Y5: =(Y3>=$F$35)*(Y4<=$F$36)*1 -> 0 | Z5: 0 | AA5: =(AA3>=$F$35)*(AA4<=$F$36)*1 -> 0 | AB5: ut_Construction_Period
A6: Операционный период | T6: =(T100>0)*1 -> 0 | U6: =(U100>0)*1 -> 0 | V6: 0 | W6: =(W100>0)*1 -> 0 | X6: 0 | Y6: =(Y100>0)*1 -> 0 | Z6: 0 | AA6: =(AA100>0)*1 -> 0 | AB6: ut_Operation_Period
C7: Статья | D7: Ед. измерения | E7: Сумма | F7: Значение | G7: Имена | H7: Комментарий | Q7: Проверка заполнения
C8: Общие и временные параметры | Q8: =(MAX(Q9:Q44)=1)*1 -> 1
C11: Легенда
C13: Обозначения ячеек
C14: xx | D14: - вводные данные, изменяемые параметры
C15: xx | D15: - расчеты
C16: xx | D16: - ссылки на значения из финансовой модели / ввод данных
C17: xx | D17: - изменение формулы в строке
C18: xx | D18: - период строительства/эксплуатации
C19: xx | D19: - исторический период
D20: - раздел требует заполнения
C22: На экспортном листе все значения из модели Клиента вносить со знаком ПЛЮС, если не указано иного.
C24: Общие сведения
C26: Проект | G26: ut_Project_Name | H26: Указать наименование Проекта | Q26: =IF(F26="",1,0) -> 1
C27: Инициатор проекта | G27: ut_Project_Initiator | H27: Указать инициатора Проекта | Q27: =IF(F27="",1,0) -> 1
C28: Местонахождение | G28: ut_Project_Location | H28: Указать местоположение Проекта | Q28: =IF(F28="",1,0) -> 1
C30: Дата начала модели | F30: 01.01.2019 | G30: ut_Date_Model_Start | H30: Значения заполняются макросом
C31: Дата окончания модели | F31: 31.12.2020 | G31: ut_Date_Model_End
C32: Количество месяцев в прогнозном периоде | D32: месяц | F32: 3 | G32: ut_Months_in_Period
C33: Количество прогнозных периодов | F33: =COUNT(ut_Beginning_of_Period) -> 8 | G33: ut_Count
C35: Период строительства | E35: с | F35: =DATE(YEAR(ut_Date_Model_Start),MONTH(ut_Date_Model_Start),DAY(ut_Date_Model_Start)) -> 2019-01-01
E36: по | H36: Указать дату завершения периода строительства (периода инвестиций), в случае если в рамках прогнозного периода модели период строительства отсутствует - оставить поле пустым
C38: Количество лет деятельности проекта в постпрогнозном периоде | D38: год | F38: 1000 | G38: ut_Post_Forecast | H38: Указать количество лет действия Проекта, после завершения прогнозного периода в модели. В случае, если проект не ограничен по сроку действия - поставить 1000.
C40: Исторический период | E40: по | G40: ut_Historical_EndDate | H40: Выбрать последнюю дату в модели, которой соответствуют исторические данные. В случае если исторические данные во временном горизонте модели отсутствуют - оставить поле пустым.
C42: Валюта модели | F42: RUB | G42: ut_LCU | H42: Выбрать основную валюту модели | J42: =INDEX(F987:F992,MATCH(ut_LCU,D987:D992,0)) -> RUB
C43: Размерность финансовых показателей | F43: тыс. | G43: ut_Digits | H43: Выбрать размерность финансовых показателей
C45: Отчетность | Q45: =(MAX(Q46:Q226)=1)*1 -> 1
C47: Баланс
C48: Внеоборотные активы | D48: =ut_Digits&ut_LCU -> тыс. RUB | H48: Внести ссылки на баланс в модели. В случае отсутствия значений - поставить нули. | T48: =SUM(T49:T54) -> 0 | U48: =SUM(U49:U54) -> 0 | V48: =SUM(V49:V54) -> 0 | W48: =SUM(W49:W54) -> 0 | X48: 0 | Y48: =SUM(Y49:Y54) -> 0 | Z48: 0 | AA48: =SUM(AA49:AA54) -> 0
C49: Нематериальные активы | D49: тыс. RUB | P49: 1 | Q49: =IF(MIN(LEN(T49:AA49))=0,1,0) -> 1 | AB49: ut_Intangible_Assets_Balance
C50: Основные средства | D50: тыс. RUB | P50: 1 | Q50: =IF(MIN(LEN(T50:AA50))=0,1,0) -> 1 | AB50: ut_Assets_Balance
C51: Незавершенное строительство | D51: тыс. RUB | P51: 1 | Q51: =IF(MIN(LEN(T51:AA51))=0,1,0) -> 1 | AB51: ut_CIP_Balance
C52: Долгосрочные финансовые вложения | D52: тыс. RUB | P52: 1 | Q52: =IF(MIN(LEN(T52:AA52))=0,1,0) -> 1 | AB52: ut_LT_Fin_Assets_Balance
C53: Отложенные налоговые активы | D53: тыс. RUB | P53: 1 | Q53: =IF(MIN(LEN(T53:AA53))=0,1,0) -> 1 | AB53: ut_Deferred_Tax_Asset_Balance
C54: Прочие внеоборотные активы | D54: тыс. RUB | P54: 1 | Q54: =IF(MIN(LEN(T54:AA54))=0,1,0) -> 1 | AB54: ut_Other_Noncurrent_Assets_Balance
C55: Оборотные активы | D55: тыс. RUB | T55: =SUM(T56:T65) -> 0 | U55: =SUM(U56:U65) -> 0 | V55: =SUM(V56:V65) -> 0 | W55: =SUM(W56:W65) -> 0 | X55: 0 | Y55: =SUM(Y56:Y65) -> 0 | Z55: 0 | AA55: =SUM(AA56:AA65) -> 0
C56: Запасы | D56: тыс. RUB | P56: 1 | Q56: =IF(MIN(LEN(T56:AA56))=0,1,0) -> 1 | AB56: ut_Inventory_Balance
C57: Дебиторская задолженность покупателей и заказчиков | D57: тыс. RUB | P57: 1 | Q57: =IF(MIN(LEN(T57:AA57))=0,1,0) -> 1 | AB57: ut_TradeReceivables_Balance
C58: Авансы выданные | D58: тыс. RUB | P58: 1 | Q58: =IF(MIN(LEN(T58:AA58))=0,1,0) -> 1 | AB58: ut_AdvancesPaid_Balance
C59: Инвестиционные авансы | D59: тыс. RUB | P59: 1 | Q59: =IF(MIN(LEN(T59:AA59))=0,1,0) -> 1 | AB59: ut_Investment_Advances_Balance
C60: НДС к возмещению из бюджета | D60: тыс. RUB | P60: 1 | Q60: =IF(MIN(LEN(T60:AA60))=0,1,0) -> 1 | AB60: ut_VAT_Receivable_Balance
C61: Прочая дебиторская задолженность | D61: тыс. RUB | P61: 1 | Q61: =IF(MIN(LEN(T61:AA61))=0,1,0) -> 1 | AB61: ut_Other_Receivables_Balance
C62: Краткосрочные финансовые вложения | D62: тыс. RUB | P62: 1 | Q62: =IF(MIN(LEN(T62:AA62))=0,1,0) -> 1 | AB62: ut_ST_Fin_Assets_Balance
C63: Денежные средства и их эквиваленты | D63: тыс. RUB | P63: 1 | Q63: =IF(MIN(LEN(T63:AA63))=0,1,0) -> 1 | AB63: ut_Cash_Balance
C64: DSRA | D64: тыс. RUB | P64: 1 | Q64: =IF(MIN(LEN(T64:AA64))=0,1,0) -> 1 | AB64: ut_DSRA_Balance
C65: Прочие оборотные активы | D65: тыс. RUB | P65: 1 | Q65: =IF(MIN(LEN(T65:AA65))=0,1,0) -> 1 | AB65: ut_Other_Current_Assets_Balance
C66: ИТОГО АКТИВЫ | D66: тыс. RUB | T66: =SUM(T55,T48) -> 0 | U66: =SUM(U55,U48) -> 0 | V66: =SUM(V55,V48) -> 0 | W66: =SUM(W55,W48) -> 0 | X66: 0 | Y66: =SUM(Y55,Y48) -> 0 | Z66: 0 | AA66: =SUM(AA55,AA48) -> 0 | AB66: ut_Total_Assets
C68: Капитал | D68: =ut_Digits&ut_LCU -> тыс. RUB | T68: =SUM(T69:T71) -> 0 | U68: =SUM(U69:U71) -> 0 | V68: =SUM(V69:V71) -> 0 | W68: =SUM(W69:W71) -> 0 | X68: 0 | Y68: =SUM(Y69:Y71) -> 0 | Z68: 0 | AA68: =SUM(AA69:AA71) -> 0
C69: Акционерный капитал и резервы | D69: тыс. RUB | P69: 1 | Q69: =IF(MIN(LEN(T69:AA69))=0,1,0) -> 1 | AB69: ut_Equity_Balance
C70: Акционерный займ | D70: тыс. RUB | P70: 1 | Q70: =IF(MIN(LEN(T70:AA70))=0,1,0) -> 1 | AB70: ut_Subord_Balance
C71: Нераспределенная прибыль | D71: тыс. RUB | P71: 1 | Q71: =IF(MIN(LEN(T71:AA71))=0,1,0) -> 1 | AB71: ut_Retained_Earnings_Balance
C72: Долгосрочные обязательства | D72: тыс. RUB | T72: =SUM(T73:T76) -> 0 | U72: =SUM(U73:U76) -> 0 | V72: =SUM(V73:V76) -> 0 | W72: =SUM(W73:W76) -> 0 | X72: 0 | Y72: =SUM(Y73:Y76) -> 0 | Z72: 0 | AA72: =SUM(AA73:AA76) -> 0
C73: Долгосрочные кредиты и займы | D73: тыс. RUB | P73: 1 | Q73: =IF(MIN(LEN(T73:AA73))=0,1,0) -> 1 | AB73: ut_LT_Debt_Balance
C74: Долгосрочные обязательства по финансовой аренде | D74: тыс. RUB | P74: 1 | Q74: =IF(MIN(LEN(T74:AA74))=0,1,0) -> 1 | AB74: ut_LT_Finlease_Balance
C75: Отложенные налоговые обязательства | D75: тыс. RUB | P75: 1 | Q75: =IF(MIN(LEN(T75:AA75))=0,1,0) -> 1 | AB75: ut_Deferred_Tax_Liability_Balance
C76: Прочие долгосрочные обязательства | D76: тыс. RUB | P76: 1 | Q76: =IF(MIN(LEN(T76:AA76))=0,1,0) -> 1 | AB76: ut_LT_Other_Liabilities_Balance
C77: Краткосрочные обязательства | D77: тыс. RUB | T77: =SUM(T78:T87) -> 0 | U77: =SUM(U78:U87) -> 0 | V77: =SUM(V78:V87) -> 0 | W77: =SUM(W78:W87) -> 0 | X77: 0 | Y77: =SUM(Y78:Y87) -> 0 | Z77: 0 | AA77: =SUM(AA78:AA87) -> 0
C78: Краткосрочные кредиты и займы | D78: тыс. RUB | P78: 1 | Q78: =IF(MIN(LEN(T78:AA78))=0,1,0) -> 1 | AB78: ut_ST_Debt_Balance
C79: Краткосрочные обязательства по финансовой аренде | D79: тыс. RUB | P79: 1 | Q79: =IF(MIN(LEN(T79:AA79))=0,1,0) -> 1 | AB79: ut_ST_Finlease_Balance
C80: Задолженность по процентам | D80: тыс. RUB | P80: 1 | Q80: =IF(MIN(LEN(T80:AA80))=0,1,0) -> 1 | AB80: ut_Interest_Balance
C81: Задолженность участникам по выплате дивидендов | D81: тыс. RUB | P81: 1 | Q81: =IF(MIN(LEN(T81:AA81))=0,1,0) -> 1 | AB81: ut_Unpaid_Dividends
C82: Текущая задолженность перед поставщиками и подрядчиками | D82: тыс. RUB | P82: 1 | Q82: =IF(MIN(LEN(T82:AA82))=0,1,0) -> 1 | AB82: ut_TradePayables_Balance
C83: Инвестиционная кредиторская задолженность | D83: тыс. RUB | P83: 1 | Q83: =IF(MIN(LEN(T83:AA83))=0,1,0) -> 1 | AB83: ut_Investment_Payables_Balance
C84: Авансы полученные | D84: тыс. RUB | P84: 1 | Q84: =IF(MIN(LEN(T84:AA84))=0,1,0) -> 1 | AB84: ut_AdvancesReceived_Balance
C85: НДС к уплате в бюджет | D85: тыс. RUB | P85: 1 | Q85: =IF(MIN(LEN(T85:AA85))=0,1,0) -> 1 | AB85: ut_VAT_Payable_Balance
C86: Прочая кредиторская задолженность | D86: тыс. RUB | P86: 1 | Q86: =IF(MIN(LEN(T86:AA86))=0,1,0) -> 1 | AB86: ut_Other_Trade_Payable_Balance
C87: Прочие краткосрочные обязательства | D87: тыс. RUB | P87: 1 | Q87: =IF(MIN(LEN(T87:AA87))=0,1,0) -> 1 | AB87: ut_ST_Liabilities_Balance
C88: ИТОГО КАПИТАЛ И ОБЯЗАТЕЛЬСТВА | D88: тыс. RUB | T88: =SUM(T68,T72,T77) -> 0 | U88: =SUM(U68,U72,U77) -> 0 | V88: =SUM(V68,V72,V77) -> 0 | W88: =SUM(W68,W72,W77) -> 0 | X88: 0 | Y88: =SUM(Y68,Y72,Y77) -> 0 | Z88: 0 | AA88: =SUM(AA68,AA72,AA77) -> 0
C90: Проверка | E90: =MAX(T90:AA90) -> 0 | T90: =ABS(T66-T88)*T1187 -> 0 | U90: 0 | V90: 0 | W90: 0 | X90: 0 | Y90: 0 | Z90: 0 | AA90: 0
C92: Показатели, используемые для корректировки Debt / Net Debt
D93: =ut_Digits&ut_LCU -> тыс. RUB | H93: Значения вносятся с соответствующими знаками
D94: =ut_Digits&ut_LCU -> тыс. RUB
D95: =ut_Digits&ut_LCU -> тыс. RUB
T96: =SUM(T93:T95) -> 0 | U96: 0 | V96: 0 | W96: 0 | X96: 0 | Y96: 0 | Z96: 0 | AA96: =SUM(AA93:AA95) -> 0
C99: Отчет о финансовых результатах | H99: Внести ссылки на отчет о прибылях и убытках в модели. В случае отсутствия значений - поставить нули.
C100: Выручка | D100: =ut_Digits&ut_LCU -> тыс. RUB | P100: 1 | Q100: =IF(MIN(LEN(T100:AA100))=0,1,0) -> 1
C102: Производственные расходы (без амортизации) | D102: =ut_Digits&ut_LCU -> тыс. RUB | H102: =C102&" вносятся со знаком минус" -> Производственные расходы (без амортизации) вносятся со знаком минус | P102: 1 | Q102: =IF(MIN(LEN(T102:AA102))=0,1,0) -> 1 | AB102: ut_OPEX_PL
C104: Валовая прибыль | D104: =ut_Digits&ut_LCU -> тыс. RUB | T104: =T100+T102 -> 0 | U104: =U100+U102 -> 0 | V104: =V100+V102 -> 0 | W104: =W100+W102 -> 0 | X104: 0 | Y104: =Y100+Y102 -> 0 | Z104: 0 | AA104: =AA100+AA102 -> 0
C107: Коммерческие и административные расходы | D107: =ut_Digits&ut_LCU -> тыс. RUB | H107: =C107&" вносятся со знаком минус" -> Коммерческие и административные расходы вносятся со знаком минус | P107: 1 | Q107: =IF(MIN(LEN(T107:AA107))=0,1,0) -> 1 | AB107: ut_SGA_PL
C108: Налог на имущество | D108: =ut_Digits&ut_LCU -> тыс. RUB | H108: =C108&" вносится со знаком минус" -> Налог на имущество вносится со знаком минус | P108: 1 | Q108: =IF(MIN(LEN(T108:AA108))=0,1,0) -> 1
C109: Прочие операционные доходы и расходы | D109: =ut_Digits&ut_LCU -> тыс. RUB | H109: Прочие операционные доходы и расходы вносятся со знаком минус | P109: 1 | Q109: =IF(MIN(LEN(T109:AA109))=0,1,0) -> 1
C111: Показатели, используемые для корректировки EBITDA
C112: Прибыль / убыток от обесценения активов | D112: =ut_Digits&ut_LCU -> тыс. RUB | H112: Доходы вносятся со знаком плюс, расходы - со знаком минус | AB112: Impairment
D113: =ut_Digits&ut_LCU -> тыс. RUB
D114: =ut_Digits&ut_LCU -> тыс. RUB
D115: =ut_Digits&ut_LCU -> тыс. RUB
T116: =SUM(T112:T115) -> 0 | U116: 0 | V116: 0 | W116: 0 | X116: 0 | Y116: 0 | Z116: 0 | AA116: =SUM(AA112:AA115) -> 0
C118: EBITDA | D118: =ut_Digits&ut_LCU -> тыс. RUB | T118: =T104+SUM(T107:T109)+T116 -> 0 | U118: 0 | V118: 0 | W118: 0 | X118: 0 | Y118: 0 | Z118: 0 | AA118: =AA104+SUM(AA107:AA109)+AA116 -> 0
C121: Амортизация | D121: =ut_Digits&ut_LCU -> тыс. RUB | H121: =C121&" вносится со знаком минус" -> Амортизация вносится со знаком минус | P121: 1 | Q121: =IF(MIN(LEN(T121:AA121))=0,1,0) -> 1
C123: EBIT | D123: =ut_Digits&ut_LCU -> тыс. RUB | T123: =T118+T121 -> 0 | U123: 0 | V123: 0 | W123: 0 | X123: 0 | Y123: 0 | Z123: 0 | AA123: =AA118+AA121 -> 0
C126: Процентные доходы и прочие аналогичные доходы | D126: =ut_Digits&ut_LCU -> тыс. RUB | P126: 1 | Q126: =IF(MIN(LEN(T126:AA126))=0,1,0) -> 1
C127: Расходы по процентам и прочие аналогичные расходы | D127: тыс. RUB | T127: =SUM(T128:T130) -> 0 | U127: =SUM(U128:U130) -> 0 | V127: =SUM(V128:V130) -> 0 | W127: =SUM(W128:W130) -> 0 | X127: 0 | Y127: =SUM(Y128:Y130) -> 0 | Z127: 0 | AA127: =SUM(AA128:AA130) -> 0
C128: Проценты к уплате по кредитам | D128: тыс. RUB | H128: =C128&" вносятся со знаком минус" -> Проценты к уплате по кредитам вносятся со знаком минус | P128: 1 | Q128: =IF(MIN(LEN(T128:AA128))=0,1,0) -> 1
C129: Проценты по финансовой аренде | D129: тыс. RUB | H129: Проценты по финансовой аренде вносятся со знаком минус | P129: 1 | Q129: =IF(MIN(LEN(T129:AA129))=0,1,0) -> 1
C130: Банковские комиссии | D130: тыс. RUB | H130: Банковские комиссии вносятся со знаком минус | P130: 1 | Q130: =IF(MIN(LEN(T130:AA130))=0,1,0) -> 1
C131: Курсовые разницы | D131: тыс. RUB | P131: 1 | Q131: =IF(MIN(LEN(T131:AA131))=0,1,0) -> 1
C132: Субсидии | D132: тыс. RUB | P132: 1 | Q132: =IF(MIN(LEN(T132:AA132))=0,1,0) -> 1
C133: Прочие доходы и расходы | D133: тыс. RUB | P133: 1 | Q133: =IF(MIN(LEN(T133:AA133))=0,1,0) -> 1
C135: Прибыль до налогообложения | D135: =ut_Digits&ut_LCU -> тыс. RUB | T135: =T123+T126+T127+T131+T133 -> 0 | U135: 0 | V135: 0 | W135: =W123+W126+W127+W131+W133 -> 0 | X135: 0 | Y135: =Y123+Y126+Y127+Y131+Y133 -> 0 | Z135: 0 | AA135: =AA123+AA126+AA127+AA131+AA133 -> 0 | AB135: ut_PBT
C137: Налог на прибыль | D137: =ut_Digits&ut_LCU -> тыс. RUB | H137: =C137&" вносится со знаком минус" -> Налог на прибыль вносится со знаком минус | P137: 1 | Q137: =IF(MIN(LEN(T137:AA137))=0,1,0) -> 1 | AB137: ut_Profit_Tax
C139: Чистая прибыль | D139: =ut_Digits&ut_LCU -> тыс. RUB | T139: =T137+T135 -> 0 | U139: =U137+U135 -> 0 | V139: =V137+V135 -> 0 | W139: =W137+W135 -> 0 | X139: 0 | Y139: =Y137+Y135 -> 0 | Z139: 0 | AA139: =AA137+AA135 -> 0 | AB139: ut_Net_Income
C143: Баланс - входящий исторический | H143: ="Внести ссылки на значения входящего исторического баланса на дату перед первой датой временной шкалы в модели ("&TEXT(ut_Date_Model_Start,"ДД.ММ.ГГГГ")&"). В случае отсутствия значений - поставить нули." -> Внести ссылки на значения входящего исторического баланса на дату перед первой датой временной шкалы в модели (01.01.2019). В случае отсутствия значений - поставить нули.
C144: Внеоборотные активы | D144: =ut_Digits&ut_LCU -> тыс. RUB | S144: =SUM(S145:S150) -> 0
C145: Нематериальные активы | D145: тыс. RUB | P145: 1 | Q145: =IF(LEN(S145)=0,1,0) -> 1 | T145: ut_Intangible_Assest_Input
C146: Основные средства | D146: тыс. RUB | P146: 1 | Q146: 1 | T146: ut_Assets_Input
C147: Незавершенное строительство | D147: тыс. RUB | P147: 1 | Q147: 1 | T147: ut_CIP_Input
C148: Долгосрочные финансовые вложения | D148: тыс. RUB | P148: 1 | Q148: 1 | T148: ut_LT_Fin_Assets_Input
C149: Отложенные налоговые активы | D149: тыс. RUB | P149: 1 | Q149: 1 | T149: ut_Deferred_Tax_Asset_Inputs
C150: Прочие внеоборотные активы | D150: тыс. RUB | P150: 1 | Q150: 1 | T150: ut_Other_Noncurrent_Assets_Input
C151: Оборотные активы | D151: тыс. RUB | S151: =SUM(S152:S161) -> 0
C152: Запасы | D152: тыс. RUB | P152: 1 | Q152: =IF(LEN(S152)=0,1,0) -> 1 | T152: ut_Inventory_Input
C153: Дебиторская задолженность покупателей и заказчиков | D153: тыс. RUB | P153: 1 | Q153: 1 | T153: ut_TradeReceivables_Input
C154: Авансы выданные | D154: тыс. RUB | P154: 1 | Q154: 1 | T154: ut_AdvancesPaid_Input
C155: Инвестиционные авансы | D155: тыс. RUB | P155: 1 | Q155: 1 | T155: ut_Investment_Advances_Input
C156: НДС к возмещению из бюджета | D156: тыс. RUB | P156: 1 | Q156: 1 | T156: ut_VAT_Receivable_Inputs
C157: Прочая дебиторская задолженность | D157: тыс. RUB | P157: 1 | Q157: 1 | T157: ut_Other_Receivables_Input
C158: Краткосрочные финансовые вложения | D158: тыс. RUB | P158: 1 | Q158: 1 | T158: ut_ST_Fin_Assets_Input
C159: Денежные средства и их эквиваленты | D159: тыс. RUB | P159: 1 | Q159: 1 | T159: ut_Cash_Input
C160: DSRA | D160: тыс. RUB | P160: 1 | Q160: 1 | T160: ut_DSRA_Input
C161: Прочие оборотные активы | D161: тыс. RUB | P161: 1 | Q161: 1 | T161: ut_Other_Current_Assets_Input
C162: ИТОГО АКТИВЫ | D162: тыс. RUB | S162: =SUM(S151,S144) -> 0
C164: Капитал | D164: =ut_Digits&ut_LCU -> тыс. RUB | S164: =SUM(S165:S167) -> 0
C165: Акционерный капитал и резервы | D165: тыс. RUB | P165: 1 | Q165: =IF(LEN(S165)=0,1,0) -> 1 | T165: ut_Equity_Input
C166: Акционерный займ | D166: тыс. RUB | P166: 1 | Q166: 1 | T166: ut_Subord_Input
C167: Нераспределенная прибыль | D167: тыс. RUB | P167: 1 | Q167: 1 | T167: ut_Retained_Earnings_Input
C168: Долгосрочные обязательства | D168: тыс. RUB | S168: =SUM(S169:S172) -> 0
C169: Долгосрочные кредиты и займы | D169: тыс. RUB | P169: 1 | Q169: =IF(LEN(S169)=0,1,0) -> 1 | T169: ut_LT_Debt_Input
C170: Долгосрочные обязательства по финансовой аренде | D170: тыс. RUB | P170: 1 | Q170: 1 | T170: ut_LT_Finlease_Input
C171: Отложенные налоговые обязательства | D171: тыс. RUB | P171: 1 | Q171: 1 | T171: ut_Deferred_Tax_Liability_Inputs
C172: Прочие долгосрочные обязательства | D172: тыс. RUB | P172: 1 | Q172: 1 | T172: ut_LT_Other_Liabilities_Input
C173: Краткосрочные обязательства | D173: тыс. RUB | S173: =SUM(S174:S183) -> 0
C174: Краткосрочные кредиты и займы | D174: тыс. RUB | P174: 1 | Q174: =IF(LEN(S174)=0,1,0) -> 1 | T174: ut_ST_Debt_Input
C175: Краткосрочные обязательства по финансовой аренде | D175: тыс. RUB | P175: 1 | Q175: 1 | T175: ut_ST_Finlease_Input
C176: Задолженность по процентам | D176: тыс. RUB | P176: 1 | Q176: 1 | T176: ut_Interest_Balance_Input
C177: Задолженность участникам по выплате дивидендов | D177: тыс. RUB | P177: 1 | Q177: 1 | T177: ut_Unpaid_Dividends_Input
C178: Текущая задолженность перед поставщиками и подрядчиками | D178: тыс. RUB | P178: 1 | Q178: 1 | T178: ut_TradePayables_Input
C179: Инвестиционная кредиторская задолженность | D179: тыс. RUB | P179: 1 | Q179: 1 | T179: ut_Investment_Payables_Input
C180: Авансы полученные | D180: тыс. RUB | P180: 1 | Q180: 1 | T180: ut_AdvancesReceived_Input
C181: НДС к уплате в бюджет | D181: тыс. RUB | P181: 1 | Q181: 1 | T181: ut_VAT_Payable_Inputs
C182: Прочая кредиторская задолженность | D182: тыс. RUB | P182: 1 | Q182: 1 | T182: ut_Other_Trade_Payable_Input
C183: Прочие краткосрочные обязательства | D183: тыс. RUB | P183: 1 | Q183: 1 | T183: ut_ST_Liabilities_Input
C184: ИТОГО КАПИТАЛ И ОБЯЗАТЕЛЬСТВА | D184: тыс. RUB | S184: =SUM(S164,S168,S173) -> 0
S185: =IF(ABS(S184-S162)<F1186, "Ok", "Fail") -> Ok
C188: Курсы валют на конец периода | H188: Внести ссылки на значения используемых в расчетах курсов валют на конец периода, включая период перед началом временной шкалы в модели (пример курс EUR/RUB подразумевает внесение значения 70 руб./евро) | P188: =(SUM($K$987:$K$992)>0)*1 -> 0 | Q188: =IF(SUM($K$987:$K$992)>0, IF(SUM(S193:AA204)=0,1,0), 0) -> 0
C189: =D987&"/"&D987 -> RUB/RUB | S189: 1 | T189: 1 | U189: 1 | V189: 1 | W189: 1 | X189: 1 | Y189: 1 | Z189: 1 | AA189: 1 | AB189: ut_Exchange_Rates_EOP
C190: =D988&"/"&D988 -> USD/USD | S190: 1 | T190: 1 | U190: 1 | V190: 1 | W190: 1 | X190: 1 | Y190: 1 | Z190: 1 | AA190: 1
C191: EUR/EUR | S191: 1 | T191: 1 | U191: 1 | V191: 1 | W191: 1 | X191: 1 | Y191: 1 | Z191: 1 | AA191: 1
C192: CHF/CHF | S192: 1 | T192: 1 | U192: 1 | V192: 1 | W192: 1 | X192: 1 | Y192: 1 | Z192: 1 | AA192: 1
C193: =D988&"/"&D987 -> USD/RUB
C194: =D989&"/"&D987 -> EUR/RUB
C195: =D990&"/"&D987 -> CHF/RUB
C196: =D989&"/"&D988 -> EUR/USD
C197: =D989&"/"&D990 -> EUR/CHF
C198: =D990&"/"&D988 -> CHF/USD
C199: =D987&"/"&D988 -> RUB/USD
C200: =D987&"/"&D989 -> RUB/EUR
C201: =D987&"/"&D990 -> RUB/CHF
C202: =D988&"/"&D989 -> USD/EUR
C203: =D990&"/"&D989 -> CHF/EUR
C204: =D989&"/"&D990 -> EUR/CHF
C207: Средние курсы валют за период | H207: Внести ссылки на значения используемых в расчетах средних курсов валют за период (пример курс EUR/RUB подразумевает внесение значения 70 руб./евро) | P207: =(SUM($K$987:$K$992)>0)*1 -> 0 | Q207: =IF(SUM($K$987:$K$992)>0, IF(SUM(S212:AA223)=0,1,0), 0) -> 0
C208: =C189 -> RUB/RUB | T208: 1 | U208: 1 | V208: 1 | W208: 1 | X208: 1 | Y208: 1 | Z208: 1 | AA208: 1 | AB208: ut_Exchange_Rates_AVG
C209: =C190 -> USD/USD | T209: 1 | U209: 1 | V209: 1 | W209: 1 | X209: 1 | Y209: 1 | Z209: 1 | AA209: 1
C210: EUR/EUR | T210: 1 | U210: 1 | V210: 1 | W210: 1 | X210: 1 | Y210: 1 | Z210: 1 | AA210: 1
C211: CHF/CHF | T211: 1 | U211: 1 | V211: 1 | W211: 1 | X211: 1 | Y211: 1 | Z211: 1 | AA211: 1
C212: USD/RUB
C213: EUR/RUB
C214: CHF/RUB
C215: EUR/USD
C216: EUR/CHF
C217: CHF/USD
C218: RUB/USD
C219: RUB/EUR
C220: RUB/CHF
C221: USD/EUR
C222: CHF/EUR
C223: EUR/CHF
C227: Выручка | Q227: =(MAX(Q228:Q368)=1)*1 -> 0
H229: Задать количество вносимых продуктов.
C233: Справочник продуктов | H233: Внести информацию по продуктам (источникам выручки). Обязательно к заполнению.
C234: Наименование продукта | D234: Единица объема продукции/услуг | E234: Валюта экспортной цены | F234: Валюта внутреннего рынка | G234: Применимая ставка НДС для внутреннего рынка | Q234: =IF(MAX(LEN(E235:F254))=0,1,0) -> 0
B235: 1 | F235: RUB | G235: 0.2 | H235: ut_Products_Dir
B236: =B235+1 -> 2 | G236: 0.2
B237: 3 | G237: 0.2
B238: 4 | G238: 0.2
B239: 5 | G239: 0.2
B240: 6 | G240: 0
B241: 7 | G241: 0
B242: 8 | G242: 0
B243: 9 | G243: 0
B244: 10 | G244: 0
B245: 11 | G245: 0
B246: 12 | G246: 0
B247: 13 | G247: 0
... 1158 more rows

Sheet VEB_DB
B1: Показатели модели | D1: Целостность - экспортный лист | E1: ='Export list'!E1 -> 0
D2: Сигналы - экспортный лист | E2: ='Export list'!E2 -> 0
B4: Общая информация | K4: Источники и использование
P5: Расчет на основе данных модели
C6: Проект | D6: =ut_Project_Name -> 0 | E6: Включить в расчеты исторический период? | G6: да | H6: =IF(COUNTIF(G341:G342,TRUE)<>0,"Обновите диаграммы","") ->  | L6: Источники | P6: Инвестиционная стадия | Q6: Операционный период | R6: Итого
C7: Инициатор проекта | D7: =ut_Project_Initiator -> 0 | E7: Ограничить расчеты сроком финансирования ВЭБ +2 года? | G7: нет | H7: =IF(COUNTIF(G342:G343,TRUE)<>0,"Обновите диаграммы","") ->  | L7: Заемное финансирование | O7: =ut_Digits&""&ut_LCU -> тыс. RUB | P7: =SUMPRODUCT(G104:DV104,G66:DV66)+SUMPRODUCT(G103:DV103,G66:DV66) -> 0 | Q7: =SUMPRODUCT(G104:DV104,G67:DV67)+SUMPRODUCT(G103:DV103,G67:DV67) -> 0 | R7: =SUM(R8:R10) -> 0
C8: Местонахождение | D8: =ut_Project_Location -> 0 | F8: Тип | H8: Значение | L8: в т.ч. ВЭБ | O8: тыс. RUB | P8: =SUMPRODUCT(G103:DV103,G66:DV66) -> 0 | Q8: =SUMPRODUCT(G103:DV103,G67:DV67) -> 0 | R8: =SUM(G103:DV103) -> 0
C9: Денежная единица | D9: =ut_Digits&""&ut_LCU -> тыс. RUB | E9: WACC Проекта | F9: Клиент | H9: =IF(F9="Клиент",ut_WACC,IF(F9="ВЭБ.РФ",INDEX(F283:F285,MATCH(E9,E283:E285,0)),G9)) -> 0 | L9: в т.ч. Краткосрочные кредиты | O9: тыс. RUB | P9: =SUMPRODUCT(G221:DV221,G66:DV66) -> 0 | Q9: =SUMPRODUCT(G221:DV221,G67:DV67) -> 0 | R9: =P9+Q9 -> 0
C10: Последняя историческая дата (только для графиков) | E10: CF VEB.RF | F10: ВЭБ.РФ | H10: =IF(F10="ВЭБ.РФ",INDEX(F283:F285,MATCH(E10,E283:E285,0)),G10) -> 0.07 | L10: в т.ч. Прочие кредиты | O10: тыс. RUB | P10: =P7-P8-P9 -> 0 | Q10: =Q7-Q8-Q9 -> 0 | R10: =P10+Q10 -> 0
C11: Дата начала операционной стадии | E11: внешние кредиторы | F11: Иное -> | G11: 0.08 | H11: =IF(F11="ВЭБ.РФ",INDEX(F283:F285,MATCH(E11,E283:E285,0)),G11) -> 0.08 | L11: Акционерное финансирование | O11: тыс. RUB | P11: =SUMPRODUCT(G100:DV100,G66:DV66) -> 0 | Q11: =SUMPRODUCT(G100:DV100,G67:DV67) -> 0 | R11: =SUM(G100:DV100) -> 0
L12: Дефицит | O12: тыс. RUB | P12: =SUMPRODUCT(G66:DV66,G109:DV109) -> 0 | Q12: =SUMPRODUCT(G67:DV67,G109:DV109) -> 0 | R12: =SUM(G109:DV109) -> 0
L13: Операционная выручка | O13: тыс. RUB | P13: =SUMPRODUCT(G66:DV66,G70:DV70) -> 0 | Q13: =SUMPRODUCT(G67:DV67,G70:DV70) -> 0 | R13: =SUM(P13:Q13) -> 0
B14: Результаты реализации проекта | L14: Прочее | O14: тыс. RUB | P14: =SUMPRODUCT(G66:DV66,G136:DV136) -> 0 | Q14: =SUMPRODUCT(G67:DV67,G136:DV136) -> 0 | R14: =SUM(G78:DV78) -> 0
D15: Текущий период | F15: =IF(E15<>"",MATCH(E15,G69:DV69,0),1) -> 1 | L15: Итого | O15: тыс. RUB | P15: =P7+SUM(P11:P14) -> 0 | Q15: =Q7+SUM(Q11:Q14) -> 0 | R15: =R7+SUM(R11:R14) -> 0
C16: Показатели проекта | E16: Вывод значений из модели Клиента | F16: Оперативный пересчет (ВЭБ)
C17: NPV - Проект | D17: =ut_Digits&""&ut_LCU -> тыс. RUB | E17: ='Export list'!F940 -> 0 | F17: =INDEX(G262:DV262,1,F15) -> 
C18: в т.ч. Терминальная стоимость - Проект | D18: =ut_Digits&""&ut_LCU -> тыс. RUB | E18: ='Export list'!F941 -> 0 | F18: =INDEX(G261:DV261,1,MATCH(0,G217:DV217,0)-1) -> 0 | L18: Использование
C19: NPV adv - Проект | D19: =ut_Digits&""&ut_LCU -> тыс. RUB | F19: =F17-INDEX(G263:DV263,1,F15) ->  | L19: Капитальные затраты | O19: =ut_Digits&""&ut_LCU -> тыс. RUB | P19: =SUMPRODUCT(G97:DV97,G66:DV66) -> 0 | Q19: =SUMPRODUCT(G97:DV97,G67:DV67) -> 0 | R19: =SUM(P19:Q19) -> 0
C20: IRR - Проект | D20: % | E20: ='Export list'!F942 -> 0 | F20: =IFERROR(IRR(OFFSET(G239,0,IF(G7="да",E217,DB_Move)-1,1,-(IF(G7="да",E217,DB_Move)-IF(G6="нет",F15-1,0))))*DB_Step2,"-") -> - | L20: Операционные затраты | O20: тыс. RUB | P20: =SUMPRODUCT(G72:DV72,G66:DV66)+SUMPRODUCT(G75:DV75,G66:DV66) -> 0 | Q20: =SUMPRODUCT(G72:DV72,G67:DV67)+SUMPRODUCT(G75:DV75,G67:DV67) -> 0 | R20: =P20+Q20 -> 0
C21: Индекс рентабельности инвестпроекта | E21: н.пр. | F21: =INDEX(G159:DV159,1,F15) -> 0 | L21: Чистый денежный поток по НДС | O21: тыс. RUB | P21: =-SUMPRODUCT(G224:DV224,G66:DV66) -> 0 | Q21: =-SUMPRODUCT(G224:DV224,G67:DV67) -> 0 | R21: 0
C22: Период окупаемости - Проект | D22: лет | E22: ='Export list'!F943 -> 0 | F22: =IFERROR(INDEX(G157:DV157,1,F15)/12,"нет") -> 0.25 | L22: Налоги | O22: тыс. RUB | P22: =-SUMPRODUCT(G87:DV87,G66:DV66) -> 0 | Q22: =-SUMPRODUCT(G87:DV87,G67:DV67) -> 0 | R22: 0
C23: Дисконтированный период окупаемости - Проект | D23: лет | E23: ='Export list'!F944 -> 0 | F23: =IFERROR(INDEX(G158:DV158,1,F15)/12,"нет") -> 0.25 | L23: Обслуживание заемного финансирования | O23: тыс. RUB | P23: =SUMPRODUCT(G105:DV105,G66:DV66)+SUMPRODUCT(G106:DV106,G66:DV66) -> 0 | Q23: =SUMPRODUCT(G105:DV105,G67:DV67)+SUMPRODUCT(G106:DV106,G67:DV67) -> 0 | R23: 0
C24: NPV - ВЭБ | D24: =ut_Digits&""&ut_LCU -> тыс. RUB | E24: н.пр. | F24: =INDEX(G267:DV267,1,F15) -> 0 | L24: в т.ч. ВЭБ | O24: тыс. RUB | P24: =SUMPRODUCT(G117:DV117,G66:DV66)+SUMPRODUCT(G118:DV118,G66:DV66) -> 0 | Q24: =SUMPRODUCT(G117:DV117,G67:DV67)+SUMPRODUCT(G118:DV118,G67:DV67) -> 0 | R24: 0
C25: IRR - ВЭБ | D25: % | E25: 0 | F25: =IFERROR(IRR(OFFSET(G240,0,IF(G7="да",E217,DB_Move)-1,1,-(IF(G7="да",E217,DB_Move)-IF(G6="нет",F15-1,0))))*DB_Step2,"-") -> - | L25: в т.ч. Краткосрочные кредиты | O25: тыс. RUB | P25: =SUMPRODUCT(G223:DV223,G66:DV66)+SUMPRODUCT(G222:DV222,G66:DV66) -> 0 | Q25: =SUMPRODUCT(G223:DV223,G67:DV67)+SUMPRODUCT(G222:DV222,G67:DV67) -> 0 | R25: 0
C26: Период окупаемости - ВЭБ | D26: лет | E26: н.пр. | F26: =IFERROR(IF((MATCH("х",G249:DV249,0)-(F15-1))>0,(MATCH("х",G249:DV249,0)-(F15-1))*3*DB_Step,0),"нет") -> 3 | L26: в т.ч. Прочие кредиты | O26: тыс. RUB | P26: =P23-P24-P25 -> 0 | Q26: =Q23-Q24-Q25 -> 0 | R26: 0
C27: Дисконтированный период окупаемости - ВЭБ | D27: лет | E27: н.пр. | F27: =IFERROR(IF((MATCH("х",G271:DV271,0)-(F15-1))>0,(MATCH("х",G271:DV271,0)-(F15-1))*3*DB_Step,0),"нет") -> 3 | L27: Дивиденды и выплаты по акционерному займу | O27: тыс. RUB | P27: =SUMPRODUCT(G101:DV101,G66:DV66) -> 0 | Q27: =SUMPRODUCT(G101:DV101,G67:DV67) -> 0 | R27: 0
C28: NPV - внешние кредиторы | D28: =ut_Digits&""&ut_LCU -> тыс. RUB | E28: н.пр. | F28: =INDEX(G268:DV268,1,F15) -> 0 | L28: Изменение баланса денежных средств | O28: тыс. RUB | P28: =SUMPRODUCT(G225:DV225,G66:DV66) -> 0 | Q28: =SUMPRODUCT(G225:DV225,G67:DV67) -> 0 | R28: 0
C29: IRR - внешние кредиторы | D29: % | E29: 0 | F29: =IFERROR(IRR(OFFSET(G241,0,IF(G7="да",E217,DB_Move)-1,1,-(IF(G7="да",E217,DB_Move)-IF(G6="нет",F15-1,0))))*DB_Step2,"-") -> - | L29: Прочее | O29: тыс. RUB | P29: =P15-(P19+P20+P21+P22+P23+P27+P28) -> 0 | Q29: =Q15-(Q19+Q20+Q21+Q22+Q23+Q27+Q28) -> 0 | R29: 0
C30: Период окупаемости - внешние кредиторы | D30: лет | E30: н.пр. | F30: =IFERROR(IF((MATCH("х",G250:DV250,0)-(F15-1))>0,(MATCH("х",G250:DV250,0)-(F15-1))*3*DB_Step,0),"нет") -> 3 | L30: Итого | O30: тыс. RUB | P30: =P19+P20+P21+P22+P23+P27+P28+P29 -> 0 | Q30: =Q19+Q20+Q21+Q22+Q23+Q27+Q28+Q29 -> 0 | R30: =P30+Q30 -> 0
C31: Дисконтированный период окупаемости - внешние кредиторы | D31: лет | E31: н.пр. | F31: =IFERROR(IF((MATCH("х",G272:DV272,0)-(F15-1))>0,(MATCH("х",G272:DV272,0)-(F15-1))*3*DB_Step,0),"нет") -> 3
C32: Прогнозный период финансовой модели | D32: лет | E32: =(ut_Count-COUNTIF(ut_End_of_Period,"<="&ut_Historical_EndDate))/(12/ut_Months_in_Period) -> 2 | F32: =(DB_Move-F15+1)/12*DB_Step2 -> 2.666666667
C33: Период погашения всех кредитов ВЭБ | F33: =INDEX(G69:DV69,1,MATCH(0,G217:DV217,0)) -> 0 | I33: Предварительный ковенантный пакет | P33: Расчет на основе данных модели
C34: Дисконтированный бюджетный эффект (прогнозный период) | D34: =ut_Digits&""&ut_LCU -> тыс. RUB | E34: н.пр. | J34: Показатели Инвестиционного периода | N34: дата начала | O34: условие | P34: значение | Q34: нарушается? | R34: если да, то когда?
C35: Задолженность перед ВЭБ на дату анализа (тело долга) | D35: тыс. RUB | F35: =INDEX(G119:DV119,1,F15) -> 0 | J35: DSCR wavg | L35: ltm | M35: - | O35: не менее | P35: 1 | Q35: =IF(SUM(DB_cov_DSCR_wavg)>0,"да","нет") -> нет | R35: =IF(Q35="нет","-",IFERROR(INDEX(DB_Periods,MATCH(1,DB_cov_DSCR_wavg,0)),"-")) -> - | S35: DB_cov_DSCR_wavg
C36: Задолженность перед ВЭБ на дату анализа (сумма будущих процентных выплат) | D36: тыс. RUB | F36: =SUM(OFFSET(G117,0,DB_Move-1,1,-(DB_Move-F15+1))) -> 0 | J36: DSCR | L36: ltm | M36: - | O36: не менее | P36: 1 | Q36: =IF(SUM(DB_cov_DSCR)>0,"да","нет") -> нет | R36: =IF(Q36="нет","-",IFERROR(INDEX(DB_Periods,MATCH(1,DB_cov_DSCR,0)),"-")) -> - | S36: DB_cov_DSCR
C37: Привлечение дополнительных средств (балансирующее финансирование) | D37: тыс. RUB | E37: ='Export list'!F953 -> 0 | F37: =SUM(OFFSET(G109,0,DB_Move-1,1,-(DB_Move-F15+1))) -> 0 | J37: LLCR | M37: - | O37: не менее | P37: 1.2 | Q37: =IF(SUM(DB_cov_LLCR)>0,"да","нет") -> нет | R37: =IF(Q37="нет","-",IFERROR(INDEX(DB_Periods,MATCH(1,DB_cov_LLCR,0)),"-")) -> - | S37: DB_cov_LLCR
C38: Выплата всего процентов ВЭБ | D38: тыс. RUB | F38: =SUM(OFFSET(G117,0,DB_Move-1,1,-(DB_Move-F15+1))) -> 0 | J38: Доля средств инициатора в Проекте | M38: % | O38: не менее | P38: 0.2 | Q38: =IF(SUM(DB_cov_Equity)>0,"да","нет") -> нет | R38: =IF(Q38="нет","-",IFERROR(INDEX(DB_Periods,MATCH(1,DB_cov_Equity,0)),"-")) -> - | S38: DB_cov_Equity
C39: Выплата тела долга ВЭБ | D39: тыс. RUB | F39: =SUM(OFFSET(G118,0,DB_Move-1,1,-(DB_Move-F15+1))) -> 0 | J39: Собственный оборотный капитал | M39: - | Q39: =IF(SUM(DB_cov_NWC)>0,"да","нет") -> нет | R39: =IF(Q39="нет","-",IFERROR(INDEX(DB_Periods,MATCH(1,DB_cov_NWC,0)),"-")) -> - | S39: DB_cov_NWC
J40: ISCR | L40: размерность VEB_DB | M40: - | O40: не менее | P40: 1.5 | Q40: =IF(SUM(DB_cov_ISCR)>0,"да","нет") -> нет | R40: =IF(Q40="нет","-",IFERROR(INDEX(DB_Periods,MATCH(1,DB_cov_ISCR,0)),"-")) -> - | S40: DB_cov_ISCR
C41: Показатели операционной стадии | F41: =MAX(IF(D11<>"",MATCH(D11,G69:DV69,0),MATCH(1,G67:DV67,0)),F15) -> 1
C42: DSCR min | E42: ='Export list'!F950 -> 0 | F42: =MIN(OFFSET(G146,0,DB_Move-1,1,-(DB_Move-F41+1))) -> 0
C43: DSCR среднее | E43: ='Export list'!F951 -> 0 | F43: =AVERAGE(OFFSET(G146,0,DB_Move-1,1,-(DB_Move-F41+1))) -> 0 | J43: Показатели Операционного периода | S43: DV_cov_ind
C44: DSCR min в период наличия кредитов ВЭБ | F44: =MIN(OFFSET(G146,0,E217-1,1,-(E217-F41+1))) -> 0 | J44: EBITDA / %% | L44: ltm | M44: - | O44: не менее | P44: 1 | Q44: =IF(SUM(OFFSET(G$315,S44,COUNT(DV_p_count),1,-COUNT(DV_p_count)))>0,"да","нет") -> нет | R44: =IF(Q44="нет","-",IFERROR(INDEX(DB_Periods,MATCH(1,OFFSET(G$315,S44,COUNT(DV_p_count),1,-COUNT(DV_p_count)),0)),"-")) -> - | S44: 1
C45: DSCR среднее в период наличия кредитов ВЭБ | F45: =AVERAGE(OFFSET(G146,0,E217-1,1,-(E217-F41+1))) -> 0 | J45: Total Debt / EBITDA | L45: ltm | M45: - | O45: не более | P45: 1 | Q45: нет | R45: - | S45: 2
C46: Минимальный остаток денежных средств | D46: =ut_Digits&""&ut_LCU -> тыс. RUB | E46: ='Export list'!F952 -> 0 | F46: =MIN(OFFSET(G115,0,DB_Move-1,1,-(DB_Move-F41+1))) -> 0 | J46: Коэффициент автономии | M46: % | O46: не менее | P46: 1 | Q46: нет | R46: - | S46: 3
C47: Дефицит денежных средств (привлечение балансирующего финансирования) | D47: =ut_Digits&""&ut_LCU -> тыс. RUB | E47: ='Export list'!F953 -> 0 | F47: =SUM(OFFSET(G109,0,DB_Move-1,1,-(DB_Move-F41+1))) -> 0 | J47: Рост выручки от операционной деятельности | M47: % | O47: не менее | P47: 1 | Q47: нет | R47: - | S47: 4
C48: Рентабельность по EBITDA (средневзвешенная) | D48: % | E48: н.пр. | F48: =SUM(OFFSET(G76,0,DB_Move-1,1,-(DB_Move-F41+1)))/SUM(OFFSET(G70,0,DB_Move-1,1,-(DB_Move-F41+1))) ->  | J48: Коэффициент текущей (общей) ликвидности (Current ratio) | M48: - | O48: не менее | P48: 1 | Q48: нет | R48: - | S48: 5
C49: EBIT max | D49: =ut_Digits&""&ut_LCU -> тыс. RUB | E49: ='Export list'!F954 -> 0 | F49: =MAX(OFFSET(G182,0,DB_Move-1,1,-(DB_Move-F41+1))) -> 0 | J49: Финансовый рычаг | M49: - | O49: не более | P49: 1 | Q49: нет | R49: - | S49: 6
C50: EBIT ср. знач. | D50: =ut_Digits&""&ut_LCU -> тыс. RUB | E50: ='Export list'!F955 -> 0 | F50: =AVERAGE(OFFSET(G82,0,DB_Move-1,1,-(DB_Move-F41+1))) -> 0 | J50: Стоимость чистых активов / капитала | M50: =ut_Digits&""&ut_LCU -> тыс. RUB | O50: не менее | P50: 1 | Q50: нет | R50: - | S50: 7
C51: EBITDA max | D51: =ut_Digits&""&ut_LCU -> тыс. RUB | E51: ='Export list'!F956 -> 0 | F51: =MAX(OFFSET(G76,0,DB_Move-1,1,-(DB_Move-F41+1))) -> 0 | J51: Обеспечение рентабельности продаж | M51: % | O51: не менее | P51: 1 | Q51: нет | R51: - | S51: 8
C52: D/EBITDA max | E52: ='Export list'!F957 -> 0 | F52: =MAX(OFFSET(G128,0,DB_Move-1,1,-(DB_Move-F41+1))) -> 0 | J52: Обеспечение рентабельности деятельности | M52: % | O52: не менее | P52: 1 | Q52: нет | R52: - | S52: 9
C53: D/EBITDA ср. знач. | E53: ='Export list'!F958 -> 0 | F53: =AVERAGE(OFFSET(G128,0,DB_Move-2,1,-(DB_Move-F41+1))) -> 0 | J53: Обеспечение рентабельности по EBITDA | M53: % | O53: не менее | P53: 1 | Q53: нет | R53: - | S53: 10
C54: WACC | D54: % | E54: =ut_WACC -> 0 | F54: =H9 -> 0 | J54: Debt / EBITDA | L54: ltm | M54: - | O54: не более | P54: 1 | Q54: нет | R54: - | S54: 11
C55: LLCR в период начала операционной стадии | E55: ='Export list'!F960 -> 0 | F55: =INDEX(G153:DV153,1,G219) -> 0 | J55: Net Debt / EBITDA | L55: ltm | M55: - | O55: не более | P55: 1 | Q55: нет | R55: - | S55: 12
C56: D/EBITDA в период начала операционной стадии | E56: ='Export list'!F961 -> 0 | F56: =INDEX(G128:DV128,1,G219) -> 0 | J56: Debt / Revenue | L56: ltm | M56: - | O56: не менее | P56: 1 | Q56: нет | R56: - | S56: 13
C57: Оборотный капитал / Выручка ср. знач. на операционной стадии | E57: н.пр. | F57: =SUMIF(G67:DV67,1,G173:DV173)/SUMIF(G67:DV67,1,G70:DV70) ->  | J57: Net Debt / Revenue | L57: ltm | M57: - | O57: не менее | P57: 1 | Q57: нет | R57: - | S57: 14
C58: Срок до выхода на проектную мощность | D58: лет | E58: н.пр. | F58: =E58 -> н.пр. | J58: EBITDA / lnterest | L58: размерность VEB_DB | M58: - | O58: не менее | P58: 1 | Q58: нет | R58: - | S58: 15
J59: EBITDA / FinExp | L59: размерность VEB_DB | M59: - | O59: не менее | P59: 1 | Q59: нет | R59: - | S59: 16
B63: Прогнозные и фактические данные по основным показателям | G63: =IF(G69<>0,IF(SUMIF(INDIRECT($F$69),G69,DB_History)=COUNTIF(INDIRECT($F$69),G69),"Факт",IF(SUMIF(INDIRECT($F$69),G69,DB_History)>0,"Прогноз / Факт","Прогноз")),0) -> Прогноз | H63: Прогноз | I63: Прогноз | J63: Прогноз | K63: Прогноз | L63: Прогноз | M63: Прогноз | N63: Прогноз | O63: 0 | P63: 0 | Q63: 0 | R63: 0 | S63: 0 | T63: 0 | U63: 0 | V63: 0 | W63: 0 | X63: 0 | Y63: 0 | Z63: 0 | AA63: 0 | AB63: 0 | AC63: 0 | AD63: 0 | AE63: 0 | AF63: 0 | AG63: 0 | AH63: 0 | AI63: 0 | AJ63: 0 | AK63: 0 | AL63: 0 | AM63: =IF(AM69<>0,IF(SUMIF(INDIRECT($F$69),AM69,DB_History)=COUNTIF(INDIRECT($F$69),AM69),"Факт",IF(SUMIF(INDIRECT($F$69),AM69,DB_History)>0,"Прогноз / Факт","Прогноз")),0) -> 0 | AN63: 0 | AO63: 0 | AP63: 0 | AQ63: 0 | AR63: 0 | AS63: 0 | AT63: 0 | AU63: 0 | AV63: 0 | AW63: 0 | AX63: 0 | AY63: 0 | AZ63: 0 | BA63: 0 | BB63: 0 | BC63: 0 | BD63: 0 | BE63: 0 | BF63: 0 | BG63: 0 | BH63: 0 | BI63: 0 | BJ63: 0 | BK63: 0 | BL63: 0 | BM63: 0 | BN63: 0 | BO63: 0 | BP63: 0 | BQ63: 0 | BR63: 0 | BS63: =IF(BS69<>0,IF(SUMIF(INDIRECT($F$69),BS69,DB_History)=COUNTIF(INDIRECT($F$69),BS69),"Факт",IF(SUMIF(INDIRECT($F$69),BS69,DB_History)>0,"Прогноз / Факт","Прогноз")),0) -> 0 | BT63: =IF(BT69<>0,IF(SUMIF(INDIRECT($F$69),BT69,DB_History)=COUNTIF(INDIRECT($F$69),BT69),"Факт",IF(SUMIF(INDIRECT($F$69),BT69,DB_History)>0,"Прогноз / Факт","Прогноз")),0) -> 0 | BU63: 0 | BV63: 0 | BW63: 0 | BX63: 0 | BY63: 0 | BZ63: 0 | CA63: 0 | CB63: 0 | CC63: 0 | CD63: 0 | CE63: 0 | CF63: 0 | CG63: 0 | CH63: 0 | CI63: 0 | CJ63: 0 | CK63: 0 | CL63: 0 | CM63: 0 | CN63: 0 | CO63: 0 | CP63: 0 | CQ63: 0 | CR63: 0 | CS63: 0 | CT63: 0 | CU63: 0 | CV63: 0 | CW63: 0 | CX63: 0 | CY63: 0 | CZ63: 0 | DA63: 0 | DB63: 0 | DC63: 0 | DD63: 0 | DE63: 0 | DF63: 0 | DG63: 0 | DH63: 0 | DI63: 0 | DJ63: 0 | DK63: 0 | DL63: 0 | DM63: 0 | DN63: 0 | DO63: 0 | DP63: 0 | DQ63: =IF(DQ69<>0,IF(SUMIF(INDIRECT($F$69),DQ69,DB_History)=COUNTIF(INDIRECT($F$69),DQ69),"Факт",IF(SUMIF(INDIRECT($F$69),DQ69,DB_History)>0,"Прогноз / Факт","Прогноз")),0) -> 0 | DR63: 0 | DS63: 0 | DT63: 0 | DU63: 0 | DV63: 0
E64: p count | G64: 1 | H64: =G64+1 -> 2 | I64: =H64+1 -> 3 | J64: 4 | K64: 5 | L64: 6 | M64: 7 | N64: 8 | O64: 9 | P64: 10 | Q64: 11 | R64: 12 | S64: 13 | T64: 14 | U64: 15 | V64: 16 | W64: 17 | X64: 18 | Y64: 19 | Z64: 20 | AA64: 21 | AB64: 22 | AC64: 23 | AD64: 24 | AE64: 25 | AF64: 26 | AG64: 27 | AH64: 28 | AI64: 29 | AJ64: 30 | AK64: 31 | AL64: 32 | AM64: 33 | AN64: 34 | AO64: 35 | AP64: 36 | AQ64: 37 | AR64: 38 | AS64: 39 | AT64: 40 | AU64: 41 | AV64: 42 | AW64: 43 | AX64: 44 | AY64: 45 | AZ64: 46 | BA64: 47 | BB64: 48 | BC64: 49 | BD64: 50 | BE64: 51 | BF64: 52 | BG64: 53 | BH64: 54 | BI64: 55 | BJ64: =BI64+1 -> 56 | BK64: 57 | BL64: 58 | BM64: 59 | BN64: 60 | BO64: 61 | BP64: 62 | BQ64: 63 | BR64: 64 | BS64: 65 | BT64: =BS64+1 -> 66 | BU64: =BT64+1 -> 67 | BV64: =BU64+1 -> 68 | BW64: =BV64+1 -> 69 | BX64: =BW64+1 -> 70 | BY64: =BX64+1 -> 71 | BZ64: =BY64+1 -> 72 | CA64: =BZ64+1 -> 73 | CB64: =CA64+1 -> 74 | CC64: =CB64+1 -> 75 | CD64: =CC64+1 -> 76 | CE64: =CD64+1 -> 77 | CF64: =CE64+1 -> 78 | CG64: =CF64+1 -> 79 | CH64: =CG64+1 -> 80 | CI64: =CH64+1 -> 81 | CJ64: =CI64+1 -> 82 | CK64: =CJ64+1 -> 83 | CL64: =CK64+1 -> 84 | CM64: =CL64+1 -> 85 | CN64: =CM64+1 -> 86 | CO64: =CN64+1 -> 87 | CP64: =CO64+1 -> 88 | CQ64: =CP64+1 -> 89 | CR64: =CQ64+1 -> 90 | CS64: =CR64+1 -> 91 | CT64: =CS64+1 -> 92 | CU64: =CT64+1 -> 93 | CV64: =CU64+1 -> 94 | CW64: =CV64+1 -> 95 | CX64: =CW64+1 -> 96 | CY64: =CX64+1 -> 97 | CZ64: =CY64+1 -> 98 | DA64: =CZ64+1 -> 99 | DB64: =DA64+1 -> 100 | DC64: =DB64+1 -> 101 | DD64: =DC64+1 -> 102 | DE64: =DD64+1 -> 103 | DF64: =DE64+1 -> 104 | DG64: =DF64+1 -> 105 | DH64: =DG64+1 -> 106 | DI64: =DH64+1 -> 107 | DJ64: =DI64+1 -> 108 | DK64: =DJ64+1 -> 109 | DL64: =DK64+1 -> 110 | DM64: =DL64+1 -> 111 | DN64: =DM64+1 -> 112 | DO64: =DN64+1 -> 113 | DP64: =DO64+1 -> 114 | DQ64: =DP64+1 -> 115 | DR64: =DQ64+1 -> 116 | DS64: =DR64+1 -> 117 | DT64: =DS64+1 -> 118 | DU64: =DT64+1 -> 119 | DV64: =DU64+1 -> 120
E65: Construct add | G65: =IF($D$11<>"",IFERROR(IF(MATCH($D$11,G69:$DV69,0)>=2,1,0),0)*(G69<>0),0) -> 0 | H65: =IF($D$11<>"",IFERROR(IF(MATCH($D$11,H69:$DV69,0)>=2,1,0),0)*(H69<>0),0) -> 0 | I65: =IF($D$11<>"",IFERROR(IF(MATCH($D$11,I69:$DV69,0)>=2,1,0),0)*(I69<>0),0) -> 0 | J65: =IF($D$11<>"",IFERROR(IF(MATCH($D$11,J69:$DV69,0)>=2,1,0),0)*(J69<>0),0) -> 0 | K65: =IF($D$11<>"",IFERROR(IF(MATCH($D$11,K69:$DV69,0)>=2,1,0),0)*(K69<>0),0) -> 0 | L65: =IF($D$11<>"",IFERROR(IF(MATCH($D$11,L69:$DV69,0)>=2,1,0),0)*(L69<>0),0) -> 0 | M65: =IF($D$11<>"",IFERROR(IF(MATCH($D$11,M69:$DV69,0)>=2,1,0),0)*(M69<>0),0) -> 0 | N65: =IF($D$11<>"",IFERROR(IF(MATCH($D$11,N69:$DV69,0)>=2,1,0),0)*(N69<>0),0) -> 0 | O65: =IF($D$11<>"",IFERROR(IF(MATCH($D$11,O69:$DV69,0)>=2,1,0),0)*(O69<>0),0) -> 0 | P65: =IF($D$11<>"",IFERROR(IF(MATCH($D$11,P69:$DV69,0)>=2,1,0),0)*(P69<>0),0) -> 0 | Q65: =IF($D$11<>"",IFERROR(IF(MATCH($D$11,Q69:$DV69,0)>=2,1,0),0)*(Q69<>0),0) -> 0 | R65: =IF($D$11<>"",IFERROR(IF(MATCH($D$11,R69:$DV69,0)>=2,1,0),0)*(R69<>0),0) -> 0 | S65: =IF($D$11<>"",IFERROR(IF(MATCH($D$11,S69:$DV69,0)>=2,1,0),0)*(S69<>0),0) -> 0 | T65: =IF($D$11<>"",IFERROR(IF(MATCH($D$11,T69:$DV69,0)>=2,1,0),0)*(T69<>0),0) -> 0 | U65: =IF($D$11<>"",IFERROR(IF(MATCH($D$11,U69:$DV69,0)>=2,1,0),0)*(U69<>0),0) -> 0 | V65: =IF($D$11<>"",IFERROR(IF(MATCH($D$11,V69:$DV69,0)>=2,1,0),0)*(V69<>0),0) -> 0 | W65: =IF($D$11<>"",IFERROR(IF(MATCH($D$11,W69:$DV69,0)>=2,1,0),0)*(W69<>0),0) -> 0 | X65: =IF($D$11<>"",IFERROR(IF(MATCH($D$11,X69:$DV69,0)>=2,1,0),0)*(X69<>0),0) -> 0 | Y65: =IF($D$11<>"",IFERROR(IF(MATCH($D$11,Y69:$DV69,0)>=2,1,0),0)*(Y69<>0),0) -> 0 | Z65: =IF($D$11<>"",IFERROR(IF(MATCH($D$11,Z69:$DV69,0)>=2,1,0),0)*(Z69<>0),0) -> 0 | AA65: =IF($D$11<>"",IFERROR(IF(MATCH($D$11,AA69:$DV69,0)>=2,1,0),0)*(AA69<>0),0) -> 0 | AB65: =IF($D$11<>"",IFERROR(IF(MATCH($D$11,AB69:$DV69,0)>=2,1,0),0)*(AB69<>0),0) -> 0 | AC65: =IF($D$11<>"",IFERROR(IF(MATCH($D$11,AC69:$DV69,0)>=2,1,0),0)*(AC69<>0),0) -> 0 | AD65: =IF($D$11<>"",IFERROR(IF(MATCH($D$11,AD69:$DV69,0)>=2,1,0),0)*(AD69<>0),0) -> 0 | AE65: =IF($D$11<>"",IFERROR(IF(MATCH($D$11,AE69:$DV69,0)>=2,1,0),0)*(AE69<>0),0) -> 0 | AF65: =IF($D$11<>"",IFERROR(IF(MATCH($D$11,AF69:$DV69,0)>=2,1,0),0)*(AF69<>0),0) -> 0 | AG65: =IF($D$11<>"",IFERROR(IF(MATCH($D$11,AG69:$DV69,0)>=2,1,0),0)*(AG69<>0),0) -> 0 | AH65: =IF($D$11<>"",IFERROR(IF(MATCH($D$11,AH69:$DV69,0)>=2,1,0),0)*(AH69<>0),0) -> 0 | AI65: =IF($D$11<>"",IFERROR(IF(MATCH($D$11,AI69:$DV69,0)>=2,1,0),0)*(AI69<>0),0) -> 0 | AJ65: =IF($D$11<>"",IFERROR(IF(MATCH($D$11,AJ69:$DV69,0)>=2,1,0),0)*(AJ69<>0),0) -> 0 | AK65: =IF($D$11<>"",IFERROR(IF(MATCH($D$11,AK69:$DV69,0)>=2,1,0),0)*(AK69<>0),0) -> 0 | AL65: =IF($D$11<>"",IFERROR(IF(MATCH($D$11,AL69:$DV69,0)>=2,1,0),0)*(AL69<>0),0) -> 0 | AM65: =IF($D$11<>"",IFERROR(IF(MATCH($D$11,AM69:$DV69,0)>=2,1,0),0)*(AM69<>0),0) -> 0 | AN65: =IF($D$11<>"",IFERROR(IF(MATCH($D$11,AN69:$DV69,0)>=2,1,0),0)*(AN69<>0),0) -> 0 | AO65: =IF($D$11<>"",IFERROR(IF(MATCH($D$11,AO69:$DV69,0)>=2,1,0),0)*(AO69<>0),0) -> 0 | AP65: =IF($D$11<>"",IFERROR(IF(MATCH($D$11,AP69:$DV69,0)>=2,1,0),0)*(AP69<>0),0) -> 0 | AQ65: =IF($D$11<>"",IFERROR(IF(MATCH($D$11,AQ69:$DV69,0)>=2,1,0),0)*(AQ69<>0),0) -> 0 | AR65: =IF($D$11<>"",IFERROR(IF(MATCH($D$11,AR69:$DV69,0)>=2,1,0),0)*(AR69<>0),0) -> 0 | AS65: =IF($D$11<>"",IFERROR(IF(MATCH($D$11,AS69:$DV69,0)>=2,1,0),0)*(AS69<>0),0) -> 0 | AT65: =IF($D$11<>"",IFERROR(IF(MATCH($D$11,AT69:$DV69,0)>=2,1,0),0)*(AT69<>0),0) -> 0 | AU65: =IF($D$11<>"",IFERROR(IF(MATCH($D$11,AU69:$DV69,0)>=2,1,0),0)*(AU69<>0),0) -> 0 | AV65: =IF($D$11<>"",IFERROR(IF(MATCH($D$11,AV69:$DV69,0)>=2,1,0),0)*(AV69<>0),0) -> 0 | AW65: =IF($D$11<>"",IFERROR(IF(MATCH($D$11,AW69:$DV69,0)>=2,1,0),0)*(AW69<>0),0) -> 0 | AX65: =IF($D$11<>"",IFERROR(IF(MATCH($D$11,AX69:$DV69,0)>=2,1,0),0)*(AX69<>0),0) -> 0 | AY65: =IF($D$11<>"",IFERROR(IF(MATCH($D$11,AY69:$DV69,0)>=2,1,0),0)*(AY69<>0),0) -> 0 | AZ65: =IF($D$11<>"",IFERROR(IF(MATCH($D$11,AZ69:$DV69,0)>=2,1,0),0)*(AZ69<>0),0) -> 0 | BA65: =IF($D$11<>"",IFERROR(IF(MATCH($D$11,BA69:$DV69,0)>=2,1,0),0)*(BA69<>0),0) -> 0 | BB65: =IF($D$11<>"",IFERROR(IF(MATCH($D$11,BB69:$DV69,0)>=2,1,0),0)*(BB69<>0),0) -> 0 | BC65: =IF($D$11<>"",IFERROR(IF(MATCH($D$11,BC69:$DV69,0)>=2,1,0),0)*(BC69<>0),0) -> 0 | BD65: =IF($D$11<>"",IFERROR(IF(MATCH($D$11,BD69:$DV69,0)>=2,1,0),0)*(BD69<>0),0) -> 0 | BE65: =IF($D$11<>"",IFERROR(IF(MATCH($D$11,BE69:$DV69,0)>=2,1,0),0)*(BE69<>0),0) -> 0 | BF65: =IF($D$11<>"",IFERROR(IF(MATCH($D$11,BF69:$DV69,0)>=2,1,0),0)*(BF69<>0),0) -> 0 | BG65: =IF($D$11<>"",IFERROR(IF(MATCH($D$11,BG69:$DV69,0)>=2,1,0),0)*(BG69<>0),0) -> 0 | BH65: =IF($D$11<>"",IFERROR(IF(MATCH($D$11,BH69:$DV69,0)>=2,1,0),0)*(BH69<>0),0) -> 0 | BI65: =IF($D$11<>"",IFERROR(IF(MATCH($D$11,BI69:$DV69,0)>=2,1,0),0)*(BI69<>0),0) -> 0 | BJ65: =IF($D$11<>"",IFERROR(IF(MATCH($D$11,BJ69:$DV69,0)>=2,1,0),0)*(BJ69<>0),0) -> 0 | BK65: =IF($D$11<>"",IFERROR(IF(MATCH($D$11,BK69:$DV69,0)>=2,1,0),0)*(BK69<>0),0) -> 0 | BL65: =IF($D$11<>"",IFERROR(IF(MATCH($D$11,BL69:$DV69,0)>=2,1,0),0)*(BL69<>0),0) -> 0 | BM65: =IF($D$11<>"",IFERROR(IF(MATCH($D$11,BM69:$DV69,0)>=2,1,0),0)*(BM69<>0),0) -> 0 | BN65: =IF($D$11<>"",IFERROR(IF(MATCH($D$11,BN69:$DV69,0)>=2,1,0),0)*(BN69<>0),0) -> 0 | BO65: =IF($D$11<>"",IFERROR(IF(MATCH($D$11,BO69:$DV69,0)>=2,1,0),0)*(BO69<>0),0) -> 0 | BP65: =IF($D$11<>"",IFERROR(IF(MATCH($D$11,BP69:$DV69,0)>=2,1,0),0)*(BP69<>0),0) -> 0 | BQ65: =IF($D$11<>"",IFERROR(IF(MATCH($D$11,BQ69:$DV69,0)>=2,1,0),0)*(BQ69<>0),0) -> 0 | BR65: =IF($D$11<>"",IFERROR(IF(MATCH($D$11,BR69:$DV69,0)>=2,1,0),0)*(BR69<>0),0) -> 0 | BS65: =IF($D$11<>"",IFERROR(IF(MATCH($D$11,BS69:$DV69,0)>=2,1,0),0)*(BS69<>0),0) -> 0 | BT65: =IF($D$11<>"",IFERROR(IF(MATCH($D$11,BT69:$DV69,0)>=2,1,0),0)*(BT69<>0),0) -> 0 | BU65: =IF($D$11<>"",IFERROR(IF(MATCH($D$11,BU69:$DV69,0)>=2,1,0),0)*(BU69<>0),0) -> 0 | BV65: =IF($D$11<>"",IFERROR(IF(MATCH($D$11,BV69:$DV69,0)>=2,1,0),0)*(BV69<>0),0) -> 0 | BW65: =IF($D$11<>"",IFERROR(IF(MATCH($D$11,BW69:$DV69,0)>=2,1,0),0)*(BW69<>0),0) -> 0 | BX65: =IF($D$11<>"",IFERROR(IF(MATCH($D$11,BX69:$DV69,0)>=2,1,0),0)*(BX69<>0),0) -> 0 | BY65: =IF($D$11<>"",IFERROR(IF(MATCH($D$11,BY69:$DV69,0)>=2,1,0),0)*(BY69<>0),0) -> 0 | BZ65: =IF($D$11<>"",IFERROR(IF(MATCH($D$11,BZ69:$DV69,0)>=2,1,0),0)*(BZ69<>0),0) -> 0 | CA65: =IF($D$11<>"",IFERROR(IF(MATCH($D$11,CA69:$DV69,0)>=2,1,0),0)*(CA69<>0),0) -> 0 | CB65: =IF($D$11<>"",IFERROR(IF(MATCH($D$11,CB69:$DV69,0)>=2,1,0),0)*(CB69<>0),0) -> 0 | CC65: =IF($D$11<>"",IFERROR(IF(MATCH($D$11,CC69:$DV69,0)>=2,1,0),0)*(CC69<>0),0) -> 0 | CD65: =IF($D$11<>"",IFERROR(IF(MATCH($D$11,CD69:$DV69,0)>=2,1,0),0)*(CD69<>0),0) -> 0 | CE65: =IF($D$11<>"",IFERROR(IF(MATCH($D$11,CE69:$DV69,0)>=2,1,0),0)*(CE69<>0),0) -> 0 | CF65: =IF($D$11<>"",IFERROR(IF(MATCH($D$11,CF69:$DV69,0)>=2,1,0),0)*(CF69<>0),0) -> 0 | CG65: =IF($D$11<>"",IFERROR(IF(MATCH($D$11,CG69:$DV69,0)>=2,1,0),0)*(CG69<>0),0) -> 0 | CH65: =IF($D$11<>"",IFERROR(IF(MATCH($D$11,CH69:$DV69,0)>=2,1,0),0)*(CH69<>0),0) -> 0 | CI65: =IF($D$11<>"",IFERROR(IF(MATCH($D$11,CI69:$DV69,0)>=2,1,0),0)*(CI69<>0),0) -> 0 | CJ65: =IF($D$11<>"",IFERROR(IF(MATCH($D$11,CJ69:$DV69,0)>=2,1,0),0)*(CJ69<>0),0) -> 0 | CK65: =IF($D$11<>"",IFERROR(IF(MATCH($D$11,CK69:$DV69,0)>=2,1,0),0)*(CK69<>0),0) -> 0 | CL65: =IF($D$11<>"",IFERROR(IF(MATCH($D$11,CL69:$DV69,0)>=2,1,0),0)*(CL69<>0),0) -> 0 | CM65: =IF($D$11<>"",IFERROR(IF(MATCH($D$11,CM69:$DV69,0)>=2,1,0),0)*(CM69<>0),0) -> 0 | CN65: =IF($D$11<>"",IFERROR(IF(MATCH($D$11,CN69:$DV69,0)>=2,1,0),0)*(CN69<>0),0) -> 0 | CO65: =IF($D$11<>"",IFERROR(IF(MATCH($D$11,CO69:$DV69,0)>=2,1,0),0)*(CO69<>0),0) -> 0 | CP65: =IF($D$11<>"",IFERROR(IF(MATCH($D$11,CP69:$DV69,0)>=2,1,0),0)*(CP69<>0),0) -> 0 | CQ65: =IF($D$11<>"",IFERROR(IF(MATCH($D$11,CQ69:$DV69,0)>=2,1,0),0)*(CQ69<>0),0) -> 0 | CR65: =IF($D$11<>"",IFERROR(IF(MATCH($D$11,CR69:$DV69,0)>=2,1,0),0)*(CR69<>0),0) -> 0 | CS65: =IF($D$11<>"",IFERROR(IF(MATCH($D$11,CS69:$DV69,0)>=2,1,0),0)*(CS69<>0),0) -> 0 | CT65: =IF($D$11<>"",IFERROR(IF(MATCH($D$11,CT69:$DV69,0)>=2,1,0),0)*(CT69<>0),0) -> 0 | CU65: =IF($D$11<>"",IFERROR(IF(MATCH($D$11,CU69:$DV69,0)>=2,1,0),0)*(CU69<>0),0) -> 0 | CV65: =IF($D$11<>"",IFERROR(IF(MATCH($D$11,CV69:$DV69,0)>=2,1,0),0)*(CV69<>0),0) -> 0 | CW65: =IF($D$11<>"",IFERROR(IF(MATCH($D$11,CW69:$DV69,0)>=2,1,0),0)*(CW69<>0),0) -> 0 | CX65: =IF($D$11<>"",IFERROR(IF(MATCH($D$11,CX69:$DV69,0)>=2,1,0),0)*(CX69<>0),0) -> 0 | CY65: =IF($D$11<>"",IFERROR(IF(MATCH($D$11,CY69:$DV69,0)>=2,1,0),0)*(CY69<>0),0) -> 0 | CZ65: =IF($D$11<>"",IFERROR(IF(MATCH($D$11,CZ69:$DV69,0)>=2,1,0),0)*(CZ69<>0),0) -> 0 | DA65: =IF($D$11<>"",IFERROR(IF(MATCH($D$11,DA69:$DV69,0)>=2,1,0),0)*(DA69<>0),0) -> 0 | DB65: =IF($D$11<>"",IFERROR(IF(MATCH($D$11,DB69:$DV69,0)>=2,1,0),0)*(DB69<>0),0) -> 0 | DC65: =IF($D$11<>"",IFERROR(IF(MATCH($D$11,DC69:$DV69,0)>=2,1,0),0)*(DC69<>0),0) -> 0 | DD65: =IF($D$11<>"",IFERROR(IF(MATCH($D$11,DD69:$DV69,0)>=2,1,0),0)*(DD69<>0),0) -> 0 | DE65: =IF($D$11<>"",IFERROR(IF(MATCH($D$11,DE69:$DV69,0)>=2,1,0),0)*(DE69<>0),0) -> 0 | DF65: =IF($D$11<>"",IFERROR(IF(MATCH($D$11,DF69:$DV69,0)>=2,1,0),0)*(DF69<>0),0) -> 0 | DG65: =IF($D$11<>"",IFERROR(IF(MATCH($D$11,DG69:$DV69,0)>=2,1,0),0)*(DG69<>0),0) -> 0 | DH65: =IF($D$11<>"",IFERROR(IF(MATCH($D$11,DH69:$DV69,0)>=2,1,0),0)*(DH69<>0),0) -> 0 | DI65: =IF($D$11<>"",IFERROR(IF(MATCH($D$11,DI69:$DV69,0)>=2,1,0),0)*(DI69<>0),0) -> 0 | DJ65: =IF($D$11<>"",IFERROR(IF(MATCH($D$11,DJ69:$DV69,0)>=2,1,0),0)*(DJ69<>0),0) -> 0 | DK65: =IF($D$11<>"",IFERROR(IF(MATCH($D$11,DK69:$DV69,0)>=2,1,0),0)*(DK69<>0),0) -> 0 | DL65: =IF($D$11<>"",IFERROR(IF(MATCH($D$11,DL69:$DV69,0)>=2,1,0),0)*(DL69<>0),0) -> 0 | DM65: =IF($D$11<>"",IFERROR(IF(MATCH($D$11,DM69:$DV69,0)>=2,1,0),0)*(DM69<>0),0) -> 0 | DN65: =IF($D$11<>"",IFERROR(IF(MATCH($D$11,DN69:$DV69,0)>=2,1,0),0)*(DN69<>0),0) -> 0 | DO65: =IF($D$11<>"",IFERROR(IF(MATCH($D$11,DO69:$DV69,0)>=2,1,0),0)*(DO69<>0),0) -> 0 | DP65: =IF($D$11<>"",IFERROR(IF(MATCH($D$11,DP69:$DV69,0)>=2,1,0),0)*(DP69<>0),0) -> 0 | DQ65: =IF($D$11<>"",IFERROR(IF(MATCH($D$11,DQ69:$DV69,0)>=2,1,0),0)*(DQ69<>0),0) -> 0 | DR65: =IF($D$11<>"",IFERROR(IF(MATCH($D$11,DR69:$DV69,0)>=2,1,0),0)*(DR69<>0),0) -> 0 | DS65: =IF($D$11<>"",IFERROR(IF(MATCH($D$11,DS69:$DV69,0)>=2,1,0),0)*(DS69<>0),0) -> 0 | DT65: =IF($D$11<>"",IFERROR(IF(MATCH($D$11,DT69:$DV69,0)>=2,1,0),0)*(DT69<>0),0) -> 0 | DU65: =IF($D$11<>"",IFERROR(IF(MATCH($D$11,DU69:$DV69,0)>=2,1,0),0)*(DU69<>0),0) -> 0 | DV65: =IF($D$11<>"",IFERROR(IF(MATCH($D$11,DV69:$DV69,0)>=2,1,0),0)*(DV69<>0),0) -> 0
E66: Строительство | G66: =IF(COUNTIFS(DB_Construct_ind,">0",DB_Periods,G69)>0,1,G65) -> 0 | H66: 0 | I66: 0 | J66: 0 | K66: 0 | L66: 0 | M66: 0 | N66: 0 | O66: 0 | P66: 0 | Q66: 0 | R66: 0 | S66: 0 | T66: 0 | U66: 0 | V66: 0 | W66: 0 | X66: 0 | Y66: 0 | Z66: 0 | AA66: 0 | AB66: 0 | AC66: 0 | AD66: 0 | AE66: 0 | AF66: 0 | AG66: 0 | AH66: 0 | AI66: 0 | AJ66: 0 | AK66: 0 | AL66: 0 | AM66: =IF(COUNTIFS(DB_Construct_ind,">0",DB_Periods,AM69)>0,1,AM65) -> 0 | AN66: 0 | AO66: 0 | AP66: 0 | AQ66: 0 | AR66: 0 | AS66: 0 | AT66: 0 | AU66: 0 | AV66: 0 | AW66: 0 | AX66: 0 | AY66: 0 | AZ66: 0 | BA66: 0 | BB66: 0 | BC66: 0 | BD66: 0 | BE66: 0 | BF66: 0 | BG66: 0 | BH66: 0 | BI66: 0 | BJ66: 0 | BK66: 0 | BL66: 0 | BM66: 0 | BN66: 0 | BO66: 0 | BP66: 0 | BQ66: 0 | BR66: 0 | BS66: =IF(COUNTIFS(DB_Construct_ind,">0",DB_Periods,BS69)>0,1,BS65) -> 0 | BT66: 0 | BU66: 0 | BV66: 0 | BW66: 0 | BX66: 0 | BY66: 0 | BZ66: 0 | CA66: 0 | CB66: 0 | CC66: 0 | CD66: 0 | CE66: 0 | CF66: 0 | CG66: 0 | CH66: 0 | CI66: 0 | CJ66: 0 | CK66: 0 | CL66: 0 | CM66: 0 | CN66: 0 | CO66: 0 | CP66: 0 | CQ66: 0 | CR66: 0 | CS66: 0 | CT66: 0 | CU66: 0 | CV66: 0 | CW66: 0 | CX66: 0 | CY66: =IF(COUNTIFS(DB_Construct_ind,">0",DB_Periods,CY69)>0,1,CY65) -> 0 | CZ66: 0 | DA66: 0 | DB66: 0 | DC66: 0 | DD66: 0 | DE66: 0 | DF66: 0 | DG66: 0 | DH66: 0 | DI66: 0 | DJ66: 0 | DK66: 0 | DL66: 0 | DM66: 0 | DN66: 0 | DO66: 0 | DP66: 0 | DQ66: 0 | DR66: 0 | DS66: 0 | DT66: 0 | DU66: 0 | DV66: 0
C67: DB_Move | D67: =SUM(G66:DV67) -> 8 | E67: Операционная стадия | G67: =COUNTIFS(DB_Oper_ind,">0",DB_Periods,G69)*(G66<>1) -> 1 | H67: 1 | I67: 1 | J67: 1 | K67: 1 | L67: 1 | M67: 1 | N67: 1 | O67: 0 | P67: 0 | Q67: 0 | R67: 0 | S67: 0 | T67: 0 | U67: 0 | V67: 0 | W67: 0 | X67: 0 | Y67: 0 | Z67: 0 | AA67: 0 | AB67: 0 | AC67: 0 | AD67: 0 | AE67: 0 | AF67: 0 | AG67: 0 | AH67: 0 | AI67: 0 | AJ67: 0 | AK67: 0 | AL67: 0 | AM67: =COUNTIFS(DB_Oper_ind,">0",DB_Periods,AM69)*(AM66<>1) -> 0 | AN67: 0 | AO67: 0 | AP67: 0 | AQ67: 0 | AR67: 0 | AS67: 0 | AT67: 0 | AU67: 0 | AV67: 0 | AW67: 0 | AX67: 0 | AY67: 0 | AZ67: 0 | BA67: 0 | BB67: 0 | BC67: 0 | BD67: 0 | BE67: 0 | BF67: 0 | BG67: 0 | BH67: 0 | BI67: 0 | BJ67: 0 | BK67: 0 | BL67: 0 | BM67: 0 | BN67: 0 | BO67: 0 | BP67: 0 | BQ67: 0 | BR67: 0 | BS67: =COUNTIFS(DB_Oper_ind,">0",DB_Periods,BS69)*(BS66<>1) -> 0 | BT67: 0 | BU67: 0 | BV67: 0 | BW67: 0 | BX67: 0 | BY67: 0 | BZ67: 0 | CA67: 0 | CB67: 0 | CC67: 0 | CD67: 0 | CE67: 0 | CF67: 0 | CG67: 0 | CH67: 0 | CI67: 0 | CJ67: 0 | CK67: 0 | CL67: 0 | CM67: 0 | CN67: 0 | CO67: 0 | CP67: 0 | CQ67: 0 | CR67: 0 | CS67: 0 | CT67: 0 | CU67: 0 | CV67: 0 | CW67: 0 | CX67: 0 | CY67: =COUNTIFS(DB_Oper_ind,">0",DB_Periods,CY69)*(CY66<>1) -> 0 | CZ67: 0 | DA67: 0 | DB67: 0 | DC67: 0 | DD67: 0 | DE67: 0 | DF67: 0 | DG67: 0 | DH67: 0 | DI67: 0 | DJ67: 0 | DK67: 0 | DL67: 0 | DM67: 0 | DN67: 0 | DO67: 0 | DP67: 0 | DQ67: 0 | DR67: 0 | DS67: 0 | DT67: 0 | DU67: 0 | DV67: 0
E68: Флаг ВЭБ | F68: DB_VEB_Period | G68: =IF(OR(G119>0,SUM(H68:$DV68)<>0),1,0) -> 0 | H68: =IF(OR(H119>0,SUM(I68:$DV68)<>0),1,0) -> 0 | I68: =IF(OR(I119>0,SUM(J68:$DV68)<>0),1,0) -> 0 | J68: =IF(OR(J119>0,SUM(K68:$DV68)<>0),1,0) -> 0 | K68: =IF(OR(K119>0,SUM(L68:$DV68)<>0),1,0) -> 0 | L68: =IF(OR(L119>0,SUM(M68:$DV68)<>0),1,0) -> 0 | M68: =IF(OR(M119>0,SUM(N68:$DV68)<>0),1,0) -> 0 | N68: =IF(OR(N119>0,SUM(O68:$DV68)<>0),1,0) -> 0 | O68: =IF(OR(O119>0,SUM(P68:$DV68)<>0),1,0) -> 0 | P68: =IF(OR(P119>0,SUM(Q68:$DV68)<>0),1,0) -> 0 | Q68: =IF(OR(Q119>0,SUM(R68:$DV68)<>0),1,0) -> 0 | R68: =IF(OR(R119>0,SUM(S68:$DV68)<>0),1,0) -> 0 | S68: =IF(OR(S119>0,SUM(T68:$DV68)<>0),1,0) -> 0 | T68: =IF(OR(T119>0,SUM(U68:$DV68)<>0),1,0) -> 0 | U68: =IF(OR(U119>0,SUM(V68:$DV68)<>0),1,0) -> 0 | V68: =IF(OR(V119>0,SUM(W68:$DV68)<>0),1,0) -> 0 | W68: =IF(OR(W119>0,SUM(X68:$DV68)<>0),1,0) -> 0 | X68: =IF(OR(X119>0,SUM(Y68:$DV68)<>0),1,0) -> 0 | Y68: =IF(OR(Y119>0,SUM(Z68:$DV68)<>0),1,0) -> 0 | Z68: =IF(OR(Z119>0,SUM(AA68:$DV68)<>0),1,0) -> 0 | AA68: =IF(OR(AA119>0,SUM(AB68:$DV68)<>0),1,0) -> 0 | AB68: =IF(OR(AB119>0,SUM(AC68:$DV68)<>0),1,0) -> 0 | AC68: =IF(OR(AC119>0,SUM(AD68:$DV68)<>0),1,0) -> 0 | AD68: =IF(OR(AD119>0,SUM(AE68:$DV68)<>0),1,0) -> 0 | AE68: =IF(OR(AE119>0,SUM(AF68:$DV68)<>0),1,0) -> 0 | AF68: =IF(OR(AF119>0,SUM(AG68:$DV68)<>0),1,0) -> 0 | AG68: =IF(OR(AG119>0,SUM(AH68:$DV68)<>0),1,0) -> 0 | AH68: =IF(OR(AH119>0,SUM(AI68:$DV68)<>0),1,0) -> 0 | AI68: =IF(OR(AI119>0,SUM(AJ68:$DV68)<>0),1,0) -> 0 | AJ68: =IF(OR(AJ119>0,SUM(AK68:$DV68)<>0),1,0) -> 0 | AK68: =IF(OR(AK119>0,SUM(AL68:$DV68)<>0),1,0) -> 0 | AL68: =IF(OR(AL119>0,SUM(AM68:$DV68)<>0),1,0) -> 0 | AM68: =IF(OR(AM119>0,SUM(AN68:$DV68)<>0),1,0) -> 0 | AN68: =IF(OR(AN119>0,SUM(AO68:$DV68)<>0),1,0) -> 0 | AO68: =IF(OR(AO119>0,SUM(AP68:$DV68)<>0),1,0) -> 0 | AP68: =IF(OR(AP119>0,SUM(AQ68:$DV68)<>0),1,0) -> 0 | AQ68: =IF(OR(AQ119>0,SUM(AR68:$DV68)<>0),1,0) -> 0 | AR68: =IF(OR(AR119>0,SUM(AS68:$DV68)<>0),1,0) -> 0 | AS68: =IF(OR(AS119>0,SUM(AT68:$DV68)<>0),1,0) -> 0 | AT68: =IF(OR(AT119>0,SUM(AU68:$DV68)<>0),1,0) -> 0 | AU68: =IF(OR(AU119>0,SUM(AV68:$DV68)<>0),1,0) -> 0 | AV68: =IF(OR(AV119>0,SUM(AW68:$DV68)<>0),1,0) -> 0 | AW68: =IF(OR(AW119>0,SUM(AX68:$DV68)<>0),1,0) -> 0 | AX68: =IF(OR(AX119>0,SUM(AY68:$DV68)<>0),1,0) -> 0 | AY68: =IF(OR(AY119>0,SUM(AZ68:$DV68)<>0),1,0) -> 0 | AZ68: =IF(OR(AZ119>0,SUM(BA68:$DV68)<>0),1,0) -> 0 | BA68: =IF(OR(BA119>0,SUM(BB68:$DV68)<>0),1,0) -> 0 | BB68: =IF(OR(BB119>0,SUM(BC68:$DV68)<>0),1,0) -> 0 | BC68: =IF(OR(BC119>0,SUM(BD68:$DV68)<>0),1,0) -> 0 | BD68: =IF(OR(BD119>0,SUM(BE68:$DV68)<>0),1,0) -> 0 | BE68: =IF(OR(BE119>0,SUM(BF68:$DV68)<>0),1,0) -> 0 | BF68: =IF(OR(BF119>0,SUM(BG68:$DV68)<>0),1,0) -> 0 | BG68: =IF(OR(BG119>0,SUM(BH68:$DV68)<>0),1,0) -> 0 | BH68: =IF(OR(BH119>0,SUM(BI68:$DV68)<>0),1,0) -> 0 | BI68: =IF(OR(BI119>0,SUM(BJ68:$DV68)<>0),1,0) -> 0 | BJ68: =IF(OR(BJ119>0,SUM(BK68:$DV68)<>0),1,0) -> 0 | BK68: =IF(OR(BK119>0,SUM(BL68:$DV68)<>0),1,0) -> 0 | BL68: =IF(OR(BL119>0,SUM(BM68:$DV68)<>0),1,0) -> 0 | BM68: =IF(OR(BM119>0,SUM(BN68:$DV68)<>0),1,0) -> 0 | BN68: =IF(OR(BN119>0,SUM(BO68:$DV68)<>0),1,0) -> 0 | BO68: =IF(OR(BO119>0,SUM(BP68:$DV68)<>0),1,0) -> 0 | BP68: =IF(OR(BP119>0,SUM(BQ68:$DV68)<>0),1,0) -> 0 | BQ68: =IF(OR(BQ119>0,SUM(BR68:$DV68)<>0),1,0) -> 0 | BR68: =IF(OR(BR119>0,SUM(BS68:$DV68)<>0),1,0) -> 0 | BS68: =IF(OR(BS119>0,SUM(BT68:$DV68)<>0),1,0) -> 0 | BT68: =IF(OR(BT119>0,SUM(BU68:$DV68)<>0),1,0) -> 0 | BU68: =IF(OR(BU119>0,SUM(BV68:$DV68)<>0),1,0) -> 0 | BV68: =IF(OR(BV119>0,SUM(BW68:$DV68)<>0),1,0) -> 0 | BW68: =IF(OR(BW119>0,SUM(BX68:$DV68)<>0),1,0) -> 0 | BX68: =IF(OR(BX119>0,SUM(BY68:$DV68)<>0),1,0) -> 0 | BY68: =IF(OR(BY119>0,SUM(BZ68:$DV68)<>0),1,0) -> 0 | BZ68: =IF(OR(BZ119>0,SUM(CA68:$DV68)<>0),1,0) -> 0 | CA68: =IF(OR(CA119>0,SUM(CB68:$DV68)<>0),1,0) -> 0 | CB68: =IF(OR(CB119>0,SUM(CC68:$DV68)<>0),1,0) -> 0 | CC68: =IF(OR(CC119>0,SUM(CD68:$DV68)<>0),1,0) -> 0 | CD68: =IF(OR(CD119>0,SUM(CE68:$DV68)<>0),1,0) -> 0 | CE68: =IF(OR(CE119>0,SUM(CF68:$DV68)<>0),1,0) -> 0 | CF68: =IF(OR(CF119>0,SUM(CG68:$DV68)<>0),1,0) -> 0 | CG68: =IF(OR(CG119>0,SUM(CH68:$DV68)<>0),1,0) -> 0 | CH68: =IF(OR(CH119>0,SUM(CI68:$DV68)<>0),1,0) -> 0 | CI68: =IF(OR(CI119>0,SUM(CJ68:$DV68)<>0),1,0) -> 0 | CJ68: =IF(OR(CJ119>0,SUM(CK68:$DV68)<>0),1,0) -> 0 | CK68: =IF(OR(CK119>0,SUM(CL68:$DV68)<>0),1,0) -> 0 | CL68: =IF(OR(CL119>0,SUM(CM68:$DV68)<>0),1,0) -> 0 | CM68: =IF(OR(CM119>0,SUM(CN68:$DV68)<>0),1,0) -> 0 | CN68: =IF(OR(CN119>0,SUM(CO68:$DV68)<>0),1,0) -> 0 | CO68: =IF(OR(CO119>0,SUM(CP68:$DV68)<>0),1,0) -> 0 | CP68: =IF(OR(CP119>0,SUM(CQ68:$DV68)<>0),1,0) -> 0 | CQ68: =IF(OR(CQ119>0,SUM(CR68:$DV68)<>0),1,0) -> 0 | CR68: =IF(OR(CR119>0,SUM(CS68:$DV68)<>0),1,0) -> 0 | CS68: =IF(OR(CS119>0,SUM(CT68:$DV68)<>0),1,0) -> 0 | CT68: =IF(OR(CT119>0,SUM(CU68:$DV68)<>0),1,0) -> 0 | CU68: =IF(OR(CU119>0,SUM(CV68:$DV68)<>0),1,0) -> 0 | CV68: =IF(OR(CV119>0,SUM(CW68:$DV68)<>0),1,0) -> 0 | CW68: =IF(OR(CW119>0,SUM(CX68:$DV68)<>0),1,0) -> 0 | CX68: =IF(OR(CX119>0,SUM(CY68:$DV68)<>0),1,0) -> 0 | CY68: =IF(OR(CY119>0,SUM(CZ68:$DV68)<>0),1,0) -> 0 | CZ68: =IF(OR(CZ119>0,SUM(DA68:$DV68)<>0),1,0) -> 0 | DA68: =IF(OR(DA119>0,SUM(DB68:$DV68)<>0),1,0) -> 0 | DB68: =IF(OR(DB119>0,SUM(DC68:$DV68)<>0),1,0) -> 0 | DC68: =IF(OR(DC119>0,SUM(DD68:$DV68)<>0),1,0) -> 0 | DD68: =IF(OR(DD119>0,SUM(DE68:$DV68)<>0),1,0) -> 0 | DE68: =IF(OR(DE119>0,SUM(DF68:$DV68)<>0),1,0) -> 0 | DF68: =IF(OR(DF119>0,SUM(DG68:$DV68)<>0),1,0) -> 0 | DG68: =IF(OR(DG119>0,SUM(DH68:$DV68)<>0),1,0) -> 0 | DH68: =IF(OR(DH119>0,SUM(DI68:$DV68)<>0),1,0) -> 0 | DI68: =IF(OR(DI119>0,SUM(DJ68:$DV68)<>0),1,0) -> 0 | DJ68: =IF(OR(DJ119>0,SUM(DK68:$DV68)<>0),1,0) -> 0 | DK68: =IF(OR(DK119>0,SUM(DL68:$DV68)<>0),1,0) -> 0 | DL68: =IF(OR(DL119>0,SUM(DM68:$DV68)<>0),1,0) -> 0 | DM68: =IF(OR(DM119>0,SUM(DN68:$DV68)<>0),1,0) -> 0 | DN68: =IF(OR(DN119>0,SUM(DO68:$DV68)<>0),1,0) -> 0 | DO68: =IF(OR(DO119>0,SUM(DP68:$DV68)<>0),1,0) -> 0 | DP68: =IF(OR(DP119>0,SUM(DQ68:$DV68)<>0),1,0) -> 0 | DQ68: =IF(OR(DQ119>0,SUM(DR68:$DV68)<>0),1,0) -> 0 | DR68: =IF(OR(DR119>0,SUM(DS68:$DV68)<>0),1,0) -> 0 | DS68: =IF(OR(DS119>0,SUM(DT68:$DV68)<>0),1,0) -> 0 | DT68: =IF(OR(DT119>0,SUM(DU68:$DV68)<>0),1,0) -> 0 | DU68: =IF(OR(DU119>0,SUM(DV68:$DV68)<>0),1,0) -> 0 | DV68: =IF(DV119>0,1,0) -> 0
E69: Type | F69: =INDEX('Export list'!Q1498:Q1500,DB_Type) -> DB_Quarter | G69: =IFERROR(INDEX(DB_Periods,1,G64),0) -> 1 кв 2019 | H69: 2 кв 2019 | I69: 3 кв 2019 | J69: 4 кв 2019 | K69: 1 кв 2020 | L69: 2 кв 2020 | M69: 3 кв 2020 | N69: 4 кв 2020 | O69: 0 | P69: 0 | Q69: 0 | R69: 0 | S69: 0 | T69: 0 | U69: 0 | V69: 0 | W69: 0 | X69: 0 | Y69: 0 | Z69: 0 | AA69: 0 | AB69: 0 | AC69: 0 | AD69: 0 | AE69: 0 | AF69: 0 | AG69: 0 | AH69: 0 | AI69: 0 | AJ69: 0 | AK69: 0 | AL69: 0 | AM69: =IFERROR(INDEX(DB_Periods,1,AM64),0) -> 0 | AN69: 0 | AO69: 0 | AP69: 0 | AQ69: 0 | AR69: 0 | AS69: 0 | AT69: 0 | AU69: 0 | AV69: 0 | AW69: 0 | AX69: 0 | AY69: 0 | AZ69: 0 | BA69: 0 | BB69: 0 | BC69: 0 | BD69: 0 | BE69: 0 | BF69: 0 | BG69: 0 | BH69: 0 | BI69: 0 | BJ69: 0 | BK69: 0 | BL69: 0 | BM69: 0 | BN69: 0 | BO69: 0 | BP69: 0 | BQ69: 0 | BR69: 0 | BS69: =IFERROR(INDEX(DB_Periods,1,BS64),0) -> 0 | BT69: =IFERROR(INDEX(DB_Periods,1,BT64),0) -> 0 | BU69: 0 | BV69: 0 | BW69: 0 | BX69: 0 | BY69: 0 | BZ69: 0 | CA69: 0 | CB69: 0 | CC69: 0 | CD69: 0 | CE69: 0 | CF69: 0 | CG69: 0 | CH69: 0 | CI69: 0 | CJ69: 0 | CK69: 0 | CL69: 0 | CM69: 0 | CN69: 0 | CO69: 0 | CP69: 0 | CQ69: 0 | CR69: 0 | CS69: 0 | CT69: 0 | CU69: 0 | CV69: 0 | CW69: 0 | CX69: 0 | CY69: 0 | CZ69: 0 | DA69: 0 | DB69: 0 | DC69: 0 | DD69: 0 | DE69: 0 | DF69: 0 | DG69: 0 | DH69: 0 | DI69: 0 | DJ69: 0 | DK69: 0 | DL69: 0 | DM69: 0 | DN69: 0 | DO69: 0 | DP69: 0 | DQ69: =IFERROR(INDEX(DB_Periods,1,DQ64),0) -> 0 | DR69: 0 | DS69: 0 | DT69: 0 | DU69: 0 | DV69: 0
C70: Выручка | D70: =D9 -> тыс. RUB | E70: ut_Revenue_Check | G70: =SUMIF(INDIRECT($F$69),G69,ut_Revenue_Check) -> 0 | H70: 0 | I70: 0 | J70: 0 | K70: 0 | L70: 0 | M70: =SUMIF(INDIRECT($F$69),M69,ut_Revenue_Check) -> 0 | N70: 0 | O70: 0 | P70: 0 | Q70: 0 | R70: 0 | S70: 0 | T70: 0 | U70: 0 | V70: 0 | W70: 0 | X70: 0 | Y70: 0 | Z70: 0 | AA70: 0 | AB70: 0 | AC70: 0 | AD70: 0 | AE70: 0 | AF70: 0 | AG70: 0 | AH70: 0 | AI70: 0 | AJ70: 0 | AK70: 0 | AL70: 0 | AM70: =SUMIF(INDIRECT($F$69),AM69,ut_Revenue_Check) -> 0 | AN70: 0 | AO70: 0 | AP70: 0 | AQ70: 0 | AR70: 0 | AS70: 0 | AT70: 0 | AU70: 0 | AV70: 0 | AW70: 0 | AX70: 0 | AY70: 0 | AZ70: 0 | BA70: 0 | BB70: 0 | BC70: 0 | BD70: 0 | BE70: 0 | BF70: 0 | BG70: 0 | BH70: 0 | BI70: 0 | BJ70: 0 | BK70: 0 | BL70: 0 | BM70: 0 | BN70: 0 | BO70: 0 | BP70: 0 | BQ70: 0 | BR70: 0 | BS70: =SUMIF(INDIRECT($F$69),BS69,ut_Revenue_Check) -> 0 | BT70: =SUMIF(INDIRECT($F$69),BT69,ut_Revenue_Check) -> 0 | BU70: 0 | BV70: 0 | BW70: 0 | BX70: 0 | BY70: 0 | BZ70: 0 | CA70: 0 | CB70: 0 | CC70: 0 | CD70: 0 | CE70: 0 | CF70: 0 | CG70: 0 | CH70: 0 | CI70: 0 | CJ70: 0 | CK70: 0 | CL70: 0 | CM70: 0 | CN70: 0 | CO70: 0 | CP70: 0 | CQ70: 0 | CR70: 0 | CS70: 0 | CT70: 0 | CU70: 0 | CV70: 0 | CW70: 0 | CX70: 0 | CY70: 0 | CZ70: 0 | DA70: 0 | DB70: 0 | DC70: 0 | DD70: 0 | DE70: 0 | DF70: 0 | DG70: 0 | DH70: 0 | DI70: 0 | DJ70: 0 | DK70: 0 | DL70: 0 | DM70: 0 | DN70: 0 | DO70: 0 | DP70: 0 | DQ70: =SUMIF(INDIRECT($F$69),DQ69,ut_Revenue_Check) -> 0 | DR70: 0 | DS70: 0 | DT70: 0 | DU70: 0 | DV70: 0
C71: Темп прироста | D71: % | G71: =IF(G69>0,IFERROR(G70/F70-1,0),0) -> 0 | H71: 0 | I71: =IF(I69>0,IFERROR(I70/H70-1,0),0) -> 0 | J71: =IF(J69>0,IFERROR(J70/I70-1,0),0) -> 0 | K71: =IF(K69>0,IFERROR(K70/J70-1,0),0) -> 0 | L71: 0 | M71: =IF(M69>0,IFERROR(M70/L70-1,0),0) -> 0 | N71: =IF(N69>0,IFERROR(N70/M70-1,0),0) -> 0 | O71: 0 | P71: =IF(P69>0,IFERROR(P70/O70-1,0),0) -> 0 | Q71: =IF(Q69>0,IFERROR(Q70/P70-1,0),0) -> 0 | R71: 0 | S71: =IF(S69>0,IFERROR(S70/R70-1,0),0) -> 0 | T71: =IF(T69>0,IFERROR(T70/S70-1,0),0) -> 0 | U71: 0 | V71: =IF(V69>0,IFERROR(V70/U70-1,0),0) -> 0 | W71: =IF(W69>0,IFERROR(W70/V70-1,0),0) -> 0 | X71: 0 | Y71: =IF(Y69>0,IFERROR(Y70/X70-1,0),0) -> 0 | Z71: =IF(Z69>0,IFERROR(Z70/Y70-1,0),0) -> 0 | AA71: 0 | AB71: =IF(AB69>0,IFERROR(AB70/AA70-1,0),0) -> 0 | AC71: =IF(AC69>0,IFERROR(AC70/AB70-1,0),0) -> 0 | AD71: 0 | AE71: =IF(AE69>0,IFERROR(AE70/AD70-1,0),0) -> 0 | AF71: =IF(AF69>0,IFERROR(AF70/AE70-1,0),0) -> 0 | AG71: 0 | AH71: =IF(AH69>0,IFERROR(AH70/AG70-1,0),0) -> 0 | AI71: =IF(AI69>0,IFERROR(AI70/AH70-1,0),0) -> 0 | AJ71: 0 | AK71: =IF(AK69>0,IFERROR(AK70/AJ70-1,0),0) -> 0 | AL71: =IF(AL69>0,IFERROR(AL70/AK70-1,0),0) -> 0 | AM71: 0 | AN71: =IF(AN69>0,IFERROR(AN70/AM70-1,0),0) -> 0 | AO71: =IF(AO69>0,IFERROR(AO70/AN70-1,0),0) -> 0 | AP71: 0 | AQ71: =IF(AQ69>0,IFERROR(AQ70/AP70-1,0),0) -> 0 | AR71: =IF(AR69>0,IFERROR(AR70/AQ70-1,0),0) -> 0 | AS71: 0 | AT71: =IF(AT69>0,IFERROR(AT70/AS70-1,0),0) -> 0 | AU71: =IF(AU69>0,IFERROR(AU70/AT70-1,0),0) -> 0 | AV71: 0 | AW71: =IF(AW69>0,IFERROR(AW70/AV70-1,0),0) -> 0 | AX71: =IF(AX69>0,IFERROR(AX70/AW70-1,0),0) -> 0 | AY71: 0 | AZ71: =IF(AZ69>0,IFERROR(AZ70/AY70-1,0),0) -> 0 | BA71: =IF(BA69>0,IFERROR(BA70/AZ70-1,0),0) -> 0 | BB71: 0 | BC71: =IF(BC69>0,IFERROR(BC70/BB70-1,0),0) -> 0 | BD71: =IF(BD69>0,IFERROR(BD70/BC70-1,0),0) -> 0 | BE71: 0 | BF71: =IF(BF69>0,IFERROR(BF70/BE70-1,0),0) -> 0 | BG71: =IF(BG69>0,IFERROR(BG70/BF70-1,0),0) -> 0 | BH71: 0 | BI71: =IF(BI69>0,IFERROR(BI70/BH70-1,0),0) -> 0 | BJ71: =IF(BJ69>0,IFERROR(BJ70/BI70-1,0),0) -> 0 | BK71: 0 | BL71: =IF(BL69>0,IFERROR(BL70/BK70-1,0),0) -> 0 | BM71: =IF(BM69>0,IFERROR(BM70/BL70-1,0),0) -> 0 | BN71: 0 | BO71: =IF(BO69>0,IFERROR(BO70/BN70-1,0),0) -> 0 | BP71: =IF(BP69>0,IFERROR(BP70/BO70-1,0),0) -> 0 | BQ71: 0 | BR71: =IF(BR69>0,IFERROR(BR70/BQ70-1,0),0) -> 0 | BS71: =IF(BS69>0,IFERROR(BS70/BR70-1,0),0) -> 0 | BT71: =IF(BT69>0,IFERROR(BT70/BS70-1,0),0) -> 0 | BU71: =IF(BU69>0,IFERROR(BU70/BT70-1,0),0) -> 0 | BV71: =IF(BV69>0,IFERROR(BV70/BU70-1,0),0) -> 0 | BW71: =IF(BW69>0,IFERROR(BW70/BV70-1,0),0) -> 0 | BX71: =IF(BX69>0,IFERROR(BX70/BW70-1,0),0) -> 0 | BY71: =IF(BY69>0,IFERROR(BY70/BX70-1,0),0) -> 0 | BZ71: =IF(BZ69>0,IFERROR(BZ70/BY70-1,0),0) -> 0 | CA71: =IF(CA69>0,IFERROR(CA70/BZ70-1,0),0) -> 0 | CB71: =IF(CB69>0,IFERROR(CB70/CA70-1,0),0) -> 0 | CC71: =IF(CC69>0,IFERROR(CC70/CB70-1,0),0) -> 0 | CD71: =IF(CD69>0,IFERROR(CD70/CC70-1,0),0) -> 0 | CE71: =IF(CE69>0,IFERROR(CE70/CD70-1,0),0) -> 0 | CF71: =IF(CF69>0,IFERROR(CF70/CE70-1,0),0) -> 0 | CG71: =IF(CG69>0,IFERROR(CG70/CF70-1,0),0) -> 0 | CH71: =IF(CH69>0,IFERROR(CH70/CG70-1,0),0) -> 0 | CI71: =IF(CI69>0,IFERROR(CI70/CH70-1,0),0) -> 0 | CJ71: =IF(CJ69>0,IFERROR(CJ70/CI70-1,0),0) -> 0 | CK71: =IF(CK69>0,IFERROR(CK70/CJ70-1,0),0) -> 0 | CL71: =IF(CL69>0,IFERROR(CL70/CK70-1,0),0) -> 0 | CM71: =IF(CM69>0,IFERROR(CM70/CL70-1,0),0) -> 0 | CN71: =IF(CN69>0,IFERROR(CN70/CM70-1,0),0) -> 0 | CO71: =IF(CO69>0,IFERROR(CO70/CN70-1,0),0) -> 0 | CP71: =IF(CP69>0,IFERROR(CP70/CO70-1,0),0) -> 0 | CQ71: =IF(CQ69>0,IFERROR(CQ70/CP70-1,0),0) -> 0 | CR71: =IF(CR69>0,IFERROR(CR70/CQ70-1,0),0) -> 0 | CS71: =IF(CS69>0,IFERROR(CS70/CR70-1,0),0) -> 0 | CT71: =IF(CT69>0,IFERROR(CT70/CS70-1,0),0) -> 0 | CU71: =IF(CU69>0,IFERROR(CU70/CT70-1,0),0) -> 0 | CV71: =IF(CV69>0,IFERROR(CV70/CU70-1,0),0) -> 0 | CW71: =IF(CW69>0,IFERROR(CW70/CV70-1,0),0) -> 0 | CX71: =IF(CX69>0,IFERROR(CX70/CW70-1,0),0) -> 0 | CY71: =IF(CY69>0,IFERROR(CY70/CX70-1,0),0) -> 0 | CZ71: =IF(CZ69>0,IFERROR(CZ70/CY70-1,0),0) -> 0 | DA71: =IF(DA69>0,IFERROR(DA70/CZ70-1,0),0) -> 0 | DB71: =IF(DB69>0,IFERROR(DB70/DA70-1,0),0) -> 0 | DC71: =IF(DC69>0,IFERROR(DC70/DB70-1,0),0) -> 0 | DD71: =IF(DD69>0,IFERROR(DD70/DC70-1,0),0) -> 0 | DE71: =IF(DE69>0,IFERROR(DE70/DD70-1,0),0) -> 0 | DF71: =IF(DF69>0,IFERROR(DF70/DE70-1,0),0) -> 0 | DG71: =IF(DG69>0,IFERROR(DG70/DF70-1,0),0) -> 0 | DH71: =IF(DH69>0,IFERROR(DH70/DG70-1,0),0) -> 0 | DI71: =IF(DI69>0,IFERROR(DI70/DH70-1,0),0) -> 0 | DJ71: =IF(DJ69>0,IFERROR(DJ70/DI70-1,0),0) -> 0 | DK71: =IF(DK69>0,IFERROR(DK70/DJ70-1,0),0) -> 0 | DL71: =IF(DL69>0,IFERROR(DL70/DK70-1,0),0) -> 0 | DM71: =IF(DM69>0,IFERROR(DM70/DL70-1,0),0) -> 0 | DN71: =IF(DN69>0,IFERROR(DN70/DM70-1,0),0) -> 0 | DO71: =IF(DO69>0,IFERROR(DO70/DN70-1,0),0) -> 0 | DP71: =IF(DP69>0,IFERROR(DP70/DO70-1,0),0) -> 0 | DQ71: =IF(DQ69>0,IFERROR(DQ70/DP70-1,0),0) -> 0 | DR71: =IF(DR69>0,IFERROR(DR70/DQ70-1,0),0) -> 0 | DS71: =IF(DS69>0,IFERROR(DS70/DR70-1,0),0) -> 0 | DT71: =IF(DT69>0,IFERROR(DT70/DS70-1,0),0) -> 0 | DU71: =IF(DU69>0,IFERROR(DU70/DT70-1,0),0) -> 0 | DV71: =IF(DV69>0,IFERROR(DV70/DU70-1,0),0) -> 0
C72: Себестоимость (без амортизации) | D72: =D9 -> тыс. RUB | E72: DB_OPEX | G72: =SUMIF(INDIRECT($F$69),G69,DB_OPEX) -> 0 | H72: 0 | I72: 0 | J72: 0 | K72: 0 | L72: 0 | M72: 0 | N72: 0 | O72: 0 | P72: 0 | Q72: 0 | R72: 0 | S72: 0 | T72: 0 | U72: 0 | V72: 0 | W72: 0 | X72: 0 | Y72: 0 | Z72: 0 | AA72: 0 | AB72: 0 | AC72: 0 | AD72: 0 | AE72: 0 | AF72: 0 | AG72: 0 | AH72: 0 | AI72: 0 | AJ72: 0 | AK72: 0 | AL72: 0 | AM72: =SUMIF(INDIRECT($F$69),AM69,DB_OPEX) -> 0 | AN72: 0 | AO72: 0 | AP72: 0 | AQ72: 0 | AR72: 0 | AS72: 0 | AT72: 0 | AU72: 0 | AV72: 0 | AW72: 0 | AX72: 0 | AY72: 0 | AZ72: 0 | BA72: 0 | BB72: 0 | BC72: 0 | BD72: 0 | BE72: 0 | BF72: 0 | BG72: 0 | BH72: 0 | BI72: 0 | BJ72: 0 | BK72: 0 | BL72: 0 | BM72: 0 | BN72: 0 | BO72: 0 | BP72: 0 | BQ72: 0 | BR72: 0 | BS72: =SUMIF(INDIRECT($F$69),BS69,DB_OPEX) -> 0 | BT72: =SUMIF(INDIRECT($F$69),BT69,DB_OPEX) -> 0 | BU72: 0 | BV72: 0 | BW72: 0 | BX72: 0 | BY72: 0 | BZ72: 0 | CA72: 0 | CB72: 0 | CC72: 0 | CD72: 0 | CE72: 0 | CF72: 0 | CG72: 0 | CH72: 0 | CI72: 0 | CJ72: 0 | CK72: 0 | CL72: 0 | CM72: 0 | CN72: 0 | CO72: 0 | CP72: 0 | CQ72: 0 | CR72: 0 | CS72: 0 | CT72: 0 | CU72: 0 | CV72: 0 | CW72: 0 | CX72: 0 | CY72: 0 | CZ72: 0 | DA72: 0 | DB72: 0 | DC72: 0 | DD72: 0 | DE72: 0 | DF72: 0 | DG72: 0 | DH72: 0 | DI72: 0 | DJ72: 0 | DK72: 0 | DL72: 0 | DM72: 0 | DN72: 0 | DO72: 0 | DP72: 0 | DQ72: =SUMIF(INDIRECT($F$69),DQ69,DB_OPEX) -> 0 | DR72: 0 | DS72: 0 | DT72: 0 | DU72: 0 | DV72: 0
C73: Валовая прибыль | D73: =D9 -> тыс. RUB | G73: =G70-G72 -> 0 | H73: =H70-H72 -> 0 | I73: =I70-I72 -> 0 | J73: 0 | K73: 0 | L73: 0 | M73: 0 | N73: 0 | O73: 0 | P73: 0 | Q73: 0 | R73: 0 | S73: 0 | T73: 0 | U73: 0 | V73: 0 | W73: 0 | X73: 0 | Y73: 0 | Z73: 0 | AA73: 0 | AB73: 0 | AC73: 0 | AD73: 0 | AE73: 0 | AF73: 0 | AG73: 0 | AH73: 0 | AI73: 0 | AJ73: 0 | AK73: 0 | AL73: 0 | AM73: 0 | AN73: 0 | AO73: 0 | AP73: 0 | AQ73: 0 | AR73: 0 | AS73: 0 | AT73: 0 | AU73: 0 | AV73: 0 | AW73: 0 | AX73: 0 | AY73: 0 | AZ73: 0 | BA73: 0 | BB73: 0 | BC73: 0 | BD73: 0 | BE73: 0 | BF73: 0 | BG73: 0 | BH73: 0 | BI73: 0 | BJ73: 0 | BK73: 0 | BL73: 0 | BM73: 0 | BN73: 0 | BO73: 0 | BP73: 0 | BQ73: 0 | BR73: 0 | BS73: 0 | BT73: =BT70-BT72 -> 0 | BU73: 0 | BV73: 0 | BW73: 0 | BX73: 0 | BY73: 0 | BZ73: 0 | CA73: 0 | CB73: 0 | CC73: 0 | CD73: 0 | CE73: 0 | CF73: 0 | CG73: 0 | CH73: 0 | CI73: 0 | CJ73: 0 | CK73: 0 | CL73: 0 | CM73: 0 | CN73: 0 | CO73: 0 | CP73: 0 | CQ73: 0 | CR73: 0 | CS73: 0 | CT73: 0 | CU73: 0 | CV73: 0 | CW73: 0 | CX73: 0 | CY73: 0 | CZ73: 0 | DA73: 0 | DB73: 0 | DC73: 0 | DD73: 0 | DE73: 0 | DF73: 0 | DG73: 0 | DH73: 0 | DI73: 0 | DJ73: 0 | DK73: 0 | DL73: 0 | DM73: 0 | DN73: 0 | DO73: 0 | DP73: 0 | DQ73: =DQ70-DQ72 -> 0 | DR73: 0 | DS73: 0 | DT73: 0 | DU73: 0 | DV73: 0
C74: Валовая маржа | D74: % | G74: =IFERROR(G73/G70,0) -> 0 | H74: =IFERROR(H73/H70,0) -> 0 | I74: 0 | J74: 0 | K74: 0 | L74: 0 | M74: 0 | N74: 0 | O74: 0 | P74: 0 | Q74: 0 | R74: 0 | S74: 0 | T74: 0 | U74: 0 | V74: 0 | W74: 0 | X74: 0 | Y74: 0 | Z74: 0 | AA74: 0 | AB74: 0 | AC74: 0 | AD74: 0 | AE74: 0 | AF74: 0 | AG74: 0 | AH74: 0 | AI74: 0 | AJ74: 0 | AK74: 0 | AL74: 0 | AM74: 0 | AN74: 0 | AO74: 0 | AP74: 0 | AQ74: 0 | AR74: 0 | AS74: 0 | AT74: 0 | AU74: 0 | AV74: 0 | AW74: 0 | AX74: 0 | AY74: 0 | AZ74: 0 | BA74: 0 | BB74: 0 | BC74: 0 | BD74: 0 | BE74: 0 | BF74: 0 | BG74: 0 | BH74: 0 | BI74: 0 | BJ74: 0 | BK74: 0 | BL74: 0 | BM74: 0 | BN74: 0 | BO74: 0 | BP74: 0 | BQ74: 0 | BR74: 0 | BS74: 0 | BT74: =IFERROR(BT73/BT70,0) -> 0 | BU74: 0 | BV74: 0 | BW74: 0 | BX74: 0 | BY74: 0 | BZ74: 0 | CA74: 0 | CB74: 0 | CC74: 0 | CD74: 0 | CE74: 0 | CF74: 0 | CG74: 0 | CH74: 0 | CI74: 0 | CJ74: 0 | CK74: 0 | CL74: 0 | CM74: 0 | CN74: 0 | CO74: 0 | CP74: 0 | CQ74: 0 | CR74: 0 | CS74: 0 | CT74: 0 | CU74: 0 | CV74: 0 | CW74: 0 | CX74: 0 | CY74: 0 | CZ74: 0 | DA74: 0 | DB74: 0 | DC74: 0 | DD74: 0 | DE74: 0 | DF74: 0 | DG74: 0 | DH74: 0 | DI74: 0 | DJ74: 0 | DK74: 0 | DL74: 0 | DM74: 0 | DN74: 0 | DO74: 0 | DP74: 0 | DQ74: =IFERROR(DQ73/DQ70,0) -> 0 | DR74: 0 | DS74: 0 | DT74: 0 | DU74: 0 | DV74: 0
C75: Административные, коммерческие, прочие расходы | D75: =D9 -> тыс. RUB | E75: DB_SGA | F75: DB_Others | G75: =SUMIF(INDIRECT($F$69),G69,DB_SGA)+SUMIF(INDIRECT($F$69),G69,DB_Others) -> 0 | H75: 0 | I75: 0 | J75: 0 | K75: 0 | L75: 0 | M75: 0 | N75: 0 | O75: 0 | P75: 0 | Q75: 0 | R75: 0 | S75: 0 | T75: 0 | U75: 0 | V75: 0 | W75: 0 | X75: 0 | Y75: 0 | Z75: 0 | AA75: 0 | AB75: 0 | AC75: 0 | AD75: 0 | AE75: 0 | AF75: 0 | AG75: 0 | AH75: 0 | AI75: 0 | AJ75: 0 | AK75: 0 | AL75: 0 | AM75: =SUMIF(INDIRECT($F$69),AM69,DB_SGA)+SUMIF(INDIRECT($F$69),AM69,DB_Others) -> 0 | AN75: 0 | AO75: 0 | AP75: 0 | AQ75: 0 | AR75: 0 | AS75: 0 | AT75: 0 | AU75: 0 | AV75: 0 | AW75: 0 | AX75: 0 | AY75: 0 | AZ75: 0 | BA75: 0 | BB75: 0 | BC75: 0 | BD75: 0 | BE75: 0 | BF75: 0 | BG75: 0 | BH75: 0 | BI75: 0 | BJ75: 0 | BK75: 0 | BL75: 0 | BM75: 0 | BN75: 0 | BO75: 0 | BP75: 0 | BQ75: 0 | BR75: 0 | BS75: =SUMIF(INDIRECT($F$69),BS69,DB_SGA)+SUMIF(INDIRECT($F$69),BS69,DB_Others) -> 0 | BT75: =SUMIF(INDIRECT($F$69),BT69,DB_SGA)+SUMIF(INDIRECT($F$69),BT69,DB_Others) -> 0 | BU75: 0 | BV75: 0 | BW75: 0 | BX75: 0 | BY75: 0 | BZ75: 0 | CA75: 0 | CB75: 0 | CC75: 0 | CD75: 0 | CE75: 0 | CF75: 0 | CG75: 0 | CH75: 0 | CI75: 0 | CJ75: 0 | CK75: 0 | CL75: 0 | CM75: 0 | CN75: 0 | CO75: 0 | CP75: 0 | CQ75: 0 | CR75: 0 | CS75: 0 | CT75: 0 | CU75: 0 | CV75: 0 | CW75: 0 | CX75: 0 | CY75: 0 | CZ75: 0 | DA75: 0 | DB75: 0 | DC75: 0 | DD75: 0 | DE75: 0 | DF75: 0 | DG75: 0 | DH75: 0 | DI75: 0 | DJ75: 0 | DK75: 0 | DL75: 0 | DM75: 0 | DN75: 0 | DO75: 0 | DP75: 0 | DQ75: =SUMIF(INDIRECT($F$69),DQ69,DB_SGA)+SUMIF(INDIRECT($F$69),DQ69,DB_Others) -> 0 | DR75: 0 | DS75: 0 | DT75: 0 | DU75: 0 | DV75: 0
C76: EBITDA | D76: =D9 -> тыс. RUB | E76: DB_EBITDA | G76: =SUMIF(INDIRECT($F$69),G69,DB_EBITDA) -> 0 | H76: =SUMIF(INDIRECT($F$69),H69,DB_EBITDA) -> 0 | I76: 0 | J76: 0 | K76: 0 | L76: 0 | M76: 0 | N76: 0 | O76: 0 | P76: 0 | Q76: 0 | R76: 0 | S76: 0 | T76: 0 | U76: 0 | V76: 0 | W76: 0 | X76: 0 | Y76: 0 | Z76: 0 | AA76: 0 | AB76: 0 | AC76: 0 | AD76: 0 | AE76: 0 | AF76: 0 | AG76: 0 | AH76: 0 | AI76: 0 | AJ76: 0 | AK76: 0 | AL76: 0 | AM76: =SUMIF(INDIRECT($F$69),AM69,DB_EBITDA) -> 0 | AN76: 0 | AO76: 0 | AP76: 0 | AQ76: 0 | AR76: 0 | AS76: 0 | AT76: 0 | AU76: 0 | AV76: 0 | AW76: 0 | AX76: 0 | AY76: 0 | AZ76: 0 | BA76: 0 | BB76: 0 | BC76: 0 | BD76: 0 | BE76: 0 | BF76: 0 | BG76: 0 | BH76: 0 | BI76: 0 | BJ76: 0 | BK76: 0 | BL76: 0 | BM76: 0 | BN76: 0 | BO76: 0 | BP76: 0 | BQ76: 0 | BR76: 0 | BS76: =SUMIF(INDIRECT($F$69),BS69,DB_EBITDA) -> 0 | BT76: =SUMIF(INDIRECT($F$69),BT69,DB_EBITDA) -> 0 | BU76: 0 | BV76: 0 | BW76: 0 | BX76: 0 | BY76: 0 | BZ76: 0 | CA76: 0 | CB76: 0 | CC76: 0 | CD76: 0 | CE76: 0 | CF76: 0 | CG76: 0 | CH76: 0 | CI76: 0 | CJ76: 0 | CK76: 0 | CL76: 0 | CM76: 0 | CN76: 0 | CO76: 0 | CP76: 0 | CQ76: 0 | CR76: 0 | CS76: 0 | CT76: 0 | CU76: 0 | CV76: 0 | CW76: 0 | CX76: 0 | CY76: 0 | CZ76: 0 | DA76: 0 | DB76: 0 | DC76: 0 | DD76: 0 | DE76: 0 | DF76: 0 | DG76: 0 | DH76: 0 | DI76: 0 | DJ76: 0 | DK76: 0 | DL76: 0 | DM76: 0 | DN76: 0 | DO76: 0 | DP76: 0 | DQ76: =SUMIF(INDIRECT($F$69),DQ69,DB_EBITDA) -> 0 | DR76: 0 | DS76: 0 | DT76: 0 | DU76: 0 | DV76: 0
B77: к | C77: EBITDA рентабельность | D77: % | G77: =IFERROR(G76/G70,0) -> 0 | H77: =IFERROR(H76/H70,0) -> 0 | I77: 0 | J77: 0 | K77: 0 | L77: 0 | M77: 0 | N77: 0 | O77: 0 | P77: 0 | Q77: 0 | R77: 0 | S77: 0 | T77: 0 | U77: 0 | V77: 0 | W77: 0 | X77: 0 | Y77: 0 | Z77: 0 | AA77: 0 | AB77: 0 | AC77: 0 | AD77: 0 | AE77: 0 | AF77: 0 | AG77: 0 | AH77: 0 | AI77: 0 | AJ77: 0 | AK77: 0 | AL77: 0 | AM77: 0 | AN77: 0 | AO77: 0 | AP77: 0 | AQ77: 0 | AR77: 0 | AS77: 0 | AT77: 0 | AU77: 0 | AV77: 0 | AW77: 0 | AX77: 0 | AY77: 0 | AZ77: 0 | BA77: 0 | BB77: 0 | BC77: 0 | BD77: 0 | BE77: 0 | BF77: 0 | BG77: 0 | BH77: 0 | BI77: 0 | BJ77: 0 | BK77: 0 | BL77: 0 | BM77: 0 | BN77: 0 | BO77: 0 | BP77: 0 | BQ77: 0 | BR77: 0 | BS77: 0 | BT77: =IFERROR(BT76/BT70,0) -> 0 | BU77: 0 | BV77: 0 | BW77: 0 | BX77: 0 | BY77: 0 | BZ77: 0 | CA77: 0 | CB77: 0 | CC77: 0 | CD77: 0 | CE77: 0 | CF77: 0 | CG77: 0 | CH77: 0 | CI77: 0 | CJ77: 0 | CK77: 0 | CL77: 0 | CM77: 0 | CN77: 0 | CO77: 0 | CP77: 0 | CQ77: 0 | CR77: 0 | CS77: 0 | CT77: 0 | CU77: 0 | CV77: 0 | CW77: 0 | CX77: 0 | CY77: 0 | CZ77: 0 | DA77: 0 | DB77: 0 | DC77: 0 | DD77: 0 | DE77: 0 | DF77: 0 | DG77: 0 | DH77: 0 | DI77: 0 | DJ77: 0 | DK77: 0 | DL77: 0 | DM77: 0 | DN77: 0 | DO77: 0 | DP77: 0 | DQ77: =IFERROR(DQ76/DQ70,0) -> 0 | DR77: 0 | DS77: 0 | DT77: 0 | DU77: 0 | DV77: 0
C78: Субсидии на операционную деятельность | D78: =D9 -> тыс. RUB | E78: ut_Subsidies | G78: =SUMIF(INDIRECT($F$69),G69,ut_Subsidies) -> 0 | H78: 0 | I78: 0 | J78: 0 | K78: 0 | L78: 0 | M78: 0 | N78: 0 | O78: 0 | P78: 0 | Q78: 0 | R78: 0 | S78: 0 | T78: 0 | U78: 0 | V78: 0 | W78: 0 | X78: 0 | Y78: 0 | Z78: 0 | AA78: 0 | AB78: 0 | AC78: 0 | AD78: 0 | AE78: 0 | AF78: 0 | AG78: 0 | AH78: 0 | AI78: 0 | AJ78: 0 | AK78: 0 | AL78: 0 | AM78: =SUMIF(INDIRECT($F$69),AM69,ut_Subsidies) -> 0 | AN78: 0 | AO78: 0 | AP78: 0 | AQ78: 0 | AR78: 0 | AS78: 0 | AT78: 0 | AU78: 0 | AV78: 0 | AW78: 0 | AX78: 0 | AY78: 0 | AZ78: 0 | BA78: 0 | BB78: 0 | BC78: 0 | BD78: 0 | BE78: 0 | BF78: 0 | BG78: 0 | BH78: 0 | BI78: 0 | BJ78: 0 | BK78: 0 | BL78: 0 | BM78: 0 | BN78: 0 | BO78: 0 | BP78: 0 | BQ78: 0 | BR78: 0 | BS78: =SUMIF(INDIRECT($F$69),BS69,ut_Subsidies) -> 0 | BT78: 0 | BU78: 0 | BV78: 0 | BW78: 0 | BX78: 0 | BY78: 0 | BZ78: 0 | CA78: 0 | CB78: 0 | CC78: 0 | CD78: 0 | CE78: 0 | CF78: 0 | CG78: 0 | CH78: 0 | CI78: 0 | CJ78: 0 | CK78: 0 | CL78: 0 | CM78: 0 | CN78: 0 | CO78: 0 | CP78: 0 | CQ78: 0 | CR78: 0 | CS78: 0 | CT78: 0 | CU78: 0 | CV78: 0 | CW78: 0 | CX78: 0 | CY78: =SUMIF(INDIRECT($F$69),CY69,ut_Subsidies) -> 0 | CZ78: 0 | DA78: 0 | DB78: 0 | DC78: 0 | DD78: 0 | DE78: 0 | DF78: 0 | DG78: 0 | DH78: 0 | DI78: 0 | DJ78: 0 | DK78: 0 | DL78: 0 | DM78: 0 | DN78: 0 | DO78: 0 | DP78: 0 | DQ78: 0 | DR78: 0 | DS78: 0 | DT78: 0 | DU78: 0 | DV78: 0
C79: EBITDA после субсидий | D79: =D9 -> тыс. RUB | G79: =G76+G78 -> 0 | H79: =H76+H78 -> 0 | I79: 0 | J79: 0 | K79: 0 | L79: 0 | M79: 0 | N79: 0 | O79: 0 | P79: 0 | Q79: 0 | R79: 0 | S79: 0 | T79: 0 | U79: 0 | V79: 0 | W79: 0 | X79: 0 | Y79: 0 | Z79: 0 | AA79: 0 | AB79: 0 | AC79: 0 | AD79: 0 | AE79: 0 | AF79: 0 | AG79: 0 | AH79: 0 | AI79: 0 | AJ79: 0 | AK79: 0 | AL79: 0 | AM79: 0 | AN79: 0 | AO79: 0 | AP79: 0 | AQ79: 0 | AR79: 0 | AS79: 0 | AT79: 0 | AU79: 0 | AV79: 0 | AW79: 0 | AX79: 0 | AY79: 0 | AZ79: 0 | BA79: 0 | BB79: 0 | BC79: 0 | BD79: 0 | BE79: 0 | BF79: 0 | BG79: 0 | BH79: 0 | BI79: 0 | BJ79: 0 | BK79: 0 | BL79: 0 | BM79: 0 | BN79: 0 | BO79: 0 | BP79: 0 | BQ79: 0 | BR79: 0 | BS79: 0 | BT79: =BT76+BT78 -> 0 | BU79: 0 | BV79: 0 | BW79: 0 | BX79: 0 | BY79: 0 | BZ79: 0 | CA79: 0 | CB79: 0 | CC79: 0 | CD79: 0 | CE79: 0 | CF79: 0 | CG79: 0 | CH79: 0 | CI79: 0 | CJ79: 0 | CK79: 0 | CL79: 0 | CM79: 0 | CN79: 0 | CO79: 0 | CP79: 0 | CQ79: 0 | CR79: 0 | CS79: 0 | CT79: 0 | CU79: 0 | CV79: 0 | CW79: 0 | CX79: 0 | CY79: 0 | CZ79: 0 | DA79: 0 | DB79: 0 | DC79: 0 | DD79: 0 | DE79: 0 | DF79: 0 | DG79: 0 | DH79: 0 | DI79: 0 | DJ79: 0 | DK79: 0 | DL79: 0 | DM79: 0 | DN79: 0 | DO79: 0 | DP79: 0 | DQ79: 0 | DR79: 0 | DS79: 0 | DT79: 0 | DU79: 0 | DV79: 0
C80: EBITDA рентабельность после субсидий | D80: % | G80: =IFERROR(G79/G70,0) -> 0 | H80: 0 | I80: 0 | J80: 0 | K80: 0 | L80: 0 | M80: 0 | N80: 0 | O80: 0 | P80: 0 | Q80: 0 | R80: 0 | S80: 0 | T80: 0 | U80: 0 | V80: 0 | W80: 0 | X80: 0 | Y80: 0 | Z80: 0 | AA80: 0 | AB80: 0 | AC80: 0 | AD80: 0 | AE80: 0 | AF80: 0 | AG80: 0 | AH80: 0 | AI80: 0 | AJ80: 0 | AK80: 0 | AL80: 0 | AM80: =IFERROR(AM79/AM70,0) -> 0 | AN80: 0 | AO80: 0 | AP80: 0 | AQ80: 0 | AR80: 0 | AS80: 0 | AT80: 0 | AU80: 0 | AV80: 0 | AW80: 0 | AX80: 0 | AY80: 0 | AZ80: 0 | BA80: 0 | BB80: 0 | BC80: 0 | BD80: 0 | BE80: 0 | BF80: 0 | BG80: 0 | BH80: 0 | BI80: 0 | BJ80: 0 | BK80: 0 | BL80: 0 | BM80: 0 | BN80: 0 | BO80: 0 | BP80: 0 | BQ80: 0 | BR80: 0 | BS80: =IFERROR(BS79/BS70,0) -> 0 | BT80: =IFERROR(BT79/BT70,0) -> 0 | BU80: 0 | BV80: 0 | BW80: 0 | BX80: 0 | BY80: 0 | BZ80: 0 | CA80: 0 | CB80: 0 | CC80: 0 | CD80: 0 | CE80: 0 | CF80: 0 | CG80: 0 | CH80: 0 | CI80: 0 | CJ80: 0 | CK80: 0 | CL80: 0 | CM80: 0 | CN80: 0 | CO80: 0 | CP80: 0 | CQ80: 0 | CR80: 0 | CS80: 0 | CT80: 0 | CU80: 0 | CV80: 0 | CW80: 0 | CX80: 0 | CY80: 0 | CZ80: 0 | DA80: 0 | DB80: 0 | DC80: 0 | DD80: 0 | DE80: 0 | DF80: 0 | DG80: 0 | DH80: 0 | DI80: 0 | DJ80: 0 | DK80: 0 | DL80: 0 | DM80: 0 | DN80: 0 | DO80: 0 | DP80: 0 | DQ80: =IFERROR(DQ79/DQ70,0) -> 0 | DR80: 0 | DS80: 0 | DT80: 0 | DU80: 0 | DV80: 0
C81: Амортизация | D81: =ut_Digits&""&ut_LCU -> тыс. RUB | E81: DB_Depreciation | G81: =SUMIF(INDIRECT($F$69),G69,DB_Depreciation) -> 0 | H81: 0 | I81: 0 | J81: 0 | K81: 0 | L81: 0 | M81: 0 | N81: 0 | O81: 0 | P81: 0 | Q81: 0 | R81: 0 | S81: 0 | T81: 0 | U81: 0 | V81: 0 | W81: 0 | X81: 0 | Y81: 0 | Z81: 0 | AA81: 0 | AB81: 0 | AC81: 0 | AD81: 0 | AE81: 0 | AF81: 0 | AG81: 0 | AH81: 0 | AI81: 0 | AJ81: 0 | AK81: 0 | AL81: 0 | AM81: =SUMIF(INDIRECT($F$69),AM69,DB_Depreciation) -> 0 | AN81: 0 | AO81: 0 | AP81: 0 | AQ81: 0 | AR81: 0 | AS81: 0 | AT81: 0 | AU81: 0 | AV81: 0 | AW81: 0 | AX81: 0 | AY81: 0 | AZ81: 0 | BA81: 0 | BB81: 0 | BC81: 0 | BD81: 0 | BE81: 0 | BF81: 0 | BG81: 0 | BH81: 0 | BI81: 0 | BJ81: 0 | BK81: 0 | BL81: 0 | BM81: 0 | BN81: 0 | BO81: 0 | BP81: 0 | BQ81: 0 | BR81: 0 | BS81: =SUMIF(INDIRECT($F$69),BS69,DB_Depreciation) -> 0 | BT81: =SUMIF(INDIRECT($F$69),BT69,DB_Depreciation) -> 0 | BU81: 0 | BV81: 0 | BW81: 0 | BX81: 0 | BY81: 0 | BZ81: 0 | CA81: 0 | CB81: 0 | CC81: 0 | CD81: 0 | CE81: 0 | CF81: 0 | CG81: 0 | CH81: 0 | CI81: 0 | CJ81: 0 | CK81: 0 | CL81: 0 | CM81: 0 | CN81: 0 | CO81: 0 | CP81: 0 | CQ81: 0 | CR81: 0 | CS81: 0 | CT81: 0 | CU81: 0 | CV81: 0 | CW81: 0 | CX81: 0 | CY81: 0 | CZ81: 0 | DA81: 0 | DB81: 0 | DC81: 0 | DD81: 0 | DE81: 0 | DF81: 0 | DG81: 0 | DH81: 0 | DI81: 0 | DJ81: 0 | DK81: 0 | DL81: 0 | DM81: 0 | DN81: 0 | DO81: 0 | DP81: 0 | DQ81: =SUMIF(INDIRECT($F$69),DQ69,DB_Depreciation) -> 0 | DR81: 0 | DS81: 0 | DT81: 0 | DU81: 0 | DV81: 0
C82: EBIT операционная прибыль | D82: =ut_Digits&""&ut_LCU -> тыс. RUB | G82: =SUMIF(INDIRECT($F$69),G69,DB_EBIT) -> 0 | H82: 0 | I82: 0 | J82: 0 | K82: 0 | L82: 0 | M82: 0 | N82: 0 | O82: 0 | P82: 0 | Q82: 0 | R82: 0 | S82: 0 | T82: 0 | U82: 0 | V82: 0 | W82: 0 | X82: 0 | Y82: 0 | Z82: 0 | AA82: 0 | AB82: 0 | AC82: 0 | AD82: 0 | AE82: 0 | AF82: 0 | AG82: 0 | AH82: 0 | AI82: 0 | AJ82: 0 | AK82: 0 | AL82: 0 | AM82: =SUMIF(INDIRECT($F$69),AM69,DB_EBIT) -> 0 | AN82: 0 | AO82: 0 | AP82: 0 | AQ82: 0 | AR82: 0 | AS82: 0 | AT82: 0 | AU82: 0 | AV82: 0 | AW82: 0 | AX82: 0 | AY82: 0 | AZ82: 0 | BA82: 0 | BB82: 0 | BC82: 0 | BD82: 0 | BE82: 0 | BF82: 0 | BG82: 0 | BH82: 0 | BI82: 0 | BJ82: 0 | BK82: 0 | BL82: 0 | BM82: 0 | BN82: 0 | BO82: 0 | BP82: 0 | BQ82: 0 | BR82: 0 | BS82: =SUMIF(INDIRECT($F$69),BS69,DB_EBIT) -> 0 | BT82: =SUMIF(INDIRECT($F$69),BT69,DB_EBIT) -> 0 | BU82: 0 | BV82: 0 | BW82: 0 | BX82: 0 | BY82: 0 | BZ82: 0 | CA82: 0 | CB82: 0 | CC82: 0 | CD82: 0 | CE82: 0 | CF82: 0 | CG82: 0 | CH82: 0 | CI82: 0 | CJ82: 0 | CK82: 0 | CL82: 0 | CM82: 0 | CN82: 0 | CO82: 0 | CP82: 0 | CQ82: 0 | CR82: 0 | CS82: 0 | CT82: 0 | CU82: 0 | CV82: 0 | CW82: 0 | CX82: 0 | CY82: 0 | CZ82: 0 | DA82: 0 | DB82: 0 | DC82: 0 | DD82: 0 | DE82: 0 | DF82: 0 | DG82: 0 | DH82: 0 | DI82: 0 | DJ82: 0 | DK82: 0 | DL82: 0 | DM82: 0 | DN82: 0 | DO82: 0 | DP82: 0 | DQ82: =SUMIF(INDIRECT($F$69),DQ69,DB_EBIT) -> 0 | DR82: 0 | DS82: 0 | DT82: 0 | DU82: 0 | DV82: 0
C83: Операционная рентабельность | D83: % | G83: =IFERROR(G82/G70,0) -> 0 | H83: 0 | I83: 0 | J83: 0 | K83: 0 | L83: 0 | M83: 0 | N83: 0 | O83: 0 | P83: 0 | Q83: 0 | R83: 0 | S83: 0 | T83: 0 | U83: 0 | V83: 0 | W83: 0 | X83: 0 | Y83: 0 | Z83: 0 | AA83: 0 | AB83: 0 | AC83: 0 | AD83: 0 | AE83: 0 | AF83: 0 | AG83: 0 | AH83: 0 | AI83: 0 | AJ83: 0 | AK83: 0 | AL83: 0 | AM83: =IFERROR(AM82/AM70,0) -> 0 | AN83: 0 | AO83: 0 | AP83: 0 | AQ83: 0 | AR83: 0 | AS83: 0 | AT83: 0 | AU83: 0 | AV83: 0 | AW83: 0 | AX83: 0 | AY83: 0 | AZ83: 0 | BA83: 0 | BB83: 0 | BC83: 0 | BD83: 0 | BE83: 0 | BF83: 0 | BG83: 0 | BH83: 0 | BI83: 0 | BJ83: 0 | BK83: 0 | BL83: 0 | BM83: 0 | BN83: 0 | BO83: 0 | BP83: 0 | BQ83: 0 | BR83: 0 | BS83: =IFERROR(BS82/BS70,0) -> 0 | BT83: =IFERROR(BT82/BT70,0) -> 0 | BU83: 0 | BV83: 0 | BW83: 0 | BX83: 0 | BY83: 0 | BZ83: 0 | CA83: 0 | CB83: 0 | CC83: 0 | CD83: 0 | CE83: 0 | CF83: 0 | CG83: 0 | CH83: 0 | CI83: 0 | CJ83: 0 | CK83: 0 | CL83: 0 | CM83: 0 | CN83: 0 | CO83: 0 | CP83: 0 | CQ83: 0 | CR83: 0 | CS83: 0 | CT83: 0 | CU83: 0 | CV83: 0 | CW83: 0 | CX83: 0 | CY83: 0 | CZ83: 0 | DA83: 0 | DB83: 0 | DC83: 0 | DD83: 0 | DE83: 0 | DF83: 0 | DG83: 0 | DH83: 0 | DI83: 0 | DJ83: 0 | DK83: 0 | DL83: 0 | DM83: 0 | DN83: 0 | DO83: 0 | DP83: 0 | DQ83: =IFERROR(DQ82/DQ70,0) -> 0 | DR83: 0 | DS83: 0 | DT83: 0 | DU83: 0 | DV83: 0
C84: Финансовые затраты (по начислению) | D84: =ut_Digits&""&ut_LCU -> тыс. RUB | E84: DB_Fin_Payments | F84: DB_Interest_payments | G84: =SUMIF(INDIRECT($F$69),G69,DB_Fin_Payments)+G105 -> 0 | H84: =SUMIF(INDIRECT($F$69),H69,DB_Fin_Payments)+H105 -> 0 | I84: 0 | J84: 0 | K84: 0 | L84: 0 | M84: 0 | N84: 0 | O84: 0 | P84: 0 | Q84: 0 | R84: 0 | S84: 0 | T84: 0 | U84: 0 | V84: 0 | W84: 0 | X84: 0 | Y84: 0 | Z84: 0 | AA84: 0 | AB84: 0 | AC84: 0 | AD84: 0 | AE84: 0 | AF84: 0 | AG84: 0 | AH84: 0 | AI84: 0 | AJ84: 0 | AK84: 0 | AL84: 0 | AM84: =SUMIF(INDIRECT($F$69),AM69,DB_Fin_Payments)+AM105 -> 0 | AN84: 0 | AO84: 0 | AP84: 0 | AQ84: 0 | AR84: 0 | AS84: 0 | AT84: 0 | AU84: 0 | AV84: 0 | AW84: 0 | AX84: 0 | AY84: 0 | AZ84: 0 | BA84: 0 | BB84: 0 | BC84: 0 | BD84: 0 | BE84: 0 | BF84: 0 | BG84: 0 | BH84: 0 | BI84: 0 | BJ84: 0 | BK84: 0 | BL84: 0 | BM84: 0 | BN84: 0 | BO84: 0 | BP84: 0 | BQ84: 0 | BR84: 0 | BS84: =SUMIF(INDIRECT($F$69),BS69,DB_Fin_Payments)+BS105 -> 0 | BT84: =SUMIF(INDIRECT($F$69),BT69,DB_Fin_Payments)+BT105 -> 0 | BU84: 0 | BV84: 0 | BW84: 0 | BX84: 0 | BY84: 0 | BZ84: 0 | CA84: 0 | CB84: 0 | CC84: 0 | CD84: 0 | CE84: 0 | CF84: 0 | CG84: 0 | CH84: 0 | CI84: 0 | CJ84: 0 | CK84: 0 | CL84: 0 | CM84: 0 | CN84: 0 | CO84: 0 | CP84: 0 | CQ84: 0 | CR84: 0 | CS84: 0 | CT84: 0 | CU84: 0 | CV84: 0 | CW84: 0 | CX84: 0 | CY84: 0 | CZ84: 0 | DA84: 0 | DB84: 0 | DC84: 0 | DD84: 0 | DE84: 0 | DF84: 0 | DG84: 0 | DH84: 0 | DI84: 0 | DJ84: 0 | DK84: 0 | DL84: 0 | DM84: 0 | DN84: 0 | DO84: 0 | DP84: 0 | DQ84: =SUMIF(INDIRECT($F$69),DQ69,DB_Fin_Payments)+DQ105 -> 0 | DR84: 0 | DS84: 0 | DT84: 0 | DU84: 0 | DV84: 0
C85: Прибыль до налогообложения | D85: =ut_Digits&""&ut_LCU -> тыс. RUB | G85: =G82+G84 -> 0 | H85: =H82+H84 -> 0 | I85: 0 | J85: 0 | K85: 0 | L85: 0 | M85: 0 | N85: 0 | O85: 0 | P85: 0 | Q85: 0 | R85: 0 | S85: 0 | T85: 0 | U85: 0 | V85: 0 | W85: 0 | X85: 0 | Y85: 0 | Z85: 0 | AA85: 0 | AB85: 0 | AC85: 0 | AD85: 0 | AE85: 0 | AF85: 0 | AG85: 0 | AH85: 0 | AI85: 0 | AJ85: 0 | AK85: 0 | AL85: 0 | AM85: 0 | AN85: 0 | AO85: 0 | AP85: 0 | AQ85: 0 | AR85: 0 | AS85: 0 | AT85: 0 | AU85: 0 | AV85: 0 | AW85: 0 | AX85: 0 | AY85: 0 | AZ85: 0 | BA85: 0 | BB85: 0 | BC85: 0 | BD85: 0 | BE85: 0 | BF85: 0 | BG85: 0 | BH85: 0 | BI85: 0 | BJ85: 0 | BK85: 0 | BL85: 0 | BM85: 0 | BN85: 0 | BO85: 0 | BP85: 0 | BQ85: 0 | BR85: 0 | BS85: 0 | BT85: =BT82+BT84 -> 0 | BU85: 0 | BV85: 0 | BW85: 0 | BX85: 0 | BY85: 0 | BZ85: 0 | CA85: 0 | CB85: 0 | CC85: 0 | CD85: 0 | CE85: 0 | CF85: 0 | CG85: 0 | CH85: 0 | CI85: 0 | CJ85: 0 | CK85: 0 | CL85: 0 | CM85: 0 | CN85: 0 | CO85: 0 | CP85: 0 | CQ85: 0 | CR85: 0 | CS85: 0 | CT85: 0 | CU85: 0 | CV85: 0 | CW85: 0 | CX85: 0 | CY85: 0 | CZ85: 0 | DA85: 0 | DB85: 0 | DC85: 0 | DD85: 0 | DE85: 0 | DF85: 0 | DG85: 0 | DH85: 0 | DI85: 0 | DJ85: 0 | DK85: 0 | DL85: 0 | DM85: 0 | DN85: 0 | DO85: 0 | DP85: 0 | DQ85: =DQ82+DQ84 -> 0 | DR85: 0 | DS85: 0 | DT85: 0 | DU85: 0 | DV85: 0
C86: Ставка налога | D86: % | E86: ut_Profit_Tax_Rate_Inputs | G86: =IFERROR(AVERAGEIF(INDIRECT($F$69),G69,ut_Profit_Tax_Rate_Inputs),0) -> 0 | H86: 0 | I86: 0 | J86: 0 | K86: 0 | L86: 0 | M86: 0 | N86: 0 | O86: 0 | P86: 0 | Q86: 0 | R86: 0 | S86: 0 | T86: 0 | U86: 0 | V86: 0 | W86: 0 | X86: 0 | Y86: 0 | Z86: 0 | AA86: 0 | AB86: 0 | AC86: 0 | AD86: 0 | AE86: 0 | AF86: 0 | AG86: 0 | AH86: 0 | AI86: 0 | AJ86: 0 | AK86: 0 | AL86: 0 | AM86: =IFERROR(AVERAGEIF(INDIRECT($F$69),AM69,ut_Profit_Tax_Rate_Inputs),0) -> 0 | AN86: 0 | AO86: 0 | AP86: 0 | AQ86: 0 | AR86: 0 | AS86: 0 | AT86: 0 | AU86: 0 | AV86: 0 | AW86: 0 | AX86: 0 | AY86: 0 | AZ86: 0 | BA86: 0 | BB86: 0 | BC86: 0 | BD86: 0 | BE86: 0 | BF86: 0 | BG86: 0 | BH86: 0 | BI86: 0 | BJ86: 0 | BK86: 0 | BL86: 0 | BM86: 0 | BN86: 0 | BO86: 0 | BP86: 0 | BQ86: 0 | BR86: 0 | BS86: =IFERROR(AVERAGEIF(INDIRECT($F$69),BS69,ut_Profit_Tax_Rate_Inputs),0) -> 0 | BT86: =IFERROR(AVERAGEIF(INDIRECT($F$69),BT69,ut_Profit_Tax_Rate_Inputs),0) -> 0 | BU86: 0 | BV86: 0 | BW86: 0 | BX86: 0 | BY86: 0 | BZ86: 0 | CA86: 0 | CB86: 0 | CC86: 0 | CD86: 0 | CE86: 0 | CF86: 0 | CG86: 0 | CH86: 0 | CI86: 0 | CJ86: 0 | CK86: 0 | CL86: 0 | CM86: 0 | CN86: 0 | CO86: 0 | CP86: 0 | CQ86: 0 | CR86: 0 | CS86: 0 | CT86: 0 | CU86: 0 | CV86: 0 | CW86: 0 | CX86: 0 | CY86: 0 | CZ86: 0 | DA86: 0 | DB86: 0 | DC86: 0 | DD86: 0 | DE86: 0 | DF86: 0 | DG86: 0 | DH86: 0 | DI86: 0 | DJ86: 0 | DK86: 0 | DL86: 0 | DM86: 0 | DN86: 0 | DO86: 0 | DP86: 0 | DQ86: =IFERROR(AVERAGEIF(INDIRECT($F$69),DQ69,ut_Profit_Tax_Rate_Inputs),0) -> 0 | DR86: 0 | DS86: 0 | DT86: 0 | DU86: 0 | DV86: 0
C87: Налог на прибыль | D87: =ut_Digits&""&ut_LCU -> тыс. RUB | E87: ut_Profit_Tax | G87: =SUMIF(INDIRECT($F$69),G69,ut_Profit_Tax) -> 0 | H87: 0 | I87: 0 | J87: 0 | K87: 0 | L87: 0 | M87: 0 | N87: 0 | O87: 0 | P87: 0 | Q87: 0 | R87: 0 | S87: 0 | T87: 0 | U87: 0 | V87: 0 | W87: 0 | X87: 0 | Y87: 0 | Z87: 0 | AA87: 0 | AB87: 0 | AC87: 0 | AD87: 0 | AE87: 0 | AF87: 0 | AG87: 0 | AH87: 0 | AI87: 0 | AJ87: 0 | AK87: 0 | AL87: 0 | AM87: =SUMIF(INDIRECT($F$69),AM69,ut_Profit_Tax) -> 0 | AN87: 0 | AO87: 0 | AP87: 0 | AQ87: 0 | AR87: 0 | AS87: 0 | AT87: 0 | AU87: 0 | AV87: 0 | AW87: 0 | AX87: 0 | AY87: 0 | AZ87: 0 | BA87: 0 | BB87: 0 | BC87: 0 | BD87: 0 | BE87: 0 | BF87: 0 | BG87: 0 | BH87: 0 | BI87: 0 | BJ87: 0 | BK87: 0 | BL87: 0 | BM87: 0 | BN87: 0 | BO87: 0 | BP87: 0 | BQ87: 0 | BR87: 0 | BS87: =SUMIF(INDIRECT($F$69),BS69,ut_Profit_Tax) -> 0 | BT87: =SUMIF(INDIRECT($F$69),BT69,ut_Profit_Tax) -> 0 | BU87: 0 | BV87: 0 | BW87: 0 | BX87: 0 | BY87: 0 | BZ87: 0 | CA87: 0 | CB87: 0 | CC87: 0 | CD87: 0 | CE87: 0 | CF87: 0 | CG87: 0 | CH87: 0 | CI87: 0 | CJ87: 0 | CK87: 0 | CL87: 0 | CM87: 0 | CN87: 0 | CO87: 0 | CP87: 0 | CQ87: 0 | CR87: 0 | CS87: 0 | CT87: 0 | CU87: 0 | CV87: 0 | CW87: 0 | CX87: 0 | CY87: 0 | CZ87: 0 | DA87: 0 | DB87: 0 | DC87: 0 | DD87: 0 | DE87: 0 | DF87: 0 | DG87: 0 | DH87: 0 | DI87: 0 | DJ87: 0 | DK87: 0 | DL87: 0 | DM87: 0 | DN87: 0 | DO87: 0 | DP87: 0 | DQ87: =SUMIF(INDIRECT($F$69),DQ69,ut_Profit_Tax) -> 0 | DR87: 0 | DS87: 0 | DT87: 0 | DU87: 0 | DV87: 0
C88: Чистая прибыль | D88: =ut_Digits&""&ut_LCU -> тыс. RUB | E88: ut_Net_Income | G88: =SUMIF(INDIRECT($F$69),G69,ut_Net_Income) -> 0 | H88: 0 | I88: 0 | J88: 0 | K88: 0 | L88: 0 | M88: 0 | N88: 0 | O88: 0 | P88: 0 | Q88: 0 | R88: 0 | S88: 0 | T88: 0 | U88: 0 | V88: 0 | W88: 0 | X88: 0 | Y88: 0 | Z88: 0 | AA88: 0 | AB88: 0 | AC88: 0 | AD88: 0 | AE88: 0 | AF88: 0 | AG88: 0 | AH88: 0 | AI88: 0 | AJ88: 0 | AK88: 0 | AL88: 0 | AM88: =SUMIF(INDIRECT($F$69),AM69,ut_Net_Income) -> 0 | AN88: 0 | AO88: 0 | AP88: 0 | AQ88: 0 | AR88: 0 | AS88: 0 | AT88: 0 | AU88: 0 | AV88: 0 | AW88: 0 | AX88: 0 | AY88: 0 | AZ88: 0 | BA88: 0 | BB88: 0 | BC88: 0 | BD88: 0 | BE88: 0 | BF88: 0 | BG88: 0 | BH88: 0 | BI88: 0 | BJ88: 0 | BK88: 0 | BL88: 0 | BM88: 0 | BN88: 0 | BO88: 0 | BP88: 0 | BQ88: 0 | BR88: 0 | BS88: =SUMIF(INDIRECT($F$69),BS69,ut_Net_Income) -> 0 | BT88: =SUMIF(INDIRECT($F$69),BT69,ut_Net_Income) -> 0 | BU88: 0 | BV88: 0 | BW88: 0 | BX88: 0 | BY88: 0 | BZ88: 0 | CA88: 0 | CB88: 0 | CC88: 0 | CD88: 0 | CE88: 0 | CF88: 0 | CG88: 0 | CH88: 0 | CI88: 0 | CJ88: 0 | CK88: 0 | CL88: 0 | CM88: 0 | CN88: 0 | CO88: 0 | CP88: 0 | CQ88: 0 | CR88: 0 | CS88: 0 | CT88: 0 | CU88: 0 | CV88: 0 | CW88: 0 | CX88: 0 | CY88: 0 | CZ88: 0 | DA88: 0 | DB88: 0 | DC88: 0 | DD88: 0 | DE88: 0 | DF88: 0 | DG88: 0 | DH88: 0 | DI88: 0 | DJ88: 0 | DK88: 0 | DL88: 0 | DM88: 0 | DN88: 0 | DO88: 0 | DP88: 0 | DQ88: =SUMIF(INDIRECT($F$69),DQ69,ut_Net_Income) -> 0 | DR88: 0 | DS88: 0 | DT88: 0 | DU88: 0 | DV88: 0
B89: к | C89: Рентабельность по чистой прибыли | D89: % | G89: =IFERROR(G88/G70,0) -> 0 | H89: 0 | I89: 0 | J89: 0 | K89: 0 | L89: 0 | M89: 0 | N89: 0 | O89: 0 | P89: 0 | Q89: 0 | R89: 0 | S89: 0 | T89: 0 | U89: 0 | V89: 0 | W89: 0 | X89: 0 | Y89: 0 | Z89: 0 | AA89: 0 | AB89: 0 | AC89: 0 | AD89: 0 | AE89: 0 | AF89: 0 | AG89: 0 | AH89: 0 | AI89: 0 | AJ89: 0 | AK89: 0 | AL89: 0 | AM89: =IFERROR(AM88/AM70,0) -> 0 | AN89: 0 | AO89: 0 | AP89: 0 | AQ89: 0 | AR89: 0 | AS89: 0 | AT89: 0 | AU89: 0 | AV89: 0 | AW89: 0 | AX89: 0 | AY89: 0 | AZ89: 0 | BA89: 0 | BB89: 0 | BC89: 0 | BD89: 0 | BE89: 0 | BF89: 0 | BG89: 0 | BH89: 0 | BI89: 0 | BJ89: 0 | BK89: 0 | BL89: 0 | BM89: 0 | BN89: 0 | BO89: 0 | BP89: 0 | BQ89: 0 | BR89: 0 | BS89: =IFERROR(BS88/BS70,0) -> 0 | BT89: =IFERROR(BT88/BT70,0) -> 0 | BU89: 0 | BV89: 0 | BW89: 0 | BX89: 0 | BY89: 0 | BZ89: 0 | CA89: 0 | CB89: 0 | CC89: 0 | CD89: 0 | CE89: 0 | CF89: 0 | CG89: 0 | CH89: 0 | CI89: 0 | CJ89: 0 | CK89: 0 | CL89: 0 | CM89: 0 | CN89: 0 | CO89: 0 | CP89: 0 | CQ89: 0 | CR89: 0 | CS89: 0 | CT89: 0 | CU89: 0 | CV89: 0 | CW89: 0 | CX89: 0 | CY89: 0 | CZ89: 0 | DA89: 0 | DB89: 0 | DC89: 0 | DD89: 0 | DE89: 0 | DF89: 0 | DG89: 0 | DH89: 0 | DI89: 0 | DJ89: 0 | DK89: 0 | DL89: 0 | DM89: 0 | DN89: 0 | DO89: 0 | DP89: 0 | DQ89: =IFERROR(DQ88/DQ70,0) -> 0 | DR89: 0 | DS89: 0 | DT89: 0 | DU89: 0 | DV89: 0
C91: Операционный денежный поток | D91: =ut_Digits&""&ut_LCU -> тыс. RUB | E91: EBIT+Depr-(Interest+Fin payments)-Tax+DB_VAT_OpCF+Subsidies | G91: =G82+G81+SUMIF(INDIRECT($F$69),G69,DB_VAT_OpCF)-G84+G78-G87 -> 0 | H91: 0 | I91: 0 | J91: 0 | K91: 0 | L91: 0 | M91: 0 | N91: 0 | O91: 0 | P91: 0 | Q91: 0 | R91: 0 | S91: 0 | T91: 0 | U91: 0 | V91: 0 | W91: 0 | X91: 0 | Y91: 0 | Z91: 0 | AA91: 0 | AB91: 0 | AC91: 0 | AD91: 0 | AE91: 0 | AF91: 0 | AG91: 0 | AH91: 0 | AI91: 0 | AJ91: 0 | AK91: 0 | AL91: 0 | AM91: =AM82+AM81+SUMIF(INDIRECT($F$69),AM69,DB_VAT_OpCF)-AM84+AM78-AM87 -> 0 | AN91: 0 | AO91: 0 | AP91: 0 | AQ91: 0 | AR91: 0 | AS91: 0 | AT91: 0 | AU91: 0 | AV91: 0 | AW91: 0 | AX91: 0 | AY91: 0 | AZ91: 0 | BA91: 0 | BB91: 0 | BC91: 0 | BD91: 0 | BE91: 0 | BF91: 0 | BG91: 0 | BH91: 0 | BI91: 0 | BJ91: 0 | BK91: 0 | BL91: 0 | BM91: 0 | BN91: 0 | BO91: 0 | BP91: 0 | BQ91: 0 | BR91: 0 | BS91: =BS82+BS81+SUMIF(INDIRECT($F$69),BS69,DB_VAT_OpCF)-BS84+BS78-BS87 -> 0 | BT91: =BT82+BT81+SUMIF(INDIRECT($F$69),BT69,DB_VAT_OpCF)-BT84+BT78-BT87 -> 0 | BU91: 0 | BV91: 0 | BW91: 0 | BX91: 0 | BY91: 0 | BZ91: 0 | CA91: 0 | CB91: 0 | CC91: 0 | CD91: 0 | CE91: 0 | CF91: 0 | CG91: 0 | CH91: 0 | CI91: 0 | CJ91: 0 | CK91: 0 | CL91: 0 | CM91: 0 | CN91: 0 | CO91: 0 | CP91: 0 | CQ91: 0 | CR91: 0 | CS91: 0 | CT91: 0 | CU91: 0 | CV91: 0 | CW91: 0 | CX91: 0 | CY91: 0 | CZ91: 0 | DA91: 0 | DB91: 0 | DC91: 0 | DD91: 0 | DE91: 0 | DF91: 0 | DG91: 0 | DH91: 0 | DI91: 0 | DJ91: 0 | DK91: 0 | DL91: 0 | DM91: 0 | DN91: 0 | DO91: 0 | DP91: 0 | DQ91: =DQ82+DQ81+SUMIF(INDIRECT($F$69),DQ69,DB_VAT_OpCF)-DQ84+DQ78-DQ87 -> 0 | DR91: 0 | DS91: 0 | DT91: 0 | DU91: 0 | DV91: 0
C94: Капитальные затраты (фин. кредитом ВЭБ, без НДС) | D94: =ut_Digits&""&ut_LCU -> тыс. RUB | E94: DB_CAPEX | F94: DB_VEB_financing | G94: =MIN(SUMIF(INDIRECT($F$69),G69,DB_VEB_financing),G97) -> 0 | H94: 0 | I94: 0 | J94: 0 | K94: 0 | L94: 0 | M94: 0 | N94: 0 | O94: 0 | P94: 0 | Q94: 0 | R94: 0 | S94: 0 | T94: 0 | U94: 0 | V94: 0 | W94: 0 | X94: 0 | Y94: 0 | Z94: 0 | AA94: 0 | AB94: 0 | AC94: 0 | AD94: 0 | AE94: 0 | AF94: 0 | AG94: 0 | AH94: 0 | AI94: 0 | AJ94: 0 | AK94: 0 | AL94: 0 | AM94: =MIN(SUMIF(INDIRECT($F$69),AM69,DB_VEB_financing),AM97) -> 0 | AN94: 0 | AO94: 0 | AP94: 0 | AQ94: 0 | AR94: 0 | AS94: 0 | AT94: 0 | AU94: 0 | AV94: 0 | AW94: 0 | AX94: 0 | AY94: 0 | AZ94: 0 | BA94: 0 | BB94: 0 | BC94: 0 | BD94: 0 | BE94: 0 | BF94: 0 | BG94: 0 | BH94: 0 | BI94: 0 | BJ94: 0 | BK94: 0 | BL94: 0 | BM94: 0 | BN94: 0 | BO94: 0 | BP94: 0 | BQ94: 0 | BR94: 0 | BS94: =MIN(SUMIF(INDIRECT($F$69),BS69,DB_VEB_financing),BS97) -> 0 | BT94: =MIN(SUMIF(INDIRECT($F$69),BT69,DB_VEB_financing),BT97) -> 0 | BU94: 0 | BV94: 0 | BW94: 0 | BX94: 0 | BY94: 0 | BZ94: 0 | CA94: 0 | CB94: 0 | CC94: 0 | CD94: 0 | CE94: 0 | CF94: 0 | CG94: 0 | CH94: 0 | CI94: 0 | CJ94: 0 | CK94: 0 | CL94: 0 | CM94: 0 | CN94: 0 | CO94: 0 | CP94: 0 | CQ94: 0 | CR94: 0 | CS94: 0 | CT94: 0 | CU94: 0 | CV94: 0 | CW94: 0 | CX94: 0 | CY94: 0 | CZ94: 0 | DA94: 0 | DB94: 0 | DC94: 0 | DD94: 0 | DE94: 0 | DF94: 0 | DG94: 0 | DH94: 0 | DI94: 0 | DJ94: 0 | DK94: 0 | DL94: 0 | DM94: 0 | DN94: 0 | DO94: 0 | DP94: 0 | DQ94: =MIN(SUMIF(INDIRECT($F$69),DQ69,DB_VEB_financing),DQ97) -> 0 | DR94: 0 | DS94: 0 | DT94: 0 | DU94: 0 | DV94: 0
C95: Капитальные затраты (фин. кредитами прочих кредиторов) | D95: =ut_Digits&""&ut_LCU -> тыс. RUB | E95: DB_CAPEX | F95: DB_total_financing | G95: =MIN(SUMIF(INDIRECT($F$69),G69,DB_total_attraction),G97-G94) -> 0 | H95: 0 | I95: 0 | J95: 0 | K95: 0 | L95: 0 | M95: 0 | N95: 0 | O95: 0 | P95: 0 | Q95: 0 | R95: 0 | S95: 0 | T95: 0 | U95: 0 | V95: 0 | W95: 0 | X95: 0 | Y95: 0 | Z95: 0 | AA95: 0 | AB95: 0 | AC95: 0 | AD95: 0 | AE95: 0 | AF95: 0 | AG95: 0 | AH95: 0 | AI95: 0 | AJ95: 0 | AK95: 0 | AL95: 0 | AM95: =MIN(SUMIF(INDIRECT($F$69),AM69,DB_total_attraction),AM97-AM94) -> 0 | AN95: 0 | AO95: 0 | AP95: 0 | AQ95: 0 | AR95: 0 | AS95: 0 | AT95: 0 | AU95: 0 | AV95: 0 | AW95: 0 | AX95: 0 | AY95: 0 | AZ95: 0 | BA95: 0 | BB95: 0 | BC95: 0 | BD95: 0 | BE95: 0 | BF95: 0 | BG95: 0 | BH95: 0 | BI95: 0 | BJ95: 0 | BK95: 0 | BL95: 0 | BM95: 0 | BN95: 0 | BO95: 0 | BP95: 0 | BQ95: 0 | BR95: 0 | BS95: =MIN(SUMIF(INDIRECT($F$69),BS69,DB_total_attraction),BS97-BS94) -> 0 | BT95: =MIN(SUMIF(INDIRECT($F$69),BT69,DB_total_attraction),BT97-BT94) -> 0 | BU95: 0 | BV95: 0 | BW95: 0 | BX95: 0 | BY95: 0 | BZ95: 0 | CA95: 0 | CB95: 0 | CC95: 0 | CD95: 0 | CE95: 0 | CF95: 0 | CG95: 0 | CH95: 0 | CI95: 0 | CJ95: 0 | CK95: 0 | CL95: 0 | CM95: 0 | CN95: 0 | CO95: 0 | CP95: 0 | CQ95: 0 | CR95: 0 | CS95: 0 | CT95: 0 | CU95: 0 | CV95: 0 | CW95: 0 | CX95: 0 | CY95: 0 | CZ95: 0 | DA95: 0 | DB95: 0 | DC95: 0 | DD95: 0 | DE95: 0 | DF95: 0 | DG95: 0 | DH95: 0 | DI95: 0 | DJ95: 0 | DK95: 0 | DL95: 0 | DM95: 0 | DN95: 0 | DO95: 0 | DP95: 0 | DQ95: =MIN(SUMIF(INDIRECT($F$69),DQ69,DB_total_attraction),DQ97-DQ94) -> 0 | DR95: 0 | DS95: 0 | DT95: 0 | DU95: 0 | DV95: 0
C96: Капитальные затраты (другие источники) | D96: =ut_Digits&""&ut_LCU -> тыс. RUB | E96: DB_CAPEX | G96: =G97-G94-G95 -> 0 | H96: =H97-H94-H95 -> 0 | I96: 0 | J96: 0 | K96: 0 | L96: 0 | M96: 0 | N96: 0 | O96: 0 | P96: 0 | Q96: 0 | R96: 0 | S96: 0 | T96: 0 | U96: 0 | V96: 0 | W96: 0 | X96: 0 | Y96: 0 | Z96: 0 | AA96: 0 | AB96: 0 | AC96: 0 | AD96: 0 | AE96: 0 | AF96: 0 | AG96: 0 | AH96: 0 | AI96: 0 | AJ96: 0 | AK96: 0 | AL96: 0 | AM96: 0 | AN96: 0 | AO96: 0 | AP96: 0 | AQ96: 0 | AR96: 0 | AS96: 0 | AT96: 0 | AU96: 0 | AV96: 0 | AW96: 0 | AX96: 0 | AY96: 0 | AZ96: 0 | BA96: 0 | BB96: 0 | BC96: 0 | BD96: 0 | BE96: 0 | BF96: 0 | BG96: 0 | BH96: 0 | BI96: 0 | BJ96: 0 | BK96: 0 | BL96: 0 | BM96: 0 | BN96: 0 | BO96: 0 | BP96: 0 | BQ96: 0 | BR96: 0 | BS96: 0 | BT96: =BT97-BT94-BT95 -> 0 | BU96: 0 | BV96: 0 | BW96: 0 | BX96: 0 | BY96: 0 | BZ96: 0 | CA96: 0 | CB96: 0 | CC96: 0 | CD96: 0 | CE96: 0 | CF96: 0 | CG96: 0 | CH96: 0 | CI96: 0 | CJ96: 0 | CK96: 0 | CL96: 0 | CM96: 0 | CN96: 0 | CO96: 0 | CP96: 0 | CQ96: 0 | CR96: 0 | CS96: 0 | CT96: 0 | CU96: 0 | CV96: 0 | CW96: 0 | CX96: 0 | CY96: 0 | CZ96: 0 | DA96: 0 | DB96: 0 | DC96: 0 | DD96: 0 | DE96: 0 | DF96: 0 | DG96: 0 | DH96: 0 | DI96: 0 | DJ96: 0 | DK96: 0 | DL96: 0 | DM96: 0 | DN96: 0 | DO96: 0 | DP96: 0 | DQ96: =DQ97-DQ94-DQ95 -> 0 | DR96: 0 | DS96: 0 | DT96: 0 | DU96: 0 | DV96: 0
C97: Итого инвестиционные капитальные затраты | D97: =ut_Digits&""&ut_LCU -> тыс. RUB | G97: =SUMIF(INDIRECT($F$69),G69,DB_CAPEX) -> 0 | H97: 0 | I97: 0 | J97: 0 | K97: 0 | L97: 0 | M97: 0 | N97: 0 | O97: 0 | P97: 0 | Q97: 0 | R97: 0 | S97: 0 | T97: 0 | U97: 0 | V97: 0 | W97: 0 | X97: 0 | Y97: 0 | Z97: 0 | AA97: 0 | AB97: 0 | AC97: 0 | AD97: 0 | AE97: 0 | AF97: 0 | AG97: 0 | AH97: 0 | AI97: 0 | AJ97: 0 | AK97: 0 | AL97: 0 | AM97: =SUMIF(INDIRECT($F$69),AM69,DB_CAPEX) -> 0 | AN97: 0 | AO97: 0 | AP97: 0 | AQ97: 0 | AR97: 0 | AS97: 0 | AT97: 0 | AU97: 0 | AV97: 0 | AW97: 0 | AX97: 0 | AY97: 0 | AZ97: 0 | BA97: 0 | BB97: 0 | BC97: 0 | BD97: 0 | BE97: 0 | BF97: 0 | BG97: 0 | BH97: 0 | BI97: 0 | BJ97: 0 | BK97: 0 | BL97: 0 | BM97: 0 | BN97: 0 | BO97: 0 | BP97: 0 | BQ97: 0 | BR97: 0 | BS97: =SUMIF(INDIRECT($F$69),BS69,DB_CAPEX) -> 0 | BT97: =SUMIF(INDIRECT($F$69),BT69,DB_CAPEX) -> 0 | BU97: 0 | BV97: 0 | BW97: 0 | BX97: 0 | BY97: 0 | BZ97: 0 | CA97: 0 | CB97: 0 | CC97: 0 | CD97: 0 | CE97: 0 | CF97: 0 | CG97: 0 | CH97: 0 | CI97: 0 | CJ97: 0 | CK97: 0 | CL97: 0 | CM97: 0 | CN97: 0 | CO97: 0 | CP97: 0 | CQ97: 0 | CR97: 0 | CS97: 0 | CT97: 0 | CU97: 0 | CV97: 0 | CW97: 0 | CX97: 0 | CY97: 0 | CZ97: 0 | DA97: 0 | DB97: 0 | DC97: 0 | DD97: 0 | DE97: 0 | DF97: 0 | DG97: 0 | DH97: 0 | DI97: 0 | DJ97: 0 | DK97: 0 | DL97: 0 | DM97: 0 | DN97: 0 | DO97: 0 | DP97: 0 | DQ97: =SUMIF(INDIRECT($F$69),DQ69,DB_CAPEX) -> 0 | DR97: 0 | DS97: 0 | DT97: 0 | DU97: 0 | DV97: 0
C100: Привлечение дополнительного акционерного капитала | D100: =ut_Digits&""&ut_LCU -> тыс. RUB | E100: ut_Equity_Attraction | F100: ut_Subord_Attraction | G100: =SUMIF(INDIRECT($F$69),G69,ut_Equity_Attraction)+SUMIF(INDIRECT($F$69),G69,ut_Subord_Attraction) -> 0 | H100: 0 | I100: 0 | J100: 0 | K100: 0 | L100: 0 | M100: 0 | N100: 0 | O100: 0 | P100: 0 | Q100: 0 | R100: 0 | S100: 0 | T100: 0 | U100: 0 | V100: 0 | W100: 0 | X100: 0 | Y100: 0 | Z100: 0 | AA100: 0 | AB100: 0 | AC100: 0 | AD100: 0 | AE100: 0 | AF100: 0 | AG100: 0 | AH100: 0 | AI100: 0 | AJ100: 0 | AK100: 0 | AL100: 0 | AM100: =SUMIF(INDIRECT($F$69),AM69,ut_Equity_Attraction)+SUMIF(INDIRECT($F$69),AM69,ut_Subord_Attraction) -> 0 | AN100: 0 | AO100: 0 | AP100: 0 | AQ100: 0 | AR100: 0 | AS100: 0 | AT100: 0 | AU100: 0 | AV100: 0 | AW100: 0 | AX100: 0 | AY100: 0 | AZ100: 0 | BA100: 0 | BB100: 0 | BC100: 0 | BD100: 0 | BE100: 0 | BF100: 0 | BG100: 0 | BH100: 0 | BI100: 0 | BJ100: 0 | BK100: 0 | BL100: 0 | BM100: 0 | BN100: 0 | BO100: 0 | BP100: 0 | BQ100: 0 | BR100: 0 | BS100: =SUMIF(INDIRECT($F$69),BS69,ut_Equity_Attraction)+SUMIF(INDIRECT($F$69),BS69,ut_Subord_Attraction) -> 0 | BT100: =SUMIF(INDIRECT($F$69),BT69,ut_Equity_Attraction)+SUMIF(INDIRECT($F$69),BT69,ut_Subord_Attraction) -> 0 | BU100: 0 | BV100: 0 | BW100: 0 | BX100: 0 | BY100: 0 | BZ100: 0 | CA100: 0 | CB100: 0 | CC100: 0 | CD100: 0 | CE100: 0 | CF100: 0 | CG100: 0 | CH100: 0 | CI100: 0 | CJ100: 0 | CK100: 0 | CL100: 0 | CM100: 0 | CN100: 0 | CO100: 0 | CP100: 0 | CQ100: 0 | CR100: 0 | CS100: 0 | CT100: 0 | CU100: 0 | CV100: 0 | CW100: 0 | CX100: 0 | CY100: 0 | CZ100: 0 | DA100: 0 | DB100: 0 | DC100: 0 | DD100: 0 | DE100: 0 | DF100: 0 | DG100: 0 | DH100: 0 | DI100: 0 | DJ100: 0 | DK100: 0 | DL100: 0 | DM100: 0 | DN100: 0 | DO100: 0 | DP100: 0 | DQ100: =SUMIF(INDIRECT($F$69),DQ69,ut_Equity_Attraction)+SUMIF(INDIRECT($F$69),DQ69,ut_Subord_Attraction) -> 0 | DR100: 0 | DS100: 0 | DT100: 0 | DU100: 0 | DV100: 0
C101: Выплата дивидендов | D101: =ut_Digits&""&ut_LCU -> тыс. RUB | E101: ut_Dividends | G101: =SUMIF(INDIRECT($F$69),G69,ut_Dividends) -> 0 | H101: 0 | I101: 0 | J101: 0 | K101: 0 | L101: 0 | M101: 0 | N101: 0 | O101: 0 | P101: 0 | Q101: 0 | R101: 0 | S101: 0 | T101: 0 | U101: 0 | V101: 0 | W101: 0 | X101: 0 | Y101: 0 | Z101: 0 | AA101: 0 | AB101: 0 | AC101: 0 | AD101: 0 | AE101: 0 | AF101: 0 | AG101: 0 | AH101: 0 | AI101: 0 | AJ101: 0 | AK101: 0 | AL101: 0 | AM101: =SUMIF(INDIRECT($F$69),AM69,ut_Dividends) -> 0 | AN101: 0 | AO101: 0 | AP101: 0 | AQ101: 0 | AR101: 0 | AS101: 0 | AT101: 0 | AU101: 0 | AV101: 0 | AW101: 0 | AX101: 0 | AY101: 0 | AZ101: 0 | BA101: 0 | BB101: 0 | BC101: 0 | BD101: 0 | BE101: 0 | BF101: 0 | BG101: 0 | BH101: 0 | BI101: 0 | BJ101: 0 | BK101: 0 | BL101: 0 | BM101: 0 | BN101: 0 | BO101: 0 | BP101: 0 | BQ101: 0 | BR101: 0 | BS101: =SUMIF(INDIRECT($F$69),BS69,ut_Dividends) -> 0 | BT101: =SUMIF(INDIRECT($F$69),BT69,ut_Dividends) -> 0 | BU101: 0 | BV101: 0 | BW101: 0 | BX101: 0 | BY101: 0 | BZ101: 0 | CA101: 0 | CB101: 0 | CC101: 0 | CD101: 0 | CE101: 0 | CF101: 0 | CG101: 0 | CH101: 0 | CI101: 0 | CJ101: 0 | CK101: 0 | CL101: 0 | CM101: 0 | CN101: 0 | CO101: 0 | CP101: 0 | CQ101: 0 | CR101: 0 | CS101: 0 | CT101: 0 | CU101: 0 | CV101: 0 | CW101: 0 | CX101: 0 | CY101: 0 | CZ101: 0 | DA101: 0 | DB101: 0 | DC101: 0 | DD101: 0 | DE101: 0 | DF101: 0 | DG101: 0 | DH101: 0 | DI101: 0 | DJ101: 0 | DK101: 0 | DL101: 0 | DM101: 0 | DN101: 0 | DO101: 0 | DP101: 0 | DQ101: =SUMIF(INDIRECT($F$69),DQ69,ut_Dividends) -> 0 | DR101: 0 | DS101: 0 | DT101: 0 | DU101: 0 | DV101: 0
C103: Привлечение долга (ВЭБ) | D103: =ut_Digits&""&ut_LCU -> тыс. RUB | E103: DB_VEB_financing | G103: =SUMIF(INDIRECT($F$69),G69,DB_VEB_financing) -> 0 | H103: 0 | I103: 0 | J103: 0 | K103: 0 | L103: 0 | M103: 0 | N103: 0 | O103: 0 | P103: 0 | Q103: 0 | R103: 0 | S103: 0 | T103: 0 | U103: 0 | V103: 0 | W103: 0 | X103: 0 | Y103: 0 | Z103: 0 | AA103: 0 | AB103: 0 | AC103: 0 | AD103: 0 | AE103: 0 | AF103: 0 | AG103: 0 | AH103: 0 | AI103: 0 | AJ103: 0 | AK103: 0 | AL103: 0 | AM103: =SUMIF(INDIRECT($F$69),AM69,DB_VEB_financing) -> 0 | AN103: 0 | AO103: 0 | AP103: 0 | AQ103: 0 | AR103: 0 | AS103: 0 | AT103: 0 | AU103: 0 | AV103: 0 | AW103: 0 | AX103: 0 | AY103: 0 | AZ103: 0 | BA103: 0 | BB103: 0 | BC103: 0 | BD103: 0 | BE103: 0 | BF103: 0 | BG103: 0 | BH103: 0 | BI103: 0 | BJ103: 0 | BK103: 0 | BL103: 0 | BM103: 0 | BN103: 0 | BO103: 0 | BP103: 0 | BQ103: 0 | BR103: 0 | BS103: =SUMIF(INDIRECT($F$69),BS69,DB_VEB_financing) -> 0 | BT103: =SUMIF(INDIRECT($F$69),BT69,DB_VEB_financing) -> 0 | BU103: 0 | BV103: 0 | BW103: 0 | BX103: 0 | BY103: 0 | BZ103: 0 | CA103: 0 | CB103: 0 | CC103: 0 | CD103: 0 | CE103: 0 | CF103: 0 | CG103: 0 | CH103: 0 | CI103: 0 | CJ103: 0 | CK103: 0 | CL103: 0 | CM103: 0 | CN103: 0 | CO103: 0 | CP103: 0 | CQ103: 0 | CR103: 0 | CS103: 0 | CT103: 0 | CU103: 0 | CV103: 0 | CW103: 0 | CX103: 0 | CY103: 0 | CZ103: 0 | DA103: 0 | DB103: 0 | DC103: 0 | DD103: 0 | DE103: 0 | DF103: 0 | DG103: 0 | DH103: 0 | DI103: 0 | DJ103: 0 | DK103: 0 | DL103: 0 | DM103: 0 | DN103: 0 | DO103: 0 | DP103: 0 | DQ103: =SUMIF(INDIRECT($F$69),DQ69,DB_VEB_financing) -> 0 | DR103: 0 | DS103: 0 | DT103: 0 | DU103: 0 | DV103: 0
C104: Привлечение долга (сторонние кредиторы) | D104: =ut_Digits&""&ut_LCU -> тыс. RUB | E104: DB_total_financing | G104: =SUMIF(INDIRECT($F$69),G69,DB_total_attraction)-G103 -> 0 | H104: 0 | I104: 0 | J104: 0 | K104: 0 | L104: 0 | M104: 0 | N104: 0 | O104: 0 | P104: 0 | Q104: 0 | R104: 0 | S104: 0 | T104: 0 | U104: 0 | V104: 0 | W104: 0 | X104: 0 | Y104: 0 | Z104: 0 | AA104: 0 | AB104: 0 | AC104: 0 | AD104: 0 | AE104: 0 | AF104: 0 | AG104: 0 | AH104: 0 | AI104: 0 | AJ104: 0 | AK104: 0 | AL104: 0 | AM104: =SUMIF(INDIRECT($F$69),AM69,DB_total_attraction)-AM103 -> 0 | AN104: 0 | AO104: 0 | AP104: 0 | AQ104: 0 | AR104: 0 | AS104: 0 | AT104: 0 | AU104: 0 | AV104: 0 | AW104: 0 | AX104: 0 | AY104: 0 | AZ104: 0 | BA104: 0 | BB104: 0 | BC104: 0 | BD104: 0 | BE104: 0 | BF104: 0 | BG104: 0 | BH104: 0 | BI104: 0 | BJ104: 0 | BK104: 0 | BL104: 0 | BM104: 0 | BN104: 0 | BO104: 0 | BP104: 0 | BQ104: 0 | BR104: 0 | BS104: =SUMIF(INDIRECT($F$69),BS69,DB_total_attraction)-BS103 -> 0 | BT104: =SUMIF(INDIRECT($F$69),BT69,DB_total_attraction)-BT103 -> 0 | BU104: 0 | BV104: 0 | BW104: 0 | BX104: 0 | BY104: 0 | BZ104: 0 | CA104: 0 | CB104: 0 | CC104: 0 | CD104: 0 | CE104: 0 | CF104: 0 | CG104: 0 | CH104: 0 | CI104: 0 | CJ104: 0 | CK104: 0 | CL104: 0 | CM104: 0 | CN104: 0 | CO104: 0 | CP104: 0 | CQ104: 0 | CR104: 0 | CS104: 0 | CT104: 0 | CU104: 0 | CV104: 0 | CW104: 0 | CX104: 0 | CY104: 0 | CZ104: 0 | DA104: 0 | DB104: 0 | DC104: 0 | DD104: 0 | DE104: 0 | DF104: 0 | DG104: 0 | DH104: 0 | DI104: 0 | DJ104: 0 | DK104: 0 | DL104: 0 | DM104: 0 | DN104: 0 | DO104: 0 | DP104: 0 | DQ104: =SUMIF(INDIRECT($F$69),DQ69,DB_total_attraction)-DQ103 -> 0 | DR104: 0 | DS104: 0 | DT104: 0 | DU104: 0 | DV104: 0
C105: Выплата процентов (всего) | D105: =ut_Digits&""&ut_LCU -> тыс. RUB | E105: DB_Interest_payments | G105: =SUMIF(INDIRECT($F$69),G69,DB_Interest_payments) -> 0 | H105: 0 | I105: 0 | J105: 0 | K105: 0 | L105: 0 | M105: 0 | N105: 0 | O105: 0 | P105: 0 | Q105: 0 | R105: 0 | S105: 0 | T105: 0 | U105: 0 | V105: 0 | W105: 0 | X105: 0 | Y105: 0 | Z105: 0 | AA105: 0 | AB105: 0 | AC105: 0 | AD105: 0 | AE105: 0 | AF105: 0 | AG105: 0 | AH105: 0 | AI105: 0 | AJ105: 0 | AK105: 0 | AL105: 0 | AM105: =SUMIF(INDIRECT($F$69),AM69,DB_Interest_payments) -> 0 | AN105: 0 | AO105: 0 | AP105: 0 | AQ105: 0 | AR105: 0 | AS105: 0 | AT105: 0 | AU105: 0 | AV105: 0 | AW105: 0 | AX105: 0 | AY105: 0 | AZ105: 0 | BA105: 0 | BB105: 0 | BC105: 0 | BD105: 0 | BE105: 0 | BF105: 0 | BG105: 0 | BH105: 0 | BI105: 0 | BJ105: 0 | BK105: 0 | BL105: 0 | BM105: 0 | BN105: 0 | BO105: 0 | BP105: 0 | BQ105: 0 | BR105: 0 | BS105: =SUMIF(INDIRECT($F$69),BS69,DB_Interest_payments) -> 0 | BT105: =SUMIF(INDIRECT($F$69),BT69,DB_Interest_payments) -> 0 | BU105: 0 | BV105: 0 | BW105: 0 | BX105: 0 | BY105: 0 | BZ105: 0 | CA105: 0 | CB105: 0 | CC105: 0 | CD105: 0 | CE105: 0 | CF105: 0 | CG105: 0 | CH105: 0 | CI105: 0 | CJ105: 0 | CK105: 0 | CL105: 0 | CM105: 0 | CN105: 0 | CO105: 0 | CP105: 0 | CQ105: 0 | CR105: 0 | CS105: 0 | CT105: 0 | CU105: 0 | CV105: 0 | CW105: 0 | CX105: 0 | CY105: 0 | CZ105: 0 | DA105: 0 | DB105: 0 | DC105: 0 | DD105: 0 | DE105: 0 | DF105: 0 | DG105: 0 | DH105: 0 | DI105: 0 | DJ105: 0 | DK105: 0 | DL105: 0 | DM105: 0 | DN105: 0 | DO105: 0 | DP105: 0 | DQ105: =SUMIF(INDIRECT($F$69),DQ69,DB_Interest_payments) -> 0 | DR105: 0 | DS105: 0 | DT105: 0 | DU105: 0 | DV105: 0
C106: Выплата тела долга (всего) | D106: =ut_Digits&""&ut_LCU -> тыс. RUB | E106: DB_total_payments | G106: =SUMIF(INDIRECT($F$69),G69,DB_total_payments) -> 0 | H106: 0 | I106: 0 | J106: 0 | K106: 0 | L106: 0 | M106: 0 | N106: 0 | O106: 0 | P106: 0 | Q106: 0 | R106: 0 | S106: 0 | T106: 0 | U106: 0 | V106: 0 | W106: 0 | X106: 0 | Y106: 0 | Z106: 0 | AA106: 0 | AB106: 0 | AC106: 0 | AD106: 0 | AE106: 0 | AF106: 0 | AG106: 0 | AH106: 0 | AI106: 0 | AJ106: 0 | AK106: 0 | AL106: 0 | AM106: =SUMIF(INDIRECT($F$69),AM69,DB_total_payments) -> 0 | AN106: 0 | AO106: 0 | AP106: 0 | AQ106: 0 | AR106: 0 | AS106: 0 | AT106: 0 | AU106: 0 | AV106: 0 | AW106: 0 | AX106: 0 | AY106: 0 | AZ106: 0 | BA106: 0 | BB106: 0 | BC106: 0 | BD106: 0 | BE106: 0 | BF106: 0 | BG106: 0 | BH106: 0 | BI106: 0 | BJ106: 0 | BK106: 0 | BL106: 0 | BM106: 0 | BN106: 0 | BO106: 0 | BP106: 0 | BQ106: 0 | BR106: 0 | BS106: =SUMIF(INDIRECT($F$69),BS69,DB_total_payments) -> 0 | BT106: =SUMIF(INDIRECT($F$69),BT69,DB_total_payments) -> 0 | BU106: 0 | BV106: 0 | BW106: 0 | BX106: 0 | BY106: 0 | BZ106: 0 | CA106: 0 | CB106: 0 | CC106: 0 | CD106: 0 | CE106: 0 | CF106: 0 | CG106: 0 | CH106: 0 | CI106: 0 | CJ106: 0 | CK106: 0 | CL106: 0 | CM106: 0 | CN106: 0 | CO106: 0 | CP106: 0 | CQ106: 0 | CR106: 0 | CS106: 0 | CT106: 0 | CU106: 0 | CV106: 0 | CW106: 0 | CX106: 0 | CY106: 0 | CZ106: 0 | DA106: 0 | DB106: 0 | DC106: 0 | DD106: 0 | DE106: 0 | DF106: 0 | DG106: 0 | DH106: 0 | DI106: 0 | DJ106: 0 | DK106: 0 | DL106: 0 | DM106: 0 | DN106: 0 | DO106: 0 | DP106: 0 | DQ106: =SUMIF(INDIRECT($F$69),DQ69,DB_total_payments) -> 0 | DR106: 0 | DS106: 0 | DT106: 0 | DU106: 0 | DV106: 0
C107: Остаток задолженности на конец периода (без учета балансирующего финансирования) | D107: =ut_Digits&""&ut_LCU -> тыс. RUB | E107: DB_Debt_Balance | G107: =SUMIF(INDIRECT($F$69),G69,DB_Debt_Balance) -> 0 | H107: 0 | I107: 0 | J107: 0 | K107: 0 | L107: 0 | M107: 0 | N107: 0 | O107: 0 | P107: 0 | Q107: 0 | R107: 0 | S107: 0 | T107: 0 | U107: 0 | V107: 0 | W107: 0 | X107: 0 | Y107: 0 | Z107: 0 | AA107: 0 | AB107: 0 | AC107: 0 | AD107: 0 | AE107: 0 | AF107: 0 | AG107: 0 | AH107: 0 | AI107: 0 | AJ107: 0 | AK107: 0 | AL107: 0 | AM107: =SUMIF(INDIRECT($F$69),AM69,DB_Debt_Balance) -> 0 | AN107: 0 | AO107: 0 | AP107: 0 | AQ107: 0 | AR107: 0 | AS107: 0 | AT107: 0 | AU107: 0 | AV107: 0 | AW107: 0 | AX107: 0 | AY107: 0 | AZ107: 0 | BA107: 0 | BB107: 0 | BC107: 0 | BD107: 0 | BE107: 0 | BF107: 0 | BG107: 0 | BH107: 0 | BI107: 0 | BJ107: 0 | BK107: 0 | BL107: 0 | BM107: 0 | BN107: 0 | BO107: 0 | BP107: 0 | BQ107: 0 | BR107: 0 | BS107: =SUMIF(INDIRECT($F$69),BS69,DB_Debt_Balance) -> 0 | BT107: =SUMIF(INDIRECT($F$69),BT69,DB_Debt_Balance) -> 0 | BU107: 0 | BV107: 0 | BW107: 0 | BX107: 0 | BY107: 0 | BZ107: 0 | CA107: 0 | CB107: 0 | CC107: 0 | CD107: 0 | CE107: 0 | CF107: 0 | CG107: 0 | CH107: 0 | CI107: 0 | CJ107: 0 | CK107: 0 | CL107: 0 | CM107: 0 | CN107: 0 | CO107: 0 | CP107: 0 | CQ107: 0 | CR107: 0 | CS107: 0 | CT107: 0 | CU107: 0 | CV107: 0 | CW107: 0 | CX107: 0 | CY107: 0 | CZ107: 0 | DA107: 0 | DB107: 0 | DC107: 0 | DD107: 0 | DE107: 0 | DF107: 0 | DG107: 0 | DH107: 0 | DI107: 0 | DJ107: 0 | DK107: 0 | DL107: 0 | DM107: 0 | DN107: 0 | DO107: 0 | DP107: 0 | DQ107: =SUMIF(INDIRECT($F$69),DQ69,DB_Debt_Balance) -> 0 | DR107: 0 | DS107: 0 | DT107: 0 | DU107: 0 | DV107: 0
C109: Привлечение балансирующего финансирования | D109: =ut_Digits&""&ut_LCU -> тыс. RUB | E109: DB_balancing_attr | G109: =SUMIF(INDIRECT($F$69),G69,DB_balancing_attr) -> 0 | H109: 0 | I109: 0 | J109: 0 | K109: 0 | L109: 0 | M109: 0 | N109: 0 | O109: 0 | P109: 0 | Q109: 0 | R109: 0 | S109: 0 | T109: 0 | U109: 0 | V109: 0 | W109: 0 | X109: 0 | Y109: 0 | Z109: 0 | AA109: 0 | AB109: 0 | AC109: 0 | AD109: 0 | AE109: 0 | AF109: 0 | AG109: 0 | AH109: 0 | AI109: 0 | AJ109: 0 | AK109: 0 | AL109: 0 | AM109: =SUMIF(INDIRECT($F$69),AM69,DB_balancing_attr) -> 0 | AN109: 0 | AO109: 0 | AP109: 0 | AQ109: 0 | AR109: 0 | AS109: 0 | AT109: 0 | AU109: 0 | AV109: 0 | AW109: 0 | AX109: 0 | AY109: 0 | AZ109: 0 | BA109: 0 | BB109: 0 | BC109: 0 | BD109: 0 | BE109: 0 | BF109: 0 | BG109: 0 | BH109: 0 | BI109: 0 | BJ109: 0 | BK109: 0 | BL109: 0 | BM109: 0 | BN109: 0 | BO109: 0 | BP109: 0 | BQ109: 0 | BR109: 0 | BS109: =SUMIF(INDIRECT($F$69),BS69,DB_balancing_attr) -> 0 | BT109: 0 | BU109: 0 | BV109: 0 | BW109: 0 | BX109: 0 | BY109: 0 | BZ109: 0 | CA109: 0 | CB109: 0 | CC109: 0 | CD109: 0 | CE109: 0 | CF109: 0 | CG109: 0 | CH109: 0 | CI109: 0 | CJ109: 0 | CK109: 0 | CL109: 0 | CM109: 0 | CN109: 0 | CO109: 0 | CP109: 0 | CQ109: 0 | CR109: 0 | CS109: 0 | CT109: 0 | CU109: 0 | CV109: 0 | CW109: 0 | CX109: 0 | CY109: =SUMIF(INDIRECT($F$69),CY69,DB_balancing_attr) -> 0 | CZ109: 0 | DA109: 0 | DB109: 0 | DC109: 0 | DD109: 0 | DE109: 0 | DF109: 0 | DG109: 0 | DH109: 0 | DI109: 0 | DJ109: 0 | DK109: 0 | DL109: 0 | DM109: 0 | DN109: 0 | DO109: 0 | DP109: 0 | DQ109: 0 | DR109: 0 | DS109: 0 | DT109: 0 | DU109: 0 | DV109: 0
C110: Погашение балансирующего финансирования | D110: =ut_Digits&""&ut_LCU -> тыс. RUB | E110: DB_balancing_repayment | G110: =SUMIF(INDIRECT($F$69),G69,DB_balancing_repayment) -> 0 | H110: 0 | I110: 0 | J110: 0 | K110: 0 | L110: 0 | M110: 0 | N110: 0 | O110: 0 | P110: 0 | Q110: 0 | R110: 0 | S110: 0 | T110: 0 | U110: 0 | V110: 0 | W110: 0 | X110: 0 | Y110: 0 | Z110: 0 | AA110: 0 | AB110: 0 | AC110: 0 | AD110: 0 | AE110: 0 | AF110: 0 | AG110: 0 | AH110: 0 | AI110: 0 | AJ110: 0 | AK110: 0 | AL110: 0 | AM110: =SUMIF(INDIRECT($F$69),AM69,DB_balancing_repayment) -> 0 | AN110: 0 | AO110: 0 | AP110: 0 | AQ110: 0 | AR110: 0 | AS110: 0 | AT110: 0 | AU110: 0 | AV110: 0 | AW110: 0 | AX110: 0 | AY110: 0 | AZ110: 0 | BA110: 0 | BB110: 0 | BC110: 0 | BD110: 0 | BE110: 0 | BF110: 0 | BG110: 0 | BH110: 0 | BI110: 0 | BJ110: 0 | BK110: 0 | BL110: 0 | BM110: 0 | BN110: 0 | BO110: 0 | BP110: 0 | BQ110: 0 | BR110: 0 | BS110: =SUMIF(INDIRECT($F$69),BS69,DB_balancing_repayment) -> 0 | BT110: 0 | BU110: 0 | BV110: 0 | BW110: 0 | BX110: 0 | BY110: 0 | BZ110: 0 | CA110: 0 | CB110: 0 | CC110: 0 | CD110: 0 | CE110: 0 | CF110: 0 | CG110: 0 | CH110: 0 | CI110: 0 | CJ110: 0 | CK110: 0 | CL110: 0 | CM110: 0 | CN110: 0 | CO110: 0 | CP110: 0 | CQ110: 0 | CR110: 0 | CS110: 0 | CT110: 0 | CU110: 0 | CV110: 0 | CW110: 0 | CX110: 0 | CY110: =SUMIF(INDIRECT($F$69),CY69,DB_balancing_repayment) -> 0 | CZ110: 0 | DA110: 0 | DB110: 0 | DC110: 0 | DD110: 0 | DE110: 0 | DF110: 0 | DG110: 0 | DH110: 0 | DI110: 0 | DJ110: 0 | DK110: 0 | DL110: 0 | DM110: 0 | DN110: 0 | DO110: 0 | DP110: 0 | DQ110: 0 | DR110: 0 | DS110: 0 | DT110: 0 | DU110: 0 | DV110: 0
C111: Итого финансовый денежный поток (с учетом балансирующего финансирования) | D111: =ut_Digits&""&ut_LCU -> тыс. RUB | G111: =G100-G101+G103+G104-G106+G109-G110 -> 0 | H111: =H100-H101+H103+H104-H106+H109-H110 -> 0 | I111: =I100-I101+I103+I104-I106+I109-I110 -> 0 | J111: 0 | K111: 0 | L111: 0 | M111: =M100-M101+M103+M104-M106+M109-M110 -> 0 | N111: 0 | O111: 0 | P111: 0 | Q111: 0 | R111: 0 | S111: 0 | T111: 0 | U111: 0 | V111: 0 | W111: 0 | X111: 0 | Y111: 0 | Z111: 0 | AA111: 0 | AB111: 0 | AC111: 0 | AD111: 0 | AE111: 0 | AF111: 0 | AG111: 0 | AH111: 0 | AI111: 0 | AJ111: 0 | AK111: 0 | AL111: 0 | AM111: 0 | AN111: 0 | AO111: 0 | AP111: 0 | AQ111: 0 | AR111: 0 | AS111: 0 | AT111: 0 | AU111: 0 | AV111: 0 | AW111: 0 | AX111: 0 | AY111: 0 | AZ111: 0 | BA111: 0 | BB111: 0 | BC111: 0 | BD111: 0 | BE111: 0 | BF111: 0 | BG111: 0 | BH111: 0 | BI111: 0 | BJ111: 0 | BK111: 0 | BL111: 0 | BM111: 0 | BN111: 0 | BO111: 0 | BP111: 0 | BQ111: 0 | BR111: 0 | BS111: 0 | BT111: =BT100-BT101+BT103+BT104-BT106+BT109-BT110 -> 0 | BU111: 0 | BV111: 0 | BW111: 0 | BX111: 0 | BY111: 0 | BZ111: 0 | CA111: 0 | CB111: 0 | CC111: 0 | CD111: 0 | CE111: 0 | CF111: 0 | CG111: 0 | CH111: 0 | CI111: 0 | CJ111: 0 | CK111: 0 | CL111: 0 | CM111: 0 | CN111: 0 | CO111: 0 | CP111: 0 | CQ111: 0 | CR111: 0 | CS111: 0 | CT111: 0 | CU111: 0 | CV111: 0 | CW111: 0 | CX111: 0 | CY111: 0 | CZ111: 0 | DA111: 0 | DB111: 0 | DC111: 0 | DD111: 0 | DE111: 0 | DF111: 0 | DG111: 0 | DH111: 0 | DI111: 0 | DJ111: 0 | DK111: 0 | DL111: 0 | DM111: 0 | DN111: 0 | DO111: 0 | DP111: 0 | DQ111: =DQ100-DQ101+DQ103+DQ104-DQ106+DQ109-DQ110 -> 0 | DR111: 0 | DS111: 0 | DT111: 0 | DU111: 0 | DV111: 0
F112: BF_balance | G112: =SUM($G109:G109)-SUM($G110:H110) -> 0 | H112: =SUM($G109:H109)-SUM($G110:I110) -> 0 | I112: =SUM($G109:I109)-SUM($G110:J110) -> 0 | J112: =SUM($G109:J109)-SUM($G110:K110) -> 0 | K112: =SUM($G109:K109)-SUM($G110:L110) -> 0 | L112: =SUM($G109:L109)-SUM($G110:M110) -> 0 | M112: =SUM($G109:M109)-SUM($G110:N110) -> 0 | N112: =SUM($G109:N109)-SUM($G110:O110) -> 0 | O112: =SUM($G109:O109)-SUM($G110:P110) -> 0 | P112: =SUM($G109:P109)-SUM($G110:Q110) -> 0 | Q112: =SUM($G109:Q109)-SUM($G110:R110) -> 0 | R112: =SUM($G109:R109)-SUM($G110:S110) -> 0 | S112: =SUM($G109:S109)-SUM($G110:T110) -> 0 | T112: =SUM($G109:T109)-SUM($G110:U110) -> 0 | U112: =SUM($G109:U109)-SUM($G110:V110) -> 0 | V112: =SUM($G109:V109)-SUM($G110:W110) -> 0 | W112: =SUM($G109:W109)-SUM($G110:X110) -> 0 | X112: =SUM($G109:X109)-SUM($G110:Y110) -> 0 | Y112: =SUM($G109:Y109)-SUM($G110:Z110) -> 0 | Z112: =SUM($G109:Z109)-SUM($G110:AA110) -> 0 | AA112: =SUM($G109:AA109)-SUM($G110:AB110) -> 0 | AB112: =SUM($G109:AB109)-SUM($G110:AC110) -> 0 | AC112: =SUM($G109:AC109)-SUM($G110:AD110) -> 0 | AD112: =SUM($G109:AD109)-SUM($G110:AE110) -> 0 | AE112: =SUM($G109:AE109)-SUM($G110:AF110) -> 0 | AF112: =SUM($G109:AF109)-SUM($G110:AG110) -> 0 | AG112: =SUM($G109:AG109)-SUM($G110:AH110) -> 0 | AH112: =SUM($G109:AH109)-SUM($G110:AI110) -> 0 | AI112: =SUM($G109:AI109)-SUM($G110:AJ110) -> 0 | AJ112: =SUM($G109:AJ109)-SUM($G110:AK110) -> 0 | AK112: =SUM($G109:AK109)-SUM($G110:AL110) -> 0 | AL112: =SUM($G109:AL109)-SUM($G110:AM110) -> 0 | AM112: =SUM($G109:AM109)-SUM($G110:AN110) -> 0 | AN112: =SUM($G109:AN109)-SUM($G110:AO110) -> 0 | AO112: =SUM($G109:AO109)-SUM($G110:AP110) -> 0 | AP112: =SUM($G109:AP109)-SUM($G110:AQ110) -> 0 | AQ112: =SUM($G109:AQ109)-SUM($G110:AR110) -> 0 | AR112: =SUM($G109:AR109)-SUM($G110:AS110) -> 0 | AS112: =SUM($G109:AS109)-SUM($G110:AT110) -> 0 | AT112: =SUM($G109:AT109)-SUM($G110:AU110) -> 0 | AU112: =SUM($G109:AU109)-SUM($G110:AV110) -> 0 | AV112: =SUM($G109:AV109)-SUM($G110:AW110) -> 0 | AW112: =SUM($G109:AW109)-SUM($G110:AX110) -> 0 | AX112: =SUM($G109:AX109)-SUM($G110:AY110) -> 0 | AY112: =SUM($G109:AY109)-SUM($G110:AZ110) -> 0 | AZ112: =SUM($G109:AZ109)-SUM($G110:BA110) -> 0 | BA112: =SUM($G109:BA109)-SUM($G110:BB110) -> 0 | BB112: =SUM($G109:BB109)-SUM($G110:BC110) -> 0 | BC112: =SUM($G109:BC109)-SUM($G110:BD110) -> 0 | BD112: =SUM($G109:BD109)-SUM($G110:BE110) -> 0 | BE112: =SUM($G109:BE109)-SUM($G110:BF110) -> 0 | BF112: =SUM($G109:BF109)-SUM($G110:BG110) -> 0 | BG112: =SUM($G109:BG109)-SUM($G110:BH110) -> 0 | BH112: =SUM($G109:BH109)-SUM($G110:BI110) -> 0 | BI112: =SUM($G109:BI109)-SUM($G110:BJ110) -> 0 | BJ112: =SUM($G109:BJ109)-SUM($G110:BK110) -> 0 | BK112: =SUM($G109:BK109)-SUM($G110:BL110) -> 0 | BL112: =SUM($G109:BL109)-SUM($G110:BM110) -> 0 | BM112: =SUM($G109:BM109)-SUM($G110:BN110) -> 0 | BN112: =SUM($G109:BN109)-SUM($G110:BO110) -> 0 | BO112: =SUM($G109:BO109)-SUM($G110:BP110) -> 0 | BP112: =SUM($G109:BP109)-SUM($G110:BQ110) -> 0 | BQ112: =SUM($G109:BQ109)-SUM($G110:BR110) -> 0 | BR112: =SUM($G109:BR109)-SUM($G110:BS110) -> 0 | BS112: =SUM($G109:BS109)-SUM($G110:DO110) -> 0 | BT112: =SUM($G109:BT109)-SUM($G110:DP110) -> 0 | BU112: =SUM($G109:BU109)-SUM($G110:DT110) -> 0 | BV112: =SUM($G109:BV109)-SUM($G110:DU110) -> 0 | BW112: =SUM($G109:BW109)-SUM($G110:DV110) -> 0 | BX112: =SUM($G109:BX109)-SUM($G110:DW110) -> 0 | BY112: =SUM($G109:BY109)-SUM($G110:DX110) -> 0 | BZ112: =SUM($G109:BZ109)-SUM($G110:DY110) -> 0 | CA112: =SUM($G109:CA109)-SUM($G110:DZ110) -> 0 | CB112: =SUM($G109:CB109)-SUM($G110:EA110) -> 0 | CC112: =SUM($G109:CC109)-SUM($G110:EB110) -> 0 | CD112: =SUM($G109:CD109)-SUM($G110:EC110) -> 0 | CE112: =SUM($G109:CE109)-SUM($G110:ED110) -> 0 | CF112: =SUM($G109:CF109)-SUM($G110:EE110) -> 0 | CG112: =SUM($G109:CG109)-SUM($G110:EF110) -> 0 | CH112: =SUM($G109:CH109)-SUM($G110:EG110) -> 0 | CI112: =SUM($G109:CI109)-SUM($G110:EH110) -> 0 | CJ112: =SUM($G109:CJ109)-SUM($G110:EI110) -> 0 | CK112: =SUM($G109:CK109)-SUM($G110:EJ110) -> 0 | CL112: =SUM($G109:CL109)-SUM($G110:EK110) -> 0 | CM112: =SUM($G109:CM109)-SUM($G110:EL110) -> 0 | CN112: =SUM($G109:CN109)-SUM($G110:EM110) -> 0 | CO112: =SUM($G109:CO109)-SUM($G110:EN110) -> 0 | CP112: =SUM($G109:CP109)-SUM($G110:EO110) -> 0 | CQ112: =SUM($G109:CQ109)-SUM($G110:EP110) -> 0 | CR112: =SUM($G109:CR109)-SUM($G110:EQ110) -> 0 | CS112: =SUM($G109:CS109)-SUM($G110:ER110) -> 0 | CT112: =SUM($G109:CT109)-SUM($G110:ES110) -> 0 | CU112: =SUM($G109:CU109)-SUM($G110:ET110) -> 0 | CV112: =SUM($G109:CV109)-SUM($G110:EU110) -> 0 | CW112: =SUM($G109:CW109)-SUM($G110:EV110) -> 0 | CX112: =SUM($G109:CX109)-SUM($G110:EW110) -> 0 | CY112: =SUM($G109:CY109)-SUM($G110:EX110) -> 0 | CZ112: =SUM($G109:CZ109)-SUM($G110:EY110) -> 0 | DA112: =SUM($G109:DA109)-SUM($G110:EZ110) -> 0 | DB112: =SUM($G109:DB109)-SUM($G110:FA110) -> 0 | DC112: =SUM($G109:DC109)-SUM($G110:FB110) -> 0 | DD112: =SUM($G109:DD109)-SUM($G110:FC110) -> 0 | DE112: =SUM($G109:DE109)-SUM($G110:FD110) -> 0 | DF112: =SUM($G109:DF109)-SUM($G110:FE110) -> 0 | DG112: =SUM($G109:DG109)-SUM($G110:FF110) -> 0 | DH112: =SUM($G109:DH109)-SUM($G110:FG110) -> 0 | DI112: =SUM($G109:DI109)-SUM($G110:FH110) -> 0 | DJ112: =SUM($G109:DJ109)-SUM($G110:FI110) -> 0 | DK112: =SUM($G109:DK109)-SUM($G110:FJ110) -> 0 | DL112: =SUM($G109:DL109)-SUM($G110:FK110) -> 0 | DM112: =SUM($G109:DM109)-SUM($G110:FL110) -> 0 | DN112: =SUM($G109:DN109)-SUM($G110:FM110) -> 0 | DO112: =SUM($G109:DO109)-SUM($G110:FN110) -> 0 | DP112: =SUM($G109:DP109)-SUM($G110:FO110) -> 0 | DQ112: =SUM($G109:DQ109)-SUM($G110:FP110) -> 0 | DR112: =SUM($G109:DR109)-SUM($G110:FQ110) -> 0 | DS112: =SUM($G109:DS109)-SUM($G110:FR110) -> 0 | DT112: =SUM($G109:DT109)-SUM($G110:FS110) -> 0 | DU112: =SUM($G109:DU109)-SUM($G110:FT110) -> 0 | DV112: =SUM($G109:DV109)-SUM($G110:FU110) -> 0
C114: Чистый денежный поток | D114: =ut_Digits&""&ut_LCU -> тыс. RUB | G114: =G91-G97+G111 -> 0 | H114: =H91-H97+H111 -> 0 | I114: 0 | J114: 0 | K114: 0 | L114: =L91-L97+L111 -> 0 | M114: 0 | N114: =N91-N97+N111 -> 0 | O114: 0 | P114: 0 | Q114: 0 | R114: 0 | S114: 0 | T114: 0 | U114: 0 | V114: 0 | W114: 0 | X114: 0 | Y114: 0 | Z114: 0 | AA114: 0 | AB114: 0 | AC114: 0 | AD114: 0 | AE114: 0 | AF114: 0 | AG114: 0 | AH114: 0 | AI114: 0 | AJ114: 0 | AK114: 0 | AL114: 0 | AM114: 0 | AN114: 0 | AO114: 0 | AP114: 0 | AQ114: 0 | AR114: 0 | AS114: 0 | AT114: 0 | AU114: 0 | AV114: 0 | AW114: 0 | AX114: 0 | AY114: 0 | AZ114: 0 | BA114: 0 | BB114: 0 | BC114: 0 | BD114: 0 | BE114: 0 | BF114: 0 | BG114: 0 | BH114: 0 | BI114: 0 | BJ114: 0 | BK114: 0 | BL114: 0 | BM114: 0 | BN114: 0 | BO114: 0 | BP114: 0 | BQ114: 0 | BR114: 0 | BS114: 0 | BT114: =BT91-BT97+BT111 -> 0 | BU114: 0 | BV114: 0 | BW114: 0 | BX114: 0 | BY114: 0 | BZ114: 0 | CA114: 0 | CB114: 0 | CC114: 0 | CD114: 0 | CE114: 0 | CF114: 0 | CG114: 0 | CH114: 0 | CI114: 0 | CJ114: 0 | CK114: 0 | CL114: 0 | CM114: 0 | CN114: 0 | CO114: 0 | CP114: 0 | CQ114: 0 | CR114: 0 | CS114: 0 | CT114: 0 | CU114: 0 | CV114: 0 | CW114: 0 | CX114: 0 | CY114: 0 | CZ114: 0 | DA114: 0 | DB114: 0 | DC114: 0 | DD114: 0 | DE114: 0 | DF114: 0 | DG114: 0 | DH114: 0 | DI114: 0 | DJ114: 0 | DK114: 0 | DL114: 0 | DM114: 0 | DN114: 0 | DO114: 0 | DP114: 0 | DQ114: =DQ91-DQ97+DQ111 -> 0 | DR114: 0 | DS114: 0 | DT114: 0 | DU114: 0 | DV114: 0
C115: Баланс денежных средств на конец периода | D115: =ut_Digits&""&ut_LCU -> тыс. RUB | E115: DB_Cash_eop | G115: =SUMIF(INDIRECT($F$69),G69,DB_Cash_eop) -> 0 | H115: 0 | I115: 0 | J115: 0 | K115: 0 | L115: 0 | M115: 0 | N115: 0 | O115: 0 | P115: 0 | Q115: 0 | R115: 0 | S115: 0 | T115: 0 | U115: 0 | V115: 0 | W115: 0 | X115: 0 | Y115: 0 | Z115: 0 | AA115: 0 | AB115: 0 | AC115: 0 | AD115: 0 | AE115: 0 | AF115: 0 | AG115: 0 | AH115: 0 | AI115: 0 | AJ115: 0 | AK115: 0 | AL115: 0 | AM115: =SUMIF(INDIRECT($F$69),AM69,DB_Cash_eop) -> 0 | AN115: 0 | AO115: 0 | AP115: 0 | AQ115: 0 | AR115: 0 | AS115: 0 | AT115: 0 | AU115: 0 | AV115: 0 | AW115: 0 | AX115: 0 | AY115: 0 | AZ115: 0 | BA115: 0 | BB115: 0 | BC115: 0 | BD115: 0 | BE115: 0 | BF115: 0 | BG115: 0 | BH115: 0 | BI115: 0 | BJ115: 0 | BK115: 0 | BL115: 0 | BM115: 0 | BN115: 0 | BO115: 0 | BP115: 0 | BQ115: 0 | BR115: 0 | BS115: =SUMIF(INDIRECT($F$69),BS69,DB_Cash_eop) -> 0 | BT115: 0 | BU115: 0 | BV115: 0 | BW115: 0 | BX115: 0 | BY115: 0 | BZ115: 0 | CA115: 0 | CB115: 0 | CC115: 0 | CD115: 0 | CE115: 0 | CF115: 0 | CG115: 0 | CH115: 0 | CI115: 0 | CJ115: 0 | CK115: 0 | CL115: 0 | CM115: 0 | CN115: 0 | CO115: 0 | CP115: 0 | CQ115: 0 | CR115: 0 | CS115: 0 | CT115: 0 | CU115: 0 | CV115: 0 | CW115: 0 | CX115: 0 | CY115: =SUMIF(INDIRECT($F$69),CY69,DB_Cash_eop) -> 0 | CZ115: 0 | DA115: 0 | DB115: 0 | DC115: 0 | DD115: 0 | DE115: 0 | DF115: 0 | DG115: 0 | DH115: 0 | DI115: 0 | DJ115: 0 | DK115: 0 | DL115: 0 | DM115: 0 | DN115: 0 | DO115: 0 | DP115: 0 | DQ115: 0 | DR115: 0 | DS115: 0 | DT115: 0 | DU115: 0 | DV115: 0
F116: CF_VEB | G116: =G117+G118-G103 -> 0 | H116: =H117+H118-H103 -> 0 | I116: =I117+I118-I103 -> 0 | J116: 0 | K116: 0 | L116: 0 | M116: 0 | N116: 0 | O116: 0 | P116: 0 | Q116: 0 | R116: 0 | S116: 0 | T116: 0 | U116: 0 | V116: 0 | W116: 0 | X116: 0 | Y116: 0 | Z116: 0 | AA116: 0 | AB116: 0 | AC116: 0 | AD116: 0 | AE116: 0 | AF116: 0 | AG116: 0 | AH116: 0 | AI116: 0 | AJ116: 0 | AK116: 0 | AL116: 0 | AM116: 0 | AN116: 0 | AO116: 0 | AP116: 0 | AQ116: 0 | AR116: 0 | AS116: 0 | AT116: 0 | AU116: 0 | AV116: 0 | AW116: 0 | AX116: 0 | AY116: 0 | AZ116: 0 | BA116: 0 | BB116: 0 | BC116: 0 | BD116: 0 | BE116: 0 | BF116: 0 | BG116: 0 | BH116: 0 | BI116: 0 | BJ116: 0 | BK116: 0 | BL116: 0 | BM116: 0 | BN116: 0 | BO116: 0 | BP116: 0 | BQ116: 0 | BR116: 0 | BS116: 0 | BT116: =BT117+BT118-BT103 -> 0 | BU116: 0 | BV116: 0 | BW116: 0 | BX116: 0 | BY116: 0 | BZ116: 0 | CA116: 0 | CB116: 0 | CC116: 0 | CD116: 0 | CE116: 0 | CF116: 0 | CG116: 0 | CH116: 0 | CI116: 0 | CJ116: 0 | CK116: 0 | CL116: 0 | CM116: 0 | CN116: 0 | CO116: 0 | CP116: 0 | CQ116: 0 | CR116: 0 | CS116: 0 | CT116: 0 | CU116: 0 | CV116: 0 | CW116: 0 | CX116: 0 | CY116: 0 | CZ116: 0 | DA116: 0 | DB116: 0 | DC116: 0 | DD116: 0 | DE116: 0 | DF116: 0 | DG116: 0 | DH116: 0 | DI116: 0 | DJ116: 0 | DK116: 0 | DL116: 0 | DM116: 0 | DN116: 0 | DO116: 0 | DP116: 0 | DQ116: =DQ117+DQ118-DQ103 -> 0 | DR116: 0 | DS116: 0 | DT116: 0 | DU116: 0 | DV116: 0
C117: Выплата процентов (ВЭБ) | D117: =ut_Digits&""&ut_LCU -> тыс. RUB | E117: DB_VEB_Interst_payments | G117: =SUMIF(INDIRECT($F$69),G69,DB_VEB_Interest_payments) -> 0 | H117: 0 | I117: 0 | J117: 0 | K117: 0 | L117: 0 | M117: 0 | N117: 0 | O117: 0 | P117: 0 | Q117: 0 | R117: 0 | S117: 0 | T117: 0 | U117: 0 | V117: 0 | W117: 0 | X117: 0 | Y117: 0 | Z117: 0 | AA117: 0 | AB117: 0 | AC117: 0 | AD117: 0 | AE117: 0 | AF117: 0 | AG117: 0 | AH117: 0 | AI117: 0 | AJ117: 0 | AK117: 0 | AL117: 0 | AM117: =SUMIF(INDIRECT($F$69),AM69,DB_VEB_Interest_payments) -> 0 | AN117: 0 | AO117: 0 | AP117: 0 | AQ117: 0 | AR117: 0 | AS117: 0 | AT117: 0 | AU117: 0 | AV117: 0 | AW117: 0 | AX117: 0 | AY117: 0 | AZ117: 0 | BA117: 0 | BB117: 0 | BC117: 0 | BD117: 0 | BE117: 0 | BF117: 0 | BG117: 0 | BH117: 0 | BI117: 0 | BJ117: 0 | BK117: 0 | BL117: 0 | BM117: 0 | BN117: 0 | BO117: 0 | BP117: 0 | BQ117: 0 | BR117: 0 | BS117: =SUMIF(INDIRECT($F$69),BS69,DB_VEB_Interest_payments) -> 0 | BT117: =SUMIF(INDIRECT($F$69),BT69,DB_VEB_Interest_payments) -> 0 | BU117: 0 | BV117: 0 | BW117: 0 | BX117: 0 | BY117: 0 | BZ117: 0 | CA117: 0 | CB117: 0 | CC117: 0 | CD117: 0 | CE117: 0 | CF117: 0 | CG117: 0 | CH117: 0 | CI117: 0 | CJ117: 0 | CK117: 0 | CL117: 0 | CM117: 0 | CN117: 0 | CO117: 0 | CP117: 0 | CQ117: 0 | CR117: 0 | CS117: 0 | CT117: 0 | CU117: 0 | CV117: 0 | CW117: 0 | CX117: 0 | CY117: 0 | CZ117: 0 | DA117: 0 | DB117: 0 | DC117: 0 | DD117: 0 | DE117: 0 | DF117: 0 | DG117: 0 | DH117: 0 | DI117: 0 | DJ117: 0 | DK117: 0 | DL117: 0 | DM117: 0 | DN117: 0 | DO117: 0 | DP117: 0 | DQ117: =SUMIF(INDIRECT($F$69),DQ69,DB_VEB_Interest_payments) -> 0 | DR117: 0 | DS117: 0 | DT117: 0 | DU117: 0 | DV117: 0
C118: Выплата тела долга (ВЭБ) | D118: =ut_Digits&""&ut_LCU -> тыс. RUB | E118: DB_VEB_payments | G118: =SUMIF(INDIRECT($F$69),G69,DB_VEB_payments) -> 0 | H118: 0 | I118: 0 | J118: 0 | K118: 0 | L118: 0 | M118: 0 | N118: 0 | O118: 0 | P118: 0 | Q118: 0 | R118: 0 | S118: 0 | T118: 0 | U118: 0 | V118: 0 | W118: 0 | X118: 0 | Y118: 0 | Z118: 0 | AA118: 0 | AB118: 0 | AC118: 0 | AD118: 0 | AE118: 0 | AF118: 0 | AG118: 0 | AH118: 0 | AI118: 0 | AJ118: 0 | AK118: 0 | AL118: 0 | AM118: =SUMIF(INDIRECT($F$69),AM69,DB_VEB_payments) -> 0 | AN118: 0 | AO118: 0 | AP118: 0 | AQ118: 0 | AR118: 0 | AS118: 0 | AT118: 0 | AU118: 0 | AV118: 0 | AW118: 0 | AX118: 0 | AY118: 0 | AZ118: 0 | BA118: 0 | BB118: 0 | BC118: 0 | BD118: 0 | BE118: 0 | BF118: 0 | BG118: 0 | BH118: 0 | BI118: 0 | BJ118: 0 | BK118: 0 | BL118: 0 | BM118: 0 | BN118: 0 | BO118: 0 | BP118: 0 | BQ118: 0 | BR118: 0 | BS118: =SUMIF(INDIRECT($F$69),BS69,DB_VEB_payments) -> 0 | BT118: =SUMIF(INDIRECT($F$69),BT69,DB_VEB_payments) -> 0 | BU118: 0 | BV118: 0 | BW118: 0 | BX118: 0 | BY118: 0 | BZ118: 0 | CA118: 0 | CB118: 0 | CC118: 0 | CD118: 0 | CE118: 0 | CF118: 0 | CG118: 0 | CH118: 0 | CI118: 0 | CJ118: 0 | CK118: 0 | CL118: 0 | CM118: 0 | CN118: 0 | CO118: 0 | CP118: 0 | CQ118: 0 | CR118: 0 | CS118: 0 | CT118: 0 | CU118: 0 | CV118: 0 | CW118: 0 | CX118: 0 | CY118: 0 | CZ118: 0 | DA118: 0 | DB118: 0 | DC118: 0 | DD118: 0 | DE118: 0 | DF118: 0 | DG118: 0 | DH118: 0 | DI118: 0 | DJ118: 0 | DK118: 0 | DL118: 0 | DM118: 0 | DN118: 0 | DO118: 0 | DP118: 0 | DQ118: =SUMIF(INDIRECT($F$69),DQ69,DB_VEB_payments) -> 0 | DR118: 0 | DS118: 0 | DT118: 0 | DU118: 0 | DV118: 0
C119: Остаток задолженности на конец периода (ВЭБ) | D119: =ut_Digits&""&ut_LCU -> тыс. RUB | E119: DB_Debt_Balance_VEB | G119: =SUMIF(INDIRECT($F$69),G69,DB_Debt_Balance_VEB) -> 0 | H119: 0 | I119: 0 | J119: 0 | K119: 0 | L119: 0 | M119: 0 | N119: 0 | O119: 0 | P119: 0 | Q119: 0 | R119: 0 | S119: 0 | T119: 0 | U119: 0 | V119: 0 | W119: 0 | X119: 0 | Y119: 0 | Z119: 0 | AA119: 0 | AB119: 0 | AC119: 0 | AD119: 0 | AE119: 0 | AF119: 0 | AG119: 0 | AH119: 0 | AI119: 0 | AJ119: 0 | AK119: 0 | AL119: 0 | AM119: =SUMIF(INDIRECT($F$69),AM69,DB_Debt_Balance_VEB) -> 0 | AN119: 0 | AO119: 0 | AP119: 0 | AQ119: 0 | AR119: 0 | AS119: 0 | AT119: 0 | AU119: 0 | AV119: 0 | AW119: 0 | AX119: 0 | AY119: 0 | AZ119: 0 | BA119: 0 | BB119: 0 | BC119: 0 | BD119: 0 | BE119: 0 | BF119: 0 | BG119: 0 | BH119: 0 | BI119: 0 | BJ119: 0 | BK119: 0 | BL119: 0 | BM119: 0 | BN119: 0 | BO119: 0 | BP119: 0 | BQ119: 0 | BR119: 0 | BS119: =SUMIF(INDIRECT($F$69),BS69,DB_Debt_Balance_VEB) -> 0 | BT119: =SUMIF(INDIRECT($F$69),BT69,DB_Debt_Balance_VEB) -> 0 | BU119: 0 | BV119: 0 | BW119: 0 | BX119: 0 | BY119: 0 | BZ119: 0 | CA119: 0 | CB119: 0 | CC119: 0 | CD119: 0 | CE119: 0 | CF119: 0 | CG119: 0 | CH119: 0 | CI119: 0 | CJ119: 0 | CK119: 0 | CL119: 0 | CM119: 0 | CN119: 0 | CO119: 0 | CP119: 0 | CQ119: 0 | CR119: 0 | CS119: 0 | CT119: 0 | CU119: 0 | CV119: 0 | CW119: 0 | CX119: 0 | CY119: 0 | CZ119: 0 | DA119: 0 | DB119: 0 | DC119: 0 | DD119: 0 | DE119: 0 | DF119: 0 | DG119: 0 | DH119: 0 | DI119: 0 | DJ119: 0 | DK119: 0 | DL119: 0 | DM119: 0 | DN119: 0 | DO119: 0 | DP119: 0 | DQ119: =SUMIF(INDIRECT($F$69),DQ69,DB_Debt_Balance_VEB) -> 0 | DR119: 0 | DS119: 0 | DT119: 0 | DU119: 0 | DV119: 0
C121: Выплата процентов (прочие кредиторы) | D121: =ut_Digits&""&ut_LCU -> тыс. RUB | G121: =G105-G117 -> 0 | H121: 0 | I121: 0 | J121: 0 | K121: 0 | L121: 0 | M121: 0 | N121: 0 | O121: 0 | P121: 0 | Q121: 0 | R121: 0 | S121: 0 | T121: 0 | U121: 0 | V121: 0 | W121: 0 | X121: 0 | Y121: 0 | Z121: 0 | AA121: 0 | AB121: 0 | AC121: 0 | AD121: 0 | AE121: 0 | AF121: 0 | AG121: 0 | AH121: 0 | AI121: 0 | AJ121: 0 | AK121: 0 | AL121: 0 | AM121: =AM105-AM117 -> 0 | AN121: 0 | AO121: 0 | AP121: 0 | AQ121: 0 | AR121: 0 | AS121: 0 | AT121: 0 | AU121: 0 | AV121: 0 | AW121: 0 | AX121: 0 | AY121: 0 | AZ121: 0 | BA121: 0 | BB121: 0 | BC121: 0 | BD121: 0 | BE121: 0 | BF121: 0 | BG121: 0 | BH121: 0 | BI121: 0 | BJ121: 0 | BK121: 0 | BL121: 0 | BM121: 0 | BN121: 0 | BO121: 0 | BP121: 0 | BQ121: 0 | BR121: 0 | BS121: =BS105-BS117 -> 0 | BT121: =BT105-BT117 -> 0 | BU121: 0 | BV121: 0 | BW121: 0 | BX121: 0 | BY121: 0 | BZ121: 0 | CA121: 0 | CB121: 0 | CC121: 0 | CD121: 0 | CE121: 0 | CF121: 0 | CG121: 0 | CH121: 0 | CI121: 0 | CJ121: 0 | CK121: 0 | CL121: 0 | CM121: 0 | CN121: 0 | CO121: 0 | CP121: 0 | CQ121: 0 | CR121: 0 | CS121: 0 | CT121: 0 | CU121: 0 | CV121: 0 | CW121: 0 | CX121: 0 | CY121: 0 | CZ121: 0 | DA121: 0 | DB121: 0 | DC121: 0 | DD121: 0 | DE121: 0 | DF121: 0 | DG121: 0 | DH121: 0 | DI121: 0 | DJ121: 0 | DK121: 0 | DL121: 0 | DM121: 0 | DN121: 0 | DO121: 0 | DP121: 0 | DQ121: =DQ105-DQ117 -> 0 | DR121: 0 | DS121: 0 | DT121: 0 | DU121: 0 | DV121: 0
C122: Выплата тела долга (прочие кредиторы) | D122: =ut_Digits&""&ut_LCU -> тыс. RUB | G122: =G106-G118 -> 0 | H122: 0 | I122: 0 | J122: 0 | K122: 0 | L122: 0 | M122: 0 | N122: 0 | O122: 0 | P122: 0 | Q122: 0 | R122: 0 | S122: 0 | T122: 0 | U122: 0 | V122: 0 | W122: 0 | X122: 0 | Y122: 0 | Z122: 0 | AA122: 0 | AB122: 0 | AC122: 0 | AD122: 0 | AE122: 0 | AF122: 0 | AG122: 0 | AH122: 0 | AI122: 0 | AJ122: 0 | AK122: 0 | AL122: 0 | AM122: =AM106-AM118 -> 0 | AN122: 0 | AO122: 0 | AP122: 0 | AQ122: 0 | AR122: 0 | AS122: 0 | AT122: 0 | AU122: 0 | AV122: 0 | AW122: 0 | AX122: 0 | AY122: 0 | AZ122: 0 | BA122: 0 | BB122: 0 | BC122: 0 | BD122: 0 | BE122: 0 | BF122: 0 | BG122: 0 | BH122: 0 | BI122: 0 | BJ122: 0 | BK122: 0 | BL122: 0 | BM122: 0 | BN122: 0 | BO122: 0 | BP122: 0 | BQ122: 0 | BR122: 0 | BS122: =BS106-BS118 -> 0 | BT122: =BT106-BT118 -> 0 | BU122: 0 | BV122: 0 | BW122: 0 | BX122: 0 | BY122: 0 | BZ122: 0 | CA122: 0 | CB122: 0 | CC122: 0 | CD122: 0 | CE122: 0 | CF122: 0 | CG122: 0 | CH122: 0 | CI122: 0 | CJ122: 0 | CK122: 0 | CL122: 0 | CM122: 0 | CN122: 0 | CO122: 0 | CP122: 0 | CQ122: 0 | CR122: 0 | CS122: 0 | CT122: 0 | CU122: 0 | CV122: 0 | CW122: 0 | CX122: 0 | CY122: 0 | CZ122: 0 | DA122: 0 | DB122: 0 | DC122: 0 | DD122: 0 | DE122: 0 | DF122: 0 | DG122: 0 | DH122: 0 | DI122: 0 | DJ122: 0 | DK122: 0 | DL122: 0 | DM122: 0 | DN122: 0 | DO122: 0 | DP122: 0 | DQ122: =DQ106-DQ118 -> 0 | DR122: 0 | DS122: 0 | DT122: 0 | DU122: 0 | DV122: 0
C123: Остаток задолженности на конец периода (прочие кредиторы) | D123: =ut_Digits&""&ut_LCU -> тыс. RUB | G123: =G107-G119 -> 0 | H123: 0 | I123: 0 | J123: 0 | K123: 0 | L123: 0 | M123: 0 | N123: 0 | O123: 0 | P123: 0 | Q123: 0 | R123: 0 | S123: 0 | T123: 0 | U123: 0 | V123: 0 | W123: 0 | X123: 0 | Y123: 0 | Z123: 0 | AA123: 0 | AB123: 0 | AC123: 0 | AD123: 0 | AE123: 0 | AF123: 0 | AG123: 0 | AH123: 0 | AI123: 0 | AJ123: 0 | AK123: 0 | AL123: 0 | AM123: =AM107-AM119 -> 0 | AN123: 0 | AO123: 0 | AP123: 0 | AQ123: 0 | AR123: 0 | AS123: 0 | AT123: 0 | AU123: 0 | AV123: 0 | AW123: 0 | AX123: 0 | AY123: 0 | AZ123: 0 | BA123: 0 | BB123: 0 | BC123: 0 | BD123: 0 | BE123: 0 | BF123: 0 | BG123: 0 | BH123: 0 | BI123: 0 | BJ123: 0 | BK123: 0 | BL123: 0 | BM123: 0 | BN123: 0 | BO123: 0 | BP123: 0 | BQ123: 0 | BR123: 0 | BS123: =BS107-BS119 -> 0 | BT123: =BT107-BT119 -> 0 | BU123: 0 | BV123: 0 | BW123: 0 | BX123: 0 | BY123: 0 | BZ123: 0 | CA123: 0 | CB123: 0 | CC123: 0 | CD123: 0 | CE123: 0 | CF123: 0 | CG123: 0 | CH123: 0 | CI123: 0 | CJ123: 0 | CK123: 0 | CL123: 0 | CM123: 0 | CN123: 0 | CO123: 0 | CP123: 0 | CQ123: 0 | CR123: 0 | CS123: 0 | CT123: 0 | CU123: 0 | CV123: 0 | CW123: 0 | CX123: 0 | CY123: 0 | CZ123: 0 | DA123: 0 | DB123: 0 | DC123: 0 | DD123: 0 | DE123: 0 | DF123: 0 | DG123: 0 | DH123: 0 | DI123: 0 | DJ123: 0 | DK123: 0 | DL123: 0 | DM123: 0 | DN123: 0 | DO123: 0 | DP123: 0 | DQ123: =DQ107-DQ119 -> 0 | DR123: 0 | DS123: 0 | DT123: 0 | DU123: 0 | DV123: 0
B125: Операционные показатели
C126: Debt | D126: =ut_Digits&""&ut_LCU -> тыс. RUB | E126: DB_Debt_eop_cor | G126: =SUMIF(INDIRECT($F$69),G69,DB_Debt_eop_cor) -> 0 | H126: =SUMIF(INDIRECT($F$69),H69,DB_Debt_eop_cor) -> 0 | I126: =SUMIF(INDIRECT($F$69),I69,DB_Debt_eop_cor) -> 0 | J126: 0 | K126: 0 | L126: 0 | M126: 0 | N126: 0 | O126: 0 | P126: 0 | Q126: 0 | R126: 0 | S126: 0 | T126: 0 | U126: 0 | V126: 0 | W126: 0 | X126: 0 | Y126: 0 | Z126: 0 | AA126: 0 | AB126: 0 | AC126: 0 | AD126: 0 | AE126: 0 | AF126: 0 | AG126: 0 | AH126: 0 | AI126: 0 | AJ126: 0 | AK126: 0 | AL126: 0 | AM126: =SUMIF(INDIRECT($F$69),AM69,DB_Debt_eop_cor) -> 0 | AN126: 0 | AO126: 0 | AP126: 0 | AQ126: 0 | AR126: 0 | AS126: 0 | AT126: 0 | AU126: 0 | AV126: 0 | AW126: 0 | AX126: 0 | AY126: 0 | AZ126: 0 | BA126: 0 | BB126: 0 | BC126: 0 | BD126: 0 | BE126: 0 | BF126: 0 | BG126: 0 | BH126: 0 | BI126: 0 | BJ126: 0 | BK126: 0 | BL126: 0 | BM126: 0 | BN126: 0 | BO126: 0 | BP126: 0 | BQ126: 0 | BR126: 0 | BS126: =SUMIF(INDIRECT($F$69),BS69,DB_Debt_eop_cor) -> 0 | BT126: =SUMIF(INDIRECT($F$69),BT69,DB_Debt_eop_cor) -> 0 | BU126: 0 | BV126: 0 | BW126: 0 | BX126: 0 | BY126: 0 | BZ126: 0 | CA126: 0 | CB126: 0 | CC126: 0 | CD126: 0 | CE126: 0 | CF126: 0 | CG126: 0 | CH126: 0 | CI126: 0 | CJ126: 0 | CK126: 0 | CL126: 0 | CM126: 0 | CN126: 0 | CO126: 0 | CP126: 0 | CQ126: 0 | CR126: 0 | CS126: 0 | CT126: 0 | CU126: 0 | CV126: 0 | CW126: 0 | CX126: 0 | CY126: 0 | CZ126: 0 | DA126: 0 | DB126: 0 | DC126: 0 | DD126: 0 | DE126: 0 | DF126: 0 | DG126: 0 | DH126: 0 | DI126: 0 | DJ126: 0 | DK126: 0 | DL126: 0 | DM126: 0 | DN126: 0 | DO126: 0 | DP126: 0 | DQ126: =SUMIF(INDIRECT($F$69),DQ69,DB_Debt_eop_cor) -> 0 | DR126: 0 | DS126: 0 | DT126: 0 | DU126: 0 | DV126: 0
C127: Net debt | D127: =ut_Digits&""&ut_LCU -> тыс. RUB | G127: =G126-G115 -> 0 | H127: =H126-H115 -> 0 | I127: 0 | J127: 0 | K127: 0 | L127: 0 | M127: 0 | N127: 0 | O127: 0 | P127: 0 | Q127: 0 | R127: 0 | S127: 0 | T127: 0 | U127: 0 | V127: 0 | W127: 0 | X127: 0 | Y127: 0 | Z127: 0 | AA127: 0 | AB127: 0 | AC127: 0 | AD127: 0 | AE127: 0 | AF127: 0 | AG127: 0 | AH127: 0 | AI127: 0 | AJ127: 0 | AK127: 0 | AL127: 0 | AM127: 0 | AN127: 0 | AO127: 0 | AP127: 0 | AQ127: 0 | AR127: 0 | AS127: 0 | AT127: 0 | AU127: 0 | AV127: 0 | AW127: 0 | AX127: 0 | AY127: 0 | AZ127: 0 | BA127: 0 | BB127: 0 | BC127: 0 | BD127: 0 | BE127: 0 | BF127: 0 | BG127: 0 | BH127: 0 | BI127: 0 | BJ127: 0 | BK127: 0 | BL127: 0 | BM127: 0 | BN127: 0 | BO127: 0 | BP127: 0 | BQ127: 0 | BR127: 0 | BS127: 0 | BT127: =BT126-BT115 -> 0 | BU127: 0 | BV127: 0 | BW127: 0 | BX127: 0 | BY127: 0 | BZ127: 0 | CA127: 0 | CB127: 0 | CC127: 0 | CD127: 0 | CE127: 0 | CF127: 0 | CG127: 0 | CH127: 0 | CI127: 0 | CJ127: 0 | CK127: 0 | CL127: 0 | CM127: 0 | CN127: 0 | CO127: 0 | CP127: 0 | CQ127: 0 | CR127: 0 | CS127: 0 | CT127: 0 | CU127: 0 | CV127: 0 | CW127: 0 | CX127: 0 | CY127: 0 | CZ127: 0 | DA127: 0 | DB127: 0 | DC127: 0 | DD127: 0 | DE127: 0 | DF127: 0 | DG127: 0 | DH127: 0 | DI127: 0 | DJ127: 0 | DK127: 0 | DL127: 0 | DM127: 0 | DN127: 0 | DO127: 0 | DP127: 0 | DQ127: =DQ126-DQ115 -> 0 | DR127: 0 | DS127: 0 | DT127: 0 | DU127: 0 | DV127: 0
C128: Debt / EBITDA | G128: =IFERROR(G126/G76,0) -> 0 | H128: 0 | I128: 0 | J128: 0 | K128: 0 | L128: 0 | M128: 0 | N128: 0 | O128: 0 | P128: 0 | Q128: 0 | R128: 0 | S128: 0 | T128: 0 | U128: 0 | V128: 0 | W128: 0 | X128: 0 | Y128: 0 | Z128: 0 | AA128: 0 | AB128: 0 | AC128: 0 | AD128: 0 | AE128: 0 | AF128: 0 | AG128: 0 | AH128: 0 | AI128: 0 | AJ128: 0 | AK128: 0 | AL128: 0 | AM128: =IFERROR(AM126/AM76,0) -> 0 | AN128: 0 | AO128: 0 | AP128: 0 | AQ128: 0 | AR128: 0 | AS128: 0 | AT128: 0 | AU128: 0 | AV128: 0 | AW128: 0 | AX128: 0 | AY128: 0 | AZ128: 0 | BA128: 0 | BB128: 0 | BC128: 0 | BD128: 0 | BE128: 0 | BF128: 0 | BG128: 0 | BH128: 0 | BI128: 0 | BJ128: 0 | BK128: 0 | BL128: 0 | BM128: 0 | BN128: 0 | BO128: 0 | BP128: 0 | BQ128: 0 | BR128: 0 | BS128: =IFERROR(BS126/BS76,0) -> 0 | BT128: =IFERROR(BT126/BT76,0) -> 0 | BU128: 0 | BV128: 0 | BW128: 0 | BX128: 0 | BY128: 0 | BZ128: 0 | CA128: 0 | CB128: 0 | CC128: 0 | CD128: 0 | CE128: 0 | CF128: 0 | CG128: 0 | CH128: 0 | CI128: 0 | CJ128: 0 | CK128: 0 | CL128: 0 | CM128: 0 | CN128: 0 | CO128: 0 | CP128: 0 | CQ128: 0 | CR128: 0 | CS128: 0 | CT128: 0 | CU128: 0 | CV128: 0 | CW128: 0 | CX128: 0 | CY128: 0 | CZ128: 0 | DA128: 0 | DB128: 0 | DC128: 0 | DD128: 0 | DE128: 0 | DF128: 0 | DG128: 0 | DH128: 0 | DI128: 0 | DJ128: 0 | DK128: 0 | DL128: 0 | DM128: 0 | DN128: 0 | DO128: 0 | DP128: 0 | DQ128: =IFERROR(DQ126/DQ76,0) -> 0 | DR128: 0 | DS128: 0 | DT128: 0 | DU128: 0 | DV128: 0
C129: Debt / EBITDA (с учетом балансирующего финансирования) | G129: =IFERROR((G126+G112)/G76,0) -> 0 | H129: =IFERROR((H126+H112)/H76,0) -> 0 | I129: 0 | J129: 0 | K129: 0 | L129: 0 | M129: 0 | N129: 0 | O129: 0 | P129: 0 | Q129: 0 | R129: 0 | S129: 0 | T129: 0 | U129: 0 | V129: 0 | W129: 0 | X129: 0 | Y129: 0 | Z129: 0 | AA129: 0 | AB129: 0 | AC129: 0 | AD129: 0 | AE129: 0 | AF129: 0 | AG129: 0 | AH129: 0 | AI129: 0 | AJ129: 0 | AK129: 0 | AL129: 0 | AM129: 0 | AN129: 0 | AO129: 0 | AP129: 0 | AQ129: 0 | AR129: 0 | AS129: 0 | AT129: 0 | AU129: 0 | AV129: 0 | AW129: 0 | AX129: 0 | AY129: 0 | AZ129: 0 | BA129: 0 | BB129: 0 | BC129: 0 | BD129: 0 | BE129: 0 | BF129: 0 | BG129: 0 | BH129: 0 | BI129: 0 | BJ129: 0 | BK129: 0 | BL129: 0 | BM129: 0 | BN129: 0 | BO129: 0 | BP129: 0 | BQ129: 0 | BR129: 0 | BS129: 0 | BT129: =IFERROR((BT126+BT112)/BT76,0) -> 0 | BU129: 0 | BV129: 0 | BW129: 0 | BX129: 0 | BY129: 0 | BZ129: 0 | CA129: 0 | CB129: 0 | CC129: 0 | CD129: 0 | CE129: 0 | CF129: 0 | CG129: 0 | CH129: 0 | CI129: 0 | CJ129: 0 | CK129: 0 | CL129: 0 | CM129: 0 | CN129: 0 | CO129: 0 | CP129: 0 | CQ129: 0 | CR129: 0 | CS129: 0 | CT129: 0 | CU129: 0 | CV129: 0 | CW129: 0 | CX129: 0 | CY129: 0 | CZ129: 0 | DA129: 0 | DB129: 0 | DC129: 0 | DD129: 0 | DE129: 0 | DF129: 0 | DG129: 0 | DH129: 0 | DI129: 0 | DJ129: 0 | DK129: 0 | DL129: 0 | DM129: 0 | DN129: 0 | DO129: 0 | DP129: 0 | DQ129: =IFERROR((DQ126+DQ112)/DQ76,0) -> 0 | DR129: 0 | DS129: 0 | DT129: 0 | DU129: 0 | DV129: 0
C130: Net debt / EBITDA | G130: =IFERROR(G127/G76,0) -> 0 | H130: 0 | I130: 0 | J130: 0 | K130: 0 | L130: 0 | M130: 0 | N130: 0 | O130: 0 | P130: 0 | Q130: 0 | R130: 0 | S130: 0 | T130: 0 | U130: 0 | V130: 0 | W130: 0 | X130: 0 | Y130: 0 | Z130: 0 | AA130: 0 | AB130: 0 | AC130: 0 | AD130: 0 | AE130: 0 | AF130: 0 | AG130: 0 | AH130: 0 | AI130: 0 | AJ130: 0 | AK130: 0 | AL130: 0 | AM130: =IFERROR(AM127/AM76,0) -> 0 | AN130: 0 | AO130: 0 | AP130: 0 | AQ130: 0 | AR130: 0 | AS130: 0 | AT130: 0 | AU130: 0 | AV130: 0 | AW130: 0 | AX130: 0 | AY130: 0 | AZ130: 0 | BA130: 0 | BB130: 0 | BC130: 0 | BD130: 0 | BE130: 0 | BF130: 0 | BG130: 0 | BH130: 0 | BI130: 0 | BJ130: 0 | BK130: 0 | BL130: 0 | BM130: 0 | BN130: 0 | BO130: 0 | BP130: 0 | BQ130: 0 | BR130: 0 | BS130: =IFERROR(BS127/BS76,0) -> 0 | BT130: =IFERROR(BT127/BT76,0) -> 0 | BU130: 0 | BV130: 0 | BW130: 0 | BX130: 0 | BY130: 0 | BZ130: 0 | CA130: 0 | CB130: 0 | CC130: 0 | CD130: 0 | CE130: 0 | CF130: 0 | CG130: 0 | CH130: 0 | CI130: 0 | CJ130: 0 | CK130: 0 | CL130: 0 | CM130: 0 | CN130: 0 | CO130: 0 | CP130: 0 | CQ130: 0 | CR130: 0 | CS130: 0 | CT130: 0 | CU130: 0 | CV130: 0 | CW130: 0 | CX130: 0 | CY130: 0 | CZ130: 0 | DA130: 0 | DB130: 0 | DC130: 0 | DD130: 0 | DE130: 0 | DF130: 0 | DG130: 0 | DH130: 0 | DI130: 0 | DJ130: 0 | DK130: 0 | DL130: 0 | DM130: 0 | DN130: 0 | DO130: 0 | DP130: 0 | DQ130: =IFERROR(DQ127/DQ76,0) -> 0 | DR130: 0 | DS130: 0 | DT130: 0 | DU130: 0 | DV130: 0
C131: Debt / Revenue | G131: =IFERROR(G126/G70,0) -> 0 | H131: =IFERROR(H126/H70,0) -> 0 | I131: 0 | J131: 0 | K131: 0 | L131: 0 | M131: 0 | N131: 0 | O131: 0 | P131: 0 | Q131: 0 | R131: 0 | S131: 0 | T131: 0 | U131: 0 | V131: 0 | W131: 0 | X131: 0 | Y131: 0 | Z131: 0 | AA131: 0 | AB131: 0 | AC131: 0 | AD131: 0 | AE131: 0 | AF131: 0 | AG131: 0 | AH131: 0 | AI131: 0 | AJ131: 0 | AK131: 0 | AL131: 0 | AM131: 0 | AN131: 0 | AO131: 0 | AP131: 0 | AQ131: 0 | AR131: 0 | AS131: 0 | AT131: 0 | AU131: 0 | AV131: 0 | AW131: 0 | AX131: 0 | AY131: 0 | AZ131: 0 | BA131: 0 | BB131: 0 | BC131: 0 | BD131: 0 | BE131: 0 | BF131: 0 | BG131: 0 | BH131: 0 | BI131: 0 | BJ131: 0 | BK131: 0 | BL131: 0 | BM131: 0 | BN131: 0 | BO131: 0 | BP131: 0 | BQ131: 0 | BR131: 0 | BS131: 0 | BT131: =IFERROR(BT126/BT70,0) -> 0 | BU131: 0 | BV131: 0 | BW131: 0 | BX131: 0 | BY131: 0 | BZ131: 0 | CA131: 0 | CB131: 0 | CC131: 0 | CD131: 0 | CE131: 0 | CF131: 0 | CG131: 0 | CH131: 0 | CI131: 0 | CJ131: 0 | CK131: 0 | CL131: 0 | CM131: 0 | CN131: 0 | CO131: 0 | CP131: 0 | CQ131: 0 | CR131: 0 | CS131: 0 | CT131: 0 | CU131: 0 | CV131: 0 | CW131: 0 | CX131: 0 | CY131: 0 | CZ131: 0 | DA131: 0 | DB131: 0 | DC131: 0 | DD131: 0 | DE131: 0 | DF131: 0 | DG131: 0 | DH131: 0 | DI131: 0 | DJ131: 0 | DK131: 0 | DL131: 0 | DM131: 0 | DN131: 0 | DO131: 0 | DP131: 0 | DQ131: =IFERROR(DQ126/DQ70,0) -> 0 | DR131: 0 | DS131: 0 | DT131: 0 | DU131: 0 | DV131: 0
C132: Net debt / Revenue | G132: =IFERROR(G127/G70,0) -> 0 | H132: =IFERROR(H127/H70,0) -> 0 | I132: 0 | J132: 0 | K132: 0 | L132: 0 | M132: 0 | N132: 0 | O132: 0 | P132: 0 | Q132: 0 | R132: 0 | S132: 0 | T132: 0 | U132: 0 | V132: 0 | W132: 0 | X132: 0 | Y132: 0 | Z132: 0 | AA132: 0 | AB132: 0 | AC132: 0 | AD132: 0 | AE132: 0 | AF132: 0 | AG132: 0 | AH132: 0 | AI132: 0 | AJ132: 0 | AK132: 0 | AL132: 0 | AM132: 0 | AN132: 0 | AO132: 0 | AP132: 0 | AQ132: 0 | AR132: 0 | AS132: 0 | AT132: 0 | AU132: 0 | AV132: 0 | AW132: 0 | AX132: 0 | AY132: 0 | AZ132: 0 | BA132: 0 | BB132: 0 | BC132: 0 | BD132: 0 | BE132: 0 | BF132: 0 | BG132: 0 | BH132: 0 | BI132: 0 | BJ132: 0 | BK132: 0 | BL132: 0 | BM132: 0 | BN132: 0 | BO132: 0 | BP132: 0 | BQ132: 0 | BR132: 0 | BS132: 0 | BT132: =IFERROR(BT127/BT70,0) -> 0 | BU132: 0 | BV132: 0 | BW132: 0 | BX132: 0 | BY132: 0 | BZ132: 0 | CA132: 0 | CB132: 0 | CC132: 0 | CD132: 0 | CE132: 0 | CF132: 0 | CG132: 0 | CH132: 0 | CI132: 0 | CJ132: 0 | CK132: 0 | CL132: 0 | CM132: 0 | CN132: 0 | CO132: 0 | CP132: 0 | CQ132: 0 | CR132: 0 | CS132: 0 | CT132: 0 | CU132: 0 | CV132: 0 | CW132: 0 | CX132: 0 | CY132: 0 | CZ132: 0 | DA132: 0 | DB132: 0 | DC132: 0 | DD132: 0 | DE132: 0 | DF132: 0 | DG132: 0 | DH132: 0 | DI132: 0 | DJ132: 0 | DK132: 0 | DL132: 0 | DM132: 0 | DN132: 0 | DO132: 0 | DP132: 0 | DQ132: =IFERROR(DQ127/DQ70,0) -> 0 | DR132: 0 | DS132: 0 | DT132: 0 | DU132: 0 | DV132: 0
C133: EBITDA / Interest | G133: =IFERROR(G76/G105,0) -> 0 | H133: =IFERROR(H76/H105,0) -> 0 | I133: 0 | J133: 0 | K133: 0 | L133: 0 | M133: 0 | N133: 0 | O133: 0 | P133: 0 | Q133: 0 | R133: 0 | S133: 0 | T133: 0 | U133: 0 | V133: 0 | W133: 0 | X133: 0 | Y133: 0 | Z133: 0 | AA133: 0 | AB133: 0 | AC133: 0 | AD133: 0 | AE133: 0 | AF133: 0 | AG133: 0 | AH133: 0 | AI133: 0 | AJ133: 0 | AK133: 0 | AL133: 0 | AM133: 0 | AN133: 0 | AO133: 0 | AP133: 0 | AQ133: 0 | AR133: 0 | AS133: 0 | AT133: 0 | AU133: 0 | AV133: 0 | AW133: 0 | AX133: 0 | AY133: 0 | AZ133: 0 | BA133: 0 | BB133: 0 | BC133: 0 | BD133: 0 | BE133: 0 | BF133: 0 | BG133: 0 | BH133: 0 | BI133: 0 | BJ133: 0 | BK133: 0 | BL133: 0 | BM133: 0 | BN133: 0 | BO133: 0 | BP133: 0 | BQ133: 0 | BR133: 0 | BS133: 0 | BT133: =IFERROR(BT76/BT105,0) -> 0 | BU133: 0 | BV133: 0 | BW133: 0 | BX133: 0 | BY133: 0 | BZ133: 0 | CA133: 0 | CB133: 0 | CC133: 0 | CD133: 0 | CE133: 0 | CF133: 0 | CG133: 0 | CH133: 0 | CI133: 0 | CJ133: 0 | CK133: 0 | CL133: 0 | CM133: 0 | CN133: 0 | CO133: 0 | CP133: 0 | CQ133: 0 | CR133: 0 | CS133: 0 | CT133: 0 | CU133: 0 | CV133: 0 | CW133: 0 | CX133: 0 | CY133: 0 | CZ133: 0 | DA133: 0 | DB133: 0 | DC133: 0 | DD133: 0 | DE133: 0 | DF133: 0 | DG133: 0 | DH133: 0 | DI133: 0 | DJ133: 0 | DK133: 0 | DL133: 0 | DM133: 0 | DN133: 0 | DO133: 0 | DP133: 0 | DQ133: =IFERROR(DQ76/DQ105,0) -> 0 | DR133: 0 | DS133: 0 | DT133: 0 | DU133: 0 | DV133: 0
C134: EBITDA / FinExp | E134: Interest + Fin payments | G134: =IFERROR(G76/G84,0) -> 0 | H134: =IFERROR(H76/H84,0) -> 0 | I134: 0 | J134: 0 | K134: 0 | L134: 0 | M134: 0 | N134: 0 | O134: 0 | P134: 0 | Q134: 0 | R134: 0 | S134: 0 | T134: 0 | U134: 0 | V134: 0 | W134: 0 | X134: 0 | Y134: 0 | Z134: 0 | AA134: 0 | AB134: 0 | AC134: 0 | AD134: 0 | AE134: 0 | AF134: 0 | AG134: 0 | AH134: 0 | AI134: 0 | AJ134: 0 | AK134: 0 | AL134: 0 | AM134: 0 | AN134: 0 | AO134: 0 | AP134: 0 | AQ134: 0 | AR134: 0 | AS134: 0 | AT134: 0 | AU134: 0 | AV134: 0 | AW134: 0 | AX134: 0 | AY134: 0 | AZ134: 0 | BA134: 0 | BB134: 0 | BC134: 0 | BD134: 0 | BE134: 0 | BF134: 0 | BG134: 0 | BH134: 0 | BI134: 0 | BJ134: 0 | BK134: 0 | BL134: 0 | BM134: 0 | BN134: 0 | BO134: 0 | BP134: 0 | BQ134: 0 | BR134: 0 | BS134: 0 | BT134: =IFERROR(BT76/BT84,0) -> 0 | BU134: 0 | BV134: 0 | BW134: 0 | BX134: 0 | BY134: 0 | BZ134: 0 | CA134: 0 | CB134: 0 | CC134: 0 | CD134: 0 | CE134: 0 | CF134: 0 | CG134: 0 | CH134: 0 | CI134: 0 | CJ134: 0 | CK134: 0 | CL134: 0 | CM134: 0 | CN134: 0 | CO134: 0 | CP134: 0 | CQ134: 0 | CR134: 0 | CS134: 0 | CT134: 0 | CU134: 0 | CV134: 0 | CW134: 0 | CX134: 0 | CY134: 0 | CZ134: 0 | DA134: 0 | DB134: 0 | DC134: 0 | DD134: 0 | DE134: 0 | DF134: 0 | DG134: 0 | DH134: 0 | DI134: 0 | DJ134: 0 | DK134: 0 | DL134: 0 | DM134: 0 | DN134: 0 | DO134: 0 | DP134: 0 | DQ134: =IFERROR(DQ76/DQ84,0) -> 0 | DR134: 0 | DS134: 0 | DT134: 0 | DU134: 0 | DV134: 0
B136: Инвестиционные показатели | E136: DB_Other_Source | G136: =SUMIF(INDIRECT($F$69),G69,DB_Other_Source) -> 0 | H136: 0 | I136: 0 | J136: 0 | K136: 0 | L136: 0 | M136: 0 | N136: 0 | O136: 0 | P136: 0 | Q136: 0 | R136: 0 | S136: 0 | T136: 0 | U136: 0 | V136: 0 | W136: 0 | X136: 0 | Y136: 0 | Z136: 0 | AA136: 0 | AB136: 0 | AC136: 0 | AD136: 0 | AE136: 0 | AF136: 0 | AG136: 0 | AH136: 0 | AI136: 0 | AJ136: 0 | AK136: 0 | AL136: 0 | AM136: =SUMIF(INDIRECT($F$69),AM69,DB_Other_Source) -> 0 | AN136: 0 | AO136: 0 | AP136: 0 | AQ136: 0 | AR136: 0 | AS136: 0 | AT136: 0 | AU136: 0 | AV136: 0 | AW136: 0 | AX136: 0 | AY136: 0 | AZ136: 0 | BA136: 0 | BB136: 0 | BC136: 0 | BD136: 0 | BE136: 0 | BF136: 0 | BG136: 0 | BH136: 0 | BI136: 0 | BJ136: 0 | BK136: 0 | BL136: 0 | BM136: 0 | BN136: 0 | BO136: 0 | BP136: 0 | BQ136: 0 | BR136: 0 | BS136: =SUMIF(INDIRECT($F$69),BS69,DB_Other_Source) -> 0 | BT136: 0 | BU136: 0 | BV136: 0 | BW136: 0 | BX136: 0 | BY136: 0 | BZ136: 0 | CA136: 0 | CB136: 0 | CC136: 0 | CD136: 0 | CE136: 0 | CF136: 0 | CG136: 0 | CH136: 0 | CI136: 0 | CJ136: 0 | CK136: 0 | CL136: 0 | CM136: 0 | CN136: 0 | CO136: 0 | CP136: 0 | CQ136: 0 | CR136: 0 | CS136: 0 | CT136: 0 | CU136: 0 | CV136: 0 | CW136: 0 | CX136: 0 | CY136: =SUMIF(INDIRECT($F$69),CY69,DB_Other_Source) -> 0 | CZ136: 0 | DA136: 0 | DB136: 0 | DC136: 0 | DD136: 0 | DE136: 0 | DF136: 0 | DG136: 0 | DH136: 0 | DI136: 0 | DJ136: 0 | DK136: 0 | DL136: 0 | DM136: 0 | DN136: 0 | DO136: 0 | DP136: 0 | DQ136: 0 | DR136: 0 | DS136: 0 | DT136: 0 | DU136: 0 | DV136: 0
C137: Equity | D137: =ut_Digits&""&ut_LCU -> тыс. RUB | E137: DB_Equity_EOP | G137: =SUMIF(INDIRECT($F$69),G69,DB_Equity_EOP) -> 0 | H137: 0 | I137: 0 | J137: 0 | K137: 0 | L137: 0 | M137: 0 | N137: 0 | O137: 0 | P137: 0 | Q137: 0 | R137: 0 | S137: 0 | T137: 0 | U137: 0 | V137: 0 | W137: 0 | X137: 0 | Y137: 0 | Z137: 0 | AA137: 0 | AB137: 0 | AC137: 0 | AD137: 0 | AE137: 0 | AF137: 0 | AG137: 0 | AH137: 0 | AI137: 0 | AJ137: 0 | AK137: 0 | AL137: 0 | AM137: =SUMIF(INDIRECT($F$69),AM69,DB_Equity_EOP) -> 0 | AN137: 0 | AO137: 0 | AP137: 0 | AQ137: 0 | AR137: 0 | AS137: 0 | AT137: 0 | AU137: 0 | AV137: 0 | AW137: 0 | AX137: 0 | AY137: 0 | AZ137: 0 | BA137: 0 | BB137: 0 | BC137: 0 | BD137: 0 | BE137: 0 | BF137: 0 | BG137: 0 | BH137: 0 | BI137: 0 | BJ137: 0 | BK137: 0 | BL137: 0 | BM137: 0 | BN137: 0 | BO137: 0 | BP137: 0 | BQ137: 0 | BR137: 0 | BS137: =SUMIF(INDIRECT($F$69),BS69,DB_Equity_EOP) -> 0 | BT137: =SUMIF(INDIRECT($F$69),BT69,DB_Equity_EOP) -> 0 | BU137: 0 | BV137: 0 | BW137: 0 | BX137: 0 | BY137: 0 | BZ137: 0 | CA137: 0 | CB137: 0 | CC137: 0 | CD137: 0 | CE137: 0 | CF137: 0 | CG137: 0 | CH137: 0 | CI137: 0 | CJ137: 0 | CK137: 0 | CL137: 0 | CM137: 0 | CN137: 0 | CO137: 0 | CP137: 0 | CQ137: 0 | CR137: 0 | CS137: 0 | CT137: 0 | CU137: 0 | CV137: 0 | CW137: 0 | CX137: 0 | CY137: 0 | CZ137: 0 | DA137: 0 | DB137: 0 | DC137: 0 | DD137: 0 | DE137: 0 | DF137: 0 | DG137: 0 | DH137: 0 | DI137: 0 | DJ137: 0 | DK137: 0 | DL137: 0 | DM137: 0 | DN137: 0 | DO137: 0 | DP137: 0 | DQ137: =SUMIF(INDIRECT($F$69),DQ69,DB_Equity_EOP) -> 0 | DR137: 0 | DS137: 0 | DT137: 0 | DU137: 0 | DV137: 0
C138: Собственные средства Инициатора | D138: =ut_Digits&""&ut_LCU -> тыс. RUB | E138: DB_Equity_Other | G138: =G137+SUMIF(INDIRECT($F$69),G70,DB_Equity_Other) -> 0 | H138: 0 | I138: 0 | J138: =J137+SUMIF(INDIRECT($F$69),J70,DB_Equity_Other) -> 0 | K138: 0 | L138: 0 | M138: 0 | N138: 0 | O138: 0 | P138: 0 | Q138: 0 | R138: 0 | S138: 0 | T138: 0 | U138: 0 | V138: 0 | W138: 0 | X138: 0 | Y138: 0 | Z138: 0 | AA138: 0 | AB138: 0 | AC138: 0 | AD138: 0 | AE138: 0 | AF138: 0 | AG138: 0 | AH138: 0 | AI138: 0 | AJ138: 0 | AK138: 0 | AL138: 0 | AM138: =AM137+SUMIF(INDIRECT($F$69),AM70,DB_Equity_Other) -> 0 | AN138: 0 | AO138: 0 | AP138: 0 | AQ138: 0 | AR138: 0 | AS138: 0 | AT138: 0 | AU138: 0 | AV138: 0 | AW138: 0 | AX138: 0 | AY138: 0 | AZ138: 0 | BA138: 0 | BB138: 0 | BC138: 0 | BD138: 0 | BE138: 0 | BF138: 0 | BG138: 0 | BH138: 0 | BI138: 0 | BJ138: 0 | BK138: 0 | BL138: 0 | BM138: 0 | BN138: 0 | BO138: 0 | BP138: 0 | BQ138: 0 | BR138: 0 | BS138: =BS137+SUMIF(INDIRECT($F$69),BS70,DB_Equity_Other) -> 0 | BT138: =BT137+SUMIF(INDIRECT($F$69),BT70,DB_Equity_Other) -> 0 | BU138: 0 | BV138: 0 | BW138: 0 | BX138: 0 | BY138: 0 | BZ138: 0 | CA138: 0 | CB138: 0 | CC138: 0 | CD138: 0 | CE138: 0 | CF138: 0 | CG138: 0 | CH138: 0 | CI138: 0 | CJ138: 0 | CK138: 0 | CL138: 0 | CM138: 0 | CN138: 0 | CO138: 0 | CP138: 0 | CQ138: 0 | CR138: 0 | CS138: 0 | CT138: 0 | CU138: 0 | CV138: 0 | CW138: 0 | CX138: 0 | CY138: 0 | CZ138: 0 | DA138: 0 | DB138: 0 | DC138: 0 | DD138: 0 | DE138: 0 | DF138: 0 | DG138: 0 | DH138: 0 | DI138: 0 | DJ138: 0 | DK138: 0 | DL138: 0 | DM138: 0 | DN138: 0 | DO138: 0 | DP138: 0 | DQ138: =DQ137+SUMIF(INDIRECT($F$69),DQ70,DB_Equity_Other) -> 0 | DR138: 0 | DS138: 0 | DT138: 0 | DU138: 0 | DV138: 0
C139: Соотношение СС/ЗС | G139: =IFERROR(G138/G126,0) -> 0 | H139: =IFERROR(H138/H126,0) -> 0 | I139: 0 | J139: =IFERROR(J138/J126,0) -> 0 | K139: 0 | L139: 0 | M139: 0 | N139: 0 | O139: 0 | P139: 0 | Q139: 0 | R139: 0 | S139: 0 | T139: 0 | U139: 0 | V139: 0 | W139: 0 | X139: 0 | Y139: 0 | Z139: 0 | AA139: 0 | AB139: 0 | AC139: 0 | AD139: 0 | AE139: 0 | AF139: 0 | AG139: 0 | AH139: 0 | AI139: 0 | AJ139: 0 | AK139: 0 | AL139: 0 | AM139: 0 | AN139: 0 | AO139: 0 | AP139: 0 | AQ139: 0 | AR139: 0 | AS139: 0 | AT139: 0 | AU139: 0 | AV139: 0 | AW139: 0 | AX139: 0 | AY139: 0 | AZ139: 0 | BA139: 0 | BB139: 0 | BC139: 0 | BD139: 0 | BE139: 0 | BF139: 0 | BG139: 0 | BH139: 0 | BI139: 0 | BJ139: 0 | BK139: 0 | BL139: 0 | BM139: 0 | BN139: 0 | BO139: 0 | BP139: 0 | BQ139: 0 | BR139: 0 | BS139: 0 | BT139: =IFERROR(BT138/BT126,0) -> 0 | BU139: 0 | BV139: 0 | BW139: 0 | BX139: 0 | BY139: 0 | BZ139: 0 | CA139: 0 | CB139: 0 | CC139: 0 | CD139: 0 | CE139: 0 | CF139: 0 | CG139: 0 | CH139: 0 | CI139: 0 | CJ139: 0 | CK139: 0 | CL139: 0 | CM139: 0 | CN139: 0 | CO139: 0 | CP139: 0 | CQ139: 0 | CR139: 0 | CS139: 0 | CT139: 0 | CU139: 0 | CV139: 0 | CW139: 0 | CX139: 0 | CY139: 0 | CZ139: 0 | DA139: 0 | DB139: 0 | DC139: 0 | DD139: 0 | DE139: 0 | DF139: 0 | DG139: 0 | DH139: 0 | DI139: 0 | DJ139: 0 | DK139: 0 | DL139: 0 | DM139: 0 | DN139: 0 | DO139: 0 | DP139: 0 | DQ139: =IFERROR(DQ138/DQ126,0) -> 0 | DR139: 0 | DS139: 0 | DT139: 0 | DU139: 0 | DV139: 0
C140: Доля средств ВЭБ.РФ в проекте | G140: =IFERROR(G119/(G126+G138),0) -> 0 | H140: =IFERROR(H119/(H126+H138),0) -> 0 | I140: 0 | J140: 0 | K140: 0 | L140: 0 | M140: 0 | N140: 0 | O140: 0 | P140: 0 | Q140: 0 | R140: 0 | S140: 0 | T140: 0 | U140: 0 | V140: 0 | W140: 0 | X140: 0 | Y140: 0 | Z140: 0 | AA140: 0 | AB140: 0 | AC140: 0 | AD140: 0 | AE140: 0 | AF140: 0 | AG140: 0 | AH140: 0 | AI140: 0 | AJ140: 0 | AK140: 0 | AL140: 0 | AM140: 0 | AN140: 0 | AO140: 0 | AP140: 0 | AQ140: 0 | AR140: 0 | AS140: 0 | AT140: 0 | AU140: 0 | AV140: 0 | AW140: 0 | AX140: 0 | AY140: 0 | AZ140: 0 | BA140: 0 | BB140: 0 | BC140: 0 | BD140: 0 | BE140: 0 | BF140: 0 | BG140: 0 | BH140: 0 | BI140: 0 | BJ140: 0 | BK140: 0 | BL140: 0 | BM140: 0 | BN140: 0 | BO140: 0 | BP140: 0 | BQ140: 0 | BR140: 0 | BS140: 0 | BT140: =IFERROR(BT119/(BT126+BT138),0) -> 0 | BU140: 0 | BV140: 0 | BW140: 0 | BX140: 0 | BY140: 0 | BZ140: 0 | CA140: 0 | CB140: 0 | CC140: 0 | CD140: 0 | CE140: 0 | CF140: 0 | CG140: 0 | CH140: 0 | CI140: 0 | CJ140: 0 | CK140: 0 | CL140: 0 | CM140: 0 | CN140: 0 | CO140: 0 | CP140: 0 | CQ140: 0 | CR140: 0 | CS140: 0 | CT140: 0 | CU140: 0 | CV140: 0 | CW140: 0 | CX140: 0 | CY140: 0 | CZ140: 0 | DA140: 0 | DB140: 0 | DC140: 0 | DD140: 0 | DE140: 0 | DF140: 0 | DG140: 0 | DH140: 0 | DI140: 0 | DJ140: 0 | DK140: 0 | DL140: 0 | DM140: 0 | DN140: 0 | DO140: 0 | DP140: 0 | DQ140: 0 | DR140: 0 | DS140: 0 | DT140: 0 | DU140: 0 | DV140: 0
B141: к | C141: Доля средств инициатора в проекте | G141: =IFERROR((G138)/(G126+G138),0) -> 0 | H141: 0 | I141: 0 | J141: =IFERROR((J138)/(J126+J138),0) -> 0 | K141: 0 | L141: 0 | M141: 0 | N141: 0 | O141: 0 | P141: 0 | Q141: 0 | R141: 0 | S141: 0 | T141: 0 | U141: 0 | V141: 0 | W141: 0 | X141: 0 | Y141: 0 | Z141: 0 | AA141: 0 | AB141: 0 | AC141: 0 | AD141: 0 | AE141: 0 | AF141: 0 | AG141: 0 | AH141: 0 | AI141: 0 | AJ141: 0 | AK141: 0 | AL141: 0 | AM141: 0 | AN141: 0 | AO141: 0 | AP141: 0 | AQ141: 0 | AR141: 0 | AS141: 0 | AT141: 0 | AU141: 0 | AV141: 0 | AW141: 0 | AX141: 0 | AY141: 0 | AZ141: 0 | BA141: 0 | BB141: 0 | BC141: 0 | BD141: 0 | BE141: 0 | BF141: 0 | BG141: 0 | BH141: 0 | BI141: 0 | BJ141: 0 | BK141: 0 | BL141: 0 | BM141: 0 | BN141: 0 | BO141: 0 | BP141: 0 | BQ141: 0 | BR141: 0 | BS141: =IFERROR((BS138)/(BS126+BS138),0) -> 0 | BT141: 0 | BU141: 0 | BV141: 0 | BW141: 0 | BX141: 0 | BY141: 0 | BZ141: 0 | CA141: 0 | CB141: 0 | CC141: 0 | CD141: 0 | CE141: 0 | CF141: 0 | CG141: 0 | CH141: 0 | CI141: 0 | CJ141: 0 | CK141: 0 | CL141: 0 | CM141: 0 | CN141: 0 | CO141: 0 | CP141: 0 | CQ141: 0 | CR141: 0 | CS141: 0 | CT141: 0 | CU141: 0 | CV141: 0 | CW141: 0 | CX141: 0 | CY141: 0 | CZ141: 0 | DA141: 0 | DB141: 0 | DC141: 0 | DD141: 0 | DE141: 0 | DF141: 0 | DG141: 0 | DH141: 0 | DI141: 0 | DJ141: 0 | DK141: 0 | DL141: 0 | DM141: 0 | DN141: 0 | DO141: 0 | DP141: 0 | DQ141: 0 | DR141: 0 | DS141: 0 | DT141: 0 | DU141: 0 | DV141: 0
C142: Debt service | G142: =G105+G106 -> 0 | H142: =H105+H106 -> 0 | I142: 0 | J142: 0 | K142: 0 | L142: 0 | M142: 0 | N142: 0 | O142: 0 | P142: 0 | Q142: 0 | R142: 0 | S142: 0 | T142: 0 | U142: 0 | V142: 0 | W142: 0 | X142: 0 | Y142: 0 | Z142: 0 | AA142: 0 | AB142: 0 | AC142: 0 | AD142: 0 | AE142: 0 | AF142: 0 | AG142: 0 | AH142: 0 | AI142: 0 | AJ142: 0 | AK142: 0 | AL142: 0 | AM142: 0 | AN142: 0 | AO142: 0 | AP142: 0 | AQ142: 0 | AR142: 0 | AS142: 0 | AT142: 0 | AU142: 0 | AV142: 0 | AW142: 0 | AX142: 0 | AY142: 0 | AZ142: 0 | BA142: 0 | BB142: 0 | BC142: 0 | BD142: 0 | BE142: 0 | BF142: 0 | BG142: 0 | BH142: 0 | BI142: 0 | BJ142: 0 | BK142: 0 | BL142: 0 | BM142: 0 | BN142: 0 | BO142: 0 | BP142: 0 | BQ142: 0 | BR142: 0 | BS142: 0 | BT142: =BT105+BT106 -> 0 | BU142: 0 | BV142: 0 | BW142: 0 | BX142: 0 | BY142: 0 | BZ142: 0 | CA142: 0 | CB142: 0 | CC142: 0 | CD142: 0 | CE142: 0 | CF142: 0 | CG142: 0 | CH142: 0 | CI142: 0 | CJ142: 0 | CK142: 0 | CL142: 0 | CM142: 0 | CN142: 0 | CO142: 0 | CP142: 0 | CQ142: 0 | CR142: 0 | CS142: 0 | CT142: 0 | CU142: 0 | CV142: 0 | CW142: 0 | CX142: 0 | CY142: 0 | CZ142: 0 | DA142: 0 | DB142: 0 | DC142: 0 | DD142: 0 | DE142: 0 | DF142: 0 | DG142: 0 | DH142: 0 | DI142: 0 | DJ142: 0 | DK142: 0 | DL142: 0 | DM142: 0 | DN142: 0 | DO142: 0 | DP142: 0 | DQ142: =DQ105+DQ106 -> 0 | DR142: 0 | DS142: 0 | DT142: 0 | DU142: 0 | DV142: 0
C143: CFADS | D143: =ut_Digits&""&ut_LCU -> тыс. RUB | E143: DB_delta_CFADS | G143: =G91-G97+SUMIF(INDIRECT($F$69),G69,DB_delta_CFADS) -> 0 | H143: =H91-H97+SUMIF(INDIRECT($F$69),H69,DB_delta_CFADS) -> 0 | I143: 0 | J143: 0 | K143: 0 | L143: 0 | M143: 0 | N143: 0 | O143: 0 | P143: 0 | Q143: 0 | R143: 0 | S143: 0 | T143: 0 | U143: 0 | V143: 0 | W143: 0 | X143: 0 | Y143: 0 | Z143: 0 | AA143: 0 | AB143: 0 | AC143: 0 | AD143: 0 | AE143: 0 | AF143: 0 | AG143: 0 | AH143: 0 | AI143: 0 | AJ143: 0 | AK143: 0 | AL143: 0 | AM143: =AM91-AM97+SUMIF(INDIRECT($F$69),AM69,DB_delta_CFADS) -> 0 | AN143: 0 | AO143: 0 | AP143: 0 | AQ143: 0 | AR143: 0 | AS143: 0 | AT143: 0 | AU143: 0 | AV143: 0 | AW143: 0 | AX143: 0 | AY143: 0 | AZ143: 0 | BA143: 0 | BB143: 0 | BC143: 0 | BD143: 0 | BE143: 0 | BF143: 0 | BG143: 0 | BH143: 0 | BI143: 0 | BJ143: 0 | BK143: 0 | BL143: 0 | BM143: 0 | BN143: 0 | BO143: 0 | BP143: 0 | BQ143: 0 | BR143: 0 | BS143: =BS91-BS97+SUMIF(INDIRECT($F$69),BS69,DB_delta_CFADS) -> 0 | BT143: =BT91-BT97+SUMIF(INDIRECT($F$69),BT69,DB_delta_CFADS) -> 0 | BU143: 0 | BV143: 0 | BW143: 0 | BX143: 0 | BY143: 0 | BZ143: 0 | CA143: 0 | CB143: 0 | CC143: 0 | CD143: 0 | CE143: 0 | CF143: 0 | CG143: 0 | CH143: 0 | CI143: 0 | CJ143: 0 | CK143: 0 | CL143: 0 | CM143: 0 | CN143: 0 | CO143: 0 | CP143: 0 | CQ143: 0 | CR143: 0 | CS143: 0 | CT143: 0 | CU143: 0 | CV143: 0 | CW143: 0 | CX143: 0 | CY143: 0 | CZ143: 0 | DA143: 0 | DB143: 0 | DC143: 0 | DD143: 0 | DE143: 0 | DF143: 0 | DG143: 0 | DH143: 0 | DI143: 0 | DJ143: 0 | DK143: 0 | DL143: 0 | DM143: 0 | DN143: 0 | DO143: 0 | DP143: 0 | DQ143: =DQ91-DQ97+SUMIF(INDIRECT($F$69),DQ69,DB_delta_CFADS) -> 0 | DR143: 0 | DS143: 0 | DT143: 0 | DU143: 0 | DV143: 0
C144: CFADS с учетом дофинансирования | D144: =ut_Digits&""&ut_LCU -> тыс. RUB | E144: Balance_Financing | G144: =G143+G109 -> 0 | H144: 0 | I144: 0 | J144: 0 | K144: 0 | L144: 0 | M144: 0 | N144: 0 | O144: 0 | P144: 0 | Q144: 0 | R144: 0 | S144: 0 | T144: 0 | U144: 0 | V144: 0 | W144: 0 | X144: 0 | Y144: 0 | Z144: 0 | AA144: 0 | AB144: 0 | AC144: 0 | AD144: 0 | AE144: 0 | AF144: 0 | AG144: 0 | AH144: 0 | AI144: 0 | AJ144: 0 | AK144: 0 | AL144: 0 | AM144: =AM143+AM109 -> 0 | AN144: 0 | AO144: 0 | AP144: 0 | AQ144: 0 | AR144: 0 | AS144: 0 | AT144: 0 | AU144: 0 | AV144: 0 | AW144: 0 | AX144: 0 | AY144: 0 | AZ144: 0 | BA144: 0 | BB144: 0 | BC144: 0 | BD144: 0 | BE144: 0 | BF144: 0 | BG144: 0 | BH144: 0 | BI144: 0 | BJ144: 0 | BK144: 0 | BL144: 0 | BM144: 0 | BN144: 0 | BO144: 0 | BP144: 0 | BQ144: 0 | BR144: 0 | BS144: =BS143+BS109 -> 0 | BT144: =BT143+BT109 -> 0 | BU144: 0 | BV144: 0 | BW144: 0 | BX144: 0 | BY144: 0 | BZ144: 0 | CA144: 0 | CB144: 0 | CC144: 0 | CD144: 0 | CE144: 0 | CF144: 0 | CG144: 0 | CH144: 0 | CI144: 0 | CJ144: 0 | CK144: 0 | CL144: 0 | CM144: 0 | CN144: 0 | CO144: 0 | CP144: 0 | CQ144: 0 | CR144: 0 | CS144: 0 | CT144: 0 | CU144: 0 | CV144: 0 | CW144: 0 | CX144: 0 | CY144: 0 | CZ144: 0 | DA144: 0 | DB144: 0 | DC144: 0 | DD144: 0 | DE144: 0 | DF144: 0 | DG144: 0 | DH144: 0 | DI144: 0 | DJ144: 0 | DK144: 0 | DL144: 0 | DM144: 0 | DN144: 0 | DO144: 0 | DP144: 0 | DQ144: =DQ143+DQ109 -> 0 | DR144: 0 | DS144: 0 | DT144: 0 | DU144: 0 | DV144: 0
C145: CFADS включая остаток денежных средств | D145: =ut_Digits&""&ut_LCU -> тыс. RUB | G145: =G144+G115 -> 0 | H145: 0 | I145: 0 | J145: 0 | K145: 0 | L145: 0 | M145: 0 | N145: 0 | O145: 0 | P145: 0 | Q145: 0 | R145: 0 | S145: 0 | T145: 0 | U145: 0 | V145: 0 | W145: 0 | X145: 0 | Y145: 0 | Z145: 0 | AA145: 0 | AB145: 0 | AC145: 0 | AD145: 0 | AE145: 0 | AF145: 0 | AG145: 0 | AH145: 0 | AI145: 0 | AJ145: 0 | AK145: 0 | AL145: 0 | AM145: =AM144+AM115 -> 0 | AN145: 0 | AO145: 0 | AP145: 0 | AQ145: 0 | AR145: 0 | AS145: 0 | AT145: 0 | AU145: 0 | AV145: 0 | AW145: 0 | AX145: 0 | AY145: 0 | AZ145: 0 | BA145: 0 | BB145: 0 | BC145: 0 | BD145: 0 | BE145: 0 | BF145: 0 | BG145: 0 | BH145: 0 | BI145: 0 | BJ145: 0 | BK145: 0 | BL145: 0 | BM145: 0 | BN145: 0 | BO145: 0 | BP145: 0 | BQ145: 0 | BR145: 0 | BS145: =BS144+BS115 -> 0 | BT145: =BT144+BT115 -> 0 | BU145: 0 | BV145: 0 | BW145: 0 | BX145: 0 | BY145: 0 | BZ145: 0 | CA145: 0 | CB145: 0 | CC145: 0 | CD145: 0 | CE145: 0 | CF145: 0 | CG145: 0 | CH145: 0 | CI145: 0 | CJ145: 0 | CK145: 0 | CL145: 0 | CM145: 0 | CN145: 0 | CO145: 0 | CP145: 0 | CQ145: 0 | CR145: 0 | CS145: 0 | CT145: 0 | CU145: 0 | CV145: 0 | CW145: 0 | CX145: 0 | CY145: 0 | CZ145: 0 | DA145: 0 | DB145: 0 | DC145: 0 | DD145: 0 | DE145: 0 | DF145: 0 | DG145: 0 | DH145: 0 | DI145: 0 | DJ145: 0 | DK145: 0 | DL145: 0 | DM145: 0 | DN145: 0 | DO145: 0 | DP145: 0 | DQ145: =DQ144+DQ115 -> 0 | DR145: 0 | DS145: 0 | DT145: 0 | DU145: 0 | DV145: 0
B146: к | C146: DSCR (без дофинансирования) | G146: =ROUND(IFERROR(G143/(G105+G106),0),2) -> 0 | H146: 0 | I146: 0 | J146: 0 | K146: 0 | L146: 0 | M146: 0 | N146: =ROUND(IFERROR(N143/(N105+N106),0),2) -> 0 | O146: 0 | P146: 0 | Q146: 0 | R146: 0 | S146: 0 | T146: 0 | U146: 0 | V146: 0 | W146: 0 | X146: 0 | Y146: 0 | Z146: 0 | AA146: 0 | AB146: 0 | AC146: 0 | AD146: 0 | AE146: 0 | AF146: 0 | AG146: 0 | AH146: 0 | AI146: 0 | AJ146: 0 | AK146: 0 | AL146: 0 | AM146: 0 | AN146: 0 | AO146: 0 | AP146: 0 | AQ146: 0 | AR146: 0 | AS146: 0 | AT146: 0 | AU146: 0 | AV146: 0 | AW146: 0 | AX146: 0 | AY146: 0 | AZ146: 0 | BA146: 0 | BB146: 0 | BC146: 0 | BD146: 0 | BE146: 0 | BF146: 0 | BG146: 0 | BH146: 0 | BI146: 0 | BJ146: 0 | BK146: 0 | BL146: 0 | BM146: 0 | BN146: 0 | BO146: 0 | BP146: 0 | BQ146: 0 | BR146: 0 | BS146: =ROUND(IFERROR(BS143/(BS105+BS106),0),2) -> 0 | BT146: 0 | BU146: 0 | BV146: 0 | BW146: 0 | BX146: 0 | BY146: 0 | BZ146: 0 | CA146: 0 | CB146: 0 | CC146: 0 | CD146: 0 | CE146: 0 | CF146: 0 | CG146: 0 | CH146: 0 | CI146: 0 | CJ146: 0 | CK146: 0 | CL146: 0 | CM146: 0 | CN146: 0 | CO146: 0 | CP146: 0 | CQ146: 0 | CR146: 0 | CS146: 0 | CT146: 0 | CU146: 0 | CV146: 0 | CW146: 0 | CX146: 0 | CY146: 0 | CZ146: 0 | DA146: 0 | DB146: 0 | DC146: 0 | DD146: 0 | DE146: 0 | DF146: 0 | DG146: 0 | DH146: 0 | DI146: 0 | DJ146: 0 | DK146: 0 | DL146: 0 | DM146: 0 | DN146: 0 | DO146: 0 | DP146: 0 | DQ146: 0 | DR146: 0 | DS146: 0 | DT146: 0 | DU146: 0 | DV146: 0
B147: к | C147: DSCR wavg | G147: =ROUND(IFERROR(SUMPRODUCT(G142:$DV142,G146:$DV146)/SUM(G142:$DV142),0),2) -> 0 | H147: =ROUND(IFERROR(SUMPRODUCT(H142:$DV142,H146:$DV146)/SUM(H142:$DV142),0),2) -> 0 | I147: =ROUND(IFERROR(SUMPRODUCT(I142:$DV142,I146:$DV146)/SUM(I142:$DV142),0),2) -> 0 | J147: =ROUND(IFERROR(SUMPRODUCT(J142:$DV142,J146:$DV146)/SUM(J142:$DV142),0),2) -> 0 | K147: =ROUND(IFERROR(SUMPRODUCT(K142:$DV142,K146:$DV146)/SUM(K142:$DV142),0),2) -> 0 | L147: =ROUND(IFERROR(SUMPRODUCT(L142:$DV142,L146:$DV146)/SUM(L142:$DV142),0),2) -> 0 | M147: =ROUND(IFERROR(SUMPRODUCT(M142:$DV142,M146:$DV146)/SUM(M142:$DV142),0),2) -> 0 | N147: =ROUND(IFERROR(SUMPRODUCT(N142:$DV142,N146:$DV146)/SUM(N142:$DV142),0),2) -> 0 | O147: =ROUND(IFERROR(SUMPRODUCT(O142:$DV142,O146:$DV146)/SUM(O142:$DV142),0),2) -> 0 | P147: =ROUND(IFERROR(SUMPRODUCT(P142:$DV142,P146:$DV146)/SUM(P142:$DV142),0),2) -> 0 | Q147: =ROUND(IFERROR(SUMPRODUCT(Q142:$DV142,Q146:$DV146)/SUM(Q142:$DV142),0),2) -> 0 | R147: =ROUND(IFERROR(SUMPRODUCT(R142:$DV142,R146:$DV146)/SUM(R142:$DV142),0),2) -> 0 | S147: =ROUND(IFERROR(SUMPRODUCT(S142:$DV142,S146:$DV146)/SUM(S142:$DV142),0),2) -> 0 | T147: =ROUND(IFERROR(SUMPRODUCT(T142:$DV142,T146:$DV146)/SUM(T142:$DV142),0),2) -> 0 | U147: =ROUND(IFERROR(SUMPRODUCT(U142:$DV142,U146:$DV146)/SUM(U142:$DV142),0),2) -> 0 | V147: =ROUND(IFERROR(SUMPRODUCT(V142:$DV142,V146:$DV146)/SUM(V142:$DV142),0),2) -> 0 | W147: =ROUND(IFERROR(SUMPRODUCT(W142:$DV142,W146:$DV146)/SUM(W142:$DV142),0),2) -> 0 | X147: =ROUND(IFERROR(SUMPRODUCT(X142:$DV142,X146:$DV146)/SUM(X142:$DV142),0),2) -> 0 | Y147: =ROUND(IFERROR(SUMPRODUCT(Y142:$DV142,Y146:$DV146)/SUM(Y142:$DV142),0),2) -> 0 | Z147: =ROUND(IFERROR(SUMPRODUCT(Z142:$DV142,Z146:$DV146)/SUM(Z142:$DV142),0),2) -> 0 | AA147: =ROUND(IFERROR(SUMPRODUCT(AA142:$DV142,AA146:$DV146)/SUM(AA142:$DV142),0),2) -> 0 | AB147: =ROUND(IFERROR(SUMPRODUCT(AB142:$DV142,AB146:$DV146)/SUM(AB142:$DV142),0),2) -> 0 | AC147: =ROUND(IFERROR(SUMPRODUCT(AC142:$DV142,AC146:$DV146)/SUM(AC142:$DV142),0),2) -> 0 | AD147: =ROUND(IFERROR(SUMPRODUCT(AD142:$DV142,AD146:$DV146)/SUM(AD142:$DV142),0),2) -> 0 | AE147: =ROUND(IFERROR(SUMPRODUCT(AE142:$DV142,AE146:$DV146)/SUM(AE142:$DV142),0),2) -> 0 | AF147: =ROUND(IFERROR(SUMPRODUCT(AF142:$DV142,AF146:$DV146)/SUM(AF142:$DV142),0),2) -> 0 | AG147: =ROUND(IFERROR(SUMPRODUCT(AG142:$DV142,AG146:$DV146)/SUM(AG142:$DV142),0),2) -> 0 | AH147: =ROUND(IFERROR(SUMPRODUCT(AH142:$DV142,AH146:$DV146)/SUM(AH142:$DV142),0),2) -> 0 | AI147: =ROUND(IFERROR(SUMPRODUCT(AI142:$DV142,AI146:$DV146)/SUM(AI142:$DV142),0),2) -> 0 | AJ147: =ROUND(IFERROR(SUMPRODUCT(AJ142:$DV142,AJ146:$DV146)/SUM(AJ142:$DV142),0),2) -> 0 | AK147: =ROUND(IFERROR(SUMPRODUCT(AK142:$DV142,AK146:$DV146)/SUM(AK142:$DV142),0),2) -> 0 | AL147: =ROUND(IFERROR(SUMPRODUCT(AL142:$DV142,AL146:$DV146)/SUM(AL142:$DV142),0),2) -> 0 | AM147: =ROUND(IFERROR(SUMPRODUCT(AM142:$DV142,AM146:$DV146)/SUM(AM142:$DV142),0),2) -> 0 | AN147: =ROUND(IFERROR(SUMPRODUCT(AN142:$DV142,AN146:$DV146)/SUM(AN142:$DV142),0),2) -> 0 | AO147: =ROUND(IFERROR(SUMPRODUCT(AO142:$DV142,AO146:$DV146)/SUM(AO142:$DV142),0),2) -> 0 | AP147: =ROUND(IFERROR(SUMPRODUCT(AP142:$DV142,AP146:$DV146)/SUM(AP142:$DV142),0),2) -> 0 | AQ147: =ROUND(IFERROR(SUMPRODUCT(AQ142:$DV142,AQ146:$DV146)/SUM(AQ142:$DV142),0),2) -> 0 | AR147: =ROUND(IFERROR(SUMPRODUCT(AR142:$DV142,AR146:$DV146)/SUM(AR142:$DV142),0),2) -> 0 | AS147: =ROUND(IFERROR(SUMPRODUCT(AS142:$DV142,AS146:$DV146)/SUM(AS142:$DV142),0),2) -> 0 | AT147: =ROUND(IFERROR(SUMPRODUCT(AT142:$DV142,AT146:$DV146)/SUM(AT142:$DV142),0),2) -> 0 | AU147: =ROUND(IFERROR(SUMPRODUCT(AU142:$DV142,AU146:$DV146)/SUM(AU142:$DV142),0),2) -> 0 | AV147: =ROUND(IFERROR(SUMPRODUCT(AV142:$DV142,AV146:$DV146)/SUM(AV142:$DV142),0),2) -> 0 | AW147: =ROUND(IFERROR(SUMPRODUCT(AW142:$DV142,AW146:$DV146)/SUM(AW142:$DV142),0),2) -> 0 | AX147: =ROUND(IFERROR(SUMPRODUCT(AX142:$DV142,AX146:$DV146)/SUM(AX142:$DV142),0),2) -> 0 | AY147: =ROUND(IFERROR(SUMPRODUCT(AY142:$DV142,AY146:$DV146)/SUM(AY142:$DV142),0),2) -> 0 | AZ147: =ROUND(IFERROR(SUMPRODUCT(AZ142:$DV142,AZ146:$DV146)/SUM(AZ142:$DV142),0),2) -> 0 | BA147: =ROUND(IFERROR(SUMPRODUCT(BA142:$DV142,BA146:$DV146)/SUM(BA142:$DV142),0),2) -> 0 | BB147: =ROUND(IFERROR(SUMPRODUCT(BB142:$DV142,BB146:$DV146)/SUM(BB142:$DV142),0),2) -> 0 | BC147: =ROUND(IFERROR(SUMPRODUCT(BC142:$DV142,BC146:$DV146)/SUM(BC142:$DV142),0),2) -> 0 | BD147: =ROUND(IFERROR(SUMPRODUCT(BD142:$DV142,BD146:$DV146)/SUM(BD142:$DV142),0),2) -> 0 | BE147: =ROUND(IFERROR(SUMPRODUCT(BE142:$DV142,BE146:$DV146)/SUM(BE142:$DV142),0),2) -> 0 | BF147: =ROUND(IFERROR(SUMPRODUCT(BF142:$DV142,BF146:$DV146)/SUM(BF142:$DV142),0),2) -> 0 | BG147: =ROUND(IFERROR(SUMPRODUCT(BG142:$DV142,BG146:$DV146)/SUM(BG142:$DV142),0),2) -> 0 | BH147: =ROUND(IFERROR(SUMPRODUCT(BH142:$DV142,BH146:$DV146)/SUM(BH142:$DV142),0),2) -> 0 | BI147: =ROUND(IFERROR(SUMPRODUCT(BI142:$DV142,BI146:$DV146)/SUM(BI142:$DV142),0),2) -> 0 | BJ147: =ROUND(IFERROR(SUMPRODUCT(BJ142:$DV142,BJ146:$DV146)/SUM(BJ142:$DV142),0),2) -> 0 | BK147: =ROUND(IFERROR(SUMPRODUCT(BK142:$DV142,BK146:$DV146)/SUM(BK142:$DV142),0),2) -> 0 | BL147: =ROUND(IFERROR(SUMPRODUCT(BL142:$DV142,BL146:$DV146)/SUM(BL142:$DV142),0),2) -> 0 | BM147: =ROUND(IFERROR(SUMPRODUCT(BM142:$DV142,BM146:$DV146)/SUM(BM142:$DV142),0),2) -> 0 | BN147: =ROUND(IFERROR(SUMPRODUCT(BN142:$DV142,BN146:$DV146)/SUM(BN142:$DV142),0),2) -> 0 | BO147: =ROUND(IFERROR(SUMPRODUCT(BO142:$DV142,BO146:$DV146)/SUM(BO142:$DV142),0),2) -> 0 | BP147: =ROUND(IFERROR(SUMPRODUCT(BP142:$DV142,BP146:$DV146)/SUM(BP142:$DV142),0),2) -> 0 | BQ147: =ROUND(IFERROR(SUMPRODUCT(BQ142:$DV142,BQ146:$DV146)/SUM(BQ142:$DV142),0),2) -> 0 | BR147: =ROUND(IFERROR(SUMPRODUCT(BR142:$DV142,BR146:$DV146)/SUM(BR142:$DV142),0),2) -> 0 | BS147: =ROUND(IFERROR(SUMPRODUCT(BS142:$DV142,BS146:$DV146)/SUM(BS142:$DV142),0),2) -> 0 | BT147: =ROUND(IFERROR(SUMPRODUCT(BT142:$DV142,BT146:$DV146)/SUM(BT142:$DV142),0),2) -> 0 | BU147: =ROUND(IFERROR(SUMPRODUCT(BU142:$DV142,BU146:$DV146)/SUM(BU142:$DV142),0),2) -> 0 | BV147: =ROUND(IFERROR(SUMPRODUCT(BV142:$DV142,BV146:$DV146)/SUM(BV142:$DV142),0),2) -> 0 | BW147: =ROUND(IFERROR(SUMPRODUCT(BW142:$DV142,BW146:$DV146)/SUM(BW142:$DV142),0),2) -> 0 | BX147: =ROUND(IFERROR(SUMPRODUCT(BX142:$DV142,BX146:$DV146)/SUM(BX142:$DV142),0),2) -> 0 | BY147: =ROUND(IFERROR(SUMPRODUCT(BY142:$DV142,BY146:$DV146)/SUM(BY142:$DV142),0),2) -> 0 | BZ147: =ROUND(IFERROR(SUMPRODUCT(BZ142:$DV142,BZ146:$DV146)/SUM(BZ142:$DV142),0),2) -> 0 | CA147: =ROUND(IFERROR(SUMPRODUCT(CA142:$DV142,CA146:$DV146)/SUM(CA142:$DV142),0),2) -> 0 | CB147: =ROUND(IFERROR(SUMPRODUCT(CB142:$DV142,CB146:$DV146)/SUM(CB142:$DV142),0),2) -> 0 | CC147: =ROUND(IFERROR(SUMPRODUCT(CC142:$DV142,CC146:$DV146)/SUM(CC142:$DV142),0),2) -> 0 | CD147: =ROUND(IFERROR(SUMPRODUCT(CD142:$DV142,CD146:$DV146)/SUM(CD142:$DV142),0),2) -> 0 | CE147: =ROUND(IFERROR(SUMPRODUCT(CE142:$DV142,CE146:$DV146)/SUM(CE142:$DV142),0),2) -> 0 | CF147: =ROUND(IFERROR(SUMPRODUCT(CF142:$DV142,CF146:$DV146)/SUM(CF142:$DV142),0),2) -> 0 | CG147: =ROUND(IFERROR(SUMPRODUCT(CG142:$DV142,CG146:$DV146)/SUM(CG142:$DV142),0),2) -> 0 | CH147: =ROUND(IFERROR(SUMPRODUCT(CH142:$DV142,CH146:$DV146)/SUM(CH142:$DV142),0),2) -> 0 | CI147: =ROUND(IFERROR(SUMPRODUCT(CI142:$DV142,CI146:$DV146)/SUM(CI142:$DV142),0),2) -> 0 | CJ147: =ROUND(IFERROR(SUMPRODUCT(CJ142:$DV142,CJ146:$DV146)/SUM(CJ142:$DV142),0),2) -> 0 | CK147: =ROUND(IFERROR(SUMPRODUCT(CK142:$DV142,CK146:$DV146)/SUM(CK142:$DV142),0),2) -> 0 | CL147: =ROUND(IFERROR(SUMPRODUCT(CL142:$DV142,CL146:$DV146)/SUM(CL142:$DV142),0),2) -> 0 | CM147: =ROUND(IFERROR(SUMPRODUCT(CM142:$DV142,CM146:$DV146)/SUM(CM142:$DV142),0),2) -> 0 | CN147: =ROUND(IFERROR(SUMPRODUCT(CN142:$DV142,CN146:$DV146)/SUM(CN142:$DV142),0),2) -> 0 | CO147: =ROUND(IFERROR(SUMPRODUCT(CO142:$DV142,CO146:$DV146)/SUM(CO142:$DV142),0),2) -> 0 | CP147: =ROUND(IFERROR(SUMPRODUCT(CP142:$DV142,CP146:$DV146)/SUM(CP142:$DV142),0),2) -> 0 | CQ147: =ROUND(IFERROR(SUMPRODUCT(CQ142:$DV142,CQ146:$DV146)/SUM(CQ142:$DV142),0),2) -> 0 | CR147: =ROUND(IFERROR(SUMPRODUCT(CR142:$DV142,CR146:$DV146)/SUM(CR142:$DV142),0),2) -> 0 | CS147: =ROUND(IFERROR(SUMPRODUCT(CS142:$DV142,CS146:$DV146)/SUM(CS142:$DV142),0),2) -> 0 | CT147: =ROUND(IFERROR(SUMPRODUCT(CT142:$DV142,CT146:$DV146)/SUM(CT142:$DV142),0),2) -> 0 | CU147: =ROUND(IFERROR(SUMPRODUCT(CU142:$DV142,CU146:$DV146)/SUM(CU142:$DV142),0),2) -> 0 | CV147: =ROUND(IFERROR(SUMPRODUCT(CV142:$DV142,CV146:$DV146)/SUM(CV142:$DV142),0),2) -> 0 | CW147: =ROUND(IFERROR(SUMPRODUCT(CW142:$DV142,CW146:$DV146)/SUM(CW142:$DV142),0),2) -> 0 | CX147: =ROUND(IFERROR(SUMPRODUCT(CX142:$DV142,CX146:$DV146)/SUM(CX142:$DV142),0),2) -> 0 | CY147: =ROUND(IFERROR(SUMPRODUCT(CY142:$DV142,CY146:$DV146)/SUM(CY142:$DV142),0),2) -> 0 | CZ147: =ROUND(IFERROR(SUMPRODUCT(CZ142:$DV142,CZ146:$DV146)/SUM(CZ142:$DV142),0),2) -> 0 | DA147: =ROUND(IFERROR(SUMPRODUCT(DA142:$DV142,DA146:$DV146)/SUM(DA142:$DV142),0),2) -> 0 | DB147: =ROUND(IFERROR(SUMPRODUCT(DB142:$DV142,DB146:$DV146)/SUM(DB142:$DV142),0),2) -> 0 | DC147: =ROUND(IFERROR(SUMPRODUCT(DC142:$DV142,DC146:$DV146)/SUM(DC142:$DV142),0),2) -> 0 | DD147: =ROUND(IFERROR(SUMPRODUCT(DD142:$DV142,DD146:$DV146)/SUM(DD142:$DV142),0),2) -> 0 | DE147: =ROUND(IFERROR(SUMPRODUCT(DE142:$DV142,DE146:$DV146)/SUM(DE142:$DV142),0),2) -> 0 | DF147: =ROUND(IFERROR(SUMPRODUCT(DF142:$DV142,DF146:$DV146)/SUM(DF142:$DV142),0),2) -> 0 | DG147: =ROUND(IFERROR(SUMPRODUCT(DG142:$DV142,DG146:$DV146)/SUM(DG142:$DV142),0),2) -> 0 | DH147: =ROUND(IFERROR(SUMPRODUCT(DH142:$DV142,DH146:$DV146)/SUM(DH142:$DV142),0),2) -> 0 | DI147: =ROUND(IFERROR(SUMPRODUCT(DI142:$DV142,DI146:$DV146)/SUM(DI142:$DV142),0),2) -> 0 | DJ147: =ROUND(IFERROR(SUMPRODUCT(DJ142:$DV142,DJ146:$DV146)/SUM(DJ142:$DV142),0),2) -> 0 | DK147: =ROUND(IFERROR(SUMPRODUCT(DK142:$DV142,DK146:$DV146)/SUM(DK142:$DV142),0),2) -> 0 | DL147: =ROUND(IFERROR(SUMPRODUCT(DL142:$DV142,DL146:$DV146)/SUM(DL142:$DV142),0),2) -> 0 | DM147: =ROUND(IFERROR(SUMPRODUCT(DM142:$DV142,DM146:$DV146)/SUM(DM142:$DV142),0),2) -> 0 | DN147: =ROUND(IFERROR(SUMPRODUCT(DN142:$DV142,DN146:$DV146)/SUM(DN142:$DV142),0),2) -> 0 | DO147: =ROUND(IFERROR(SUMPRODUCT(DO142:$DV142,DO146:$DV146)/SUM(DO142:$DV142),0),2) -> 0 | DP147: =ROUND(IFERROR(SUMPRODUCT(DP142:$DV142,DP146:$DV146)/SUM(DP142:$DV142),0),2) -> 0 | DQ147: =ROUND(IFERROR(SUMPRODUCT(DQ142:$DV142,DQ146:$DV146)/SUM(DQ142:$DV142),0),2) -> 0 | DR147: =ROUND(IFERROR(SUMPRODUCT(DR142:$DV142,DR146:$DV146)/SUM(DR142:$DV142),0),2) -> 0 | DS147: =ROUND(IFERROR(SUMPRODUCT(DS142:$DV142,DS146:$DV146)/SUM(DS142:$DV142),0),2) -> 0 | DT147: =ROUND(IFERROR(SUMPRODUCT(DT142:$DV142,DT146:$DV146)/SUM(DT142:$DV142),0),2) -> 0 | DU147: =ROUND(IFERROR(SUMPRODUCT(DU142:$DV142,DU146:$DV146)/SUM(DU142:$DV142),0),2) -> 0 | DV147: =ROUND(IFERROR(SUMPRODUCT(DV142:$DV142,DV146:$DV146)/SUM(DV142:$DV142),0),2) -> 0
C148: DSCR (включая балансирующий долг) | G148: =ROUND(IFERROR(G144/(G105+G106+G110),0),2) -> 0 | H148: =ROUND(IFERROR(H144/(H105+H106+H110),0),2) -> 0 | I148: 0 | J148: 0 | K148: 0 | L148: 0 | M148: 0 | N148: 0 | O148: 0 | P148: 0 | Q148: 0 | R148: 0 | S148: 0 | T148: 0 | U148: 0 | V148: 0 | W148: 0 | X148: 0 | Y148: 0 | Z148: =ROUND(IFERROR(Z144/(Z105+Z106+Z110),0),2) -> 0 | AA148: 0 | AB148: 0 | AC148: 0 | AD148: 0 | AE148: 0 | AF148: 0 | AG148: 0 | AH148: 0 | AI148: 0 | AJ148: 0 | AK148: 0 | AL148: 0 | AM148: 0 | AN148: 0 | AO148: 0 | AP148: 0 | AQ148: 0 | AR148: 0 | AS148: 0 | AT148: 0 | AU148: 0 | AV148: 0 | AW148: 0 | AX148: 0 | AY148: 0 | AZ148: 0 | BA148: 0 | BB148: 0 | BC148: 0 | BD148: 0 | BE148: 0 | BF148: 0 | BG148: 0 | BH148: 0 | BI148: 0 | BJ148: 0 | BK148: 0 | BL148: 0 | BM148: 0 | BN148: 0 | BO148: 0 | BP148: 0 | BQ148: 0 | BR148: 0 | BS148: 0 | BT148: 0 | BU148: 0 | BV148: 0 | BW148: 0 | BX148: 0 | BY148: 0 | BZ148: 0 | CA148: 0 | CB148: 0 | CC148: 0 | CD148: 0 | CE148: 0 | CF148: 0 | CG148: 0 | CH148: 0 | CI148: 0 | CJ148: 0 | CK148: 0 | CL148: =ROUND(IFERROR(CL144/(CL105+CL106+CL110),0),2) -> 0 | CM148: 0 | CN148: 0 | CO148: 0 | CP148: 0 | CQ148: 0 | CR148: 0 | CS148: 0 | CT148: 0 | CU148: 0 | CV148: 0 | CW148: 0 | CX148: 0 | CY148: 0 | CZ148: 0 | DA148: 0 | DB148: 0 | DC148: 0 | DD148: 0 | DE148: 0 | DF148: 0 | DG148: 0 | DH148: 0 | DI148: 0 | DJ148: 0 | DK148: 0 | DL148: 0 | DM148: 0 | DN148: 0 | DO148: 0 | DP148: 0 | DQ148: 0 | DR148: 0 | DS148: 0 | DT148: 0 | DU148: 0 | DV148: 0
C149: DSCR включая остаток денежных средств | G149: =ROUND(IFERROR(G145/G106,0),2) -> 0 | H149: =ROUND(IFERROR(H145/H106,0),2) -> 0 | I149: 0 | J149: 0 | K149: 0 | L149: 0 | M149: 0 | N149: 0 | O149: 0 | P149: 0 | Q149: 0 | R149: 0 | S149: 0 | T149: 0 | U149: 0 | V149: 0 | W149: 0 | X149: 0 | Y149: 0 | Z149: =ROUND(IFERROR(Z145/Z106,0),2) -> 0 | AA149: 0 | AB149: 0 | AC149: 0 | AD149: 0 | AE149: 0 | AF149: 0 | AG149: 0 | AH149: 0 | AI149: 0 | AJ149: 0 | AK149: 0 | AL149: 0 | AM149: 0 | AN149: 0 | AO149: 0 | AP149: 0 | AQ149: 0 | AR149: 0 | AS149: 0 | AT149: 0 | AU149: 0 | AV149: 0 | AW149: 0 | AX149: 0 | AY149: 0 | AZ149: 0 | BA149: 0 | BB149: 0 | BC149: 0 | BD149: 0 | BE149: 0 | BF149: 0 | BG149: 0 | BH149: 0 | BI149: 0 | BJ149: 0 | BK149: 0 | BL149: 0 | BM149: 0 | BN149: 0 | BO149: 0 | BP149: 0 | BQ149: 0 | BR149: 0 | BS149: 0 | BT149: 0 | BU149: 0 | BV149: 0 | BW149: 0 | BX149: 0 | BY149: 0 | BZ149: 0 | CA149: 0 | CB149: 0 | CC149: 0 | CD149: 0 | CE149: 0 | CF149: 0 | CG149: 0 | CH149: 0 | CI149: 0 | CJ149: 0 | CK149: 0 | CL149: =ROUND(IFERROR(CL145/CL106,0),2) -> 0 | CM149: 0 | CN149: 0 | CO149: 0 | CP149: 0 | CQ149: 0 | CR149: 0 | CS149: 0 | CT149: 0 | CU149: 0 | CV149: 0 | CW149: 0 | CX149: 0 | CY149: 0 | CZ149: 0 | DA149: 0 | DB149: 0 | DC149: 0 | DD149: 0 | DE149: 0 | DF149: 0 | DG149: 0 | DH149: 0 | DI149: 0 | DJ149: 0 | DK149: 0 | DL149: 0 | DM149: 0 | DN149: 0 | DO149: 0 | DP149: 0 | DQ149: 0 | DR149: 0 | DS149: 0 | DT149: 0 | DU149: 0 | DV149: 0
C150: ICR | G150: =ROUND(IFERROR(G82/G105,0),2) -> 0 | H150: =ROUND(IFERROR(H82/H105,0),2) -> 0 | I150: 0 | J150: 0 | K150: 0 | L150: 0 | M150: 0 | N150: 0 | O150: 0 | P150: 0 | Q150: 0 | R150: 0 | S150: 0 | T150: 0 | U150: 0 | V150: 0 | W150: 0 | X150: 0 | Y150: 0 | Z150: =ROUND(IFERROR(Z82/Z105,0),2) -> 0 | AA150: 0 | AB150: 0 | AC150: 0 | AD150: 0 | AE150: 0 | AF150: 0 | AG150: 0 | AH150: 0 | AI150: 0 | AJ150: 0 | AK150: 0 | AL150: 0 | AM150: 0 | AN150: 0 | AO150: 0 | AP150: 0 | AQ150: 0 | AR150: 0 | AS150: 0 | AT150: 0 | AU150: 0 | AV150: 0 | AW150: 0 | AX150: 0 | AY150: 0 | AZ150: 0 | BA150: 0 | BB150: 0 | BC150: 0 | BD150: 0 | BE150: 0 | BF150: 0 | BG150: 0 | BH150: 0 | BI150: 0 | BJ150: 0 | BK150: 0 | BL150: 0 | BM150: 0 | BN150: 0 | BO150: 0 | BP150: 0 | BQ150: 0 | BR150: 0 | BS150: 0 | BT150: 0 | BU150: 0 | BV150: 0 | BW150: 0 | BX150: 0 | BY150: 0 | BZ150: 0 | CA150: 0 | CB150: 0 | CC150: 0 | CD150: 0 | CE150: 0 | CF150: 0 | CG150: 0 | CH150: 0 | CI150: 0 | CJ150: 0 | CK150: 0 | CL150: =ROUND(IFERROR(CL82/CL105,0),2) -> 0 | CM150: 0 | CN150: 0 | CO150: 0 | CP150: 0 | CQ150: 0 | CR150: 0 | CS150: 0 | CT150: 0 | CU150: 0 | CV150: 0 | CW150: 0 | CX150: 0 | CY150: 0 | CZ150: 0 | DA150: 0 | DB150: 0 | DC150: 0 | DD150: 0 | DE150: 0 | DF150: 0 | DG150: 0 | DH150: 0 | DI150: 0 | DJ150: 0 | DK150: 0 | DL150: 0 | DM150: 0 | DN150: 0 | DO150: 0 | DP150: 0 | DQ150: 0 | DR150: 0 | DS150: 0 | DT150: 0 | DU150: 0 | DV150: 0
B151: к | C151: ISCR | G151: =ROUND(IFERROR(G145/(G105),0),2) -> 0 | H151: =ROUND(IFERROR(H145/(H105),0),2) -> 0 | I151: 0 | J151: 0 | K151: 0 | L151: 0 | M151: 0 | N151: 0 | O151: 0 | P151: 0 | Q151: 0 | R151: 0 | S151: 0 | T151: 0 | U151: 0 | V151: 0 | W151: 0 | X151: 0 | Y151: 0 | Z151: =ROUND(IFERROR(Z145/(Z105),0),2) -> 0 | AA151: 0 | AB151: 0 | AC151: 0 | AD151: 0 | AE151: 0 | AF151: 0 | AG151: 0 | AH151: 0 | AI151: 0 | AJ151: 0 | AK151: 0 | AL151: 0 | AM151: 0 | AN151: 0 | AO151: 0 | AP151: 0 | AQ151: 0 | AR151: 0 | AS151: 0 | AT151: 0 | AU151: 0 | AV151: 0 | AW151: 0 | AX151: 0 | AY151: 0 | AZ151: 0 | BA151: 0 | BB151: 0 | BC151: 0 | BD151: 0 | BE151: 0 | BF151: 0 | BG151: 0 | BH151: 0 | BI151: 0 | BJ151: 0 | BK151: 0 | BL151: 0 | BM151: 0 | BN151: 0 | BO151: 0 | BP151: 0 | BQ151: 0 | BR151: 0 | BS151: 0 | BT151: 0 | BU151: 0 | BV151: 0 | BW151: 0 | BX151: 0 | BY151: 0 | BZ151: 0 | CA151: 0 | CB151: 0 | CC151: 0 | CD151: 0 | CE151: 0 | CF151: 0 | CG151: 0 | CH151: 0 | CI151: 0 | CJ151: 0 | CK151: 0 | CL151: =ROUND(IFERROR(CL145/(CL105),0),2) -> 0 | CM151: 0 | CN151: 0 | CO151: 0 | CP151: 0 | CQ151: 0 | CR151: 0 | CS151: 0 | CT151: 0 | CU151: 0 | CV151: 0 | CW151: 0 | CX151: 0 | CY151: 0 | CZ151: 0 | DA151: 0 | DB151: 0 | DC151: 0 | DD151: 0 | DE151: 0 | DF151: 0 | DG151: 0 | DH151: 0 | DI151: 0 | DJ151: 0 | DK151: 0 | DL151: 0 | DM151: 0 | DN151: 0 | DO151: 0 | DP151: 0 | DQ151: 0 | DR151: 0 | DS151: 0 | DT151: 0 | DU151: 0 | DV151: 0
C152: ISCR wavg | G152: =ROUND(IFERROR(SUMPRODUCT(G105:$DV105,G151:$DV151)/SUM(G142:$DV142),0),2) -> 0 | H152: =ROUND(IFERROR(SUMPRODUCT(H105:$DV105,H151:$DV151)/SUM(H142:$DV142),0),2) -> 0 | I152: =ROUND(IFERROR(SUMPRODUCT(I105:$DV105,I151:$DV151)/SUM(I142:$DV142),0),2) -> 0 | J152: =ROUND(IFERROR(SUMPRODUCT(J105:$DV105,J151:$DV151)/SUM(J142:$DV142),0),2) -> 0 | K152: =ROUND(IFERROR(SUMPRODUCT(K105:$DV105,K151:$DV151)/SUM(K142:$DV142),0),2) -> 0 | L152: =ROUND(IFERROR(SUMPRODUCT(L105:$DV105,L151:$DV151)/SUM(L142:$DV142),0),2) -> 0 | M152: =ROUND(IFERROR(SUMPRODUCT(M105:$DV105,M151:$DV151)/SUM(M142:$DV142),0),2) -> 0 | N152: =ROUND(IFERROR(SUMPRODUCT(N105:$DV105,N151:$DV151)/SUM(N142:$DV142),0),2) -> 0 | O152: =ROUND(IFERROR(SUMPRODUCT(O105:$DV105,O151:$DV151)/SUM(O142:$DV142),0),2) -> 0 | P152: =ROUND(IFERROR(SUMPRODUCT(P105:$DV105,P151:$DV151)/SUM(P142:$DV142),0),2) -> 0 | Q152: =ROUND(IFERROR(SUMPRODUCT(Q105:$DV105,Q151:$DV151)/SUM(Q142:$DV142),0),2) -> 0 | R152: =ROUND(IFERROR(SUMPRODUCT(R105:$DV105,R151:$DV151)/SUM(R142:$DV142),0),2) -> 0 | S152: =ROUND(IFERROR(SUMPRODUCT(S105:$DV105,S151:$DV151)/SUM(S142:$DV142),0),2) -> 0 | T152: =ROUND(IFERROR(SUMPRODUCT(T105:$DV105,T151:$DV151)/SUM(T142:$DV142),0),2) -> 0 | U152: =ROUND(IFERROR(SUMPRODUCT(U105:$DV105,U151:$DV151)/SUM(U142:$DV142),0),2) -> 0 | V152: =ROUND(IFERROR(SUMPRODUCT(V105:$DV105,V151:$DV151)/SUM(V142:$DV142),0),2) -> 0 | W152: =ROUND(IFERROR(SUMPRODUCT(W105:$DV105,W151:$DV151)/SUM(W142:$DV142),0),2) -> 0 | X152: =ROUND(IFERROR(SUMPRODUCT(X105:$DV105,X151:$DV151)/SUM(X142:$DV142),0),2) -> 0 | Y152: =ROUND(IFERROR(SUMPRODUCT(Y105:$DV105,Y151:$DV151)/SUM(Y142:$DV142),0),2) -> 0 | Z152: =ROUND(IFERROR(SUMPRODUCT(Z105:$DV105,Z151:$DV151)/SUM(Z142:$DV142),0),2) -> 0 | AA152: =ROUND(IFERROR(SUMPRODUCT(AA105:$DV105,AA151:$DV151)/SUM(AA142:$DV142),0),2) -> 0 | AB152: =ROUND(IFERROR(SUMPRODUCT(AB105:$DV105,AB151:$DV151)/SUM(AB142:$DV142),0),2) -> 0 | AC152: =ROUND(IFERROR(SUMPRODUCT(AC105:$DV105,AC151:$DV151)/SUM(AC142:$DV142),0),2) -> 0 | AD152: =ROUND(IFERROR(SUMPRODUCT(AD105:$DV105,AD151:$DV151)/SUM(AD142:$DV142),0),2) -> 0 | AE152: =ROUND(IFERROR(SUMPRODUCT(AE105:$DV105,AE151:$DV151)/SUM(AE142:$DV142),0),2) -> 0 | AF152: =ROUND(IFERROR(SUMPRODUCT(AF105:$DV105,AF151:$DV151)/SUM(AF142:$DV142),0),2) -> 0 | AG152: =ROUND(IFERROR(SUMPRODUCT(AG105:$DV105,AG151:$DV151)/SUM(AG142:$DV142),0),2) -> 0 | AH152: =ROUND(IFERROR(SUMPRODUCT(AH105:$DV105,AH151:$DV151)/SUM(AH142:$DV142),0),2) -> 0 | AI152: =ROUND(IFERROR(SUMPRODUCT(AI105:$DV105,AI151:$DV151)/SUM(AI142:$DV142),0),2) -> 0 | AJ152: =ROUND(IFERROR(SUMPRODUCT(AJ105:$DV105,AJ151:$DV151)/SUM(AJ142:$DV142),0),2) -> 0 | AK152: =ROUND(IFERROR(SUMPRODUCT(AK105:$DV105,AK151:$DV151)/SUM(AK142:$DV142),0),2) -> 0 | AL152: =ROUND(IFERROR(SUMPRODUCT(AL105:$DV105,AL151:$DV151)/SUM(AL142:$DV142),0),2) -> 0 | AM152: =ROUND(IFERROR(SUMPRODUCT(AM105:$DV105,AM151:$DV151)/SUM(AM142:$DV142),0),2) -> 0 | AN152: =ROUND(IFERROR(SUMPRODUCT(AN105:$DV105,AN151:$DV151)/SUM(AN142:$DV142),0),2) -> 0 | AO152: =ROUND(IFERROR(SUMPRODUCT(AO105:$DV105,AO151:$DV151)/SUM(AO142:$DV142),0),2) -> 0 | AP152: =ROUND(IFERROR(SUMPRODUCT(AP105:$DV105,AP151:$DV151)/SUM(AP142:$DV142),0),2) -> 0 | AQ152: =ROUND(IFERROR(SUMPRODUCT(AQ105:$DV105,AQ151:$DV151)/SUM(AQ142:$DV142),0),2) -> 0 | AR152: =ROUND(IFERROR(SUMPRODUCT(AR105:$DV105,AR151:$DV151)/SUM(AR142:$DV142),0),2) -> 0 | AS152: =ROUND(IFERROR(SUMPRODUCT(AS105:$DV105,AS151:$DV151)/SUM(AS142:$DV142),0),2) -> 0 | AT152: =ROUND(IFERROR(SUMPRODUCT(AT105:$DV105,AT151:$DV151)/SUM(AT142:$DV142),0),2) -> 0 | AU152: =ROUND(IFERROR(SUMPRODUCT(AU105:$DV105,AU151:$DV151)/SUM(AU142:$DV142),0),2) -> 0 | AV152: =ROUND(IFERROR(SUMPRODUCT(AV105:$DV105,AV151:$DV151)/SUM(AV142:$DV142),0),2) -> 0 | AW152: =ROUND(IFERROR(SUMPRODUCT(AW105:$DV105,AW151:$DV151)/SUM(AW142:$DV142),0),2) -> 0 | AX152: =ROUND(IFERROR(SUMPRODUCT(AX105:$DV105,AX151:$DV151)/SUM(AX142:$DV142),0),2) -> 0 | AY152: =ROUND(IFERROR(SUMPRODUCT(AY105:$DV105,AY151:$DV151)/SUM(AY142:$DV142),0),2) -> 0 | AZ152: =ROUND(IFERROR(SUMPRODUCT(AZ105:$DV105,AZ151:$DV151)/SUM(AZ142:$DV142),0),2) -> 0 | BA152: =ROUND(IFERROR(SUMPRODUCT(BA105:$DV105,BA151:$DV151)/SUM(BA142:$DV142),0),2) -> 0 | BB152: =ROUND(IFERROR(SUMPRODUCT(BB105:$DV105,BB151:$DV151)/SUM(BB142:$DV142),0),2) -> 0 | BC152: =ROUND(IFERROR(SUMPRODUCT(BC105:$DV105,BC151:$DV151)/SUM(BC142:$DV142),0),2) -> 0 | BD152: =ROUND(IFERROR(SUMPRODUCT(BD105:$DV105,BD151:$DV151)/SUM(BD142:$DV142),0),2) -> 0 | BE152: =ROUND(IFERROR(SUMPRODUCT(BE105:$DV105,BE151:$DV151)/SUM(BE142:$DV142),0),2) -> 0 | BF152: =ROUND(IFERROR(SUMPRODUCT(BF105:$DV105,BF151:$DV151)/SUM(BF142:$DV142),0),2) -> 0 | BG152: =ROUND(IFERROR(SUMPRODUCT(BG105:$DV105,BG151:$DV151)/SUM(BG142:$DV142),0),2) -> 0 | BH152: =ROUND(IFERROR(SUMPRODUCT(BH105:$DV105,BH151:$DV151)/SUM(BH142:$DV142),0),2) -> 0 | BI152: =ROUND(IFERROR(SUMPRODUCT(BI105:$DV105,BI151:$DV151)/SUM(BI142:$DV142),0),2) -> 0 | BJ152: =ROUND(IFERROR(SUMPRODUCT(BJ105:$DV105,BJ151:$DV151)/SUM(BJ142:$DV142),0),2) -> 0 | BK152: =ROUND(IFERROR(SUMPRODUCT(BK105:$DV105,BK151:$DV151)/SUM(BK142:$DV142),0),2) -> 0 | BL152: =ROUND(IFERROR(SUMPRODUCT(BL105:$DV105,BL151:$DV151)/SUM(BL142:$DV142),0),2) -> 0 | BM152: =ROUND(IFERROR(SUMPRODUCT(BM105:$DV105,BM151:$DV151)/SUM(BM142:$DV142),0),2) -> 0 | BN152: =ROUND(IFERROR(SUMPRODUCT(BN105:$DV105,BN151:$DV151)/SUM(BN142:$DV142),0),2) -> 0 | BO152: =ROUND(IFERROR(SUMPRODUCT(BO105:$DV105,BO151:$DV151)/SUM(BO142:$DV142),0),2) -> 0 | BP152: =ROUND(IFERROR(SUMPRODUCT(BP105:$DV105,BP151:$DV151)/SUM(BP142:$DV142),0),2) -> 0 | BQ152: =ROUND(IFERROR(SUMPRODUCT(BQ105:$DV105,BQ151:$DV151)/SUM(BQ142:$DV142),0),2) -> 0 | BR152: =ROUND(IFERROR(SUMPRODUCT(BR105:$DV105,BR151:$DV151)/SUM(BR142:$DV142),0),2) -> 0 | BS152: =ROUND(IFERROR(SUMPRODUCT(BS105:$DV105,BS151:$DV151)/SUM(BS142:$DV142),0),2) -> 0 | BT152: =ROUND(IFERROR(SUMPRODUCT(BT105:$DV105,BT151:$DV151)/SUM(BT142:$DV142),0),2) -> 0 | BU152: =ROUND(IFERROR(SUMPRODUCT(BU105:$DV105,BU151:$DV151)/SUM(BU142:$DV142),0),2) -> 0 | BV152: =ROUND(IFERROR(SUMPRODUCT(BV105:$DV105,BV151:$DV151)/SUM(BV142:$DV142),0),2) -> 0 | BW152: =ROUND(IFERROR(SUMPRODUCT(BW105:$DV105,BW151:$DV151)/SUM(BW142:$DV142),0),2) -> 0 | BX152: =ROUND(IFERROR(SUMPRODUCT(BX105:$DV105,BX151:$DV151)/SUM(BX142:$DV142),0),2) -> 0 | BY152: =ROUND(IFERROR(SUMPRODUCT(BY105:$DV105,BY151:$DV151)/SUM(BY142:$DV142),0),2) -> 0 | BZ152: =ROUND(IFERROR(SUMPRODUCT(BZ105:$DV105,BZ151:$DV151)/SUM(BZ142:$DV142),0),2) -> 0 | CA152: =ROUND(IFERROR(SUMPRODUCT(CA105:$DV105,CA151:$DV151)/SUM(CA142:$DV142),0),2) -> 0 | CB152: =ROUND(IFERROR(SUMPRODUCT(CB105:$DV105,CB151:$DV151)/SUM(CB142:$DV142),0),2) -> 0 | CC152: =ROUND(IFERROR(SUMPRODUCT(CC105:$DV105,CC151:$DV151)/SUM(CC142:$DV142),0),2) -> 0 | CD152: =ROUND(IFERROR(SUMPRODUCT(CD105:$DV105,CD151:$DV151)/SUM(CD142:$DV142),0),2) -> 0 | CE152: =ROUND(IFERROR(SUMPRODUCT(CE105:$DV105,CE151:$DV151)/SUM(CE142:$DV142),0),2) -> 0 | CF152: =ROUND(IFERROR(SUMPRODUCT(CF105:$DV105,CF151:$DV151)/SUM(CF142:$DV142),0),2) -> 0 | CG152: =ROUND(IFERROR(SUMPRODUCT(CG105:$DV105,CG151:$DV151)/SUM(CG142:$DV142),0),2) -> 0 | CH152: =ROUND(IFERROR(SUMPRODUCT(CH105:$DV105,CH151:$DV151)/SUM(CH142:$DV142),0),2) -> 0 | CI152: =ROUND(IFERROR(SUMPRODUCT(CI105:$DV105,CI151:$DV151)/SUM(CI142:$DV142),0),2) -> 0 | CJ152: =ROUND(IFERROR(SUMPRODUCT(CJ105:$DV105,CJ151:$DV151)/SUM(CJ142:$DV142),0),2) -> 0 | CK152: =ROUND(IFERROR(SUMPRODUCT(CK105:$DV105,CK151:$DV151)/SUM(CK142:$DV142),0),2) -> 0 | CL152: =ROUND(IFERROR(SUMPRODUCT(CL105:$DV105,CL151:$DV151)/SUM(CL142:$DV142),0),2) -> 0 | CM152: =ROUND(IFERROR(SUMPRODUCT(CM105:$DV105,CM151:$DV151)/SUM(CM142:$DV142),0),2) -> 0 | CN152: =ROUND(IFERROR(SUMPRODUCT(CN105:$DV105,CN151:$DV151)/SUM(CN142:$DV142),0),2) -> 0 | CO152: =ROUND(IFERROR(SUMPRODUCT(CO105:$DV105,CO151:$DV151)/SUM(CO142:$DV142),0),2) -> 0 | CP152: =ROUND(IFERROR(SUMPRODUCT(CP105:$DV105,CP151:$DV151)/SUM(CP142:$DV142),0),2) -> 0 | CQ152: =ROUND(IFERROR(SUMPRODUCT(CQ105:$DV105,CQ151:$DV151)/SUM(CQ142:$DV142),0),2) -> 0 | CR152: =ROUND(IFERROR(SUMPRODUCT(CR105:$DV105,CR151:$DV151)/SUM(CR142:$DV142),0),2) -> 0 | CS152: =ROUND(IFERROR(SUMPRODUCT(CS105:$DV105,CS151:$DV151)/SUM(CS142:$DV142),0),2) -> 0 | CT152: =ROUND(IFERROR(SUMPRODUCT(CT105:$DV105,CT151:$DV151)/SUM(CT142:$DV142),0),2) -> 0 | CU152: =ROUND(IFERROR(SUMPRODUCT(CU105:$DV105,CU151:$DV151)/SUM(CU142:$DV142),0),2) -> 0 | CV152: =ROUND(IFERROR(SUMPRODUCT(CV105:$DV105,CV151:$DV151)/SUM(CV142:$DV142),0),2) -> 0 | CW152: =ROUND(IFERROR(SUMPRODUCT(CW105:$DV105,CW151:$DV151)/SUM(CW142:$DV142),0),2) -> 0 | CX152: =ROUND(IFERROR(SUMPRODUCT(CX105:$DV105,CX151:$DV151)/SUM(CX142:$DV142),0),2) -> 0 | CY152: =ROUND(IFERROR(SUMPRODUCT(CY105:$DV105,CY151:$DV151)/SUM(CY142:$DV142),0),2) -> 0 | CZ152: =ROUND(IFERROR(SUMPRODUCT(CZ105:$DV105,CZ151:$DV151)/SUM(CZ142:$DV142),0),2) -> 0 | DA152: =ROUND(IFERROR(SUMPRODUCT(DA105:$DV105,DA151:$DV151)/SUM(DA142:$DV142),0),2) -> 0 | DB152: =ROUND(IFERROR(SUMPRODUCT(DB105:$DV105,DB151:$DV151)/SUM(DB142:$DV142),0),2) -> 0 | DC152: =ROUND(IFERROR(SUMPRODUCT(DC105:$DV105,DC151:$DV151)/SUM(DC142:$DV142),0),2) -> 0 | DD152: =ROUND(IFERROR(SUMPRODUCT(DD105:$DV105,DD151:$DV151)/SUM(DD142:$DV142),0),2) -> 0 | DE152: =ROUND(IFERROR(SUMPRODUCT(DE105:$DV105,DE151:$DV151)/SUM(DE142:$DV142),0),2) -> 0 | DF152: =ROUND(IFERROR(SUMPRODUCT(DF105:$DV105,DF151:$DV151)/SUM(DF142:$DV142),0),2) -> 0 | DG152: =ROUND(IFERROR(SUMPRODUCT(DG105:$DV105,DG151:$DV151)/SUM(DG142:$DV142),0),2) -> 0 | DH152: =ROUND(IFERROR(SUMPRODUCT(DH105:$DV105,DH151:$DV151)/SUM(DH142:$DV142),0),2) -> 0 | DI152: =ROUND(IFERROR(SUMPRODUCT(DI105:$DV105,DI151:$DV151)/SUM(DI142:$DV142),0),2) -> 0 | DJ152: =ROUND(IFERROR(SUMPRODUCT(DJ105:$DV105,DJ151:$DV151)/SUM(DJ142:$DV142),0),2) -> 0 | DK152: =ROUND(IFERROR(SUMPRODUCT(DK105:$DV105,DK151:$DV151)/SUM(DK142:$DV142),0),2) -> 0 | DL152: =ROUND(IFERROR(SUMPRODUCT(DL105:$DV105,DL151:$DV151)/SUM(DL142:$DV142),0),2) -> 0 | DM152: =ROUND(IFERROR(SUMPRODUCT(DM105:$DV105,DM151:$DV151)/SUM(DM142:$DV142),0),2) -> 0 | DN152: =ROUND(IFERROR(SUMPRODUCT(DN105:$DV105,DN151:$DV151)/SUM(DN142:$DV142),0),2) -> 0 | DO152: =ROUND(IFERROR(SUMPRODUCT(DO105:$DV105,DO151:$DV151)/SUM(DO142:$DV142),0),2) -> 0 | DP152: =ROUND(IFERROR(SUMPRODUCT(DP105:$DV105,DP151:$DV151)/SUM(DP142:$DV142),0),2) -> 0 | DQ152: =ROUND(IFERROR(SUMPRODUCT(DQ105:$DV105,DQ151:$DV151)/SUM(DQ142:$DV142),0),2) -> 0 | DR152: =ROUND(IFERROR(SUMPRODUCT(DR105:$DV105,DR151:$DV151)/SUM(DR142:$DV142),0),2) -> 0 | DS152: =ROUND(IFERROR(SUMPRODUCT(DS105:$DV105,DS151:$DV151)/SUM(DS142:$DV142),0),2) -> 0 | DT152: =ROUND(IFERROR(SUMPRODUCT(DT105:$DV105,DT151:$DV151)/SUM(DT142:$DV142),0),2) -> 0 | DU152: =ROUND(IFERROR(SUMPRODUCT(DU105:$DV105,DU151:$DV151)/SUM(DU142:$DV142),0),2) -> 0 | DV152: =ROUND(IFERROR(SUMPRODUCT(DV105:$DV105,DV151:$DV151)/SUM(DV142:$DV142),0),2) -> 0
B153: к | C153: LLCR | F153: discount | G153: =ROUND(IFERROR(G278/G280,0),2)*G216 -> 0 | H153: =ROUND(IFERROR(H278/H280,0),2)*H216 -> 0 | I153: =ROUND(IFERROR(I278/I280,0),2)*I216 -> 0 | J153: 0 | K153: 0 | L153: 0 | M153: 0 | N153: 0 | O153: 0 | P153: 0 | Q153: 0 | R153: 0 | S153: 0 | T153: 0 | U153: 0 | V153: 0 | W153: 0 | X153: 0 | Y153: 0 | Z153: 0 | AA153: 0 | AB153: 0 | AC153: 0 | AD153: 0 | AE153: 0 | AF153: 0 | AG153: 0 | AH153: 0 | AI153: 0 | AJ153: 0 | AK153: 0 | AL153: 0 | AM153: 0 | AN153: 0 | AO153: 0 | AP153: 0 | AQ153: 0 | AR153: 0 | AS153: 0 | AT153: 0 | AU153: 0 | AV153: 0 | AW153: 0 | AX153: 0 | AY153: 0 | AZ153: 0 | BA153: 0 | BB153: 0 | BC153: 0 | BD153: 0 | BE153: 0 | BF153: 0 | BG153: 0 | BH153: 0 | BI153: 0 | BJ153: 0 | BK153: 0 | BL153: 0 | BM153: 0 | BN153: 0 | BO153: 0 | BP153: 0 | BQ153: 0 | BR153: 0 | BS153: 0 | BT153: =ROUND(IFERROR(BT278/BT280,0),2)*BT216 -> 0 | BU153: 0 | BV153: 0 | BW153: 0 | BX153: 0 | BY153: 0 | BZ153: 0 | CA153: 0 | CB153: 0 | CC153: 0 | CD153: 0 | CE153: 0 | CF153: 0 | CG153: 0 | CH153: 0 | CI153: 0 | CJ153: 0 | CK153: 0 | CL153: 0 | CM153: 0 | CN153: 0 | CO153: 0 | CP153: 0 | CQ153: 0 | CR153: 0 | CS153: 0 | CT153: 0 | CU153: 0 | CV153: 0 | CW153: 0 | CX153: 0 | CY153: 0 | CZ153: 0 | DA153: 0 | DB153: 0 | DC153: 0 | DD153: 0 | DE153: 0 | DF153: 0 | DG153: 0 | DH153: 0 | DI153: 0 | DJ153: 0 | DK153: 0 | DL153: 0 | DM153: 0 | DN153: 0 | DO153: 0 | DP153: 0 | DQ153: 0 | DR153: 0 | DS153: 0 | DT153: 0 | DU153: 0 | DV153: 0
C154: Долг / Собственные средства | E154: DB_Equity_EOP | G154: =IFERROR(G126/G138,0) -> 0 | H154: =IFERROR(H126/H138,0) -> 0 | I154: 0 | J154: 0 | K154: 0 | L154: 0 | M154: 0 | N154: 0 | O154: 0 | P154: 0 | Q154: 0 | R154: 0 | S154: 0 | T154: 0 | U154: 0 | V154: 0 | W154: 0 | X154: 0 | Y154: 0 | Z154: 0 | AA154: 0 | AB154: 0 | AC154: 0 | AD154: 0 | AE154: 0 | AF154: 0 | AG154: 0 | AH154: 0 | AI154: 0 | AJ154: 0 | AK154: 0 | AL154: 0 | AM154: 0 | AN154: 0 | AO154: 0 | AP154: 0 | AQ154: 0 | AR154: 0 | AS154: 0 | AT154: 0 | AU154: 0 | AV154: 0 | AW154: 0 | AX154: 0 | AY154: 0 | AZ154: 0 | BA154: 0 | BB154: 0 | BC154: 0 | BD154: 0 | BE154: 0 | BF154: 0 | BG154: 0 | BH154: 0 | BI154: 0 | BJ154: 0 | BK154: 0 | BL154: 0 | BM154: 0 | BN154: 0 | BO154: 0 | BP154: 0 | BQ154: 0 | BR154: 0 | BS154: 0 | BT154: =IFERROR(BT126/BT138,0) -> 0 | BU154: 0 | BV154: 0 | BW154: 0 | BX154: 0 | BY154: 0 | BZ154: 0 | CA154: 0 | CB154: 0 | CC154: 0 | CD154: 0 | CE154: 0 | CF154: 0 | CG154: 0 | CH154: 0 | CI154: 0 | CJ154: 0 | CK154: 0 | CL154: 0 | CM154: 0 | CN154: 0 | CO154: 0 | CP154: 0 | CQ154: 0 | CR154: 0 | CS154: 0 | CT154: 0 | CU154: 0 | CV154: 0 | CW154: 0 | CX154: 0 | CY154: 0 | CZ154: 0 | DA154: 0 | DB154: 0 | DC154: 0 | DD154: 0 | DE154: 0 | DF154: 0 | DG154: 0 | DH154: 0 | DI154: 0 | DJ154: 0 | DK154: 0 | DL154: 0 | DM154: 0 | DN154: 0 | DO154: 0 | DP154: 0 | DQ154: =IFERROR(DQ126/DQ138,0) -> 0 | DR154: 0 | DS154: 0 | DT154: 0 | DU154: 0 | DV154: 0
C155: NPV Проекта | F155: discount | G155: =IFERROR(G262,0)*G216 -> 0 | H155: =IFERROR(H262,0)*H216 -> 0 | I155: 0 | J155: 0 | K155: 0 | L155: 0 | M155: 0 | N155: 0 | O155: 0 | P155: 0 | Q155: 0 | R155: 0 | S155: 0 | T155: 0 | U155: 0 | V155: 0 | W155: 0 | X155: 0 | Y155: 0 | Z155: 0 | AA155: 0 | AB155: 0 | AC155: 0 | AD155: 0 | AE155: 0 | AF155: 0 | AG155: 0 | AH155: 0 | AI155: 0 | AJ155: 0 | AK155: 0 | AL155: 0 | AM155: 0 | AN155: 0 | AO155: 0 | AP155: 0 | AQ155: 0 | AR155: 0 | AS155: 0 | AT155: 0 | AU155: 0 | AV155: 0 | AW155: 0 | AX155: 0 | AY155: 0 | AZ155: 0 | BA155: 0 | BB155: 0 | BC155: 0 | BD155: 0 | BE155: 0 | BF155: 0 | BG155: 0 | BH155: 0 | BI155: 0 | BJ155: 0 | BK155: 0 | BL155: 0 | BM155: 0 | BN155: 0 | BO155: 0 | BP155: 0 | BQ155: 0 | BR155: 0 | BS155: 0 | BT155: =IFERROR(BT262,0)*BT216 -> 0 | BU155: 0 | BV155: 0 | BW155: 0 | BX155: 0 | BY155: 0 | BZ155: 0 | CA155: 0 | CB155: 0 | CC155: 0 | CD155: 0 | CE155: 0 | CF155: 0 | CG155: 0 | CH155: 0 | CI155: 0 | CJ155: 0 | CK155: 0 | CL155: 0 | CM155: 0 | CN155: 0 | CO155: 0 | CP155: 0 | CQ155: 0 | CR155: 0 | CS155: 0 | CT155: 0 | CU155: 0 | CV155: 0 | CW155: 0 | CX155: 0 | CY155: 0 | CZ155: 0 | DA155: 0 | DB155: 0 | DC155: 0 | DD155: 0 | DE155: 0 | DF155: 0 | DG155: 0 | DH155: 0 | DI155: 0 | DJ155: 0 | DK155: 0 | DL155: 0 | DM155: 0 | DN155: 0 | DO155: 0 | DP155: 0 | DQ155: 0 | DR155: 0 | DS155: 0 | DT155: 0 | DU155: 0 | DV155: 0
C156: Profitability index | F156: discount | G156: =IFERROR(SUM(G253:DW253)/$G$245,0)*G216 -> 0 | H156: =IFERROR(SUM(H253:DX253)/$G$245,0)*H216 -> 0 | I156: 0 | J156: 0 | K156: 0 | L156: 0 | M156: 0 | N156: 0 | O156: 0 | P156: 0 | Q156: 0 | R156: 0 | S156: 0 | T156: 0 | U156: 0 | V156: 0 | W156: 0 | X156: 0 | Y156: 0 | Z156: 0 | AA156: 0 | AB156: 0 | AC156: 0 | AD156: 0 | AE156: 0 | AF156: 0 | AG156: 0 | AH156: 0 | AI156: 0 | AJ156: 0 | AK156: 0 | AL156: 0 | AM156: 0 | AN156: 0 | AO156: 0 | AP156: 0 | AQ156: 0 | AR156: 0 | AS156: 0 | AT156: 0 | AU156: 0 | AV156: 0 | AW156: 0 | AX156: 0 | AY156: 0 | AZ156: 0 | BA156: 0 | BB156: 0 | BC156: 0 | BD156: 0 | BE156: 0 | BF156: 0 | BG156: 0 | BH156: 0 | BI156: 0 | BJ156: 0 | BK156: 0 | BL156: 0 | BM156: 0 | BN156: 0 | BO156: 0 | BP156: 0 | BQ156: 0 | BR156: 0 | BS156: 0 | BT156: =IFERROR(SUM(BT253:GJ253)/$G$245,0)*BT216 -> 0 | BU156: 0 | BV156: 0 | BW156: 0 | BX156: 0 | BY156: 0 | BZ156: 0 | CA156: 0 | CB156: 0 | CC156: 0 | CD156: 0 | CE156: 0 | CF156: 0 | CG156: 0 | CH156: 0 | CI156: 0 | CJ156: 0 | CK156: 0 | CL156: 0 | CM156: 0 | CN156: 0 | CO156: 0 | CP156: 0 | CQ156: 0 | CR156: 0 | CS156: 0 | CT156: 0 | CU156: 0 | CV156: 0 | CW156: 0 | CX156: 0 | CY156: 0 | CZ156: 0 | DA156: 0 | DB156: 0 | DC156: 0 | DD156: 0 | DE156: 0 | DF156: 0 | DG156: 0 | DH156: 0 | DI156: 0 | DJ156: 0 | DK156: 0 | DL156: 0 | DM156: 0 | DN156: 0 | DO156: 0 | DP156: 0 | DQ156: 0 | DR156: 0 | DS156: 0 | DT156: 0 | DU156: 0 | DV156: 0
C157: Payback period Проекта | E157: месяцев | G157: =IFERROR(IF((MATCH("х",DB_PP1,0)-(G64-1))>0,(MATCH("х",DB_PP1,0)-(G64-1))*3*DB_Step,0),"нет") -> 3 | H157: 0 | I157: 0 | J157: 0 | K157: 0 | L157: 0 | M157: 0 | N157: 0 | O157: 0 | P157: 0 | Q157: 0 | R157: 0 | S157: 0 | T157: 0 | U157: 0 | V157: 0 | W157: 0 | X157: 0 | Y157: 0 | Z157: 0 | AA157: 0 | AB157: 0 | AC157: 0 | AD157: 0 | AE157: 0 | AF157: 0 | AG157: 0 | AH157: 0 | AI157: 0 | AJ157: 0 | AK157: 0 | AL157: 0 | AM157: =IFERROR(IF((MATCH("х",DB_PP1,0)-(AM64-1))>0,(MATCH("х",DB_PP1,0)-(AM64-1))*3*DB_Step,0),"нет") -> 0 | AN157: 0 | AO157: 0 | AP157: 0 | AQ157: 0 | AR157: 0 | AS157: 0 | AT157: 0 | AU157: 0 | AV157: 0 | AW157: 0 | AX157: 0 | AY157: 0 | AZ157: 0 | BA157: 0 | BB157: 0 | BC157: 0 | BD157: 0 | BE157: 0 | BF157: 0 | BG157: 0 | BH157: 0 | BI157: 0 | BJ157: 0 | BK157: 0 | BL157: 0 | BM157: 0 | BN157: 0 | BO157: 0 | BP157: 0 | BQ157: 0 | BR157: 0 | BS157: =IFERROR(IF((MATCH("х",DB_PP1,0)-(BS64-1))>0,(MATCH("х",DB_PP1,0)-(BS64-1))*3*DB_Step,0),"нет") -> 0 | BT157: =IFERROR(IF((MATCH("х",DB_PP1,0)-(BT64-1))>0,(MATCH("х",DB_PP1,0)-(BT64-1))*3*DB_Step,0),"нет") -> 0 | BU157: 0 | BV157: 0 | BW157: 0 | BX157: 0 | BY157: 0 | BZ157: 0 | CA157: 0 | CB157: 0 | CC157: 0 | CD157: 0 | CE157: 0 | CF157: 0 | CG157: 0 | CH157: 0 | CI157: 0 | CJ157: 0 | CK157: 0 | CL157: 0 | CM157: 0 | CN157: 0 | CO157: 0 | CP157: 0 | CQ157: 0 | CR157: 0 | CS157: 0 | CT157: 0 | CU157: 0 | CV157: 0 | CW157: 0 | CX157: 0 | CY157: 0 | CZ157: 0 | DA157: 0 | DB157: 0 | DC157: 0 | DD157: 0 | DE157: 0 | DF157: 0 | DG157: 0 | DH157: 0 | DI157: 0 | DJ157: 0 | DK157: 0 | DL157: 0 | DM157: 0 | DN157: 0 | DO157: 0 | DP157: 0 | DQ157: =IFERROR(IF((MATCH("х",DB_PP1,0)-(DQ64-1))>0,(MATCH("х",DB_PP1,0)-(DQ64-1))*3*DB_Step,0),"нет") -> 0 | DR157: 0 | DS157: 0 | DT157: 0 | DU157: 0 | DV157: 0
C158: Discount Payback period Проекта | E158: месяцев | F158: discount | G158: =IFERROR(IF((MATCH("х",DB_DPP1,0)-(G64-1))>0,(MATCH("х",DB_DPP1,0)-(G64-1))*3*DB_Step,0),"нет")*G216 -> 3 | H158: 0 | I158: 0 | J158: 0 | K158: 0 | L158: 0 | M158: 0 | N158: 0 | O158: 0 | P158: 0 | Q158: 0 | R158: 0 | S158: 0 | T158: 0 | U158: 0 | V158: 0 | W158: 0 | X158: 0 | Y158: 0 | Z158: 0 | AA158: 0 | AB158: 0 | AC158: 0 | AD158: 0 | AE158: 0 | AF158: 0 | AG158: 0 | AH158: 0 | AI158: 0 | AJ158: 0 | AK158: 0 | AL158: 0 | AM158: =IFERROR(IF((MATCH("х",DB_DPP1,0)-(AM64-1))>0,(MATCH("х",DB_DPP1,0)-(AM64-1))*3*DB_Step,0),"нет")*AM216 -> 0 | AN158: 0 | AO158: 0 | AP158: 0 | AQ158: 0 | AR158: 0 | AS158: 0 | AT158: 0 | AU158: 0 | AV158: 0 | AW158: 0 | AX158: 0 | AY158: 0 | AZ158: 0 | BA158: 0 | BB158: 0 | BC158: 0 | BD158: 0 | BE158: 0 | BF158: 0 | BG158: 0 | BH158: 0 | BI158: 0 | BJ158: 0 | BK158: 0 | BL158: 0 | BM158: 0 | BN158: 0 | BO158: 0 | BP158: 0 | BQ158: 0 | BR158: 0 | BS158: =IFERROR(IF((MATCH("х",DB_DPP1,0)-(BS64-1))>0,(MATCH("х",DB_DPP1,0)-(BS64-1))*3*DB_Step,0),"нет")*BS216 -> 0 | BT158: 0 | BU158: 0 | BV158: 0 | BW158: 0 | BX158: 0 | BY158: 0 | BZ158: 0 | CA158: 0 | CB158: 0 | CC158: 0 | CD158: 0 | CE158: 0 | CF158: 0 | CG158: 0 | CH158: 0 | CI158: 0 | CJ158: 0 | CK158: 0 | CL158: 0 | CM158: 0 | CN158: 0 | CO158: 0 | CP158: 0 | CQ158: 0 | CR158: 0 | CS158: 0 | CT158: 0 | CU158: 0 | CV158: 0 | CW158: 0 | CX158: 0 | CY158: =IFERROR(IF((MATCH("х",DB_DPP1,0)-(CY64-1))>0,(MATCH("х",DB_DPP1,0)-(CY64-1))*3*DB_Step,0),"нет")*CY216 -> 0 | CZ158: 0 | DA158: 0 | DB158: 0 | DC158: 0 | DD158: 0 | DE158: 0 | DF158: 0 | DG158: 0 | DH158: 0 | DI158: 0 | DJ158: 0 | DK158: 0 | DL158: 0 | DM158: 0 | DN158: 0 | DO158: 0 | DP158: 0 | DQ158: 0 | DR158: 0 | DS158: 0 | DT158: 0 | DU158: 0 | DV158: 0
C159: Индекс рентабельность инвестпроекта | F159: discount | G159: =IFERROR((G262+$F269)/$F269,0)*G216 -> 0 | H159: =IFERROR((H262+$F269)/$F269,0)*H216 -> 0 | I159: 0 | J159: =IFERROR((J262+$F269)/$F269,0)*J216 -> 0 | K159: 0 | L159: 0 | M159: 0 | N159: 0 | O159: 0 | P159: 0 | Q159: 0 | R159: 0 | S159: 0 | T159: 0 | U159: 0 | V159: 0 | W159: 0 | X159: 0 | Y159: 0 | Z159: 0 | AA159: 0 | AB159: 0 | AC159: 0 | AD159: 0 | AE159: =IFERROR((AE262+$F269)/$F269,0)*AE216 -> 0 | AF159: 0 | AG159: 0 | AH159: 0 | AI159: 0 | AJ159: 0 | AK159: 0 | AL159: 0 | AM159: 0 | AN159: 0 | AO159: 0 | AP159: 0 | AQ159: 0 | AR159: 0 | AS159: 0 | AT159: 0 | AU159: 0 | AV159: 0 | AW159: 0 | AX159: 0 | AY159: 0 | AZ159: 0 | BA159: 0 | BB159: 0 | BC159: 0 | BD159: 0 | BE159: 0 | BF159: 0 | BG159: 0 | BH159: 0 | BI159: 0 | BJ159: 0 | BK159: 0 | BL159: 0 | BM159: 0 | BN159: 0 | BO159: 0 | BP159: 0 | BQ159: 0 | BR159: 0 | BS159: 0 | BT159: 0 | BU159: 0 | BV159: 0 | BW159: 0 | BX159: 0 | BY159: 0 | BZ159: 0 | CA159: 0 | CB159: 0 | CC159: 0 | CD159: 0 | CE159: 0 | CF159: 0 | CG159: 0 | CH159: 0 | CI159: 0 | CJ159: 0 | CK159: 0 | CL159: 0 | CM159: 0 | CN159: 0 | CO159: 0 | CP159: 0 | CQ159: =IFERROR((CQ262+$F269)/$F269,0)*CQ216 -> 0 | CR159: 0 | CS159: 0 | CT159: 0 | CU159: 0 | CV159: 0 | CW159: 0 | CX159: 0 | CY159: 0 | CZ159: 0 | DA159: 0 | DB159: 0 | DC159: 0 | DD159: 0 | DE159: 0 | DF159: 0 | DG159: 0 | DH159: 0 | DI159: 0 | DJ159: 0 | DK159: 0 | DL159: 0 | DM159: 0 | DN159: 0 | DO159: 0 | DP159: 0 | DQ159: 0 | DR159: 0 | DS159: 0 | DT159: 0 | DU159: 0 | DV159: 0
B161: Ковенанты
B162: к | C162: Собственный оборотный капитал | G162: =G173-G177 -> 0 | H162: 0 | I162: 0 | J162: 0 | K162: 0 | L162: 0 | M162: 0 | N162: 0 | O162: 0 | P162: 0 | Q162: 0 | R162: 0 | S162: 0 | T162: 0 | U162: 0 | V162: 0 | W162: 0 | X162: 0 | Y162: 0 | Z162: 0 | AA162: 0 | AB162: 0 | AC162: 0 | AD162: 0 | AE162: 0 | AF162: 0 | AG162: 0 | AH162: 0 | AI162: 0 | AJ162: 0 | AK162: 0 | AL162: 0 | AM162: =AM173-AM177 -> 0 | AN162: 0 | AO162: 0 | AP162: 0 | AQ162: 0 | AR162: 0 | AS162: 0 | AT162: 0 | AU162: 0 | AV162: 0 | AW162: 0 | AX162: 0 | AY162: 0 | AZ162: 0 | BA162: 0 | BB162: 0 | BC162: 0 | BD162: 0 | BE162: 0 | BF162: 0 | BG162: 0 | BH162: 0 | BI162: 0 | BJ162: 0 | BK162: 0 | BL162: 0 | BM162: 0 | BN162: 0 | BO162: 0 | BP162: 0 | BQ162: 0 | BR162: 0 | BS162: =BS173-BS177 -> 0 | BT162: =BT173-BT177 -> 0 | BU162: 0 | BV162: 0 | BW162: 0 | BX162: 0 | BY162: 0 | BZ162: 0 | CA162: 0 | CB162: 0 | CC162: 0 | CD162: 0 | CE162: 0 | CF162: 0 | CG162: 0 | CH162: 0 | CI162: 0 | CJ162: 0 | CK162: 0 | CL162: 0 | CM162: 0 | CN162: 0 | CO162: 0 | CP162: 0 | CQ162: 0 | CR162: 0 | CS162: 0 | CT162: 0 | CU162: 0 | CV162: 0 | CW162: 0 | CX162: 0 | CY162: 0 | CZ162: 0 | DA162: 0 | DB162: 0 | DC162: 0 | DD162: 0 | DE162: 0 | DF162: 0 | DG162: 0 | DH162: 0 | DI162: 0 | DJ162: 0 | DK162: 0 | DL162: 0 | DM162: 0 | DN162: 0 | DO162: 0 | DP162: 0 | DQ162: =DQ173-DQ177 -> 0 | DR162: 0 | DS162: 0 | DT162: 0 | DU162: 0 | DV162: 0
C163: Финансовый рычаг (D/E) | G163: =IFERROR(G126/G137,0) -> 0 | H163: 0 | I163: 0 | J163: 0 | K163: 0 | L163: 0 | M163: 0 | N163: 0 | O163: 0 | P163: 0 | Q163: 0 | R163: 0 | S163: 0 | T163: 0 | U163: 0 | V163: 0 | W163: 0 | X163: 0 | Y163: 0 | Z163: 0 | AA163: 0 | AB163: 0 | AC163: 0 | AD163: 0 | AE163: 0 | AF163: 0 | AG163: 0 | AH163: 0 | AI163: 0 | AJ163: 0 | AK163: 0 | AL163: 0 | AM163: =IFERROR(AM126/AM137,0) -> 0 | AN163: 0 | AO163: 0 | AP163: 0 | AQ163: 0 | AR163: 0 | AS163: 0 | AT163: 0 | AU163: 0 | AV163: 0 | AW163: 0 | AX163: 0 | AY163: 0 | AZ163: 0 | BA163: 0 | BB163: 0 | BC163: 0 | BD163: 0 | BE163: 0 | BF163: 0 | BG163: 0 | BH163: 0 | BI163: 0 | BJ163: 0 | BK163: 0 | BL163: 0 | BM163: 0 | BN163: 0 | BO163: 0 | BP163: 0 | BQ163: 0 | BR163: 0 | BS163: =IFERROR(BS126/BS137,0) -> 0 | BT163: =IFERROR(BT126/BT137,0) -> 0 | BU163: 0 | BV163: 0 | BW163: 0 | BX163: 0 | BY163: 0 | BZ163: 0 | CA163: 0 | CB163: 0 | CC163: 0 | CD163: 0 | CE163: 0 | CF163: 0 | CG163: 0 | CH163: 0 | CI163: 0 | CJ163: 0 | CK163: 0 | CL163: 0 | CM163: 0 | CN163: 0 | CO163: 0 | CP163: 0 | CQ163: 0 | CR163: 0 | CS163: 0 | CT163: 0 | CU163: 0 | CV163: 0 | CW163: 0 | CX163: 0 | CY163: 0 | CZ163: 0 | DA163: 0 | DB163: 0 | DC163: 0 | DD163: 0 | DE163: 0 | DF163: 0 | DG163: 0 | DH163: 0 | DI163: 0 | DJ163: 0 | DK163: 0 | DL163: 0 | DM163: 0 | DN163: 0 | DO163: 0 | DP163: 0 | DQ163: =IFERROR(DQ126/DQ137,0) -> 0 | DR163: 0 | DS163: 0 | DT163: 0 | DU163: 0 | DV163: 0
C164: Финансовый рычаг (Net D/E) | G164: =IFERROR(G127/G137,0) -> 0 | H164: 0 | I164: 0 | J164: 0 | K164: 0 | L164: 0 | M164: 0 | N164: 0 | O164: 0 | P164: 0 | Q164: 0 | R164: 0 | S164: 0 | T164: 0 | U164: 0 | V164: 0 | W164: 0 | X164: 0 | Y164: 0 | Z164: 0 | AA164: 0 | AB164: 0 | AC164: 0 | AD164: 0 | AE164: 0 | AF164: 0 | AG164: 0 | AH164: 0 | AI164: 0 | AJ164: 0 | AK164: 0 | AL164: 0 | AM164: =IFERROR(AM127/AM137,0) -> 0 | AN164: 0 | AO164: 0 | AP164: 0 | AQ164: 0 | AR164: 0 | AS164: 0 | AT164: 0 | AU164: 0 | AV164: 0 | AW164: 0 | AX164: 0 | AY164: 0 | AZ164: 0 | BA164: 0 | BB164: 0 | BC164: 0 | BD164: 0 | BE164: 0 | BF164: 0 | BG164: 0 | BH164: 0 | BI164: 0 | BJ164: 0 | BK164: 0 | BL164: 0 | BM164: 0 | BN164: 0 | BO164: 0 | BP164: 0 | BQ164: 0 | BR164: 0 | BS164: =IFERROR(BS127/BS137,0) -> 0 | BT164: =IFERROR(BT127/BT137,0) -> 0 | BU164: 0 | BV164: 0 | BW164: 0 | BX164: 0 | BY164: 0 | BZ164: 0 | CA164: 0 | CB164: 0 | CC164: 0 | CD164: 0 | CE164: 0 | CF164: 0 | CG164: 0 | CH164: 0 | CI164: 0 | CJ164: 0 | CK164: 0 | CL164: 0 | CM164: 0 | CN164: 0 | CO164: 0 | CP164: 0 | CQ164: 0 | CR164: 0 | CS164: 0 | CT164: 0 | CU164: 0 | CV164: 0 | CW164: 0 | CX164: 0 | CY164: 0 | CZ164: 0 | DA164: 0 | DB164: 0 | DC164: 0 | DD164: 0 | DE164: 0 | DF164: 0 | DG164: 0 | DH164: 0 | DI164: 0 | DJ164: 0 | DK164: 0 | DL164: 0 | DM164: 0 | DN164: 0 | DO164: 0 | DP164: 0 | DQ164: =IFERROR(DQ127/DQ137,0) -> 0 | DR164: 0 | DS164: 0 | DT164: 0 | DU164: 0 | DV164: 0
C165: Чистые активы / капитал | E165: DB_Capital | G165: =SUMIF(INDIRECT($F$69),G69,DB_Capital) -> 0 | H165: 0 | I165: 0 | J165: 0 | K165: 0 | L165: 0 | M165: 0 | N165: 0 | O165: 0 | P165: 0 | Q165: 0 | R165: 0 | S165: 0 | T165: 0 | U165: 0 | V165: 0 | W165: 0 | X165: 0 | Y165: 0 | Z165: 0 | AA165: 0 | AB165: 0 | AC165: 0 | AD165: 0 | AE165: 0 | AF165: 0 | AG165: 0 | AH165: 0 | AI165: 0 | AJ165: 0 | AK165: 0 | AL165: 0 | AM165: =SUMIF(INDIRECT($F$69),AM69,DB_Capital) -> 0 | AN165: 0 | AO165: 0 | AP165: 0 | AQ165: 0 | AR165: 0 | AS165: 0 | AT165: 0 | AU165: 0 | AV165: 0 | AW165: 0 | AX165: 0 | AY165: 0 | AZ165: 0 | BA165: 0 | BB165: 0 | BC165: 0 | BD165: 0 | BE165: 0 | BF165: 0 | BG165: 0 | BH165: 0 | BI165: 0 | BJ165: 0 | BK165: 0 | BL165: 0 | BM165: 0 | BN165: 0 | BO165: 0 | BP165: 0 | BQ165: 0 | BR165: 0 | BS165: =SUMIF(INDIRECT($F$69),BS69,DB_Capital) -> 0 | BT165: =SUMIF(INDIRECT($F$69),BT69,DB_Capital) -> 0 | BU165: 0 | BV165: 0 | BW165: 0 | BX165: 0 | BY165: 0 | BZ165: 0 | CA165: 0 | CB165: 0 | CC165: 0 | CD165: 0 | CE165: 0 | CF165: 0 | CG165: 0 | CH165: 0 | CI165: 0 | CJ165: 0 | CK165: 0 | CL165: 0 | CM165: 0 | CN165: 0 | CO165: 0 | CP165: 0 | CQ165: 0 | CR165: 0 | CS165: 0 | CT165: 0 | CU165: 0 | CV165: 0 | CW165: 0 | CX165: 0 | CY165: 0 | CZ165: 0 | DA165: 0 | DB165: 0 | DC165: 0 | DD165: 0 | DE165: 0 | DF165: 0 | DG165: 0 | DH165: 0 | DI165: 0 | DJ165: 0 | DK165: 0 | DL165: 0 | DM165: 0 | DN165: 0 | DO165: 0 | DP165: 0 | DQ165: =SUMIF(INDIRECT($F$69),DQ69,DB_Capital) -> 0 | DR165: 0 | DS165: 0 | DT165: 0 | DU165: 0 | DV165: 0
C166: Рентабельность продаж | G166: =IFERROR((G76-G81)/G70,0) -> 0 | H166: 0 | I166: 0 | J166: 0 | K166: 0 | L166: 0 | M166: 0 | N166: 0 | O166: 0 | P166: 0 | Q166: 0 | R166: 0 | S166: 0 | T166: 0 | U166: 0 | V166: 0 | W166: 0 | X166: 0 | Y166: 0 | Z166: 0 | AA166: 0 | AB166: 0 | AC166: 0 | AD166: 0 | AE166: 0 | AF166: 0 | AG166: 0 | AH166: 0 | AI166: 0 | AJ166: 0 | AK166: 0 | AL166: 0 | AM166: =IFERROR((AM76-AM81)/AM70,0) -> 0 | AN166: 0 | AO166: 0 | AP166: 0 | AQ166: 0 | AR166: 0 | AS166: 0 | AT166: 0 | AU166: 0 | AV166: 0 | AW166: 0 | AX166: 0 | AY166: 0 | AZ166: 0 | BA166: 0 | BB166: 0 | BC166: 0 | BD166: 0 | BE166: 0 | BF166: 0 | BG166: 0 | BH166: 0 | BI166: 0 | BJ166: 0 | BK166: 0 | BL166: 0 | BM166: 0 | BN166: 0 | BO166: 0 | BP166: 0 | BQ166: 0 | BR166: 0 | BS166: =IFERROR((BS76-BS81)/BS70,0) -> 0 | BT166: =IFERROR((BT76-BT81)/BT70,0) -> 0 | BU166: 0 | BV166: 0 | BW166: 0 | BX166: 0 | BY166: 0 | BZ166: 0 | CA166: 0 | CB166: 0 | CC166: 0 | CD166: 0 | CE166: 0 | CF166: 0 | CG166: 0 | CH166: 0 | CI166: 0 | CJ166: 0 | CK166: 0 | CL166: 0 | CM166: 0 | CN166: 0 | CO166: 0 | CP166: 0 | CQ166: 0 | CR166: 0 | CS166: 0 | CT166: 0 | CU166: 0 | CV166: 0 | CW166: 0 | CX166: 0 | CY166: 0 | CZ166: 0 | DA166: 0 | DB166: 0 | DC166: 0 | DD166: 0 | DE166: 0 | DF166: 0 | DG166: 0 | DH166: 0 | DI166: 0 | DJ166: 0 | DK166: 0 | DL166: 0 | DM166: 0 | DN166: 0 | DO166: 0 | DP166: 0 | DQ166: =IFERROR((DQ76-DQ81)/DQ70,0) -> 0 | DR166: 0 | DS166: 0 | DT166: 0 | DU166: 0 | DV166: 0
C168: Коэффициент покрытия процентов - EBIT | G168: =IFERROR(G82/G105,0) -> 0 | H168: 0 | I168: 0 | J168: 0 | K168: 0 | L168: 0 | M168: 0 | N168: 0 | O168: 0 | P168: 0 | Q168: 0 | R168: 0 | S168: 0 | T168: 0 | U168: 0 | V168: 0 | W168: 0 | X168: 0 | Y168: 0 | Z168: 0 | AA168: 0 | AB168: 0 | AC168: 0 | AD168: 0 | AE168: 0 | AF168: 0 | AG168: 0 | AH168: 0 | AI168: 0 | AJ168: 0 | AK168: 0 | AL168: 0 | AM168: =IFERROR(AM82/AM105,0) -> 0 | AN168: 0 | AO168: 0 | AP168: 0 | AQ168: 0 | AR168: 0 | AS168: 0 | AT168: 0 | AU168: 0 | AV168: 0 | AW168: 0 | AX168: 0 | AY168: 0 | AZ168: 0 | BA168: 0 | BB168: 0 | BC168: 0 | BD168: 0 | BE168: 0 | BF168: 0 | BG168: 0 | BH168: 0 | BI168: 0 | BJ168: 0 | BK168: 0 | BL168: 0 | BM168: 0 | BN168: 0 | BO168: 0 | BP168: 0 | BQ168: 0 | BR168: 0 | BS168: =IFERROR(BS82/BS105,0) -> 0 | BT168: =IFERROR(BT82/BT105,0) -> 0 | BU168: 0 | BV168: 0 | BW168: 0 | BX168: 0 | BY168: 0 | BZ168: 0 | CA168: 0 | CB168: 0 | CC168: 0 | CD168: 0 | CE168: 0 | CF168: 0 | CG168: 0 | CH168: 0 | CI168: 0 | CJ168: 0 | CK168: 0 | CL168: 0 | CM168: 0 | CN168: 0 | CO168: 0 | CP168: 0 | CQ168: 0 | CR168: 0 | CS168: 0 | CT168: 0 | CU168: 0 | CV168: 0 | CW168: 0 | CX168: 0 | CY168: 0 | CZ168: 0 | DA168: 0 | DB168: 0 | DC168: 0 | DD168: 0 | DE168: 0 | DF168: 0 | DG168: 0 | DH168: 0 | DI168: 0 | DJ168: 0 | DK168: 0 | DL168: 0 | DM168: 0 | DN168: 0 | DO168: 0 | DP168: 0 | DQ168: =IFERROR(DQ82/DQ105,0) -> 0 | DR168: 0 | DS168: 0 | DT168: 0 | DU168: 0 | DV168: 0
C169: Коэффициент покрытия процентов - EBITDA | G169: =IFERROR(G76/G105,0) -> 0 | H169: 0 | I169: 0 | J169: 0 | K169: 0 | L169: 0 | M169: 0 | N169: 0 | O169: 0 | P169: 0 | Q169: 0 | R169: 0 | S169: 0 | T169: 0 | U169: 0 | V169: 0 | W169: 0 | X169: 0 | Y169: 0 | Z169: 0 | AA169: 0 | AB169: 0 | AC169: 0 | AD169: 0 | AE169: 0 | AF169: 0 | AG169: 0 | AH169: 0 | AI169: 0 | AJ169: 0 | AK169: 0 | AL169: 0 | AM169: =IFERROR(AM76/AM105,0) -> 0 | AN169: 0 | AO169: 0 | AP169: 0 | AQ169: 0 | AR169: 0 | AS169: 0 | AT169: 0 | AU169: 0 | AV169: 0 | AW169: 0 | AX169: 0 | AY169: 0 | AZ169: 0 | BA169: 0 | BB169: 0 | BC169: 0 | BD169: 0 | BE169: 0 | BF169: 0 | BG169: 0 | BH169: 0 | BI169: 0 | BJ169: 0 | BK169: 0 | BL169: 0 | BM169: 0 | BN169: 0 | BO169: 0 | BP169: 0 | BQ169: 0 | BR169: 0 | BS169: =IFERROR(BS76/BS105,0) -> 0 | BT169: =IFERROR(BT76/BT105,0) -> 0 | BU169: 0 | BV169: 0 | BW169: 0 | BX169: 0 | BY169: 0 | BZ169: 0 | CA169: 0 | CB169: 0 | CC169: 0 | CD169: 0 | CE169: 0 | CF169: 0 | CG169: 0 | CH169: 0 | CI169: 0 | CJ169: 0 | CK169: 0 | CL169: 0 | CM169: 0 | CN169: 0 | CO169: 0 | CP169: 0 | CQ169: 0 | CR169: 0 | CS169: 0 | CT169: 0 | CU169: 0 | CV169: 0 | CW169: 0 | CX169: 0 | CY169: 0 | CZ169: 0 | DA169: 0 | DB169: 0 | DC169: 0 | DD169: 0 | DE169: 0 | DF169: 0 | DG169: 0 | DH169: 0 | DI169: 0 | DJ169: 0 | DK169: 0 | DL169: 0 | DM169: 0 | DN169: 0 | DO169: 0 | DP169: 0 | DQ169: =IFERROR(DQ76/DQ105,0) -> 0 | DR169: 0 | DS169: 0 | DT169: 0 | DU169: 0 | DV169: 0
C170: Коэффициент покрытия процентов - CFADS | G170: =IFERROR(G143/G105,0) -> 0 | H170: =IFERROR(H143/H105,0) -> 0 | I170: 0 | J170: 0 | K170: 0 | L170: 0 | M170: 0 | N170: 0 | O170: 0 | P170: 0 | Q170: 0 | R170: 0 | S170: 0 | T170: 0 | U170: 0 | V170: 0 | W170: 0 | X170: 0 | Y170: 0 | Z170: 0 | AA170: 0 | AB170: 0 | AC170: 0 | AD170: 0 | AE170: 0 | AF170: 0 | AG170: 0 | AH170: 0 | AI170: 0 | AJ170: 0 | AK170: 0 | AL170: 0 | AM170: 0 | AN170: 0 | AO170: 0 | AP170: 0 | AQ170: 0 | AR170: 0 | AS170: 0 | AT170: 0 | AU170: 0 | AV170: 0 | AW170: 0 | AX170: 0 | AY170: 0 | AZ170: 0 | BA170: 0 | BB170: 0 | BC170: 0 | BD170: 0 | BE170: 0 | BF170: 0 | BG170: 0 | BH170: 0 | BI170: 0 | BJ170: 0 | BK170: 0 | BL170: 0 | BM170: 0 | BN170: 0 | BO170: 0 | BP170: 0 | BQ170: 0 | BR170: 0 | BS170: 0 | BT170: =IFERROR(BT143/BT105,0) -> 0 | BU170: 0 | BV170: 0 | BW170: 0 | BX170: 0 | BY170: 0 | BZ170: 0 | CA170: 0 | CB170: 0 | CC170: 0 | CD170: 0 | CE170: 0 | CF170: 0 | CG170: 0 | CH170: 0 | CI170: 0 | CJ170: 0 | CK170: 0 | CL170: 0 | CM170: 0 | CN170: 0 | CO170: 0 | CP170: 0 | CQ170: 0 | CR170: 0 | CS170: 0 | CT170: 0 | CU170: 0 | CV170: 0 | CW170: 0 | CX170: 0 | CY170: 0 | CZ170: 0 | DA170: 0 | DB170: 0 | DC170: 0 | DD170: 0 | DE170: 0 | DF170: 0 | DG170: 0 | DH170: 0 | DI170: 0 | DJ170: 0 | DK170: 0 | DL170: 0 | DM170: 0 | DN170: 0 | DO170: 0 | DP170: 0 | DQ170: =IFERROR(DQ143/DQ105,0) -> 0 | DR170: 0 | DS170: 0 | DT170: 0 | DU170: 0 | DV170: 0
B172: Прочие показатели
C173: Оборотные активы (ст. 1200) | D173: BS | E173: DB_Current_Assets | G173: =SUMIF(INDIRECT($F$69),G69,DB_Current_Assets) -> 0 | H173: 0 | I173: 0 | J173: 0 | K173: 0 | L173: 0 | M173: 0 | N173: 0 | O173: 0 | P173: 0 | Q173: 0 | R173: 0 | S173: 0 | T173: 0 | U173: 0 | V173: 0 | W173: 0 | X173: 0 | Y173: 0 | Z173: 0 | AA173: 0 | AB173: 0 | AC173: 0 | AD173: 0 | AE173: 0 | AF173: 0 | AG173: 0 | AH173: 0 | AI173: 0 | AJ173: 0 | AK173: 0 | AL173: 0 | AM173: =SUMIF(INDIRECT($F$69),AM69,DB_Current_Assets) -> 0 | AN173: 0 | AO173: 0 | AP173: 0 | AQ173: 0 | AR173: 0 | AS173: 0 | AT173: 0 | AU173: 0 | AV173: 0 | AW173: 0 | AX173: 0 | AY173: 0 | AZ173: 0 | BA173: 0 | BB173: 0 | BC173: 0 | BD173: 0 | BE173: 0 | BF173: 0 | BG173: 0 | BH173: 0 | BI173: 0 | BJ173: 0 | BK173: 0 | BL173: 0 | BM173: 0 | BN173: 0 | BO173: 0 | BP173: 0 | BQ173: 0 | BR173: 0 | BS173: =SUMIF(INDIRECT($F$69),BS69,DB_Current_Assets) -> 0 | BT173: =SUMIF(INDIRECT($F$69),BT69,DB_Current_Assets) -> 0 | BU173: 0 | BV173: 0 | BW173: 0 | BX173: 0 | BY173: 0 | BZ173: 0 | CA173: 0 | CB173: 0 | CC173: 0 | CD173: 0 | CE173: 0 | CF173: 0 | CG173: 0 | CH173: 0 | CI173: 0 | CJ173: 0 | CK173: 0 | CL173: 0 | CM173: 0 | CN173: 0 | CO173: 0 | CP173: 0 | CQ173: 0 | CR173: 0 | CS173: 0 | CT173: 0 | CU173: 0 | CV173: 0 | CW173: 0 | CX173: 0 | CY173: 0 | CZ173: 0 | DA173: 0 | DB173: 0 | DC173: 0 | DD173: 0 | DE173: 0 | DF173: 0 | DG173: 0 | DH173: 0 | DI173: 0 | DJ173: 0 | DK173: 0 | DL173: 0 | DM173: 0 | DN173: 0 | DO173: 0 | DP173: 0 | DQ173: =SUMIF(INDIRECT($F$69),DQ69,DB_Current_Assets) -> 0 | DR173: 0 | DS173: 0 | DT173: 0 | DU173: 0 | DV173: 0
C174: Активы (ст. 1600) | D174: BS | E174: DB_Assets_EOP | G174: =SUMIF(INDIRECT($F$69),G69,DB_Assets_EOP) -> 0 | H174: 0 | I174: 0 | J174: 0 | K174: 0 | L174: 0 | M174: 0 | N174: 0 | O174: 0 | P174: 0 | Q174: 0 | R174: 0 | S174: 0 | T174: 0 | U174: 0 | V174: 0 | W174: 0 | X174: 0 | Y174: 0 | Z174: 0 | AA174: 0 | AB174: 0 | AC174: 0 | AD174: 0 | AE174: 0 | AF174: 0 | AG174: 0 | AH174: 0 | AI174: 0 | AJ174: 0 | AK174: 0 | AL174: 0 | AM174: =SUMIF(INDIRECT($F$69),AM69,DB_Assets_EOP) -> 0 | AN174: 0 | AO174: 0 | AP174: 0 | AQ174: 0 | AR174: 0 | AS174: 0 | AT174: 0 | AU174: 0 | AV174: 0 | AW174: 0 | AX174: 0 | AY174: 0 | AZ174: 0 | BA174: 0 | BB174: 0 | BC174: 0 | BD174: 0 | BE174: 0 | BF174: 0 | BG174: 0 | BH174: 0 | BI174: 0 | BJ174: 0 | BK174: 0 | BL174: 0 | BM174: 0 | BN174: 0 | BO174: 0 | BP174: 0 | BQ174: 0 | BR174: 0 | BS174: =SUMIF(INDIRECT($F$69),BS69,DB_Assets_EOP) -> 0 | BT174: =SUMIF(INDIRECT($F$69),BT69,DB_Assets_EOP) -> 0 | BU174: 0 | BV174: 0 | BW174: 0 | BX174: 0 | BY174: 0 | BZ174: 0 | CA174: 0 | CB174: 0 | CC174: 0 | CD174: 0 | CE174: 0 | CF174: 0 | CG174: 0 | CH174: 0 | CI174: 0 | CJ174: 0 | CK174: 0 | CL174: 0 | CM174: 0 | CN174: 0 | CO174: 0 | CP174: 0 | CQ174: 0 | CR174: 0 | CS174: 0 | CT174: 0 | CU174: 0 | CV174: 0 | CW174: 0 | CX174: 0 | CY174: 0 | CZ174: 0 | DA174: 0 | DB174: 0 | DC174: 0 | DD174: 0 | DE174: 0 | DF174: 0 | DG174: 0 | DH174: 0 | DI174: 0 | DJ174: 0 | DK174: 0 | DL174: 0 | DM174: 0 | DN174: 0 | DO174: 0 | DP174: 0 | DQ174: =SUMIF(INDIRECT($F$69),DQ69,DB_Assets_EOP) -> 0 | DR174: 0 | DS174: 0 | DT174: 0 | DU174: 0 | DV174: 0
C175: Долг (ст.1410+ст.1510) | D175: BS | E175: DB_Debt_Balance | G175: =SUMIF(INDIRECT($F$69),G69,DB_Debt_Balance) -> 0 | H175: 0 | I175: 0 | J175: 0 | K175: 0 | L175: 0 | M175: 0 | N175: 0 | O175: 0 | P175: 0 | Q175: 0 | R175: 0 | S175: 0 | T175: 0 | U175: 0 | V175: 0 | W175: 0 | X175: 0 | Y175: 0 | Z175: 0 | AA175: 0 | AB175: 0 | AC175: 0 | AD175: 0 | AE175: 0 | AF175: 0 | AG175: 0 | AH175: 0 | AI175: 0 | AJ175: 0 | AK175: 0 | AL175: 0 | AM175: =SUMIF(INDIRECT($F$69),AM69,DB_Debt_Balance) -> 0 | AN175: 0 | AO175: 0 | AP175: 0 | AQ175: 0 | AR175: 0 | AS175: 0 | AT175: 0 | AU175: 0 | AV175: 0 | AW175: 0 | AX175: 0 | AY175: 0 | AZ175: 0 | BA175: 0 | BB175: 0 | BC175: 0 | BD175: 0 | BE175: 0 | BF175: 0 | BG175: 0 | BH175: 0 | BI175: 0 | BJ175: 0 | BK175: 0 | BL175: 0 | BM175: 0 | BN175: 0 | BO175: 0 | BP175: 0 | BQ175: 0 | BR175: 0 | BS175: =SUMIF(INDIRECT($F$69),BS69,DB_Debt_Balance) -> 0 | BT175: =SUMIF(INDIRECT($F$69),BT69,DB_Debt_Balance) -> 0 | BU175: 0 | BV175: 0 | BW175: 0 | BX175: 0 | BY175: 0 | BZ175: 0 | CA175: 0 | CB175: 0 | CC175: 0 | CD175: 0 | CE175: 0 | CF175: 0 | CG175: 0 | CH175: 0 | CI175: 0 | CJ175: 0 | CK175: 0 | CL175: 0 | CM175: 0 | CN175: 0 | CO175: 0 | CP175: 0 | CQ175: 0 | CR175: 0 | CS175: 0 | CT175: 0 | CU175: 0 | CV175: 0 | CW175: 0 | CX175: 0 | CY175: 0 | CZ175: 0 | DA175: 0 | DB175: 0 | DC175: 0 | DD175: 0 | DE175: 0 | DF175: 0 | DG175: 0 | DH175: 0 | DI175: 0 | DJ175: 0 | DK175: 0 | DL175: 0 | DM175: 0 | DN175: 0 | DO175: 0 | DP175: 0 | DQ175: =SUMIF(INDIRECT($F$69),DQ69,DB_Debt_Balance) -> 0 | DR175: 0 | DS175: 0 | DT175: 0 | DU175: 0 | DV175: 0
C176: Капитал (ст.1300) | D176: BS | E176: DB_Capital | G176: =SUMIF(INDIRECT($F$69),G69,DB_Capital) -> 0 | H176: 0 | I176: 0 | J176: 0 | K176: 0 | L176: 0 | M176: 0 | N176: 0 | O176: 0 | P176: 0 | Q176: 0 | R176: 0 | S176: 0 | T176: 0 | U176: 0 | V176: 0 | W176: 0 | X176: 0 | Y176: 0 | Z176: 0 | AA176: 0 | AB176: 0 | AC176: 0 | AD176: 0 | AE176: 0 | AF176: 0 | AG176: 0 | AH176: 0 | AI176: 0 | AJ176: 0 | AK176: 0 | AL176: 0 | AM176: =SUMIF(INDIRECT($F$69),AM69,DB_Capital) -> 0 | AN176: 0 | AO176: 0 | AP176: 0 | AQ176: 0 | AR176: 0 | AS176: 0 | AT176: 0 | AU176: 0 | AV176: 0 | AW176: 0 | AX176: 0 | AY176: 0 | AZ176: 0 | BA176: 0 | BB176: 0 | BC176: 0 | BD176: 0 | BE176: 0 | BF176: 0 | BG176: 0 | BH176: 0 | BI176: 0 | BJ176: 0 | BK176: 0 | BL176: 0 | BM176: 0 | BN176: 0 | BO176: 0 | BP176: 0 | BQ176: 0 | BR176: 0 | BS176: =SUMIF(INDIRECT($F$69),BS69,DB_Capital) -> 0 | BT176: =SUMIF(INDIRECT($F$69),BT69,DB_Capital) -> 0 | BU176: 0 | BV176: 0 | BW176: 0 | BX176: 0 | BY176: 0 | BZ176: 0 | CA176: 0 | CB176: 0 | CC176: 0 | CD176: 0 | CE176: 0 | CF176: 0 | CG176: 0 | CH176: 0 | CI176: 0 | CJ176: 0 | CK176: 0 | CL176: 0 | CM176: 0 | CN176: 0 | CO176: 0 | CP176: 0 | CQ176: 0 | CR176: 0 | CS176: 0 | CT176: 0 | CU176: 0 | CV176: 0 | CW176: 0 | CX176: 0 | CY176: 0 | CZ176: 0 | DA176: 0 | DB176: 0 | DC176: 0 | DD176: 0 | DE176: 0 | DF176: 0 | DG176: 0 | DH176: 0 | DI176: 0 | DJ176: 0 | DK176: 0 | DL176: 0 | DM176: 0 | DN176: 0 | DO176: 0 | DP176: 0 | DQ176: =SUMIF(INDIRECT($F$69),DQ69,DB_Capital) -> 0 | DR176: 0 | DS176: 0 | DT176: 0 | DU176: 0 | DV176: 0
C177: Краткосрочные обязательства (ст.1500) | D177: BS | E177: DB_Current_Liabilities_EOP | G177: =SUMIF(INDIRECT($F$69),G69,DB_Current_Liabilities_EOP) -> 0 | H177: 0 | I177: 0 | J177: 0 | K177: 0 | L177: 0 | M177: 0 | N177: 0 | O177: 0 | P177: 0 | Q177: 0 | R177: 0 | S177: 0 | T177: 0 | U177: 0 | V177: 0 | W177: 0 | X177: 0 | Y177: 0 | Z177: 0 | AA177: 0 | AB177: 0 | AC177: 0 | AD177: 0 | AE177: 0 | AF177: 0 | AG177: 0 | AH177: 0 | AI177: 0 | AJ177: 0 | AK177: 0 | AL177: 0 | AM177: =SUMIF(INDIRECT($F$69),AM69,DB_Current_Liabilities_EOP) -> 0 | AN177: 0 | AO177: 0 | AP177: 0 | AQ177: 0 | AR177: 0 | AS177: 0 | AT177: 0 | AU177: 0 | AV177: 0 | AW177: 0 | AX177: 0 | AY177: 0 | AZ177: 0 | BA177: 0 | BB177: 0 | BC177: 0 | BD177: 0 | BE177: 0 | BF177: 0 | BG177: 0 | BH177: 0 | BI177: 0 | BJ177: 0 | BK177: 0 | BL177: 0 | BM177: 0 | BN177: 0 | BO177: 0 | BP177: 0 | BQ177: 0 | BR177: 0 | BS177: =SUMIF(INDIRECT($F$69),BS69,DB_Current_Liabilities_EOP) -> 0 | BT177: =SUMIF(INDIRECT($F$69),BT69,DB_Current_Liabilities_EOP) -> 0 | BU177: 0 | BV177: 0 | BW177: 0 | BX177: 0 | BY177: 0 | BZ177: 0 | CA177: 0 | CB177: 0 | CC177: 0 | CD177: 0 | CE177: 0 | CF177: 0 | CG177: 0 | CH177: 0 | CI177: 0 | CJ177: 0 | CK177: 0 | CL177: 0 | CM177: 0 | CN177: 0 | CO177: 0 | CP177: 0 | CQ177: 0 | CR177: 0 | CS177: 0 | CT177: 0 | CU177: 0 | CV177: 0 | CW177: 0 | CX177: 0 | CY177: 0 | CZ177: 0 | DA177: 0 | DB177: 0 | DC177: 0 | DD177: 0 | DE177: 0 | DF177: 0 | DG177: 0 | DH177: 0 | DI177: 0 | DJ177: 0 | DK177: 0 | DL177: 0 | DM177: 0 | DN177: 0 | DO177: 0 | DP177: 0 | DQ177: =SUMIF(INDIRECT($F$69),DQ69,DB_Current_Liabilities_EOP) -> 0 | DR177: 0 | DS177: 0 | DT177: 0 | DU177: 0 | DV177: 0
C178: Выручка предыдущего года (ст. 2110) | D178: PL | G178: н.д. | H178: =G179*(H211<>0) -> 0 | I178: =H179*(I211<>0) -> 0 | J178: 0 | K178: 0 | L178: 0 | M178: 0 | N178: 0 | O178: 0 | P178: 0 | Q178: 0 | R178: 0 | S178: 0 | T178: 0 | U178: 0 | V178: 0 | W178: 0 | X178: 0 | Y178: 0 | Z178: 0 | AA178: 0 | AB178: 0 | AC178: 0 | AD178: 0 | AE178: 0 | AF178: 0 | AG178: 0 | AH178: 0 | AI178: 0 | AJ178: 0 | AK178: 0 | AL178: 0 | AM178: 0 | AN178: 0 | AO178: 0 | AP178: 0 | AQ178: 0 | AR178: 0 | AS178: 0 | AT178: 0 | AU178: 0 | AV178: 0 | AW178: 0 | AX178: 0 | AY178: 0 | AZ178: 0 | BA178: 0 | BB178: 0 | BC178: 0 | BD178: 0 | BE178: 0 | BF178: 0 | BG178: 0 | BH178: 0 | BI178: 0 | BJ178: 0 | BK178: 0 | BL178: 0 | BM178: 0 | BN178: 0 | BO178: 0 | BP178: 0 | BQ178: 0 | BR178: 0 | BS178: 0 | BT178: 0 | BU178: =BT179*(BU211<>0) -> 0 | BV178: 0 | BW178: 0 | BX178: 0 | BY178: 0 | BZ178: 0 | CA178: 0 | CB178: 0 | CC178: 0 | CD178: 0 | CE178: 0 | CF178: 0 | CG178: 0 | CH178: 0 | CI178: 0 | CJ178: 0 | CK178: 0 | CL178: 0 | CM178: 0 | CN178: 0 | CO178: 0 | CP178: 0 | CQ178: 0 | CR178: 0 | CS178: 0 | CT178: 0 | CU178: 0 | CV178: 0 | CW178: 0 | CX178: 0 | CY178: 0 | CZ178: 0 | DA178: 0 | DB178: 0 | DC178: 0 | DD178: 0 | DE178: 0 | DF178: 0 | DG178: 0 | DH178: 0 | DI178: 0 | DJ178: 0 | DK178: 0 | DL178: 0 | DM178: 0 | DN178: 0 | DO178: 0 | DP178: 0 | DQ178: 0 | DR178: 0 | DS178: 0 | DT178: 0 | DU178: 0 | DV178: 0
C179: Выручка текущего года (ст. 2110) | D179: PL | E179: DB_Revenue_ltm_eop | G179: =SUMIF(INDIRECT($F$69),G69,DB_Revenue_ltm_eop) -> 0 | H179: =SUMIF(INDIRECT($F$69),H69,DB_Revenue_ltm_eop) -> 0 | I179: 0 | J179: 0 | K179: 0 | L179: 0 | M179: 0 | N179: 0 | O179: 0 | P179: 0 | Q179: 0 | R179: 0 | S179: 0 | T179: 0 | U179: 0 | V179: 0 | W179: 0 | X179: 0 | Y179: 0 | Z179: 0 | AA179: 0 | AB179: 0 | AC179: 0 | AD179: 0 | AE179: 0 | AF179: 0 | AG179: 0 | AH179: 0 | AI179: 0 | AJ179: 0 | AK179: 0 | AL179: 0 | AM179: =SUMIF(INDIRECT($F$69),AM69,DB_Revenue_ltm_eop) -> 0 | AN179: 0 | AO179: 0 | AP179: 0 | AQ179: 0 | AR179: 0 | AS179: 0 | AT179: 0 | AU179: 0 | AV179: 0 | AW179: 0 | AX179: 0 | AY179: 0 | AZ179: 0 | BA179: 0 | BB179: 0 | BC179: 0 | BD179: 0 | BE179: 0 | BF179: 0 | BG179: 0 | BH179: 0 | BI179: 0 | BJ179: 0 | BK179: 0 | BL179: 0 | BM179: 0 | BN179: 0 | BO179: 0 | BP179: 0 | BQ179: 0 | BR179: 0 | BS179: =SUMIF(INDIRECT($F$69),BS69,DB_Revenue_ltm_eop) -> 0 | BT179: =SUMIF(INDIRECT($F$69),BT69,DB_Revenue_ltm_eop) -> 0 | BU179: 0 | BV179: 0 | BW179: 0 | BX179: 0 | BY179: 0 | BZ179: 0 | CA179: 0 | CB179: 0 | CC179: 0 | CD179: 0 | CE179: 0 | CF179: 0 | CG179: 0 | CH179: 0 | CI179: 0 | CJ179: 0 | CK179: 0 | CL179: 0 | CM179: 0 | CN179: 0 | CO179: 0 | CP179: 0 | CQ179: 0 | CR179: 0 | CS179: 0 | CT179: 0 | CU179: 0 | CV179: 0 | CW179: 0 | CX179: 0 | CY179: 0 | CZ179: 0 | DA179: 0 | DB179: 0 | DC179: 0 | DD179: 0 | DE179: 0 | DF179: 0 | DG179: 0 | DH179: 0 | DI179: 0 | DJ179: 0 | DK179: 0 | DL179: 0 | DM179: 0 | DN179: 0 | DO179: 0 | DP179: 0 | DQ179: =SUMIF(INDIRECT($F$69),DQ69,DB_Revenue_ltm_eop) -> 0 | DR179: 0 | DS179: 0 | DT179: 0 | DU179: 0 | DV179: 0
C180: EBITDA | D180: PL | G180: =G76 -> 0 | H180: 0 | I180: 0 | J180: 0 | K180: 0 | L180: 0 | M180: 0 | N180: 0 | O180: 0 | P180: 0 | Q180: 0 | R180: 0 | S180: 0 | T180: 0 | U180: 0 | V180: 0 | W180: 0 | X180: 0 | Y180: 0 | Z180: 0 | AA180: 0 | AB180: 0 | AC180: 0 | AD180: 0 | AE180: 0 | AF180: 0 | AG180: 0 | AH180: 0 | AI180: 0 | AJ180: 0 | AK180: 0 | AL180: 0 | AM180: =AM76 -> 0 | AN180: 0 | AO180: 0 | AP180: 0 | AQ180: 0 | AR180: 0 | AS180: 0 | AT180: 0 | AU180: 0 | AV180: 0 | AW180: 0 | AX180: 0 | AY180: 0 | AZ180: 0 | BA180: 0 | BB180: 0 | BC180: 0 | BD180: 0 | BE180: 0 | BF180: 0 | BG180: 0 | BH180: 0 | BI180: 0 | BJ180: 0 | BK180: 0 | BL180: 0 | BM180: 0 | BN180: 0 | BO180: 0 | BP180: 0 | BQ180: 0 | BR180: 0 | BS180: =BS76 -> 0 | BT180: =BT76 -> 0 | BU180: 0 | BV180: 0 | BW180: 0 | BX180: 0 | BY180: 0 | BZ180: 0 | CA180: 0 | CB180: 0 | CC180: 0 | CD180: 0 | CE180: 0 | CF180: 0 | CG180: 0 | CH180: 0 | CI180: 0 | CJ180: 0 | CK180: 0 | CL180: 0 | CM180: 0 | CN180: 0 | CO180: 0 | CP180: 0 | CQ180: 0 | CR180: 0 | CS180: 0 | CT180: 0 | CU180: 0 | CV180: 0 | CW180: 0 | CX180: 0 | CY180: 0 | CZ180: 0 | DA180: 0 | DB180: 0 | DC180: 0 | DD180: 0 | DE180: 0 | DF180: 0 | DG180: 0 | DH180: 0 | DI180: 0 | DJ180: 0 | DK180: 0 | DL180: 0 | DM180: 0 | DN180: 0 | DO180: 0 | DP180: 0 | DQ180: =DQ76 -> 0 | DR180: 0 | DS180: 0 | DT180: 0 | DU180: 0 | DV180: 0
C181: Проценты к уплате (ст. 2330) | D181: PL | E181: DB_Interest_Payments_eop | G181: =SUMIF(INDIRECT($F$69),G69,DB_Interest_Payments_eop) -> 0 | H181: 0 | I181: 0 | J181: 0 | K181: 0 | L181: 0 | M181: 0 | N181: 0 | O181: 0 | P181: 0 | Q181: 0 | R181: 0 | S181: 0 | T181: 0 | U181: 0 | V181: 0 | W181: 0 | X181: 0 | Y181: 0 | Z181: 0 | AA181: 0 | AB181: 0 | AC181: 0 | AD181: 0 | AE181: 0 | AF181: 0 | AG181: 0 | AH181: 0 | AI181: 0 | AJ181: 0 | AK181: 0 | AL181: 0 | AM181: =SUMIF(INDIRECT($F$69),AM69,DB_Interest_Payments_eop) -> 0 | AN181: 0 | AO181: 0 | AP181: 0 | AQ181: 0 | AR181: 0 | AS181: 0 | AT181: 0 | AU181: 0 | AV181: 0 | AW181: 0 | AX181: 0 | AY181: 0 | AZ181: 0 | BA181: 0 | BB181: 0 | BC181: 0 | BD181: 0 | BE181: 0 | BF181: 0 | BG181: 0 | BH181: 0 | BI181: 0 | BJ181: 0 | BK181: 0 | BL181: 0 | BM181: 0 | BN181: 0 | BO181: 0 | BP181: 0 | BQ181: 0 | BR181: 0 | BS181: =SUMIF(INDIRECT($F$69),BS69,DB_Interest_Payments_eop) -> 0 | BT181: =SUMIF(INDIRECT($F$69),BT69,DB_Interest_Payments_eop) -> 0 | BU181: 0 | BV181: 0 | BW181: 0 | BX181: 0 | BY181: 0 | BZ181: 0 | CA181: 0 | CB181: 0 | CC181: 0 | CD181: 0 | CE181: 0 | CF181: 0 | CG181: 0 | CH181: 0 | CI181: 0 | CJ181: 0 | CK181: 0 | CL181: 0 | CM181: 0 | CN181: 0 | CO181: 0 | CP181: 0 | CQ181: 0 | CR181: 0 | CS181: 0 | CT181: 0 | CU181: 0 | CV181: 0 | CW181: 0 | CX181: 0 | CY181: 0 | CZ181: 0 | DA181: 0 | DB181: 0 | DC181: 0 | DD181: 0 | DE181: 0 | DF181: 0 | DG181: 0 | DH181: 0 | DI181: 0 | DJ181: 0 | DK181: 0 | DL181: 0 | DM181: 0 | DN181: 0 | DO181: 0 | DP181: 0 | DQ181: =SUMIF(INDIRECT($F$69),DQ69,DB_Interest_Payments_eop) -> 0 | DR181: 0 | DS181: 0 | DT181: 0 | DU181: 0 | DV181: 0
C182: Чистая прибыль (ст. 2400) | D182: PL | E182: DB_Net_Income_eop | G182: =SUMIF(INDIRECT($F$69),G69,DB_Net_Income_eop) -> 0 | H182: 0 | I182: 0 | J182: 0 | K182: 0 | L182: 0 | M182: 0 | N182: 0 | O182: 0 | P182: 0 | Q182: 0 | R182: 0 | S182: 0 | T182: 0 | U182: 0 | V182: 0 | W182: 0 | X182: 0 | Y182: 0 | Z182: 0 | AA182: 0 | AB182: 0 | AC182: 0 | AD182: 0 | AE182: 0 | AF182: 0 | AG182: 0 | AH182: 0 | AI182: 0 | AJ182: 0 | AK182: 0 | AL182: 0 | AM182: =SUMIF(INDIRECT($F$69),AM69,DB_Net_Income_eop) -> 0 | AN182: 0 | AO182: 0 | AP182: 0 | AQ182: 0 | AR182: 0 | AS182: 0 | AT182: 0 | AU182: 0 | AV182: 0 | AW182: 0 | AX182: 0 | AY182: 0 | AZ182: 0 | BA182: 0 | BB182: 0 | BC182: 0 | BD182: 0 | BE182: 0 | BF182: 0 | BG182: 0 | BH182: 0 | BI182: 0 | BJ182: 0 | BK182: 0 | BL182: 0 | BM182: 0 | BN182: 0 | BO182: 0 | BP182: 0 | BQ182: 0 | BR182: 0 | BS182: =SUMIF(INDIRECT($F$69),BS69,DB_Net_Income_eop) -> 0 | BT182: =SUMIF(INDIRECT($F$69),BT69,DB_Net_Income_eop) -> 0 | BU182: 0 | BV182: 0 | BW182: 0 | BX182: 0 | BY182: 0 | BZ182: 0 | CA182: 0 | CB182: 0 | CC182: 0 | CD182: 0 | CE182: 0 | CF182: 0 | CG182: 0 | CH182: 0 | CI182: 0 | CJ182: 0 | CK182: 0 | CL182: 0 | CM182: 0 | CN182: 0 | CO182: 0 | CP182: 0 | CQ182: 0 | CR182: 0 | CS182: 0 | CT182: 0 | CU182: 0 | CV182: 0 | CW182: 0 | CX182: 0 | CY182: 0 | CZ182: 0 | DA182: 0 | DB182: 0 | DC182: 0 | DD182: 0 | DE182: 0 | DF182: 0 | DG182: 0 | DH182: 0 | DI182: 0 | DJ182: 0 | DK182: 0 | DL182: 0 | DM182: 0 | DN182: 0 | DO182: 0 | DP182: 0 | DQ182: =SUMIF(INDIRECT($F$69),DQ69,DB_Net_Income_eop) -> 0 | DR182: 0 | DS182: 0 | DT182: 0 | DU182: 0 | DV182: 0
C184: Коэффициент текущей ликвидности | G184: =IFERROR(G173/G177,0) -> 0 | H184: 0 | I184: 0 | J184: 0 | K184: 0 | L184: 0 | M184: 0 | N184: 0 | O184: 0 | P184: 0 | Q184: 0 | R184: 0 | S184: 0 | T184: 0 | U184: 0 | V184: 0 | W184: 0 | X184: 0 | Y184: 0 | Z184: 0 | AA184: 0 | AB184: 0 | AC184: 0 | AD184: 0 | AE184: 0 | AF184: 0 | AG184: 0 | AH184: 0 | AI184: 0 | AJ184: 0 | AK184: 0 | AL184: 0 | AM184: =IFERROR(AM173/AM177,0) -> 0 | AN184: 0 | AO184: 0 | AP184: 0 | AQ184: 0 | AR184: 0 | AS184: 0 | AT184: 0 | AU184: 0 | AV184: 0 | AW184: 0 | AX184: 0 | AY184: 0 | AZ184: 0 | BA184: 0 | BB184: 0 | BC184: 0 | BD184: 0 | BE184: 0 | BF184: 0 | BG184: 0 | BH184: 0 | BI184: 0 | BJ184: 0 | BK184: 0 | BL184: 0 | BM184: 0 | BN184: 0 | BO184: 0 | BP184: 0 | BQ184: 0 | BR184: 0 | BS184: =IFERROR(BS173/BS177,0) -> 0 | BT184: =IFERROR(BT173/BT177,0) -> 0 | BU184: 0 | BV184: 0 | BW184: 0 | BX184: 0 | BY184: 0 | BZ184: 0 | CA184: 0 | CB184: 0 | CC184: 0 | CD184: 0 | CE184: 0 | CF184: 0 | CG184: 0 | CH184: 0 | CI184: 0 | CJ184: 0 | CK184: 0 | CL184: 0 | CM184: 0 | CN184: 0 | CO184: 0 | CP184: 0 | CQ184: 0 | CR184: 0 | CS184: 0 | CT184: 0 | CU184: 0 | CV184: 0 | CW184: 0 | CX184: 0 | CY184: 0 | CZ184: 0 | DA184: 0 | DB184: 0 | DC184: 0 | DD184: 0 | DE184: 0 | DF184: 0 | DG184: 0 | DH184: 0 | DI184: 0 | DJ184: 0 | DK184: 0 | DL184: 0 | DM184: 0 | DN184: 0 | DO184: 0 | DP184: 0 | DQ184: =IFERROR(DQ173/DQ177,0) -> 0 | DR184: 0 | DS184: 0 | DT184: 0 | DU184: 0 | DV184: 0
C185: Коэффициент автономии | G185: =IFERROR(G176/G174,0) -> 0 | H185: =IFERROR(H176/H174,0) -> 0 | I185: 0 | J185: 0 | K185: 0 | L185: 0 | M185: 0 | N185: 0 | O185: 0 | P185: 0 | Q185: 0 | R185: 0 | S185: 0 | T185: 0 | U185: 0 | V185: 0 | W185: 0 | X185: 0 | Y185: 0 | Z185: 0 | AA185: 0 | AB185: 0 | AC185: 0 | AD185: 0 | AE185: 0 | AF185: 0 | AG185: 0 | AH185: 0 | AI185: 0 | AJ185: 0 | AK185: 0 | AL185: 0 | AM185: 0 | AN185: 0 | AO185: 0 | AP185: 0 | AQ185: 0 | AR185: 0 | AS185: 0 | AT185: 0 | AU185: 0 | AV185: 0 | AW185: 0 | AX185: 0 | AY185: 0 | AZ185: 0 | BA185: 0 | BB185: 0 | BC185: 0 | BD185: 0 | BE185: 0 | BF185: 0 | BG185: 0 | BH185: 0 | BI185: 0 | BJ185: 0 | BK185: 0 | BL185: 0 | BM185: 0 | BN185: 0 | BO185: 0 | BP185: 0 | BQ185: 0 | BR185: 0 | BS185: 0 | BT185: =IFERROR(BT176/BT174,0) -> 0 | BU185: 0 | BV185: 0 | BW185: 0 | BX185: 0 | BY185: 0 | BZ185: 0 | CA185: 0 | CB185: 0 | CC185: 0 | CD185: 0 | CE185: 0 | CF185: 0 | CG185: 0 | CH185: 0 | CI185: 0 | CJ185: 0 | CK185: 0 | CL185: 0 | CM185: 0 | CN185: 0 | CO185: 0 | CP185: 0 | CQ185: 0 | CR185: 0 | CS185: 0 | CT185: 0 | CU185: 0 | CV185: 0 | CW185: 0 | CX185: 0 | CY185: 0 | CZ185: 0 | DA185: 0 | DB185: 0 | DC185: 0 | DD185: 0 | DE185: 0 | DF185: 0 | DG185: 0 | DH185: 0 | DI185: 0 | DJ185: 0 | DK185: 0 | DL185: 0 | DM185: 0 | DN185: 0 | DO185: 0 | DP185: 0 | DQ185: =IFERROR(DQ176/DQ174,0) -> 0 | DR185: 0 | DS185: 0 | DT185: 0 | DU185: 0 | DV185: 0
C186: Оборачиваемость оборотных активов | G186: =IFERROR(G173/(G72+G81) * (DB_Step * 30),0) -> 0 | H186: 0 | I186: 0 | J186: 0 | K186: 0 | L186: 0 | M186: 0 | N186: 0 | O186: 0 | P186: 0 | Q186: 0 | R186: 0 | S186: 0 | T186: 0 | U186: 0 | V186: 0 | W186: 0 | X186: 0 | Y186: 0 | Z186: 0 | AA186: 0 | AB186: 0 | AC186: 0 | AD186: 0 | AE186: 0 | AF186: 0 | AG186: 0 | AH186: 0 | AI186: 0 | AJ186: 0 | AK186: 0 | AL186: 0 | AM186: =IFERROR(AM173/(AM72+AM81) * (DB_Step * 30),0) -> 0 | AN186: 0 | AO186: 0 | AP186: 0 | AQ186: 0 | AR186: 0 | AS186: 0 | AT186: 0 | AU186: 0 | AV186: 0 | AW186: 0 | AX186: 0 | AY186: 0 | AZ186: 0 | BA186: 0 | BB186: 0 | BC186: 0 | BD186: 0 | BE186: 0 | BF186: 0 | BG186: 0 | BH186: 0 | BI186: 0 | BJ186: 0 | BK186: 0 | BL186: 0 | BM186: 0 | BN186: 0 | BO186: 0 | BP186: 0 | BQ186: 0 | BR186: 0 | BS186: =IFERROR(BS173/(BS72+BS81) * (DB_Step * 30),0) -> 0 | BT186: =IFERROR(BT173/(BT72+BT81) * (DB_Step * 30),0) -> 0 | BU186: 0 | BV186: 0 | BW186: 0 | BX186: 0 | BY186: 0 | BZ186: 0 | CA186: 0 | CB186: 0 | CC186: 0 | CD186: 0 | CE186: 0 | CF186: 0 | CG186: 0 | CH186: 0 | CI186: 0 | CJ186: 0 | CK186: 0 | CL186: 0 | CM186: 0 | CN186: 0 | CO186: 0 | CP186: 0 | CQ186: 0 | CR186: 0 | CS186: 0 | CT186: 0 | CU186: 0 | CV186: 0 | CW186: 0 | CX186: 0 | CY186: 0 | CZ186: 0 | DA186: 0 | DB186: 0 | DC186: 0 | DD186: 0 | DE186: 0 | DF186: 0 | DG186: 0 | DH186: 0 | DI186: 0 | DJ186: 0 | DK186: 0 | DL186: 0 | DM186: 0 | DN186: 0 | DO186: 0 | DP186: 0 | DQ186: =IFERROR(DQ173/(DQ72+DQ81) * (DB_Step * 30),0) -> 0 | DR186: 0 | DS186: 0 | DT186: 0 | DU186: 0 | DV186: 0
C187: CFADS ltm / Debt service ltm | G187: =IFERROR(G292/G294,0) -> 0 | H187: =IFERROR(H292/H294,0) -> 0 | I187: 0 | J187: 0 | K187: 0 | L187: 0 | M187: 0 | N187: 0 | O187: 0 | P187: 0 | Q187: 0 | R187: 0 | S187: 0 | T187: 0 | U187: 0 | V187: 0 | W187: 0 | X187: 0 | Y187: 0 | Z187: 0 | AA187: 0 | AB187: 0 | AC187: 0 | AD187: 0 | AE187: 0 | AF187: 0 | AG187: 0 | AH187: 0 | AI187: 0 | AJ187: 0 | AK187: 0 | AL187: 0 | AM187: 0 | AN187: 0 | AO187: 0 | AP187: 0 | AQ187: 0 | AR187: 0 | AS187: =IFERROR(AS292/AS294,0) -> 0 | AT187: 0 | AU187: 0 | AV187: 0 | AW187: 0 | AX187: 0 | AY187: 0 | AZ187: 0 | BA187: 0 | BB187: 0 | BC187: 0 | BD187: 0 | BE187: 0 | BF187: 0 | BG187: 0 | BH187: 0 | BI187: 0 | BJ187: 0 | BK187: 0 | BL187: 0 | BM187: 0 | BN187: 0 | BO187: 0 | BP187: 0 | BQ187: 0 | BR187: 0 | BS187: 0 | BT187: 0 | BU187: 0 | BV187: 0 | BW187: 0 | BX187: 0 | BY187: 0 | BZ187: 0 | CA187: 0 | CB187: 0 | CC187: 0 | CD187: 0 | CE187: 0 | CF187: 0 | CG187: 0 | CH187: 0 | CI187: 0 | CJ187: 0 | CK187: 0 | CL187: 0 | CM187: 0 | CN187: 0 | CO187: 0 | CP187: 0 | CQ187: 0 | CR187: 0 | CS187: 0 | CT187: 0 | CU187: 0 | CV187: 0 | CW187: 0 | CX187: 0 | CY187: 0 | CZ187: 0 | DA187: 0 | DB187: 0 | DC187: 0 | DD187: 0 | DE187: =IFERROR(DE292/DE294,0) -> 0 | DF187: 0 | DG187: 0 | DH187: 0 | DI187: 0 | DJ187: 0 | DK187: 0 | DL187: 0 | DM187: 0 | DN187: 0 | DO187: 0 | DP187: 0 | DQ187: 0 | DR187: 0 | DS187: 0 | DT187: 0 | DU187: 0 | DV187: 0
C188: EBITDA ltm / Debt service ltm | G188: =IFERROR(G290/G294,0) -> 0 | H188: =IFERROR(H290/H294,0) -> 0 | I188: 0 | J188: 0 | K188: 0 | L188: 0 | M188: 0 | N188: 0 | O188: 0 | P188: 0 | Q188: 0 | R188: 0 | S188: 0 | T188: 0 | U188: 0 | V188: 0 | W188: 0 | X188: 0 | Y188: 0 | Z188: 0 | AA188: 0 | AB188: 0 | AC188: 0 | AD188: 0 | AE188: 0 | AF188: 0 | AG188: 0 | AH188: 0 | AI188: 0 | AJ188: 0 | AK188: 0 | AL188: 0 | AM188: 0 | AN188: 0 | AO188: 0 | AP188: 0 | AQ188: 0 | AR188: 0 | AS188: =IFERROR(AS290/AS294,0) -> 0 | AT188: 0 | AU188: 0 | AV188: 0 | AW188: 0 | AX188: 0 | AY188: 0 | AZ188: 0 | BA188: 0 | BB188: 0 | BC188: 0 | BD188: 0 | BE188: 0 | BF188: 0 | BG188: 0 | BH188: 0 | BI188: 0 | BJ188: 0 | BK188: 0 | BL188: 0 | BM188: 0 | BN188: 0 | BO188: 0 | BP188: 0 | BQ188: 0 | BR188: 0 | BS188: 0 | BT188: 0 | BU188: 0 | BV188: 0 | BW188: 0 | BX188: 0 | BY188: 0 | BZ188: 0 | CA188: 0 | CB188: 0 | CC188: 0 | CD188: 0 | CE188: 0 | CF188: 0 | CG188: 0 | CH188: 0 | CI188: 0 | CJ188: 0 | CK188: 0 | CL188: 0 | CM188: 0 | CN188: 0 | CO188: 0 | CP188: 0 | CQ188: 0 | CR188: 0 | CS188: 0 | CT188: 0 | CU188: 0 | CV188: 0 | CW188: 0 | CX188: 0 | CY188: 0 | CZ188: 0 | DA188: 0 | DB188: 0 | DC188: 0 | DD188: 0 | DE188: =IFERROR(DE290/DE294,0) -> 0 | DF188: 0 | DG188: 0 | DH188: 0 | DI188: 0 | DJ188: 0 | DK188: 0 | DL188: 0 | DM188: 0 | DN188: 0 | DO188: 0 | DP188: 0 | DQ188: 0 | DR188: 0 | DS188: 0 | DT188: 0 | DU188: 0 | DV188: 0
C189: Уровень оттока капитала | E189: DB_Fin_Assets_balance_eop | G189: =IFERROR(SUMIF(INDIRECT($F$69),G69,DB_Fin_Assets_balance_eop)/G174,0) -> 0 | H189: 0 | I189: 0 | J189: 0 | K189: 0 | L189: 0 | M189: 0 | N189: 0 | O189: 0 | P189: 0 | Q189: 0 | R189: 0 | S189: 0 | T189: 0 | U189: 0 | V189: 0 | W189: 0 | X189: 0 | Y189: 0 | Z189: 0 | AA189: 0 | AB189: 0 | AC189: 0 | AD189: 0 | AE189: 0 | AF189: 0 | AG189: 0 | AH189: 0 | AI189: 0 | AJ189: 0 | AK189: 0 | AL189: 0 | AM189: =IFERROR(SUMIF(INDIRECT($F$69),AM69,DB_Fin_Assets_balance_eop)/AM174,0) -> 0 | AN189: 0 | AO189: 0 | AP189: 0 | AQ189: 0 | AR189: 0 | AS189: 0 | AT189: 0 | AU189: 0 | AV189: 0 | AW189: 0 | AX189: 0 | AY189: 0 | AZ189: 0 | BA189: 0 | BB189: 0 | BC189: 0 | BD189: 0 | BE189: 0 | BF189: 0 | BG189: 0 | BH189: 0 | BI189: 0 | BJ189: 0 | BK189: 0 | BL189: 0 | BM189: 0 | BN189: 0 | BO189: 0 | BP189: 0 | BQ189: 0 | BR189: 0 | BS189: =IFERROR(SUMIF(INDIRECT($F$69),BS69,DB_Fin_Assets_balance_eop)/BS174,0) -> 0 | BT189: =IFERROR(SUMIF(INDIRECT($F$69),BT69,DB_Fin_Assets_balance_eop)/BT174,0) -> 0 | BU189: 0 | BV189: 0 | BW189: 0 | BX189: 0 | BY189: 0 | BZ189: 0 | CA189: 0 | CB189: 0 | CC189: 0 | CD189: 0 | CE189: 0 | CF189: 0 | CG189: 0 | CH189: 0 | CI189: 0 | CJ189: 0 | CK189: 0 | CL189: 0 | CM189: 0 | CN189: 0 | CO189: 0 | CP189: 0 | CQ189: 0 | CR189: 0 | CS189: 0 | CT189: 0 | CU189: 0 | CV189: 0 | CW189: 0 | CX189: 0 | CY189: 0 | CZ189: 0 | DA189: 0 | DB189: 0 | DC189: 0 | DD189: 0 | DE189: 0 | DF189: 0 | DG189: 0 | DH189: 0 | DI189: 0 | DJ189: 0 | DK189: 0 | DL189: 0 | DM189: 0 | DN189: 0 | DO189: 0 | DP189: 0 | DQ189: =IFERROR(SUMIF(INDIRECT($F$69),DQ69,DB_Fin_Assets_balance_eop)/DQ174,0) -> 0 | DR189: 0 | DS189: 0 | DT189: 0 | DU189: 0 | DV189: 0
C190: Мобильность | E190: DB_Assets_Balance_eop | F190: DB_CIP_Balance_eop | G190: =IFERROR(1-(SUMIF(INDIRECT($F$69),G69,DB_Assets_Balance_eop)+SUMIF(INDIRECT($F$69),G69,DB_CIP_balance_eop))/G174,0) -> 0 | H190: 0 | I190: 0 | J190: 0 | K190: 0 | L190: 0 | M190: 0 | N190: 0 | O190: 0 | P190: 0 | Q190: 0 | R190: 0 | S190: 0 | T190: 0 | U190: 0 | V190: 0 | W190: 0 | X190: 0 | Y190: 0 | Z190: 0 | AA190: 0 | AB190: 0 | AC190: 0 | AD190: 0 | AE190: 0 | AF190: 0 | AG190: 0 | AH190: 0 | AI190: 0 | AJ190: 0 | AK190: 0 | AL190: 0 | AM190: =IFERROR(1-(SUMIF(INDIRECT($F$69),AM69,DB_Assets_Balance_eop)+SUMIF(INDIRECT($F$69),AM69,DB_CIP_balance_eop))/AM174,0) -> 0 | AN190: 0 | AO190: 0 | AP190: 0 | AQ190: 0 | AR190: 0 | AS190: 0 | AT190: 0 | AU190: 0 | AV190: 0 | AW190: 0 | AX190: 0 | AY190: 0 | AZ190: 0 | BA190: 0 | BB190: 0 | BC190: 0 | BD190: 0 | BE190: 0 | BF190: 0 | BG190: 0 | BH190: 0 | BI190: 0 | BJ190: 0 | BK190: 0 | BL190: 0 | BM190: 0 | BN190: 0 | BO190: 0 | BP190: 0 | BQ190: 0 | BR190: 0 | BS190: =IFERROR(1-(SUMIF(INDIRECT($F$69),BS69,DB_Assets_Balance_eop)+SUMIF(INDIRECT($F$69),BS69,DB_CIP_balance_eop))/BS174,0) -> 0 | BT190: =IFERROR(1-(SUMIF(INDIRECT($F$69),BT69,DB_Assets_Balance_eop)+SUMIF(INDIRECT($F$69),BT69,DB_CIP_balance_eop))/BT174,0) -> 0 | BU190: 0 | BV190: 0 | BW190: 0 | BX190: 0 | BY190: 0 | BZ190: 0 | CA190: 0 | CB190: 0 | CC190: 0 | CD190: 0 | CE190: 0 | CF190: 0 | CG190: 0 | CH190: 0 | CI190: 0 | CJ190: 0 | CK190: 0 | CL190: 0 | CM190: 0 | CN190: 0 | CO190: 0 | CP190: 0 | CQ190: 0 | CR190: 0 | CS190: 0 | CT190: 0 | CU190: 0 | CV190: 0 | CW190: 0 | CX190: 0 | CY190: 0 | CZ190: 0 | DA190: 0 | DB190: 0 | DC190: 0 | DD190: 0 | DE190: 0 | DF190: 0 | DG190: 0 | DH190: 0 | DI190: 0 | DJ190: 0 | DK190: 0 | DL190: 0 | DM190: 0 | DN190: 0 | DO190: 0 | DP190: 0 | DQ190: =IFERROR(1-(SUMIF(INDIRECT($F$69),DQ69,DB_Assets_Balance_eop)+SUMIF(INDIRECT($F$69),DQ69,DB_CIP_balance_eop))/DQ174,0) -> 0 | DR190: 0 | DS190: 0 | DT190: 0 | DU190: 0 | DV190: 0
C191: Покрытие процентных расходов (EBITDA) | G191: =IFERROR(G180/G105,0) -> 0 | H191: =IFERROR(H180/H105,0) -> 0 | I191: 0 | J191: 0 | K191: 0 | L191: 0 | M191: 0 | N191: 0 | O191: 0 | P191: 0 | Q191: 0 | R191: 0 | S191: 0 | T191: 0 | U191: 0 | V191: 0 | W191: 0 | X191: 0 | Y191: 0 | Z191: 0 | AA191: 0 | AB191: 0 | AC191: 0 | AD191: 0 | AE191: 0 | AF191: 0 | AG191: 0 | AH191: 0 | AI191: 0 | AJ191: 0 | AK191: 0 | AL191: 0 | AM191: 0 | AN191: 0 | AO191: 0 | AP191: 0 | AQ191: 0 | AR191: 0 | AS191: 0 | AT191: 0 | AU191: 0 | AV191: 0 | AW191: 0 | AX191: 0 | AY191: 0 | AZ191: 0 | BA191: 0 | BB191: 0 | BC191: 0 | BD191: 0 | BE191: 0 | BF191: 0 | BG191: 0 | BH191: 0 | BI191: 0 | BJ191: 0 | BK191: 0 | BL191: 0 | BM191: 0 | BN191: 0 | BO191: 0 | BP191: 0 | BQ191: 0 | BR191: 0 | BS191: 0 | BT191: =IFERROR(BT180/BT105,0) -> 0 | BU191: 0 | BV191: 0 | BW191: 0 | BX191: 0 | BY191: 0 | BZ191: 0 | CA191: 0 | CB191: 0 | CC191: 0 | CD191: 0 | CE191: 0 | CF191: 0 | CG191: 0 | CH191: 0 | CI191: 0 | CJ191: 0 | CK191: 0 | CL191: 0 | CM191: 0 | CN191: 0 | CO191: 0 | CP191: 0 | CQ191: 0 | CR191: 0 | CS191: 0 | CT191: 0 | CU191: 0 | CV191: 0 | CW191: 0 | CX191: 0 | CY191: 0 | CZ191: 0 | DA191: 0 | DB191: 0 | DC191: 0 | DD191: 0 | DE191: 0 | DF191: 0 | DG191: 0 | DH191: 0 | DI191: 0 | DJ191: 0 | DK191: 0 | DL191: 0 | DM191: 0 | DN191: 0 | DO191: 0 | DP191: 0 | DQ191: =IFERROR(DQ180/DQ105,0) -> 0 | DR191: 0 | DS191: 0 | DT191: 0 | DU191: 0 | DV191: 0
C193: CAGR Revenue 1 yr | D193: DB_Step2 | E193: =DB_Step2 -> 4 | G193: =(IFERROR(SUM(OFFSET(G$70,0,1-$E193,1,$E193))/SUM(OFFSET(G$70,0,1-$E193*2,1,$E193)),0)-1)*(G$64>=($E193*2))*(G69<>0) -> 0 | H193: =(IFERROR(SUM(OFFSET(H$70,0,1-$E193,1,$E193))/SUM(OFFSET(H$70,0,1-$E193*2,1,$E193)),0)-1)*(H$64>=($E193*2))*(H69<>0) -> 0 | I193: 0 | J193: 0 | K193: 0 | L193: 0 | M193: 0 | N193: -1 | O193: 0 | P193: 0 | Q193: 0 | R193: 0 | S193: 0 | T193: 0 | U193: 0 | V193: 0 | W193: 0 | X193: 0 | Y193: 0 | Z193: 0 | AA193: 0 | AB193: 0 | AC193: 0 | AD193: 0 | AE193: 0 | AF193: 0 | AG193: 0 | AH193: 0 | AI193: 0 | AJ193: 0 | AK193: 0 | AL193: 0 | AM193: 0 | AN193: 0 | AO193: 0 | AP193: 0 | AQ193: 0 | AR193: 0 | AS193: 0 | AT193: 0 | AU193: 0 | AV193: 0 | AW193: 0 | AX193: 0 | AY193: 0 | AZ193: 0 | BA193: 0 | BB193: 0 | BC193: 0 | BD193: 0 | BE193: 0 | BF193: 0 | BG193: 0 | BH193: 0 | BI193: 0 | BJ193: 0 | BK193: 0 | BL193: 0 | BM193: 0 | BN193: 0 | BO193: 0 | BP193: 0 | BQ193: 0 | BR193: 0 | BS193: 0 | BT193: =(IFERROR(SUM(OFFSET(BT$70,0,1-$E193,1,$E193))/SUM(OFFSET(BT$70,0,1-$E193*2,1,$E193)),0)-1)*(BT$64>=($E193*2))*(BT69<>0) -> 0 | BU193: 0 | BV193: 0 | BW193: 0 | BX193: 0 | BY193: 0 | BZ193: 0 | CA193: 0 | CB193: 0 | CC193: 0 | CD193: 0 | CE193: 0 | CF193: 0 | CG193: 0 | CH193: 0 | CI193: 0 | CJ193: 0 | CK193: 0 | CL193: 0 | CM193: 0 | CN193: 0 | CO193: 0 | CP193: 0 | CQ193: 0 | CR193: 0 | CS193: 0 | CT193: 0 | CU193: 0 | CV193: 0 | CW193: 0 | CX193: 0 | CY193: 0 | CZ193: 0 | DA193: 0 | DB193: 0 | DC193: 0 | DD193: 0 | DE193: 0 | DF193: 0 | DG193: 0 | DH193: 0 | DI193: 0 | DJ193: 0 | DK193: 0 | DL193: 0 | DM193: 0 | DN193: 0 | DO193: 0 | DP193: 0 | DQ193: 0 | DR193: 0 | DS193: 0 | DT193: 0 | DU193: 0 | DV193: 0
C194: CAGR Revenue 2 yr | G194: =(IFERROR( AVERAGE( SUM(OFFSET(G$70,0,1-$E193,1,$E193))/SUM(OFFSET(G$70,0,1-$E193*2,1,$E193)), SUM(OFFSET(G$70,0,1-$E193*2,1,$E193))/SUM(OFFSET(G$70,0,1-$E193*3,1,$E193))), 0)-1)*(G$64>=($E193*3))*(G69<>0) -> 0 | H194: =(IFERROR( AVERAGE( SUM(OFFSET(H$70,0,1-$E193,1,$E193))/SUM(OFFSET(H$70,0,1-$E193*2,1,$E193)), SUM(OFFSET(H$70,0,1-$E193*2,1,$E193))/SUM(OFFSET(H$70,0,1-$E193*3,1,$E193))), 0)-1)*(H$64>=($E193*3))*(H69<>0) -> 0 | I194: 0 | J194: 0 | K194: 0 | L194: 0 | M194: 0 | N194: 0 | O194: 0 | P194: 0 | Q194: 0 | R194: 0 | S194: =(IFERROR( AVERAGE( SUM(OFFSET(S$70,0,1-$E193,1,$E193))/SUM(OFFSET(S$70,0,1-$E193*2,1,$E193)), SUM(OFFSET(S$70,0,1-$E193*2,1,$E193))/SUM(OFFSET(S$70,0,1-$E193*3,1,$E193))), 0)-1)*(S$64>=($E193*3))*(S69<>0) -> 0 | T194: =(IFERROR( AVERAGE( SUM(OFFSET(T$70,0,1-$E193,1,$E193))/SUM(OFFSET(T$70,0,1-$E193*2,1,$E193)), SUM(OFFSET(T$70,0,1-$E193*2,1,$E193))/SUM(OFFSET(T$70,0,1-$E193*3,1,$E193))), 0)-1)*(T$64>=($E193*3))*(T69<>0) -> 0 | U194: =(IFERROR( AVERAGE( SUM(OFFSET(U$70,0,1-$E193,1,$E193))/SUM(OFFSET(U$70,0,1-$E193*2,1,$E193)), SUM(OFFSET(U$70,0,1-$E193*2,1,$E193))/SUM(OFFSET(U$70,0,1-$E193*3,1,$E193))), 0)-1)*(U$64>=($E193*3))*(U69<>0) -> 0 | V194: =(IFERROR( AVERAGE( SUM(OFFSET(V$70,0,1-$E193,1,$E193))/SUM(OFFSET(V$70,0,1-$E193*2,1,$E193)), SUM(OFFSET(V$70,0,1-$E193*2,1,$E193))/SUM(OFFSET(V$70,0,1-$E193*3,1,$E193))), 0)-1)*(V$64>=($E193*3))*(V69<>0) -> 0 | W194: =(IFERROR( AVERAGE( SUM(OFFSET(W$70,0,1-$E193,1,$E193))/SUM(OFFSET(W$70,0,1-$E193*2,1,$E193)), SUM(OFFSET(W$70,0,1-$E193*2,1,$E193))/SUM(OFFSET(W$70,0,1-$E193*3,1,$E193))), 0)-1)*(W$64>=($E193*3))*(W69<>0) -> 0 | X194: =(IFERROR( AVERAGE( SUM(OFFSET(X$70,0,1-$E193,1,$E193))/SUM(OFFSET(X$70,0,1-$E193*2,1,$E193)), SUM(OFFSET(X$70,0,1-$E193*2,1,$E193))/SUM(OFFSET(X$70,0,1-$E193*3,1,$E193))), 0)-1)*(X$64>=($E193*3))*(X69<>0) -> 0 | Y194: =(IFERROR( AVERAGE( SUM(OFFSET(Y$70,0,1-$E193,1,$E193))/SUM(OFFSET(Y$70,0,1-$E193*2,1,$E193)), SUM(OFFSET(Y$70,0,1-$E193*2,1,$E193))/SUM(OFFSET(Y$70,0,1-$E193*3,1,$E193))), 0)-1)*(Y$64>=($E193*3))*(Y69<>0) -> 0 | Z194: =(IFERROR( AVERAGE( SUM(OFFSET(Z$70,0,1-$E193,1,$E193))/SUM(OFFSET(Z$70,0,1-$E193*2,1,$E193)), SUM(OFFSET(Z$70,0,1-$E193*2,1,$E193))/SUM(OFFSET(Z$70,0,1-$E193*3,1,$E193))), 0)-1)*(Z$64>=($E193*3))*(Z69<>0) -> 0 | AA194: =(IFERROR( AVERAGE( SUM(OFFSET(AA$70,0,1-$E193,1,$E193))/SUM(OFFSET(AA$70,0,1-$E193*2,1,$E193)), SUM(OFFSET(AA$70,0,1-$E193*2,1,$E193))/SUM(OFFSET(AA$70,0,1-$E193*3,1,$E193))), 0)-1)*(AA$64>=($E193*3))*(AA69<>0) -> 0 | AB194: =(IFERROR( AVERAGE( SUM(OFFSET(AB$70,0,1-$E193,1,$E193))/SUM(OFFSET(AB$70,0,1-$E193*2,1,$E193)), SUM(OFFSET(AB$70,0,1-$E193*2,1,$E193))/SUM(OFFSET(AB$70,0,1-$E193*3,1,$E193))), 0)-1)*(AB$64>=($E193*3))*(AB69<>0) -> 0 | AC194: =(IFERROR( AVERAGE( SUM(OFFSET(AC$70,0,1-$E193,1,$E193))/SUM(OFFSET(AC$70,0,1-$E193*2,1,$E193)), SUM(OFFSET(AC$70,0,1-$E193*2,1,$E193))/SUM(OFFSET(AC$70,0,1-$E193*3,1,$E193))), 0)-1)*(AC$64>=($E193*3))*(AC69<>0) -> 0 | AD194: =(IFERROR( AVERAGE( SUM(OFFSET(AD$70,0,1-$E193,1,$E193))/SUM(OFFSET(AD$70,0,1-$E193*2,1,$E193)), SUM(OFFSET(AD$70,0,1-$E193*2,1,$E193))/SUM(OFFSET(AD$70,0,1-$E193*3,1,$E193))), 0)-1)*(AD$64>=($E193*3))*(AD69<>0) -> 0 | AE194: =(IFERROR( AVERAGE( SUM(OFFSET(AE$70,0,1-$E193,1,$E193))/SUM(OFFSET(AE$70,0,1-$E193*2,1,$E193)), SUM(OFFSET(AE$70,0,1-$E193*2,1,$E193))/SUM(OFFSET(AE$70,0,1-$E193*3,1,$E193))), 0)-1)*(AE$64>=($E193*3))*(AE69<>0) -> 0 | AF194: =(IFERROR( AVERAGE( SUM(OFFSET(AF$70,0,1-$E193,1,$E193))/SUM(OFFSET(AF$70,0,1-$E193*2,1,$E193)), SUM(OFFSET(AF$70,0,1-$E193*2,1,$E193))/SUM(OFFSET(AF$70,0,1-$E193*3,1,$E193))), 0)-1)*(AF$64>=($E193*3))*(AF69<>0) -> 0 | AG194: =(IFERROR( AVERAGE( SUM(OFFSET(AG$70,0,1-$E193,1,$E193))/SUM(OFFSET(AG$70,0,1-$E193*2,1,$E193)), SUM(OFFSET(AG$70,0,1-$E193*2,1,$E193))/SUM(OFFSET(AG$70,0,1-$E193*3,1,$E193))), 0)-1)*(AG$64>=($E193*3))*(AG69<>0) -> 0 | AH194: =(IFERROR( AVERAGE( SUM(OFFSET(AH$70,0,1-$E193,1,$E193))/SUM(OFFSET(AH$70,0,1-$E193*2,1,$E193)), SUM(OFFSET(AH$70,0,1-$E193*2,1,$E193))/SUM(OFFSET(AH$70,0,1-$E193*3,1,$E193))), 0)-1)*(AH$64>=($E193*3))*(AH69<>0) -> 0 | AI194: =(IFERROR( AVERAGE( SUM(OFFSET(AI$70,0,1-$E193,1,$E193))/SUM(OFFSET(AI$70,0,1-$E193*2,1,$E193)), SUM(OFFSET(AI$70,0,1-$E193*2,1,$E193))/SUM(OFFSET(AI$70,0,1-$E193*3,1,$E193))), 0)-1)*(AI$64>=($E193*3))*(AI69<>0) -> 0 | AJ194: =(IFERROR( AVERAGE( SUM(OFFSET(AJ$70,0,1-$E193,1,$E193))/SUM(OFFSET(AJ$70,0,1-$E193*2,1,$E193)), SUM(OFFSET(AJ$70,0,1-$E193*2,1,$E193))/SUM(OFFSET(AJ$70,0,1-$E193*3,1,$E193))), 0)-1)*(AJ$64>=($E193*3))*(AJ69<>0) -> 0 | AK194: =(IFERROR( AVERAGE( SUM(OFFSET(AK$70,0,1-$E193,1,$E193))/SUM(OFFSET(AK$70,0,1-$E193*2,1,$E193)), SUM(OFFSET(AK$70,0,1-$E193*2,1,$E193))/SUM(OFFSET(AK$70,0,1-$E193*3,1,$E193))), 0)-1)*(AK$64>=($E193*3))*(AK69<>0) -> 0 | AL194: =(IFERROR( AVERAGE( SUM(OFFSET(AL$70,0,1-$E193,1,$E193))/SUM(OFFSET(AL$70,0,1-$E193*2,1,$E193)), SUM(OFFSET(AL$70,0,1-$E193*2,1,$E193))/SUM(OFFSET(AL$70,0,1-$E193*3,1,$E193))), 0)-1)*(AL$64>=($E193*3))*(AL69<>0) -> 0 | AM194: =(IFERROR( AVERAGE( SUM(OFFSET(AM$70,0,1-$E193,1,$E193))/SUM(OFFSET(AM$70,0,1-$E193*2,1,$E193)), SUM(OFFSET(AM$70,0,1-$E193*2,1,$E193))/SUM(OFFSET(AM$70,0,1-$E193*3,1,$E193))), 0)-1)*(AM$64>=($E193*3))*(AM69<>0) -> 0 | AN194: =(IFERROR( AVERAGE( SUM(OFFSET(AN$70,0,1-$E193,1,$E193))/SUM(OFFSET(AN$70,0,1-$E193*2,1,$E193)), SUM(OFFSET(AN$70,0,1-$E193*2,1,$E193))/SUM(OFFSET(AN$70,0,1-$E193*3,1,$E193))), 0)-1)*(AN$64>=($E193*3))*(AN69<>0) -> 0 | AO194: =(IFERROR( AVERAGE( SUM(OFFSET(AO$70,0,1-$E193,1,$E193))/SUM(OFFSET(AO$70,0,1-$E193*2,1,$E193)), SUM(OFFSET(AO$70,0,1-$E193*2,1,$E193))/SUM(OFFSET(AO$70,0,1-$E193*3,1,$E193))), 0)-1)*(AO$64>=($E193*3))*(AO69<>0) -> 0 | AP194: =(IFERROR( AVERAGE( SUM(OFFSET(AP$70,0,1-$E193,1,$E193))/SUM(OFFSET(AP$70,0,1-$E193*2,1,$E193)), SUM(OFFSET(AP$70,0,1-$E193*2,1,$E193))/SUM(OFFSET(AP$70,0,1-$E193*3,1,$E193))), 0)-1)*(AP$64>=($E193*3))*(AP69<>0) -> 0 | AQ194: =(IFERROR( AVERAGE( SUM(OFFSET(AQ$70,0,1-$E193,1,$E193))/SUM(OFFSET(AQ$70,0,1-$E193*2,1,$E193)), SUM(OFFSET(AQ$70,0,1-$E193*2,1,$E193))/SUM(OFFSET(AQ$70,0,1-$E193*3,1,$E193))), 0)-1)*(AQ$64>=($E193*3))*(AQ69<>0) -> 0 | AR194: =(IFERROR( AVERAGE( SUM(OFFSET(AR$70,0,1-$E193,1,$E193))/SUM(OFFSET(AR$70,0,1-$E193*2,1,$E193)), SUM(OFFSET(AR$70,0,1-$E193*2,1,$E193))/SUM(OFFSET(AR$70,0,1-$E193*3,1,$E193))), 0)-1)*(AR$64>=($E193*3))*(AR69<>0) -> 0 | AS194: =(IFERROR( AVERAGE( SUM(OFFSET(AS$70,0,1-$E193,1,$E193))/SUM(OFFSET(AS$70,0,1-$E193*2,1,$E193)), SUM(OFFSET(AS$70,0,1-$E193*2,1,$E193))/SUM(OFFSET(AS$70,0,1-$E193*3,1,$E193))), 0)-1)*(AS$64>=($E193*3))*(AS69<>0) -> 0 | AT194: =(IFERROR( AVERAGE( SUM(OFFSET(AT$70,0,1-$E193,1,$E193))/SUM(OFFSET(AT$70,0,1-$E193*2,1,$E193)), SUM(OFFSET(AT$70,0,1-$E193*2,1,$E193))/SUM(OFFSET(AT$70,0,1-$E193*3,1,$E193))), 0)-1)*(AT$64>=($E193*3))*(AT69<>0) -> 0 | AU194: =(IFERROR( AVERAGE( SUM(OFFSET(AU$70,0,1-$E193,1,$E193))/SUM(OFFSET(AU$70,0,1-$E193*2,1,$E193)), SUM(OFFSET(AU$70,0,1-$E193*2,1,$E193))/SUM(OFFSET(AU$70,0,1-$E193*3,1,$E193))), 0)-1)*(AU$64>=($E193*3))*(AU69<>0) -> 0 | AV194: =(IFERROR( AVERAGE( SUM(OFFSET(AV$70,0,1-$E193,1,$E193))/SUM(OFFSET(AV$70,0,1-$E193*2,1,$E193)), SUM(OFFSET(AV$70,0,1-$E193*2,1,$E193))/SUM(OFFSET(AV$70,0,1-$E193*3,1,$E193))), 0)-1)*(AV$64>=($E193*3))*(AV69<>0) -> 0 | AW194: =(IFERROR( AVERAGE( SUM(OFFSET(AW$70,0,1-$E193,1,$E193))/SUM(OFFSET(AW$70,0,1-$E193*2,1,$E193)), SUM(OFFSET(AW$70,0,1-$E193*2,1,$E193))/SUM(OFFSET(AW$70,0,1-$E193*3,1,$E193))), 0)-1)*(AW$64>=($E193*3))*(AW69<>0) -> 0 | AX194: =(IFERROR( AVERAGE( SUM(OFFSET(AX$70,0,1-$E193,1,$E193))/SUM(OFFSET(AX$70,0,1-$E193*2,1,$E193)), SUM(OFFSET(AX$70,0,1-$E193*2,1,$E193))/SUM(OFFSET(AX$70,0,1-$E193*3,1,$E193))), 0)-1)*(AX$64>=($E193*3))*(AX69<>0) -> 0 | AY194: =(IFERROR( AVERAGE( SUM(OFFSET(AY$70,0,1-$E193,1,$E193))/SUM(OFFSET(AY$70,0,1-$E193*2,1,$E193)), SUM(OFFSET(AY$70,0,1-$E193*2,1,$E193))/SUM(OFFSET(AY$70,0,1-$E193*3,1,$E193))), 0)-1)*(AY$64>=($E193*3))*(AY69<>0) -> 0 | AZ194: =(IFERROR( AVERAGE( SUM(OFFSET(AZ$70,0,1-$E193,1,$E193))/SUM(OFFSET(AZ$70,0,1-$E193*2,1,$E193)), SUM(OFFSET(AZ$70,0,1-$E193*2,1,$E193))/SUM(OFFSET(AZ$70,0,1-$E193*3,1,$E193))), 0)-1)*(AZ$64>=($E193*3))*(AZ69<>0) -> 0 | BA194: =(IFERROR( AVERAGE( SUM(OFFSET(BA$70,0,1-$E193,1,$E193))/SUM(OFFSET(BA$70,0,1-$E193*2,1,$E193)), SUM(OFFSET(BA$70,0,1-$E193*2,1,$E193))/SUM(OFFSET(BA$70,0,1-$E193*3,1,$E193))), 0)-1)*(BA$64>=($E193*3))*(BA69<>0) -> 0 | BB194: =(IFERROR( AVERAGE( SUM(OFFSET(BB$70,0,1-$E193,1,$E193))/SUM(OFFSET(BB$70,0,1-$E193*2,1,$E193)), SUM(OFFSET(BB$70,0,1-$E193*2,1,$E193))/SUM(OFFSET(BB$70,0,1-$E193*3,1,$E193))), 0)-1)*(BB$64>=($E193*3))*(BB69<>0) -> 0 | BC194: =(IFERROR( AVERAGE( SUM(OFFSET(BC$70,0,1-$E193,1,$E193))/SUM(OFFSET(BC$70,0,1-$E193*2,1,$E193)), SUM(OFFSET(BC$70,0,1-$E193*2,1,$E193))/SUM(OFFSET(BC$70,0,1-$E193*3,1,$E193))), 0)-1)*(BC$64>=($E193*3))*(BC69<>0) -> 0 | BD194: =(IFERROR( AVERAGE( SUM(OFFSET(BD$70,0,1-$E193,1,$E193))/SUM(OFFSET(BD$70,0,1-$E193*2,1,$E193)), SUM(OFFSET(BD$70,0,1-$E193*2,1,$E193))/SUM(OFFSET(BD$70,0,1-$E193*3,1,$E193))), 0)-1)*(BD$64>=($E193*3))*(BD69<>0) -> 0 | BE194: =(IFERROR( AVERAGE( SUM(OFFSET(BE$70,0,1-$E193,1,$E193))/SUM(OFFSET(BE$70,0,1-$E193*2,1,$E193)), SUM(OFFSET(BE$70,0,1-$E193*2,1,$E193))/SUM(OFFSET(BE$70,0,1-$E193*3,1,$E193))), 0)-1)*(BE$64>=($E193*3))*(BE69<>0) -> 0 | BF194: =(IFERROR( AVERAGE( SUM(OFFSET(BF$70,0,1-$E193,1,$E193))/SUM(OFFSET(BF$70,0,1-$E193*2,1,$E193)), SUM(OFFSET(BF$70,0,1-$E193*2,1,$E193))/SUM(OFFSET(BF$70,0,1-$E193*3,1,$E193))), 0)-1)*(BF$64>=($E193*3))*(BF69<>0) -> 0 | BG194: =(IFERROR( AVERAGE( SUM(OFFSET(BG$70,0,1-$E193,1,$E193))/SUM(OFFSET(BG$70,0,1-$E193*2,1,$E193)), SUM(OFFSET(BG$70,0,1-$E193*2,1,$E193))/SUM(OFFSET(BG$70,0,1-$E193*3,1,$E193))), 0)-1)*(BG$64>=($E193*3))*(BG69<>0) -> 0 | BH194: =(IFERROR( AVERAGE( SUM(OFFSET(BH$70,0,1-$E193,1,$E193))/SUM(OFFSET(BH$70,0,1-$E193*2,1,$E193)), SUM(OFFSET(BH$70,0,1-$E193*2,1,$E193))/SUM(OFFSET(BH$70,0,1-$E193*3,1,$E193))), 0)-1)*(BH$64>=($E193*3))*(BH69<>0) -> 0 | BI194: =(IFERROR( AVERAGE( SUM(OFFSET(BI$70,0,1-$E193,1,$E193))/SUM(OFFSET(BI$70,0,1-$E193*2,1,$E193)), SUM(OFFSET(BI$70,0,1-$E193*2,1,$E193))/SUM(OFFSET(BI$70,0,1-$E193*3,1,$E193))), 0)-1)*(BI$64>=($E193*3))*(BI69<>0) -> 0 | BJ194: =(IFERROR( AVERAGE( SUM(OFFSET(BJ$70,0,1-$E193,1,$E193))/SUM(OFFSET(BJ$70,0,1-$E193*2,1,$E193)), SUM(OFFSET(BJ$70,0,1-$E193*2,1,$E193))/SUM(OFFSET(BJ$70,0,1-$E193*3,1,$E193))), 0)-1)*(BJ$64>=($E193*3))*(BJ69<>0) -> 0 | BK194: =(IFERROR( AVERAGE( SUM(OFFSET(BK$70,0,1-$E193,1,$E193))/SUM(OFFSET(BK$70,0,1-$E193*2,1,$E193)), SUM(OFFSET(BK$70,0,1-$E193*2,1,$E193))/SUM(OFFSET(BK$70,0,1-$E193*3,1,$E193))), 0)-1)*(BK$64>=($E193*3))*(BK69<>0) -> 0 | BL194: =(IFERROR( AVERAGE( SUM(OFFSET(BL$70,0,1-$E193,1,$E193))/SUM(OFFSET(BL$70,0,1-$E193*2,1,$E193)), SUM(OFFSET(BL$70,0,1-$E193*2,1,$E193))/SUM(OFFSET(BL$70,0,1-$E193*3,1,$E193))), 0)-1)*(BL$64>=($E193*3))*(BL69<>0) -> 0 | BM194: =(IFERROR( AVERAGE( SUM(OFFSET(BM$70,0,1-$E193,1,$E193))/SUM(OFFSET(BM$70,0,1-$E193*2,1,$E193)), SUM(OFFSET(BM$70,0,1-$E193*2,1,$E193))/SUM(OFFSET(BM$70,0,1-$E193*3,1,$E193))), 0)-1)*(BM$64>=($E193*3))*(BM69<>0) -> 0 | BN194: =(IFERROR( AVERAGE( SUM(OFFSET(BN$70,0,1-$E193,1,$E193))/SUM(OFFSET(BN$70,0,1-$E193*2,1,$E193)), SUM(OFFSET(BN$70,0,1-$E193*2,1,$E193))/SUM(OFFSET(BN$70,0,1-$E193*3,1,$E193))), 0)-1)*(BN$64>=($E193*3))*(BN69<>0) -> 0 | BO194: =(IFERROR( AVERAGE( SUM(OFFSET(BO$70,0,1-$E193,1,$E193))/SUM(OFFSET(BO$70,0,1-$E193*2,1,$E193)), SUM(OFFSET(BO$70,0,1-$E193*2,1,$E193))/SUM(OFFSET(BO$70,0,1-$E193*3,1,$E193))), 0)-1)*(BO$64>=($E193*3))*(BO69<>0) -> 0 | BP194: =(IFERROR( AVERAGE( SUM(OFFSET(BP$70,0,1-$E193,1,$E193))/SUM(OFFSET(BP$70,0,1-$E193*2,1,$E193)), SUM(OFFSET(BP$70,0,1-$E193*2,1,$E193))/SUM(OFFSET(BP$70,0,1-$E193*3,1,$E193))), 0)-1)*(BP$64>=($E193*3))*(BP69<>0) -> 0 | BQ194: =(IFERROR( AVERAGE( SUM(OFFSET(BQ$70,0,1-$E193,1,$E193))/SUM(OFFSET(BQ$70,0,1-$E193*2,1,$E193)), SUM(OFFSET(BQ$70,0,1-$E193*2,1,$E193))/SUM(OFFSET(BQ$70,0,1-$E193*3,1,$E193))), 0)-1)*(BQ$64>=($E193*3))*(BQ69<>0) -> 0 | BR194: =(IFERROR( AVERAGE( SUM(OFFSET(BR$70,0,1-$E193,1,$E193))/SUM(OFFSET(BR$70,0,1-$E193*2,1,$E193)), SUM(OFFSET(BR$70,0,1-$E193*2,1,$E193))/SUM(OFFSET(BR$70,0,1-$E193*3,1,$E193))), 0)-1)*(BR$64>=($E193*3))*(BR69<>0) -> 0 | BS194: =(IFERROR( AVERAGE( SUM(OFFSET(BS$70,0,1-$E193,1,$E193))/SUM(OFFSET(BS$70,0,1-$E193*2,1,$E193)), SUM(OFFSET(BS$70,0,1-$E193*2,1,$E193))/SUM(OFFSET(BS$70,0,1-$E193*3,1,$E193))), 0)-1)*(BS$64>=($E193*3))*(BS69<>0) -> 0 | BT194: =(IFERROR( AVERAGE( SUM(OFFSET(BT$70,0,1-$E193,1,$E193))/SUM(OFFSET(BT$70,0,1-$E193*2,1,$E193)), SUM(OFFSET(BT$70,0,1-$E193*2,1,$E193))/SUM(OFFSET(BT$70,0,1-$E193*3,1,$E193))), 0)-1)*(BT$64>=($E193*3))*(BT69<>0) -> 0 | BU194: =(IFERROR( AVERAGE( SUM(OFFSET(BU$70,0,1-$E193,1,$E193))/SUM(OFFSET(BU$70,0,1-$E193*2,1,$E193)), SUM(OFFSET(BU$70,0,1-$E193*2,1,$E193))/SUM(OFFSET(BU$70,0,1-$E193*3,1,$E193))), 0)-1)*(BU$64>=($E193*3))*(BU69<>0) -> 0 | BV194: =(IFERROR( AVERAGE( SUM(OFFSET(BV$70,0,1-$E193,1,$E193))/SUM(OFFSET(BV$70,0,1-$E193*2,1,$E193)), SUM(OFFSET(BV$70,0,1-$E193*2,1,$E193))/SUM(OFFSET(BV$70,0,1-$E193*3,1,$E193))), 0)-1)*(BV$64>=($E193*3))*(BV69<>0) -> 0 | BW194: =(IFERROR( AVERAGE( SUM(OFFSET(BW$70,0,1-$E193,1,$E193))/SUM(OFFSET(BW$70,0,1-$E193*2,1,$E193)), SUM(OFFSET(BW$70,0,1-$E193*2,1,$E193))/SUM(OFFSET(BW$70,0,1-$E193*3,1,$E193))), 0)-1)*(BW$64>=($E193*3))*(BW69<>0) -> 0 | BX194: =(IFERROR( AVERAGE( SUM(OFFSET(BX$70,0,1-$E193,1,$E193))/SUM(OFFSET(BX$70,0,1-$E193*2,1,$E193)), SUM(OFFSET(BX$70,0,1-$E193*2,1,$E193))/SUM(OFFSET(BX$70,0,1-$E193*3,1,$E193))), 0)-1)*(BX$64>=($E193*3))*(BX69<>0) -> 0 | BY194: =(IFERROR( AVERAGE( SUM(OFFSET(BY$70,0,1-$E193,1,$E193))/SUM(OFFSET(BY$70,0,1-$E193*2,1,$E193)), SUM(OFFSET(BY$70,0,1-$E193*2,1,$E193))/SUM(OFFSET(BY$70,0,1-$E193*3,1,$E193))), 0)-1)*(BY$64>=($E193*3))*(BY69<>0) -> 0 | BZ194: =(IFERROR( AVERAGE( SUM(OFFSET(BZ$70,0,1-$E193,1,$E193))/SUM(OFFSET(BZ$70,0,1-$E193*2,1,$E193)), SUM(OFFSET(BZ$70,0,1-$E193*2,1,$E193))/SUM(OFFSET(BZ$70,0,1-$E193*3,1,$E193))), 0)-1)*(BZ$64>=($E193*3))*(BZ69<>0) -> 0 | CA194: =(IFERROR( AVERAGE( SUM(OFFSET(CA$70,0,1-$E193,1,$E193))/SUM(OFFSET(CA$70,0,1-$E193*2,1,$E193)), SUM(OFFSET(CA$70,0,1-$E193*2,1,$E193))/SUM(OFFSET(CA$70,0,1-$E193*3,1,$E193))), 0)-1)*(CA$64>=($E193*3))*(CA69<>0) -> 0 | CB194: =(IFERROR( AVERAGE( SUM(OFFSET(CB$70,0,1-$E193,1,$E193))/SUM(OFFSET(CB$70,0,1-$E193*2,1,$E193)), SUM(OFFSET(CB$70,0,1-$E193*2,1,$E193))/SUM(OFFSET(CB$70,0,1-$E193*3,1,$E193))), 0)-1)*(CB$64>=($E193*3))*(CB69<>0) -> 0 | CC194: =(IFERROR( AVERAGE( SUM(OFFSET(CC$70,0,1-$E193,1,$E193))/SUM(OFFSET(CC$70,0,1-$E193*2,1,$E193)), SUM(OFFSET(CC$70,0,1-$E193*2,1,$E193))/SUM(OFFSET(CC$70,0,1-$E193*3,1,$E193))), 0)-1)*(CC$64>=($E193*3))*(CC69<>0) -> 0 | CD194: =(IFERROR( AVERAGE( SUM(OFFSET(CD$70,0,1-$E193,1,$E193))/SUM(OFFSET(CD$70,0,1-$E193*2,1,$E193)), SUM(OFFSET(CD$70,0,1-$E193*2,1,$E193))/SUM(OFFSET(CD$70,0,1-$E193*3,1,$E193))), 0)-1)*(CD$64>=($E193*3))*(CD69<>0) -> 0 | CE194: =(IFERROR( AVERAGE( SUM(OFFSET(CE$70,0,1-$E193,1,$E193))/SUM(OFFSET(CE$70,0,1-$E193*2,1,$E193)), SUM(OFFSET(CE$70,0,1-$E193*2,1,$E193))/SUM(OFFSET(CE$70,0,1-$E193*3,1,$E193))), 0)-1)*(CE$64>=($E193*3))*(CE69<>0) -> 0 | CF194: =(IFERROR( AVERAGE( SUM(OFFSET(CF$70,0,1-$E193,1,$E193))/SUM(OFFSET(CF$70,0,1-$E193*2,1,$E193)), SUM(OFFSET(CF$70,0,1-$E193*2,1,$E193))/SUM(OFFSET(CF$70,0,1-$E193*3,1,$E193))), 0)-1)*(CF$64>=($E193*3))*(CF69<>0) -> 0 | CG194: =(IFERROR( AVERAGE( SUM(OFFSET(CG$70,0,1-$E193,1,$E193))/SUM(OFFSET(CG$70,0,1-$E193*2,1,$E193)), SUM(OFFSET(CG$70,0,1-$E193*2,1,$E193))/SUM(OFFSET(CG$70,0,1-$E193*3,1,$E193))), 0)-1)*(CG$64>=($E193*3))*(CG69<>0) -> 0 | CH194: =(IFERROR( AVERAGE( SUM(OFFSET(CH$70,0,1-$E193,1,$E193))/SUM(OFFSET(CH$70,0,1-$E193*2,1,$E193)), SUM(OFFSET(CH$70,0,1-$E193*2,1,$E193))/SUM(OFFSET(CH$70,0,1-$E193*3,1,$E193))), 0)-1)*(CH$64>=($E193*3))*(CH69<>0) -> 0 | CI194: =(IFERROR( AVERAGE( SUM(OFFSET(CI$70,0,1-$E193,1,$E193))/SUM(OFFSET(CI$70,0,1-$E193*2,1,$E193)), SUM(OFFSET(CI$70,0,1-$E193*2,1,$E193))/SUM(OFFSET(CI$70,0,1-$E193*3,1,$E193))), 0)-1)*(CI$64>=($E193*3))*(CI69<>0) -> 0 | CJ194: =(IFERROR( AVERAGE( SUM(OFFSET(CJ$70,0,1-$E193,1,$E193))/SUM(OFFSET(CJ$70,0,1-$E193*2,1,$E193)), SUM(OFFSET(CJ$70,0,1-$E193*2,1,$E193))/SUM(OFFSET(CJ$70,0,1-$E193*3,1,$E193))), 0)-1)*(CJ$64>=($E193*3))*(CJ69<>0) -> 0 | CK194: =(IFERROR( AVERAGE( SUM(OFFSET(CK$70,0,1-$E193,1,$E193))/SUM(OFFSET(CK$70,0,1-$E193*2,1,$E193)), SUM(OFFSET(CK$70,0,1-$E193*2,1,$E193))/SUM(OFFSET(CK$70,0,1-$E193*3,1,$E193))), 0)-1)*(CK$64>=($E193*3))*(CK69<>0) -> 0 | CL194: =(IFERROR( AVERAGE( SUM(OFFSET(CL$70,0,1-$E193,1,$E193))/SUM(OFFSET(CL$70,0,1-$E193*2,1,$E193)), SUM(OFFSET(CL$70,0,1-$E193*2,1,$E193))/SUM(OFFSET(CL$70,0,1-$E193*3,1,$E193))), 0)-1)*(CL$64>=($E193*3))*(CL69<>0) -> 0 | CM194: =(IFERROR( AVERAGE( SUM(OFFSET(CM$70,0,1-$E193,1,$E193))/SUM(OFFSET(CM$70,0,1-$E193*2,1,$E193)), SUM(OFFSET(CM$70,0,1-$E193*2,1,$E193))/SUM(OFFSET(CM$70,0,1-$E193*3,1,$E193))), 0)-1)*(CM$64>=($E193*3))*(CM69<>0) -> 0 | CN194: =(IFERROR( AVERAGE( SUM(OFFSET(CN$70,0,1-$E193,1,$E193))/SUM(OFFSET(CN$70,0,1-$E193*2,1,$E193)), SUM(OFFSET(CN$70,0,1-$E193*2,1,$E193))/SUM(OFFSET(CN$70,0,1-$E193*3,1,$E193))), 0)-1)*(CN$64>=($E193*3))*(CN69<>0) -> 0 | CO194: =(IFERROR( AVERAGE( SUM(OFFSET(CO$70,0,1-$E193,1,$E193))/SUM(OFFSET(CO$70,0,1-$E193*2,1,$E193)), SUM(OFFSET(CO$70,0,1-$E193*2,1,$E193))/SUM(OFFSET(CO$70,0,1-$E193*3,1,$E193))), 0)-1)*(CO$64>=($E193*3))*(CO69<>0) -> 0 | CP194: =(IFERROR( AVERAGE( SUM(OFFSET(CP$70,0,1-$E193,1,$E193))/SUM(OFFSET(CP$70,0,1-$E193*2,1,$E193)), SUM(OFFSET(CP$70,0,1-$E193*2,1,$E193))/SUM(OFFSET(CP$70,0,1-$E193*3,1,$E193))), 0)-1)*(CP$64>=($E193*3))*(CP69<>0) -> 0 | CQ194: =(IFERROR( AVERAGE( SUM(OFFSET(CQ$70,0,1-$E193,1,$E193))/SUM(OFFSET(CQ$70,0,1-$E193*2,1,$E193)), SUM(OFFSET(CQ$70,0,1-$E193*2,1,$E193))/SUM(OFFSET(CQ$70,0,1-$E193*3,1,$E193))), 0)-1)*(CQ$64>=($E193*3))*(CQ69<>0) -> 0 | CR194: =(IFERROR( AVERAGE( SUM(OFFSET(CR$70,0,1-$E193,1,$E193))/SUM(OFFSET(CR$70,0,1-$E193*2,1,$E193)), SUM(OFFSET(CR$70,0,1-$E193*2,1,$E193))/SUM(OFFSET(CR$70,0,1-$E193*3,1,$E193))), 0)-1)*(CR$64>=($E193*3))*(CR69<>0) -> 0 | CS194: =(IFERROR( AVERAGE( SUM(OFFSET(CS$70,0,1-$E193,1,$E193))/SUM(OFFSET(CS$70,0,1-$E193*2,1,$E193)), SUM(OFFSET(CS$70,0,1-$E193*2,1,$E193))/SUM(OFFSET(CS$70,0,1-$E193*3,1,$E193))), 0)-1)*(CS$64>=($E193*3))*(CS69<>0) -> 0 | CT194: =(IFERROR( AVERAGE( SUM(OFFSET(CT$70,0,1-$E193,1,$E193))/SUM(OFFSET(CT$70,0,1-$E193*2,1,$E193)), SUM(OFFSET(CT$70,0,1-$E193*2,1,$E193))/SUM(OFFSET(CT$70,0,1-$E193*3,1,$E193))), 0)-1)*(CT$64>=($E193*3))*(CT69<>0) -> 0 | CU194: =(IFERROR( AVERAGE( SUM(OFFSET(CU$70,0,1-$E193,1,$E193))/SUM(OFFSET(CU$70,0,1-$E193*2,1,$E193)), SUM(OFFSET(CU$70,0,1-$E193*2,1,$E193))/SUM(OFFSET(CU$70,0,1-$E193*3,1,$E193))), 0)-1)*(CU$64>=($E193*3))*(CU69<>0) -> 0 | CV194: =(IFERROR( AVERAGE( SUM(OFFSET(CV$70,0,1-$E193,1,$E193))/SUM(OFFSET(CV$70,0,1-$E193*2,1,$E193)), SUM(OFFSET(CV$70,0,1-$E193*2,1,$E193))/SUM(OFFSET(CV$70,0,1-$E193*3,1,$E193))), 0)-1)*(CV$64>=($E193*3))*(CV69<>0) -> 0 | CW194: =(IFERROR( AVERAGE( SUM(OFFSET(CW$70,0,1-$E193,1,$E193))/SUM(OFFSET(CW$70,0,1-$E193*2,1,$E193)), SUM(OFFSET(CW$70,0,1-$E193*2,1,$E193))/SUM(OFFSET(CW$70,0,1-$E193*3,1,$E193))), 0)-1)*(CW$64>=($E193*3))*(CW69<>0) -> 0 | CX194: =(IFERROR( AVERAGE( SUM(OFFSET(CX$70,0,1-$E193,1,$E193))/SUM(OFFSET(CX$70,0,1-$E193*2,1,$E193)), SUM(OFFSET(CX$70,0,1-$E193*2,1,$E193))/SUM(OFFSET(CX$70,0,1-$E193*3,1,$E193))), 0)-1)*(CX$64>=($E193*3))*(CX69<>0) -> 0 | CY194: =(IFERROR( AVERAGE( SUM(OFFSET(CY$70,0,1-$E193,1,$E193))/SUM(OFFSET(CY$70,0,1-$E193*2,1,$E193)), SUM(OFFSET(CY$70,0,1-$E193*2,1,$E193))/SUM(OFFSET(CY$70,0,1-$E193*3,1,$E193))), 0)-1)*(CY$64>=($E193*3))*(CY69<>0) -> 0 | CZ194: =(IFERROR( AVERAGE( SUM(OFFSET(CZ$70,0,1-$E193,1,$E193))/SUM(OFFSET(CZ$70,0,1-$E193*2,1,$E193)), SUM(OFFSET(CZ$70,0,1-$E193*2,1,$E193))/SUM(OFFSET(CZ$70,0,1-$E193*3,1,$E193))), 0)-1)*(CZ$64>=($E193*3))*(CZ69<>0) -> 0 | DA194: =(IFERROR( AVERAGE( SUM(OFFSET(DA$70,0,1-$E193,1,$E193))/SUM(OFFSET(DA$70,0,1-$E193*2,1,$E193)), SUM(OFFSET(DA$70,0,1-$E193*2,1,$E193))/SUM(OFFSET(DA$70,0,1-$E193*3,1,$E193))), 0)-1)*(DA$64>=($E193*3))*(DA69<>0) -> 0 | DB194: =(IFERROR( AVERAGE( SUM(OFFSET(DB$70,0,1-$E193,1,$E193))/SUM(OFFSET(DB$70,0,1-$E193*2,1,$E193)), SUM(OFFSET(DB$70,0,1-$E193*2,1,$E193))/SUM(OFFSET(DB$70,0,1-$E193*3,1,$E193))), 0)-1)*(DB$64>=($E193*3))*(DB69<>0) -> 0 | DC194: =(IFERROR( AVERAGE( SUM(OFFSET(DC$70,0,1-$E193,1,$E193))/SUM(OFFSET(DC$70,0,1-$E193*2,1,$E193)), SUM(OFFSET(DC$70,0,1-$E193*2,1,$E193))/SUM(OFFSET(DC$70,0,1-$E193*3,1,$E193))), 0)-1)*(DC$64>=($E193*3))*(DC69<>0) -> 0 | DD194: =(IFERROR( AVERAGE( SUM(OFFSET(DD$70,0,1-$E193,1,$E193))/SUM(OFFSET(DD$70,0,1-$E193*2,1,$E193)), SUM(OFFSET(DD$70,0,1-$E193*2,1,$E193))/SUM(OFFSET(DD$70,0,1-$E193*3,1,$E193))), 0)-1)*(DD$64>=($E193*3))*(DD69<>0) -> 0 | DE194: =(IFERROR( AVERAGE( SUM(OFFSET(DE$70,0,1-$E193,1,$E193))/SUM(OFFSET(DE$70,0,1-$E193*2,1,$E193)), SUM(OFFSET(DE$70,0,1-$E193*2,1,$E193))/SUM(OFFSET(DE$70,0,1-$E193*3,1,$E193))), 0)-1)*(DE$64>=($E193*3))*(DE69<>0) -> 0 | DF194: =(IFERROR( AVERAGE( SUM(OFFSET(DF$70,0,1-$E193,1,$E193))/SUM(OFFSET(DF$70,0,1-$E193*2,1,$E193)), SUM(OFFSET(DF$70,0,1-$E193*2,1,$E193))/SUM(OFFSET(DF$70,0,1-$E193*3,1,$E193))), 0)-1)*(DF$64>=($E193*3))*(DF69<>0) -> 0 | DG194: =(IFERROR( AVERAGE( SUM(OFFSET(DG$70,0,1-$E193,1,$E193))/SUM(OFFSET(DG$70,0,1-$E193*2,1,$E193)), SUM(OFFSET(DG$70,0,1-$E193*2,1,$E193))/SUM(OFFSET(DG$70,0,1-$E193*3,1,$E193))), 0)-1)*(DG$64>=($E193*3))*(DG69<>0) -> 0 | DH194: =(IFERROR( AVERAGE( SUM(OFFSET(DH$70,0,1-$E193,1,$E193))/SUM(OFFSET(DH$70,0,1-$E193*2,1,$E193)), SUM(OFFSET(DH$70,0,1-$E193*2,1,$E193))/SUM(OFFSET(DH$70,0,1-$E193*3,1,$E193))), 0)-1)*(DH$64>=($E193*3))*(DH69<>0) -> 0 | DI194: =(IFERROR( AVERAGE( SUM(OFFSET(DI$70,0,1-$E193,1,$E193))/SUM(OFFSET(DI$70,0,1-$E193*2,1,$E193)), SUM(OFFSET(DI$70,0,1-$E193*2,1,$E193))/SUM(OFFSET(DI$70,0,1-$E193*3,1,$E193))), 0)-1)*(DI$64>=($E193*3))*(DI69<>0) -> 0 | DJ194: =(IFERROR( AVERAGE( SUM(OFFSET(DJ$70,0,1-$E193,1,$E193))/SUM(OFFSET(DJ$70,0,1-$E193*2,1,$E193)), SUM(OFFSET(DJ$70,0,1-$E193*2,1,$E193))/SUM(OFFSET(DJ$70,0,1-$E193*3,1,$E193))), 0)-1)*(DJ$64>=($E193*3))*(DJ69<>0) -> 0 | DK194: =(IFERROR( AVERAGE( SUM(OFFSET(DK$70,0,1-$E193,1,$E193))/SUM(OFFSET(DK$70,0,1-$E193*2,1,$E193)), SUM(OFFSET(DK$70,0,1-$E193*2,1,$E193))/SUM(OFFSET(DK$70,0,1-$E193*3,1,$E193))), 0)-1)*(DK$64>=($E193*3))*(DK69<>0) -> 0 | DL194: =(IFERROR( AVERAGE( SUM(OFFSET(DL$70,0,1-$E193,1,$E193))/SUM(OFFSET(DL$70,0,1-$E193*2,1,$E193)), SUM(OFFSET(DL$70,0,1-$E193*2,1,$E193))/SUM(OFFSET(DL$70,0,1-$E193*3,1,$E193))), 0)-1)*(DL$64>=($E193*3))*(DL69<>0) -> 0 | DM194: =(IFERROR( AVERAGE( SUM(OFFSET(DM$70,0,1-$E193,1,$E193))/SUM(OFFSET(DM$70,0,1-$E193*2,1,$E193)), SUM(OFFSET(DM$70,0,1-$E193*2,1,$E193))/SUM(OFFSET(DM$70,0,1-$E193*3,1,$E193))), 0)-1)*(DM$64>=($E193*3))*(DM69<>0) -> 0 | DN194: =(IFERROR( AVERAGE( SUM(OFFSET(DN$70,0,1-$E193,1,$E193))/SUM(OFFSET(DN$70,0,1-$E193*2,1,$E193)), SUM(OFFSET(DN$70,0,1-$E193*2,1,$E193))/SUM(OFFSET(DN$70,0,1-$E193*3,1,$E193))), 0)-1)*(DN$64>=($E193*3))*(DN69<>0) -> 0 | DO194: =(IFERROR( AVERAGE( SUM(OFFSET(DO$70,0,1-$E193,1,$E193))/SUM(OFFSET(DO$70,0,1-$E193*2,1,$E193)), SUM(OFFSET(DO$70,0,1-$E193*2,1,$E193))/SUM(OFFSET(DO$70,0,1-$E193*3,1,$E193))), 0)-1)*(DO$64>=($E193*3))*(DO69<>0) -> 0 | DP194: =(IFERROR( AVERAGE( SUM(OFFSET(DP$70,0,1-$E193,1,$E193))/SUM(OFFSET(DP$70,0,1-$E193*2,1,$E193)), SUM(OFFSET(DP$70,0,1-$E193*2,1,$E193))/SUM(OFFSET(DP$70,0,1-$E193*3,1,$E193))), 0)-1)*(DP$64>=($E193*3))*(DP69<>0) -> 0 | DQ194: =(IFERROR( AVERAGE( SUM(OFFSET(DQ$70,0,1-$E193,1,$E193))/SUM(OFFSET(DQ$70,0,1-$E193*2,1,$E193)), SUM(OFFSET(DQ$70,0,1-$E193*2,1,$E193))/SUM(OFFSET(DQ$70,0,1-$E193*3,1,$E193))), 0)-1)*(DQ$64>=($E193*3))*(DQ69<>0) -> 0 | DR194: =(IFERROR( AVERAGE( SUM(OFFSET(DR$70,0,1-$E193,1,$E193))/SUM(OFFSET(DR$70,0,1-$E193*2,1,$E193)), SUM(OFFSET(DR$70,0,1-$E193*2,1,$E193))/SUM(OFFSET(DR$70,0,1-$E193*3,1,$E193))), 0)-1)*(DR$64>=($E193*3))*(DR69<>0) -> 0 | DS194: =(IFERROR( AVERAGE( SUM(OFFSET(DS$70,0,1-$E193,1,$E193))/SUM(OFFSET(DS$70,0,1-$E193*2,1,$E193)), SUM(OFFSET(DS$70,0,1-$E193*2,1,$E193))/SUM(OFFSET(DS$70,0,1-$E193*3,1,$E193))), 0)-1)*(DS$64>=($E193*3))*(DS69<>0) -> 0 | DT194: =(IFERROR( AVERAGE( SUM(OFFSET(DT$70,0,1-$E193,1,$E193))/SUM(OFFSET(DT$70,0,1-$E193*2,1,$E193)), SUM(OFFSET(DT$70,0,1-$E193*2,1,$E193))/SUM(OFFSET(DT$70,0,1-$E193*3,1,$E193))), 0)-1)*(DT$64>=($E193*3))*(DT69<>0) -> 0 | DU194: =(IFERROR( AVERAGE( SUM(OFFSET(DU$70,0,1-$E193,1,$E193))/SUM(OFFSET(DU$70,0,1-$E193*2,1,$E193)), SUM(OFFSET(DU$70,0,1-$E193*2,1,$E193))/SUM(OFFSET(DU$70,0,1-$E193*3,1,$E193))), 0)-1)*(DU$64>=($E193*3))*(DU69<>0) -> 0 | DV194: =(IFERROR( AVERAGE( SUM(OFFSET(DV$70,0,1-$E193,1,$E193))/SUM(OFFSET(DV$70,0,1-$E193*2,1,$E193)), SUM(OFFSET(DV$70,0,1-$E193*2,1,$E193))/SUM(OFFSET(DV$70,0,1-$E193*3,1,$E193))), 0)-1)*(DV$64>=($E193*3))*(DV69<>0) -> 0
C195: CAGR Revenue 3 yr | G195: =(IFERROR( AVERAGE( SUM(OFFSET(G$70,0,1-$E193,1,$E193))/SUM(OFFSET(G$70,0,1-$E193*2,1,$E193)), SUM(OFFSET(G$70,0,1-$E193*2,1,$E193))/SUM(OFFSET(G$70,0,1-$E193*3,1,$E193)), SUM(OFFSET(G$70,0,1-$E193*3,1,$E193))/SUM(OFFSET(G$70,0,1-$E193*4,1,$E193))), 0)-1)*(G$64>=($E193*4))*(G69<>0) -> 0 | H195: =(IFERROR( AVERAGE( SUM(OFFSET(H$70,0,1-$E193,1,$E193))/SUM(OFFSET(H$70,0,1-$E193*2,1,$E193)), SUM(OFFSET(H$70,0,1-$E193*2,1,$E193))/SUM(OFFSET(H$70,0,1-$E193*3,1,$E193)), SUM(OFFSET(H$70,0,1-$E193*3,1,$E193))/SUM(OFFSET(H$70,0,1-$E193*4,1,$E193))), 0)-1)*(H$64>=($E193*4))*(H69<>0) -> 0 | I195: 0 | J195: 0 | K195: 0 | L195: 0 | M195: 0 | N195: 0 | O195: 0 | P195: 0 | Q195: 0 | R195: 0 | S195: =(IFERROR( AVERAGE( SUM(OFFSET(S$70,0,1-$E193,1,$E193))/SUM(OFFSET(S$70,0,1-$E193*2,1,$E193)), SUM(OFFSET(S$70,0,1-$E193*2,1,$E193))/SUM(OFFSET(S$70,0,1-$E193*3,1,$E193)), SUM(OFFSET(S$70,0,1-$E193*3,1,$E193))/SUM(OFFSET(S$70,0,1-$E193*4,1,$E193))), 0)-1)*(S$64>=($E193*4))*(S69<>0) -> 0 | T195: 0 | U195: 0 | V195: 0 | W195: 0 | X195: 0 | Y195: 0 | Z195: 0 | AA195: 0 | AB195: 0 | AC195: 0 | AD195: 0 | AE195: 0 | AF195: 0 | AG195: 0 | AH195: 0 | AI195: 0 | AJ195: 0 | AK195: 0 | AL195: 0 | AM195: 0 | AN195: 0 | AO195: 0 | AP195: 0 | AQ195: 0 | AR195: 0 | AS195: 0 | AT195: 0 | AU195: 0 | AV195: 0 | AW195: 0 | AX195: 0 | AY195: 0 | AZ195: 0 | BA195: 0 | BB195: 0 | BC195: 0 | BD195: 0 | BE195: 0 | BF195: 0 | BG195: 0 | BH195: 0 | BI195: 0 | BJ195: 0 | BK195: 0 | BL195: 0 | BM195: 0 | BN195: 0 | BO195: 0 | BP195: 0 | BQ195: 0 | BR195: 0 | BS195: 0 | BT195: 0 | BU195: 0 | BV195: 0 | BW195: 0 | BX195: 0 | BY195: 0 | BZ195: 0 | CA195: 0 | CB195: 0 | CC195: 0 | CD195: 0 | CE195: =(IFERROR( AVERAGE( SUM(OFFSET(CE$70,0,1-$E193,1,$E193))/SUM(OFFSET(CE$70,0,1-$E193*2,1,$E193)), SUM(OFFSET(CE$70,0,1-$E193*2,1,$E193))/SUM(OFFSET(CE$70,0,1-$E193*3,1,$E193)), SUM(OFFSET(CE$70,0,1-$E193*3,1,$E193))/SUM(OFFSET(CE$70,0,1-$E193*4,1,$E193))), 0)-1)*(CE$64>=($E193*4))*(CE69<>0) -> 0 | CF195: 0 | CG195: 0 | CH195: 0 | CI195: 0 | CJ195: 0 | CK195: 0 | CL195: 0 | CM195: 0 | CN195: 0 | CO195: 0 | CP195: 0 | CQ195: 0 | CR195: 0 | CS195: 0 | CT195: 0 | CU195: 0 | CV195: 0 | CW195: 0 | CX195: 0 | CY195: 0 | CZ195: 0 | DA195: 0 | DB195: 0 | DC195: 0 | DD195: 0 | DE195: 0 | DF195: 0 | DG195: 0 | DH195: 0 | DI195: 0 | DJ195: 0 | DK195: 0 | DL195: 0 | DM195: 0 | DN195: 0 | DO195: 0 | DP195: 0 | DQ195: 0 | DR195: 0 | DS195: 0 | DT195: 0 | DU195: 0 | DV195: 0
C208: Техническая зона
F210: счетчик периодов | G210: =IF(G69<>"",1,"") -> 1 | H210: =IF(H69<>"",G210+1,"") -> 2 | I210: 3 | J210: 4 | K210: 5 | L210: 6 | M210: 7 | N210: 8 | O210: 9 | P210: 10 | Q210: 11 | R210: 12 | S210: 13 | T210: 14 | U210: 15 | V210: 16 | W210: 17 | X210: 18 | Y210: 19 | Z210: 20 | AA210: 21 | AB210: 22 | AC210: 23 | AD210: 24 | AE210: 25 | AF210: 26 | AG210: 27 | AH210: 28 | AI210: 29 | AJ210: 30 | AK210: 31 | AL210: 32 | AM210: 33 | AN210: =IF(AN69<>"",AM210+1,"") -> 34 | AO210: 35 | AP210: 36 | AQ210: 37 | AR210: 38 | AS210: 39 | AT210: 40 | AU210: 41 | AV210: 42 | AW210: 43 | AX210: 44 | AY210: 45 | AZ210: 46 | BA210: 47 | BB210: 48 | BC210: 49 | BD210: 50 | BE210: 51 | BF210: 52 | BG210: 53 | BH210: 54 | BI210: 55 | BJ210: 56 | BK210: 57 | BL210: 58 | BM210: 59 | BN210: 60 | BO210: 61 | BP210: 62 | BQ210: 63 | BR210: 64 | BS210: 65 | BT210: =IF(BT69<>"",BS210+1,"") -> 66 | BU210: 67 | BV210: 68 | BW210: 69 | BX210: 70 | BY210: 71 | BZ210: 72 | CA210: 73 | CB210: 74 | CC210: 75 | CD210: 76 | CE210: 77 | CF210: 78 | CG210: 79 | CH210: 80 | CI210: 81 | CJ210: 82 | CK210: 83 | CL210: 84 | CM210: 85 | CN210: 86 | CO210: 87 | CP210: 88 | CQ210: 89 | CR210: 90 | CS210: 91 | CT210: 92 | CU210: 93 | CV210: 94 | CW210: 95 | CX210: 96 | CY210: 97 | CZ210: =IF(CZ69<>"",CY210+1,"") -> 98 | DA210: 99 | DB210: 100 | DC210: 101 | DD210: 102 | DE210: 103 | DF210: 104 | DG210: 105 | DH210: 106 | DI210: 107 | DJ210: 108 | DK210: 109 | DL210: 110 | DM210: 111 | DN210: 112 | DO210: 113 | DP210: 114 | DQ210: 115 | DR210: 116 | DS210: 117 | DT210: 118 | DU210: 119 | DV210: 120
F211: Flag_Total_Periods | G211: =IF(OR(G66<>0,G67<>0),1,0) -> 1 | H211: =IF(OR(H66<>0,H67<>0),1,0) -> 1 | I211: 1 | J211: 1 | K211: 1 | L211: 1 | M211: 1 | N211: 1 | O211: 0 | P211: 0 | Q211: 0 | R211: 0 | S211: 0 | T211: 0 | U211: 0 | V211: 0 | W211: 0 | X211: 0 | Y211: 0 | Z211: 0 | AA211: 0 | AB211: 0 | AC211: 0 | AD211: 0 | AE211: 0 | AF211: 0 | AG211: 0 | AH211: 0 | AI211: 0 | AJ211: 0 | AK211: 0 | AL211: 0 | AM211: 0 | AN211: 0 | AO211: 0 | AP211: 0 | AQ211: 0 | AR211: 0 | AS211: 0 | AT211: 0 | AU211: 0 | AV211: 0 | AW211: 0 | AX211: 0 | AY211: 0 | AZ211: 0 | BA211: 0 | BB211: 0 | BC211: 0 | BD211: 0 | BE211: 0 | BF211: 0 | BG211: 0 | BH211: 0 | BI211: 0 | BJ211: 0 | BK211: 0 | BL211: 0 | BM211: 0 | BN211: 0 | BO211: 0 | BP211: 0 | BQ211: 0 | BR211: 0 | BS211: 0 | BT211: =IF(OR(BT66<>0,BT67<>0),1,0) -> 0 | BU211: 0 | BV211: 0 | BW211: 0 | BX211: 0 | BY211: 0 | BZ211: 0 | CA211: 0 | CB211: 0 | CC211: 0 | CD211: 0 | CE211: 0 | CF211: 0 | CG211: 0 | CH211: 0 | CI211: 0 | CJ211: 0 | CK211: 0 | CL211: 0 | CM211: 0 | CN211: 0 | CO211: 0 | CP211: 0 | CQ211: 0 | CR211: 0 | CS211: 0 | CT211: 0 | CU211: 0 | CV211: 0 | CW211: 0 | CX211: 0 | CY211: 0 | CZ211: 0 | DA211: 0 | DB211: 0 | DC211: 0 | DD211: 0 | DE211: 0 | DF211: 0 | DG211: 0 | DH211: 0 | DI211: 0 | DJ211: 0 | DK211: 0 | DL211: 0 | DM211: 0 | DN211: 0 | DO211: 0 | DP211: 0 | DQ211: 0 | DR211: 0 | DS211: 0 | DT211: 0 | DU211: 0 | DV211: 0
E213: Chosen_Per | F213: =MATCH(E15,G69:DV69,0) -> 9
E214: VEB_start | F214: =MATCH(1,DB_VEB_Period,0) -> 
E215: VEB_end | F215: =IFERROR(MATCH(0,OFFSET(G68,0,F214-1,1,DB_Move-F214),0),DB_Move) -> 8
F216: Flag_Forecast | G216: =IF($G$6="нет",(G210>=$F$15)*1*G211,G211) -> 1 | H216: =IF($G$6="нет",(H210>=$F$15)*1*H211,H211) -> 1 | I216: 1 | J216: 1 | K216: 1 | L216: 1 | M216: 1 | N216: 1 | O216: 0 | P216: 0 | Q216: 0 | R216: 0 | S216: 0 | T216: 0 | U216: 0 | V216: 0 | W216: 0 | X216: 0 | Y216: 0 | Z216: 0 | AA216: 0 | AB216: 0 | AC216: 0 | AD216: 0 | AE216: 0 | AF216: 0 | AG216: 0 | AH216: 0 | AI216: 0 | AJ216: 0 | AK216: 0 | AL216: 0 | AM216: 0 | AN216: 0 | AO216: 0 | AP216: 0 | AQ216: 0 | AR216: 0 | AS216: 0 | AT216: 0 | AU216: 0 | AV216: 0 | AW216: 0 | AX216: 0 | AY216: 0 | AZ216: 0 | BA216: 0 | BB216: 0 | BC216: 0 | BD216: 0 | BE216: 0 | BF216: 0 | BG216: 0 | BH216: 0 | BI216: 0 | BJ216: 0 | BK216: 0 | BL216: 0 | BM216: 0 | BN216: 0 | BO216: 0 | BP216: 0 | BQ216: 0 | BR216: 0 | BS216: 0 | BT216: =IF($G$6="нет",(BT210>=$F$15)*1*BT211,BT211) -> 0 | BU216: 0 | BV216: 0 | BW216: 0 | BX216: 0 | BY216: 0 | BZ216: 0 | CA216: 0 | CB216: 0 | CC216: 0 | CD216: 0 | CE216: 0 | CF216: 0 | CG216: 0 | CH216: 0 | CI216: 0 | CJ216: 0 | CK216: 0 | CL216: 0 | CM216: 0 | CN216: 0 | CO216: 0 | CP216: 0 | CQ216: 0 | CR216: 0 | CS216: 0 | CT216: 0 | CU216: 0 | CV216: 0 | CW216: 0 | CX216: 0 | CY216: 0 | CZ216: 0 | DA216: 0 | DB216: 0 | DC216: 0 | DD216: 0 | DE216: 0 | DF216: 0 | DG216: 0 | DH216: 0 | DI216: 0 | DJ216: 0 | DK216: 0 | DL216: 0 | DM216: 0 | DN216: 0 | DO216: 0 | DP216: 0 | DQ216: 0 | DR216: 0 | DS216: 0 | DT216: 0 | DU216: 0 | DV216: 0
D217: DB_Move_VEB | E217: =SUM(G217:DV217) -> 8 | F217: Flag_VEB_count | G217: =IF($G$7="да",IF(G$64<$F215,1,0),G211) -> 1 | H217: 1 | I217: 1 | J217: 1 | K217: 1 | L217: 1 | M217: 1 | N217: 1 | O217: 0 | P217: 0 | Q217: 0 | R217: 0 | S217: 0 | T217: 0 | U217: 0 | V217: 0 | W217: 0 | X217: 0 | Y217: 0 | Z217: 0 | AA217: 0 | AB217: 0 | AC217: 0 | AD217: 0 | AE217: 0 | AF217: 0 | AG217: 0 | AH217: 0 | AI217: 0 | AJ217: 0 | AK217: 0 | AL217: 0 | AM217: =IF($G$7="да",IF(AM$64<$F215,1,0),AM211) -> 0 | AN217: 0 | AO217: 0 | AP217: 0 | AQ217: 0 | AR217: 0 | AS217: 0 | AT217: 0 | AU217: 0 | AV217: 0 | AW217: 0 | AX217: 0 | AY217: 0 | AZ217: 0 | BA217: 0 | BB217: 0 | BC217: 0 | BD217: 0 | BE217: 0 | BF217: 0 | BG217: 0 | BH217: 0 | BI217: 0 | BJ217: 0 | BK217: 0 | BL217: 0 | BM217: 0 | BN217: 0 | BO217: 0 | BP217: 0 | BQ217: 0 | BR217: 0 | BS217: =IF($G$7="да",IF(BS$64<$F215,1,0),BS211) -> 0 | BT217: 0 | BU217: 0 | BV217: 0 | BW217: 0 | BX217: 0 | BY217: 0 | BZ217: 0 | CA217: 0 | CB217: 0 | CC217: 0 | CD217: 0 | CE217: 0 | CF217: 0 | CG217: 0 | CH217: 0 | CI217: 0 | CJ217: 0 | CK217: 0 | CL217: 0 | CM217: 0 | CN217: 0 | CO217: 0 | CP217: 0 | CQ217: 0 | CR217: 0 | CS217: 0 | CT217: 0 | CU217: 0 | CV217: 0 | CW217: 0 | CX217: 0 | CY217: =IF($G$7="да",IF(CY$64<$F215,1,0),CY211) -> 0 | CZ217: 0 | DA217: 0 | DB217: 0 | DC217: 0 | DD217: 0 | DE217: 0 | DF217: 0 | DG217: 0 | DH217: 0 | DI217: 0 | DJ217: 0 | DK217: 0 | DL217: 0 | DM217: 0 | DN217: 0 | DO217: 0 | DP217: 0 | DQ217: 0 | DR217: 0 | DS217: 0 | DT217: 0 | DU217: 0 | DV217: 0
F219: First_OpP | G219: =MATCH(1,G67:DV67,0) -> 1
E221: Короткие кредиты | F221: Выборка | G221: =SUMIF(INDIRECT($F$69),G69,DB_Short_Financing) -> 0 | H221: 0 | I221: 0 | J221: 0 | K221: 0 | L221: 0 | M221: 0 | N221: 0 | O221: 0 | P221: 0 | Q221: 0 | R221: 0 | S221: 0 | T221: 0 | U221: 0 | V221: 0 | W221: 0 | X221: 0 | Y221: 0 | Z221: 0 | AA221: 0 | AB221: 0 | AC221: 0 | AD221: 0 | AE221: 0 | AF221: 0 | AG221: 0 | AH221: 0 | AI221: 0 | AJ221: 0 | AK221: 0 | AL221: 0 | AM221: =SUMIF(INDIRECT($F$69),AM69,DB_Short_Financing) -> 0 | AN221: 0 | AO221: 0 | AP221: 0 | AQ221: 0 | AR221: 0 | AS221: 0 | AT221: 0 | AU221: 0 | AV221: 0 | AW221: 0 | AX221: 0 | AY221: 0 | AZ221: 0 | BA221: 0 | BB221: 0 | BC221: 0 | BD221: 0 | BE221: 0 | BF221: 0 | BG221: 0 | BH221: 0 | BI221: 0 | BJ221: 0 | BK221: 0 | BL221: 0 | BM221: 0 | BN221: 0 | BO221: 0 | BP221: 0 | BQ221: 0 | BR221: 0 | BS221: =SUMIF(INDIRECT($F$69),BS69,DB_Short_Financing) -> 0 | BT221: =SUMIF(INDIRECT($F$69),BT69,DB_Short_Financing) -> 0 | BU221: 0 | BV221: 0 | BW221: 0 | BX221: 0 | BY221: 0 | BZ221: 0 | CA221: 0 | CB221: 0 | CC221: 0 | CD221: 0 | CE221: 0 | CF221: 0 | CG221: 0 | CH221: 0 | CI221: 0 | CJ221: 0 | CK221: 0 | CL221: 0 | CM221: 0 | CN221: 0 | CO221: 0 | CP221: 0 | CQ221: 0 | CR221: 0 | CS221: 0 | CT221: 0 | CU221: 0 | CV221: 0 | CW221: 0 | CX221: 0 | CY221: 0 | CZ221: 0 | DA221: 0 | DB221: 0 | DC221: 0 | DD221: 0 | DE221: 0 | DF221: 0 | DG221: 0 | DH221: 0 | DI221: 0 | DJ221: 0 | DK221: 0 | DL221: 0 | DM221: 0 | DN221: 0 | DO221: 0 | DP221: 0 | DQ221: =SUMIF(INDIRECT($F$69),DQ69,DB_Short_Financing) -> 0 | DR221: 0 | DS221: 0 | DT221: 0 | DU221: 0 | DV221: 0
F222: Погашение | G222: =SUMIF(INDIRECT($F$69),G69,DB_Short_payments) -> 0 | H222: 0 | I222: 0 | J222: 0 | K222: 0 | L222: 0 | M222: 0 | N222: 0 | O222: 0 | P222: 0 | Q222: 0 | R222: 0 | S222: 0 | T222: 0 | U222: 0 | V222: 0 | W222: 0 | X222: 0 | Y222: 0 | Z222: 0 | AA222: 0 | AB222: 0 | AC222: 0 | AD222: 0 | AE222: 0 | AF222: 0 | AG222: 0 | AH222: 0 | AI222: 0 | AJ222: 0 | AK222: 0 | AL222: 0 | AM222: =SUMIF(INDIRECT($F$69),AM69,DB_Short_payments) -> 0 | AN222: 0 | AO222: 0 | AP222: 0 | AQ222: 0 | AR222: 0 | AS222: 0 | AT222: 0 | AU222: 0 | AV222: 0 | AW222: 0 | AX222: 0 | AY222: 0 | AZ222: 0 | BA222: 0 | BB222: 0 | BC222: 0 | BD222: 0 | BE222: 0 | BF222: 0 | BG222: 0 | BH222: 0 | BI222: 0 | BJ222: 0 | BK222: 0 | BL222: 0 | BM222: 0 | BN222: 0 | BO222: 0 | BP222: 0 | BQ222: 0 | BR222: 0 | BS222: =SUMIF(INDIRECT($F$69),BS69,DB_Short_payments) -> 0 | BT222: =SUMIF(INDIRECT($F$69),BT69,DB_Short_payments) -> 0 | BU222: 0 | BV222: 0 | BW222: 0 | BX222: 0 | BY222: 0 | BZ222: 0 | CA222: 0 | CB222: 0 | CC222: 0 | CD222: 0 | CE222: 0 | CF222: 0 | CG222: 0 | CH222: 0 | CI222: 0 | CJ222: 0 | CK222: 0 | CL222: 0 | CM222: 0 | CN222: 0 | CO222: 0 | CP222: 0 | CQ222: 0 | CR222: 0 | CS222: 0 | CT222: 0 | CU222: 0 | CV222: 0 | CW222: 0 | CX222: 0 | CY222: 0 | CZ222: 0 | DA222: 0 | DB222: 0 | DC222: 0 | DD222: 0 | DE222: 0 | DF222: 0 | DG222: 0 | DH222: 0 | DI222: 0 | DJ222: 0 | DK222: 0 | DL222: 0 | DM222: 0 | DN222: 0 | DO222: 0 | DP222: 0 | DQ222: =SUMIF(INDIRECT($F$69),DQ69,DB_Short_payments) -> 0 | DR222: 0 | DS222: 0 | DT222: 0 | DU222: 0 | DV222: 0
F223: % | G223: =SUMIF(INDIRECT($F$69),G69,DB_Short_Interest_payments) -> 0 | H223: 0 | I223: 0 | J223: 0 | K223: 0 | L223: 0 | M223: 0 | N223: 0 | O223: 0 | P223: 0 | Q223: 0 | R223: 0 | S223: 0 | T223: 0 | U223: 0 | V223: 0 | W223: 0 | X223: 0 | Y223: 0 | Z223: 0 | AA223: 0 | AB223: 0 | AC223: 0 | AD223: 0 | AE223: 0 | AF223: 0 | AG223: 0 | AH223: 0 | AI223: 0 | AJ223: 0 | AK223: 0 | AL223: 0 | AM223: =SUMIF(INDIRECT($F$69),AM69,DB_Short_Interest_payments) -> 0 | AN223: 0 | AO223: 0 | AP223: 0 | AQ223: 0 | AR223: 0 | AS223: 0 | AT223: 0 | AU223: 0 | AV223: 0 | AW223: 0 | AX223: 0 | AY223: 0 | AZ223: 0 | BA223: 0 | BB223: 0 | BC223: 0 | BD223: 0 | BE223: 0 | BF223: 0 | BG223: 0 | BH223: 0 | BI223: 0 | BJ223: 0 | BK223: 0 | BL223: 0 | BM223: 0 | BN223: 0 | BO223: 0 | BP223: 0 | BQ223: 0 | BR223: 0 | BS223: =SUMIF(INDIRECT($F$69),BS69,DB_Short_Interest_payments) -> 0 | BT223: =SUMIF(INDIRECT($F$69),BT69,DB_Short_Interest_payments) -> 0 | BU223: 0 | BV223: 0 | BW223: 0 | BX223: 0 | BY223: 0 | BZ223: 0 | CA223: 0 | CB223: 0 | CC223: 0 | CD223: 0 | CE223: 0 | CF223: 0 | CG223: 0 | CH223: 0 | CI223: 0 | CJ223: 0 | CK223: 0 | CL223: 0 | CM223: 0 | CN223: 0 | CO223: 0 | CP223: 0 | CQ223: 0 | CR223: 0 | CS223: 0 | CT223: 0 | CU223: 0 | CV223: 0 | CW223: 0 | CX223: 0 | CY223: 0 | CZ223: 0 | DA223: 0 | DB223: 0 | DC223: 0 | DD223: 0 | DE223: 0 | DF223: 0 | DG223: 0 | DH223: 0 | DI223: 0 | DJ223: 0 | DK223: 0 | DL223: 0 | DM223: 0 | DN223: 0 | DO223: 0 | DP223: 0 | DQ223: =SUMIF(INDIRECT($F$69),DQ69,DB_Short_Interest_payments) -> 0 | DR223: 0 | DS223: 0 | DT223: 0 | DU223: 0 | DV223: 0
E224: НДС | F224: DB_VAT_OpCF | G224: =SUMIF(INDIRECT($F$69),G69,DB_VAT_OpCF) -> 0 | H224: 0 | I224: 0 | J224: 0 | K224: 0 | L224: 0 | M224: 0 | N224: 0 | O224: 0 | P224: 0 | Q224: 0 | R224: 0 | S224: 0 | T224: 0 | U224: 0 | V224: 0 | W224: 0 | X224: 0 | Y224: 0 | Z224: 0 | AA224: 0 | AB224: 0 | AC224: 0 | AD224: 0 | AE224: 0 | AF224: 0 | AG224: 0 | AH224: 0 | AI224: 0 | AJ224: 0 | AK224: 0 | AL224: 0 | AM224: =SUMIF(INDIRECT($F$69),AM69,DB_VAT_OpCF) -> 0 | AN224: 0 | AO224: 0 | AP224: 0 | AQ224: 0 | AR224: 0 | AS224: 0 | AT224: 0 | AU224: 0 | AV224: 0 | AW224: 0 | AX224: 0 | AY224: 0 | AZ224: 0 | BA224: 0 | BB224: 0 | BC224: 0 | BD224: 0 | BE224: 0 | BF224: 0 | BG224: 0 | BH224: 0 | BI224: 0 | BJ224: 0 | BK224: 0 | BL224: 0 | BM224: 0 | BN224: 0 | BO224: 0 | BP224: 0 | BQ224: 0 | BR224: 0 | BS224: =SUMIF(INDIRECT($F$69),BS69,DB_VAT_OpCF) -> 0 | BT224: =SUMIF(INDIRECT($F$69),BT69,DB_VAT_OpCF) -> 0 | BU224: 0 | BV224: 0 | BW224: 0 | BX224: 0 | BY224: 0 | BZ224: 0 | CA224: 0 | CB224: 0 | CC224: 0 | CD224: 0 | CE224: 0 | CF224: 0 | CG224: 0 | CH224: 0 | CI224: 0 | CJ224: 0 | CK224: 0 | CL224: 0 | CM224: 0 | CN224: 0 | CO224: 0 | CP224: 0 | CQ224: 0 | CR224: 0 | CS224: 0 | CT224: 0 | CU224: 0 | CV224: 0 | CW224: 0 | CX224: 0 | CY224: 0 | CZ224: 0 | DA224: 0 | DB224: 0 | DC224: 0 | DD224: 0 | DE224: 0 | DF224: 0 | DG224: 0 | DH224: 0 | DI224: 0 | DJ224: 0 | DK224: 0 | DL224: 0 | DM224: 0 | DN224: 0 | DO224: 0 | DP224: 0 | DQ224: =SUMIF(INDIRECT($F$69),DQ69,DB_VAT_OpCF) -> 0 | DR224: 0 | DS224: 0 | DT224: 0 | DU224: 0 | DV224: 0
E225: delta Cash | G225: =G115-F115 -> 0 | H225: =H115-G115 -> 0 | I225: 0 | J225: 0 | K225: 0 | L225: 0 | M225: 0 | N225: 0 | O225: 0 | P225: 0 | Q225: 0 | R225: 0 | S225: 0 | T225: 0 | U225: 0 | V225: 0 | W225: 0 | X225: 0 | Y225: 0 | Z225: 0 | AA225: 0 | AB225: 0 | AC225: 0 | AD225: 0 | AE225: 0 | AF225: 0 | AG225: 0 | AH225: 0 | AI225: 0 | AJ225: 0 | AK225: 0 | AL225: 0 | AM225: 0 | AN225: 0 | AO225: 0 | AP225: 0 | AQ225: 0 | AR225: 0 | AS225: 0 | AT225: 0 | AU225: 0 | AV225: 0 | AW225: 0 | AX225: 0 | AY225: 0 | AZ225: 0 | BA225: 0 | BB225: 0 | BC225: 0 | BD225: 0 | BE225: 0 | BF225: 0 | BG225: 0 | BH225: 0 | BI225: 0 | BJ225: 0 | BK225: 0 | BL225: 0 | BM225: 0 | BN225: 0 | BO225: 0 | BP225: 0 | BQ225: 0 | BR225: 0 | BS225: 0 | BT225: =BT115-BS115 -> 0 | BU225: =BU115-BT115 -> 0 | BV225: =BV115-BU115 -> 0 | BW225: =BW115-BV115 -> 0 | BX225: =BX115-BW115 -> 0 | BY225: =BY115-BX115 -> 0 | BZ225: =BZ115-BY115 -> 0 | CA225: =CA115-BZ115 -> 0 | CB225: =CB115-CA115 -> 0 | CC225: =CC115-CB115 -> 0 | CD225: =CD115-CC115 -> 0 | CE225: =CE115-CD115 -> 0 | CF225: =CF115-CE115 -> 0 | CG225: =CG115-CF115 -> 0 | CH225: =CH115-CG115 -> 0 | CI225: =CI115-CH115 -> 0 | CJ225: =CJ115-CI115 -> 0 | CK225: =CK115-CJ115 -> 0 | CL225: =CL115-CK115 -> 0 | CM225: =CM115-CL115 -> 0 | CN225: =CN115-CM115 -> 0 | CO225: =CO115-CN115 -> 0 | CP225: =CP115-CO115 -> 0 | CQ225: =CQ115-CP115 -> 0 | CR225: =CR115-CQ115 -> 0 | CS225: =CS115-CR115 -> 0 | CT225: =CT115-CS115 -> 0 | CU225: =CU115-CT115 -> 0 | CV225: =CV115-CU115 -> 0 | CW225: =CW115-CV115 -> 0 | CX225: =CX115-CW115 -> 0 | CY225: =CY115-CX115 -> 0 | CZ225: =CZ115-CY115 -> 0 | DA225: =DA115-CZ115 -> 0 | DB225: =DB115-DA115 -> 0 | DC225: =DC115-DB115 -> 0 | DD225: =DD115-DC115 -> 0 | DE225: =DE115-DD115 -> 0 | DF225: =DF115-DE115 -> 0 | DG225: =DG115-DF115 -> 0 | DH225: =DH115-DG115 -> 0 | DI225: =DI115-DH115 -> 0 | DJ225: =DJ115-DI115 -> 0 | DK225: =DK115-DJ115 -> 0 | DL225: =DL115-DK115 -> 0 | DM225: =DM115-DL115 -> 0 | DN225: =DN115-DM115 -> 0 | DO225: =DO115-DN115 -> 0 | DP225: =DP115-DO115 -> 0 | DQ225: =DQ115-DP115 -> 0 | DR225: =DR115-DQ115 -> 0 | DS225: =DS115-DR115 -> 0 | DT225: =DT115-DS115 -> 0 | DU225: =DU115-DT115 -> 0 | DV225: =DV115-DU115 -> 0
E230: DB_Year_rate
E231: DB_Discount_per | F231: 4 | G231: =IF(F69="DB_Quarter",0.25,IF(F69="DB_Halfyear",0.5,1))*(G211<>0)*(G216<>0) -> 0.25 | H231: =(G231+DB_Step/$F231)*(H211<>0)*(H216<>0) -> 0.5 | I231: 0.75 | J231: 1 | K231: 1.25 | L231: 1.5 | M231: 1.75 | N231: 2 | O231: 0 | P231: 0 | Q231: 0 | R231: 0 | S231: 0 | T231: 0 | U231: 0 | V231: 0 | W231: 0 | X231: 0 | Y231: 0 | Z231: 0 | AA231: 0 | AB231: 0 | AC231: 0 | AD231: 0 | AE231: 0 | AF231: 0 | AG231: 0 | AH231: 0 | AI231: 0 | AJ231: 0 | AK231: 0 | AL231: 0 | AM231: 0 | AN231: =(AM231+DB_Step/$F231)*(AN211<>0)*(AN216<>0) -> 0 | AO231: 0 | AP231: 0 | AQ231: 0 | AR231: 0 | AS231: 0 | AT231: 0 | AU231: 0 | AV231: 0 | AW231: 0 | AX231: 0 | AY231: 0 | AZ231: 0 | BA231: 0 | BB231: 0 | BC231: 0 | BD231: 0 | BE231: 0 | BF231: 0 | BG231: 0 | BH231: 0 | BI231: 0 | BJ231: 0 | BK231: 0 | BL231: 0 | BM231: 0 | BN231: 0 | BO231: 0 | BP231: 0 | BQ231: 0 | BR231: 0 | BS231: 0 | BT231: =(BS231+DB_Step/$F231)*(BT211<>0)*(BT216<>0) -> 0 | BU231: 0 | BV231: 0 | BW231: 0 | BX231: 0 | BY231: 0 | BZ231: 0 | CA231: 0 | CB231: 0 | CC231: 0 | CD231: 0 | CE231: 0 | CF231: 0 | CG231: 0 | CH231: 0 | CI231: 0 | CJ231: 0 | CK231: 0 | CL231: 0 | CM231: 0 | CN231: 0 | CO231: 0 | CP231: 0 | CQ231: 0 | CR231: 0 | CS231: 0 | CT231: 0 | CU231: 0 | CV231: 0 | CW231: 0 | CX231: 0 | CY231: 0 | CZ231: =(CY231+DB_Step/$F231)*(CZ211<>0)*(CZ216<>0) -> 0 | DA231: 0 | DB231: 0 | DC231: 0 | DD231: 0 | DE231: 0 | DF231: 0 | DG231: 0 | DH231: 0 | DI231: 0 | DJ231: 0 | DK231: 0 | DL231: 0 | DM231: 0 | DN231: 0 | DO231: 0 | DP231: 0 | DQ231: 0 | DR231: 0 | DS231: 0 | DT231: 0 | DU231: 0 | DV231: 0
E232: ставки
E233: =H9 -> 0 | F233: discount WACC | G233: =IF(SUM(G$66:G$67)>0,1/(1+$E233)^(G231/$F231),0) -> 1 | H233: =IF(SUM(H$66:H$68)>0,1/(1+$E233)^(H231),0) -> 1 | I233: =IF(SUM(I$66:I$68)>0,1/(1+$E233)^(I231),0) -> 1 | J233: 1 | K233: 1 | L233: 1 | M233: 1 | N233: 1 | O233: =IF(SUM(O$66:O$68)>0,1/(1+$E233)^(O231),0) -> 0 | P233: 0 | Q233: 0 | R233: 0 | S233: 0 | T233: 0 | U233: 0 | V233: 0 | W233: 0 | X233: 0 | Y233: 0 | Z233: 0 | AA233: 0 | AB233: 0 | AC233: 0 | AD233: 0 | AE233: 0 | AF233: 0 | AG233: 0 | AH233: 0 | AI233: 0 | AJ233: 0 | AK233: 0 | AL233: 0 | AM233: 0 | AN233: 0 | AO233: 0 | AP233: 0 | AQ233: 0 | AR233: 0 | AS233: 0 | AT233: 0 | AU233: 0 | AV233: 0 | AW233: 0 | AX233: 0 | AY233: 0 | AZ233: 0 | BA233: 0 | BB233: 0 | BC233: 0 | BD233: 0 | BE233: 0 | BF233: 0 | BG233: 0 | BH233: 0 | BI233: 0 | BJ233: 0 | BK233: 0 | BL233: 0 | BM233: 0 | BN233: 0 | BO233: 0 | BP233: 0 | BQ233: 0 | BR233: 0 | BS233: 0 | BT233: =IF(SUM(BT$66:BT$68)>0,1/(1+$E233)^(BT231),0) -> 0 | BU233: 0 | BV233: 0 | BW233: 0 | BX233: 0 | BY233: 0 | BZ233: 0 | CA233: 0 | CB233: 0 | CC233: 0 | CD233: 0 | CE233: 0 | CF233: 0 | CG233: 0 | CH233: 0 | CI233: 0 | CJ233: 0 | CK233: 0 | CL233: 0 | CM233: 0 | CN233: 0 | CO233: 0 | CP233: 0 | CQ233: 0 | CR233: 0 | CS233: 0 | CT233: 0 | CU233: 0 | CV233: 0 | CW233: 0 | CX233: 0 | CY233: 0 | CZ233: 0 | DA233: 0 | DB233: 0 | DC233: 0 | DD233: 0 | DE233: 0 | DF233: 0 | DG233: 0 | DH233: 0 | DI233: 0 | DJ233: 0 | DK233: 0 | DL233: 0 | DM233: 0 | DN233: 0 | DO233: 0 | DP233: 0 | DQ233: =IF(SUM(DQ$66:DQ$68)>0,1/(1+$E233)^(DQ231),0) -> 0 | DR233: 0 | DS233: 0 | DT233: 0 | DU233: 0 | DV233: 0
E234: =H10 -> 0.07 | F234: discount ЕТС | G234: =IF(SUM(G$66:G$67)>0,1/(1+$E234)^(G231),0) -> 0.9832275876 | H234: =IF(SUM(H$66:H$68)>0,1/(1+$E234)^(H231),0) -> 0.966736489 | I234: 0.950521986 | J234: 0.9345794393 | K234: 0.9189042875 | L234: 0.9034920458 | M234: 0.8883383047 | N234: 0.8734387283 | O234: =IF(SUM(O$66:O$68)>0,1/(1+$E234)^(O231),0) -> 0 | P234: 0 | Q234: 0 | R234: 0 | S234: 0 | T234: 0 | U234: 0 | V234: 0 | W234: 0 | X234: 0 | Y234: 0 | Z234: 0 | AA234: 0 | AB234: 0 | AC234: 0 | AD234: 0 | AE234: 0 | AF234: 0 | AG234: 0 | AH234: 0 | AI234: 0 | AJ234: 0 | AK234: 0 | AL234: 0 | AM234: 0 | AN234: 0 | AO234: 0 | AP234: 0 | AQ234: 0 | AR234: 0 | AS234: 0 | AT234: 0 | AU234: 0 | AV234: 0 | AW234: 0 | AX234: 0 | AY234: 0 | AZ234: 0 | BA234: 0 | BB234: 0 | BC234: 0 | BD234: 0 | BE234: 0 | BF234: 0 | BG234: 0 | BH234: 0 | BI234: 0 | BJ234: 0 | BK234: 0 | BL234: 0 | BM234: 0 | BN234: 0 | BO234: 0 | BP234: 0 | BQ234: 0 | BR234: 0 | BS234: 0 | BT234: =IF(SUM(BT$66:BT$68)>0,1/(1+$E234)^(BT231),0) -> 0 | BU234: 0 | BV234: 0 | BW234: 0 | BX234: 0 | BY234: 0 | BZ234: 0 | CA234: 0 | CB234: 0 | CC234: 0 | CD234: 0 | CE234: 0 | CF234: 0 | CG234: 0 | CH234: 0 | CI234: 0 | CJ234: 0 | CK234: 0 | CL234: 0 | CM234: 0 | CN234: 0 | CO234: 0 | CP234: 0 | CQ234: 0 | CR234: 0 | CS234: 0 | CT234: 0 | CU234: 0 | CV234: 0 | CW234: 0 | CX234: 0 | CY234: 0 | CZ234: 0 | DA234: 0 | DB234: 0 | DC234: 0 | DD234: 0 | DE234: 0 | DF234: 0 | DG234: 0 | DH234: 0 | DI234: 0 | DJ234: 0 | DK234: 0 | DL234: 0 | DM234: 0 | DN234: 0 | DO234: 0 | DP234: 0 | DQ234: =IF(SUM(DQ$66:DQ$68)>0,1/(1+$E234)^(DQ231),0) -> 0 | DR234: 0 | DS234: 0 | DT234: 0 | DU234: 0 | DV234: 0
E235: =H11 -> 0.08 | F235: discount WACC Other | G235: =IF(SUM(G$66:G$67)>0,1/(1+$E235)^(G231),0) -> 0.9809436521 | H235: =IF(SUM(H$66:H$68)>0,1/(1+$E235)^(H231),0) -> 0.9622504486 | I235: 0.9439134694 | J235: 0.9259259259 | K235: 0.9082811594 | L235: 0.8909726376 | M235: 0.8739939531 | N235: 0.8573388203 | O235: =IF(SUM(O$66:O$68)>0,1/(1+$E235)^(O231),0) -> 0 | P235: 0 | Q235: 0 | R235: 0 | S235: 0 | T235: 0 | U235: 0 | V235: 0 | W235: 0 | X235: 0 | Y235: 0 | Z235: 0 | AA235: 0 | AB235: 0 | AC235: 0 | AD235: 0 | AE235: 0 | AF235: 0 | AG235: 0 | AH235: 0 | AI235: 0 | AJ235: 0 | AK235: 0 | AL235: 0 | AM235: 0 | AN235: 0 | AO235: 0 | AP235: 0 | AQ235: 0 | AR235: 0 | AS235: 0 | AT235: 0 | AU235: 0 | AV235: 0 | AW235: 0 | AX235: 0 | AY235: 0 | AZ235: 0 | BA235: 0 | BB235: 0 | BC235: 0 | BD235: 0 | BE235: 0 | BF235: 0 | BG235: 0 | BH235: 0 | BI235: 0 | BJ235: 0 | BK235: 0 | BL235: 0 | BM235: 0 | BN235: 0 | BO235: 0 | BP235: 0 | BQ235: 0 | BR235: 0 | BS235: 0 | BT235: =IF(SUM(BT$66:BT$68)>0,1/(1+$E235)^(BT231),0) -> 0 | BU235: 0 | BV235: 0 | BW235: 0 | BX235: 0 | BY235: 0 | BZ235: 0 | CA235: 0 | CB235: 0 | CC235: 0 | CD235: 0 | CE235: 0 | CF235: 0 | CG235: 0 | CH235: 0 | CI235: 0 | CJ235: 0 | CK235: 0 | CL235: 0 | CM235: 0 | CN235: 0 | CO235: 0 | CP235: 0 | CQ235: 0 | CR235: 0 | CS235: 0 | CT235: 0 | CU235: 0 | CV235: 0 | CW235: 0 | CX235: 0 | CY235: 0 | CZ235: 0 | DA235: 0 | DB235: 0 | DC235: 0 | DD235: 0 | DE235: 0 | DF235: 0 | DG235: 0 | DH235: 0 | DI235: 0 | DJ235: 0 | DK235: 0 | DL235: 0 | DM235: 0 | DN235: 0 | DO235: 0 | DP235: 0 | DQ235: =IF(SUM(DQ$66:DQ$68)>0,1/(1+$E235)^(DQ231),0) -> 0 | DR235: 0 | DS235: 0 | DT235: 0 | DU235: 0 | DV235: 0
